Workbook

Sheet Data
A1: rtu | B1: workbook | C1: dnv_gl_id | D1: Test_Type | E1: Economizer_opening | F1: Compressor_1_on_off | G1: Compressor_2_on_off | H1: Motor_sheave_setting | I1: Cabinet_sealing | J1: Ductwork_Sealing | K1: Fan_Speed | L1: Pulley_Diameter | M1: Air_Discharge_Configuration | N1: condenser_blockage | O1: evaporator_blockage | P1: Customer | Q1: Date | R1: Time | S1: Psy_Room | T1: Average_time | U1: Conditions | V1: Engineer | W1: Tech | X1: OD_Unit_Model | Y1: OD_Unit_Serial | Z1: Unit_capacity | AA1: Refrigerant_type | AB1: ID_Unit_type | AC1: Refrigerant_charge | AD1: Volt_min_max_phs | AE1: TU_ID_Tag | AF1: Test_Standard | AG1: conditions_indoor_dry_bulb | AH1: conditions_indoor_wet_bulb | AI1: conditions_outdoor_dry_bulb | AJ1: conditions_outdoor_wet_bulb | AK1: refrig_charge_ck_1 | AL1: refrig_charge_ck_2 | AM1: refrig_charge_factory_ck_1 | AN1: refrig_charge_factory_ck_2 | AO1: Total_Volts_mean | AP1: Total_Volts_std | AQ1: Total_Amps_mean | AR1: Total_Amps_std | AS1: Net_Sensible_Capacity_mean | AT1: Net_Sensible_Capacity_std | AU1: Sensible_ViaGrids_mean | AV1: Sensible_ViaGrids_std | AW1: Net_Latent_Enthalpy_mean | AX1: Net_Latent_Enthalpy_std | AY1: Air_Side_Only_Cap_mean | AZ1: Air_Side_Only_Cap_std | BA1: Air_Side_Only_EER_mean | BB1: ID_Blower_Motor_mean | BC1: ID_Blower_Power_mean | BD1: Code_tester_spd_mean | BE1: Air_Side_Only_EERs_mean | BF1: Enthalpy_evap_out_1_mean | BG1: Enthalpy_evap_out_1_std | BH1: Total_meas_heat_bal_mean | BI1: Cycle_number | BJ1: Fan_on_time_min | BK1: OD_Outdoor_Dry_Air_mean | BL1: Cycle_total_time | BM1: OD_Outdoor_Wet_Air_mean | BN1: Nozzle_Area_mean | BO1: ID_Calc_Power_From_CFM_mean | BP1: C_test_SCFM_mean | BQ1: C_test_Spec_vol_mix | BR1: Qss_mean | BS1: C_test_Spec_heat | BT1: Qcyc_mean | BU1: C_test_Hum_ratio | BV1: Delta_T_mean | BW1: C_Net_mean | BX1: OD_Off_Watt_hours | BY1: D_Net_mean | BZ1: OD_On_Watt_hours | CA1: Integrated_EER_mean | CB1: Off_Watt_hours | CC1: EER_from_B_sensible_only_mean | CD1: ID_Off_Watt_hours | CE1: ID_On_Watt_hours | CF1: CLF_mean | CG1: Cyclic_Watt_hours | CH1: CD_mean | CI1: OD_SS_Watt_hours | CJ1: ID_SS_Watt_hours | CK1: SEER_mean | CL1: Steady_Watt_hours | CM1: Watt_hour_ratio | CN1: Average_air_side_EER_mean | CO1: comments1 | CP1: comments2 | CQ1: In_Dry_Bulb_avg | CR1: In_Dry_Bulb_std | CS1: In_Wet_Bulb_avg | CT1: In_Wet_Bulb_std | CU1: OD_Dry_Bulb_avg | CV1: OD_Dry_Bulb_std | CW1: OD_Wet_Bulb_avg | CX1: OD_Wet_Bulb_std | CY1: Inlet_Grid_avg | CZ1: Inlet_Grid_std | DA1: Outlet_Grid_avg | DB1: Outlet_Grid_std | DC1: Nozzle_Temp_avg | DD1: Nozzle_Temp_std | DE1: B4Nozzle_avg | DF1: B4Nozzle_std | DG1: Nozzle_Delta_avg | DH1: Nozzle_delta_std | DI1: Net_Sensible_avg | DJ1: Net_Sensible_std | DK1: Net_Latent_Enthalpy_avg | DL1: Net_Latent_Enthalpy_std | DM1: Air_Side_Only_EER_avg | DN1: Air_Side_Only_EER_std | DO1: Ref_Only_Cap_avg | DP1: Ref_Only_Cap_std | DQ1: Meas_Refr_Only_EER_avg | DR1: Meas_Refr_Only_EER_std | DS1: Total_meas_heat_bal_avg | DT1: Total_meas_heat_bal_std | DU1: Tu_Total_V1_avg | DV1: Tu_Total_V1_std | DW1: Tu_Total_V2_avg | DX1: Tu_Total_V2_std | DY1: Tu_Total_V3_avg | DZ1: Tu_Total_V3_std | EA1: Tu_Total_A1_avg | EB1: Tu_Total_A1_std | EC1: Tu_Total_A2_avg | ED1: Tu_Total_A2_std | EE1: Tu_Total_A3_avg | EF1: Tu_Total_A3_std | EG1: Tu_Total_W1_avg | EH1: Tu_Total_W1_std | EI1: Tu_Total_W2_avg | EJ1: Tu_Total_W2_std | EK1: Tu_Total_W3_avg | EL1: Tu_Total_W3_std | EM1: ID_Blower_V1_avg | EN1: ID_Blower_V1_std | EO1: ID_Blower_V2_avg | EP1: ID_Blower_V2_std | EQ1: ID_Blower_V3_avg | ER1: ID_Blower_V3_std | ES1: ID_Blower_A1_avg | ET1: ID_Blower_A1_std | EU1: ID_Blower_A2_avg | EV1: ID_Blower_A2_std | EW1: ID_Blower_A3_avg | EX1: ID_Blower_A3_std | EY1: ID_Blower_PF_avg | EZ1: Comp_1_V1_avg | FA1: Comp_1_V1_std | FB1: Comp_1_V2_avg | FC1: Comp_1_V2_std | FD1: Comp_1_V3_avg | FE1: Comp_1_V3_std | FF1: Comp_1_A1_avg | FG1: Comp_1_A1_std | FH1: Comp_1_A2_avg | FI1: Comp_1_A2_std | FJ1: Comp_1_A3_avg | FK1: Comp_1_A3_std | FL1: Comp_1_W_avg | FM1: Comp_1_W_std | FN1: Comp_1_PF_avg | FO1: Comp_2_V1_avg | FP1: Comp_2_V2_avg | FQ1: Comp_2_V3_avg | FR1: Comp_2_A1_avg | FS1: Comp_2_A2_avg | FT1: Comp_2_A3_avg | FU1: Comp_2_W_avg | FV1: Comp_2_PF_avg | FW1: OD_Fan_Volts_avg | FX1: OD_Fan_Volts_std | FY1: OD_Fan_Amps_avg | FZ1: OD_Fan_Amps_std | GA1: OD_Fan_Watts_avg | GB1: OD_Fan_Watts_std | GC1: Control_Watts_avg | GD1: Control_Watts_std | GE1: Total_Power_Individual_avg | GF1: Code_Tester_L1_V_avg | GG1: Code_Tester_L2_V_avg | GH1: Code_Tester_L3_V_avg | GI1: Code_Tester_L1_A_avg | GJ1: Code_Tester_L2_A_avg | GK1: Code_Tester_L3_A_avg | GL1: Code_Tester_Watts_avg | GM1: Code_Tester_PF_avg | GN1: Code_Speed_avg | GO1: Code_Hz_avg | GP1: Control_Volts_avg | GQ1: Control_Volts_std | GR1: Control_Amps_avg | GS1: Control_Amps_std | GT1: Liq_OD_PSIG_avg | GU1: Liq_OD_PSIG_std | GV1: Liq_OD_Temp_avg | GW1: Liq_OD_Temp_std | GX1: Sat_Liq_OD_avg | GY1: Sat_Liq_OD_std | GZ1: SC_Liq_OD_avg | HA1: SC_Liq_OD_std | HB1: Discharge_PSIG_avg | HC1: Discharge_PSIG_std | HD1: Discharge_temp_avg | HE1: Discharge_temp_std | HF1: Sat_Compr_disch_avg | HG1: Sat_Compr_disch_std | HH1: SH_Compr_disch_avg | HI1: SH_Compr_disch_std | HJ1: Liq_ID_PSIG_avg | HK1: Liq_ID_PSIG_std | HL1: Liq_ID_temp_avg | HM1: Liq_ID_temp_std | HN1: Sat_Liq_ID_avg | HO1: Sat_Liq_ID_std | HP1: SC_Liq_ID_avg | HQ1: SC_Liq_ID_std | HR1: Gas_ID_PSIG_avg | HS1: Gas_ID_PSIG_std | HT1: Gas_ID_temp_avg | HU1: Gas_ID_temp_std | HV1: Sat_Gas_ID_avg | HW1: Sat_Gas_ID_std | HX1: SH_Gas_ID_avg | HY1: SH_Gas_ID_std | HZ1: Suction_PSIG_avg | IA1: Suction_PSIG_std | IB1: Suction_temp_avg | IC1: Suction_temp_std | ID1: Sat_Suction_avg | IE1: Sat_Suction_std | IF1: SH_Suction_avg | IG1: SH_Suction_std | IH1: Flow_rate_lbs_hr_avg | II1: Flow_rate_lbs_hr_std | IJ1: Enthalpy_evap_In_1_mean | IK1: Enthalpy_evap_In_1_std | IL1: Meas_Refr_Only_Cap_mean | IM1: Meas_Refr_Only_Cap_std | IN1: Gross_ref_meas_cap_avg | IO1: Gross_ref_meas_cap_std | IP1: Liq_OD_BR_PSIG_avg | IQ1: Liq_OD_BR_PSIG_std | IR1: Liq_OD_BR_temp_avg | IS1: Liq_OD_BR_temp_std | IT1: Sat_Liq_OD_BR_avg | IU1: Sat_Liq_OD_BR_std | IV1: SC_Liq_OD_BR_avg | IW1: SC_Liq_OD_BR_std | IX1: Liq_OD_AR_PSIG_avg | IY1: Liq_OD_AR_PSIG_std | IZ1: Sat_Liq_OD_AR_avg | JA1: Sat_Liq_OD_AR_std | JB1: SC_Liq_OD_AR_avg | JC1: SC_Liq_OD_AR_std | JD1: Sat_ID_Gas_avg | JE1: Sat_ID_Gas_std | JF1: SH_ID_Gas_avg | JG1: SH_ID_Gas_std | JH1: Cond_Outlet_Sat_Liq_ID_avg | JI1: Cond_Outlet_Sat_Liq_ID_std | JJ1: Liq_1_After_Restriction_avg | JK1: Liq_1_After_Restriction_std | JL1: Liq_Bef_Drier_PSIG_avg | JM1: Liq_Bef_Drier_PSIG_std | JN1: Liq_Bef_Drier_temp_avg | JO1: Liq_Bef_Drier_temp_std | JP1: Sat_Liq_Bef_Drier_avg | JQ1: Sat_Liq_Bef_Drier_std | JR1: SC_Liq_Bef_Drier_avg | JS1: SC_Liq_Bef_Drier_std | JT1: Liq_After_Restriction__PSIG_avg | JU1: Liq_After_Restriction__PSIG_std | JV1: Sat_Liq_After_Restriction_avg | JW1: Sat_Liq_After_Restriction_std | JX1: SC_Liq_After_Restriction_avg | JY1: SC_Liq_After_Restriction_std | JZ1: Gas_SH_ID_avg | KA1: Gas_SH_ID_std | KB1: Discharge_PSIG_avg_c2 | KC1: Discharge_PSIG_std_c2 | KD1: Discharge_temp_avg_c2 | KE1: Discharge_temp_std_c2 | KF1: Sat_Compr_disch_avg_c2 | KG1: Sat_Compr_disch_std_c2 | KH1: SH_Compr_disch_avg_c2 | KI1: SH_Compr_disch_std_c2 | KJ1: liq_od_psig_avg_c2 | KK1: liq_od_psig_std_c2 | KL1: Sat_Liq_OD_avg_c2 | KM1: Sat_Liq_OD_std_c2 | KN1: SC_Liq_OD_avg_c2 | KO1: SC_Liq_OD_std_c2 | KP1: liq_id_psig_avg_c2 | KQ1: liq_id_psig_std_c2 | KR1: liq_id_temp_avg_c2 | KS1: liq_id_temp_std_c2 | KT1: sat_liq_id_avg_c2 | KU1: sat_liq_id_std_c2 | KV1: sc_liq_id_avg_c2 | KW1: sc_liq_id_std_c2 | KX1: gas_id_psig_avg_c2 | KY1: gas_id_psig_std_c2 | KZ1: sat_gas_id_avg_c2 | LA1: sat_gas_id_std_c2 | LB1: sh_gas_id_avg_c2 | LC1: sh_gas_id_std_c2 | LD1: suction_psig_avg_c2 | LE1: suction_psig_std_c2 | LF1: suction_temp_avg_c2 | LG1: suction_temp_std_c2 | LH1: sat_suction_avg_c2 | LI1: sat_suction_std_c2 | LJ1: sh_suction_avg_c2 | LK1: sh_suction_std_c2 | LL1: liquid_bef_filter_temp_avg_c2 | LM1: liquid_bef_filter_temp_std_c2 | LN1: Flow_rate_lbs_hr_avg_c2 | LO1: Flow_rate_lbs_hr_std_c2 | LP1: Enthalpy_Evap_In_avg_c2 | LQ1: Enthalpy_Evap_In_std_c2 | LR1: Enthalpy_Evap_Out_avg_c2 | LS1: Enthalpy_Evap_Out_std_c2 | LT1: Meas_ref_only_cap_avg_c2 | LU1: Meas_ref_only_cap_std_c2 | LV1: Gross_ref_meas_cap_avg_c2 | LW1: Gross_ref_meas_cap_std_c2 | LX1: liq_od_br_psig_avg_c2 | LY1: liq_od_br_psig_std_c2 | LZ1: liq_od_br_temp_avg_c2 | MA1: liq_od_br_temp_std_c2 | MB1: sat_liq_od_br_avg_c2 | MC1: sat_liq_od_br_std_c2 | MD1: sc_liq_od_br_avg_c2 | ME1: sc_liq_od_br_std_c2 | MF1: liq_od_ar_psig_avg_c2 | MG1: liq_od_ar_psig_std_c2 | MH1: sat_liq_od_ar_avg_c2 | MI1: sat_liq_od_ar_std_c2 | MJ1: sc_liq_od_ar_avg_c2 | MK1: sc_liq_od_ar_std_c2 | ML1: Cond_Outlet_Liq_ID_temp_avg_c2 | MM1: Cond_Outlet_Liq_ID_temp_std_c2 | MN1: Cond_Outlet_Sat_Liq_ID_avg_c2 | MO1: Cond_Outlet_Sat_Liq_ID_std_c2 | MP1: Bef_FD_CK1_avg | MQ1: Bef_FD_CK1_std | MR1: Aft_FD_CK1_avg | MS1: Aft_FD_CK1_std | MT1: Bef_FD_CK2_avg | MU1: Bef_FD_CK2_std | MV1: Aft_FD_CK2_avg | MW1: Aft_FD_CK2_std | MX1: Inside_Supply_Duct_1_avg | MY1: Inside_Supply_Duct_1_std | MZ1: Inside_Supply_Duct_2_avg | NA1: Inside_Supply_Duct_2_std | NB1: Inside_Supply_Duct_3_avg | NC1: Inside_Supply_Duct_3_std | ND1: Inside_Supply_Duct_4_avg | NE1: Inside_Supply_Duct_4_std | NF1: Inside_Supply_Duct_5_avg | NG1: Inside_Supply_Duct_5_std | NH1: Inside_Supply_Duct_6_avg | NI1: Inside_Supply_Duct_6_std | NJ1: liq_od_backup_ck1_avg | NK1: liq_od_backup_ck1_std | NL1: liq_id_backup_ck1_avg | NM1: liq_id_backup_ck1_std | NN1: gas_id_backup_ck1_avg | NO1: gas_id_backup_ck1_std | NP1: suction_backup_ck1_avg | NQ1: suction_backup_ck1_std | NR1: discharge_backup_ck2_avg | NS1: discharge_backup_ck2_std | NT1: liq_od_backup_ck2_avg | NU1: liq_od_backup_ck2_std | NV1: liq_id_backup_ck2_avg | NW1: liq_id_backup_ck2_std | NX1: gas_id_backup_ck2_avg | NY1: gas_id_backup_ck2_std | NZ1: suction_backup_ck2_avg | OA1: suction_backup_ck2_std | OB1: Liq_ID_Temp_CK1_avg | OC1: Liq_ID_Temp_CK1_std | OD1: Liq_ID_Temp_CK2_avg | OE1: Liq_ID_Temp_CK2_std | OF1: OD_Inlet_Grid_Econo_avg | OG1: OD_Inlet_Grid_Econo_std | OH1: Liq_Upstream_CK1_avg | OI1: Liq_Upstream_CK1_std | OJ1: Liq_Downstream_CK1_avg | OK1: Liq_Downstream_CK1_std | OL1: Liq_Upstream_CK2_avg | OM1: Liq_Upstream_CK2_std | ON1: Liq_Downstream_CK2_avg | OO1: Liq_Downstream_CK2_std | OP1: liq_aft_filter_temp_ck1_avg | OQ1: liq_aft_filter_temp_ck1_std | OR1: liq_aft_filter_temp_ck2_avg | OS1: liq_aft_filter_temp_ck2_std | OT1: Economizer_Inlet_A1_temp_avg | OU1: Economizer_Inlet_A1_temp_std | OV1: Economizer_Inlet_A2_temp_avg | OW1: Economizer_Inlet_A2_temp_std | OX1: Economizer_Inlet_B1_temp_avg | OY1: Economizer_Inlet_B1_temp_std | OZ1: Economizer_Inlet_B2_temp_avg | PA1: Economizer_Inlet_B2_temp_std | PB1: Economizer_Inlet_C1_temp_avg | PC1: Economizer_Inlet_C1_temp_std | PD1: Economizer_Inlet_C2_temp_avg | PE1: Economizer_Inlet_C2_temp_std | PF1: CK1_Liq_ID_Temp_avg | PG1: CK1_Liq_ID_Temp_std | PH1: Inside_Supply_Duct_6_avg | PI1: Inside_Supply_Duct_6_std | PJ1: Liq_OD_Temp_CK1_avg | PK1: Liq_OD_Temp_CK1_std | PL1: Liq_OD_Temp_CK2_avg | PM1: Liq_OD_Temp_CK2_std | PN1: Liq_Bef_Filter_Temp_CK1_avg | PO1: Liq_Bef_Filter_Temp_CK1_std | PP1: Liq_Bef_Filter_Temp_CK2_avg | PQ1: Liq_Bef_Filter_Temp_CK2_std | PR1: Liq_Aft_Restric_Temp_CK1_avg | PS1: Liq_Aft_Restric_Temp_CK1_std | PT1: Liq_Aft_Restric_Temp_CK2_avg | PU1: Liq_Aft_Restric_Temp_CK2_std | PV1: Suction_CK1_avg | PW1: Suction_CK1_std | PX1: Suction_CK2_avg | PY1: Suction_CK2_std | PZ1: liq_od_backup_2_ck1_avg | QA1: liq_od_backup_2_ck1_std | QB1: liq_od_backup_2_ck2_avg | QC1: liq_od_backup_2_ck2_std | QD1: gas_id_ck1_avg | QE1: gas_id_ck1_std | QF1: Liq_OD_BR_1_avg | QG1: Liq_OD_BR_1_std | QH1: gas_id_ck2_avg | QI1: gas_id_ck2_std | QJ1: Liq_OD_BR_2_avg | QK1: Liq_OD_BR_2_std | QL1: liq_aft_dryer_b4_restr_ck1_avg | QM1: liq_aft_dryer_b4_restr_ck1_std | QN1: liq_aft_dryer_b4_restr_ck2_avg | QO1: liq_aft_dryer_b4_restr_ck2_std | QP1: Liq_2_After_Restriction_avg | QQ1: Liq_2_After_Restriction_std | QR1: Compressor_Top_avg | QS1: Compressor_Top_std | QT1: Compressor_Middle_avg | QU1: Compressor_Middle_std | QV1: discharge_backup_ck1_avg | QW1: discharge_backup_ck1_std | QX1: OD_Inlet_Grid_1_avg | QY1: OD_Inlet_Grid_1_std | QZ1: OD_Inlet_Grid_2_avg | RA1: OD_Inlet_Grid_2_std | RB1: Inside_Return_Duct_1_avg | RC1: Inside_Return_Duct_1_std | RD1: Inside_Return_Duct_2_avg | RE1: Inside_Return_Duct_2_std | RF1: Inside_Return_Duct_3_avg | RG1: Inside_Return_Duct_3_std | RH1: Inside_Return_Duct_4_avg | RI1: Inside_Return_Duct_4_std | RJ1: Inside_Return_Duct_5_avg | RK1: Inside_Return_Duct_5_std | RL1: Inside_Return_Duct_6_avg | RM1: Inside_Return_Duct_6_std | RN1: Inside_Return_Duct_7_avg | RO1: Inside_Return_Duct_7_std | RP1: Return_Coil_Face_A1_avg | RQ1: Return_Coil_Face_A1_std | RR1: Return_Coil_Face_A2_avg | RS1: Return_Coil_Face_A2_std | RT1: Return_Coil_Face_A3_avg | RU1: Return_Coil_Face_A3_std | RV1: Return_Coil_Face_A4_avg | RW1: Return_Coil_Face_A4_std | RX1: Return_Coil_Face_B1_avg | RY1: Return_Coil_Face_B1_std | RZ1: Return_Coil_Face_B2_avg | SA1: Return_Coil_Face_B2_std | SB1: Return_Coil_Face_B3_avg | SC1: Return_Coil_Face_B3_std | SD1: Return_Coil_Face_B4_avg | SE1: Return_Coil_Face_B4_std | SF1: Return_Coil_Face_C1_avg | SG1: Return_Coil_Face_C1_std | SH1: Return_Coil_Face_C2_avg | SI1: Return_Coil_Face_C2_std | SJ1: Return_Coil_Face_C3_avg | SK1: Return_Coil_Face_C3_std | SL1: Return_Coil_Face_C4_avg | SM1: Return_Coil_Face_C4_std | SN1: Return_Coil_Face_D1_avg | SO1: Return_Coil_Face_D1_std | SP1: Return_Coil_Face_D2_avg | SQ1: Return_Coil_Face_D2_std | SR1: Return_Coil_Face_D3_avg | SS1: Return_Coil_Face_D3_std | ST1: Return_Coil_Face_D4_avg | SU1: Return_Coil_Face_D4_std | SV1: Return_Coil_Face_E1_avg | SW1: Return_Coil_Face_E1_std | SX1: Return_Coil_Face_E2_avg | SY1: Return_Coil_Face_E2_std | SZ1: Return_Coil_Face_E3_avg | TA1: Return_Coil_Face_E3_std | TB1: Return_Coil_Face_E4_avg | TC1: Return_Coil_Face_E4_std | TD1: Inside_Return_Duct_8_avg | TE1: Inside_Return_Duct_8_std | TF1: Inside_Return_Duct_9_avg | TG1: Inside_Return_Duct_9_std | TH1: Inside_Return_Duct_10_avg | TI1: Inside_Return_Duct_10_std | TJ1: Inside_Return_Duct_11_avg | TK1: Inside_Return_Duct_11_std | TL1: Inside_Return_Duct_12_avg | TM1: Inside_Return_Duct_12_std | TN1: Inside_Return_Duct_13_avg | TO1: Inside_Return_Duct_13_std | TP1: Inside_Return_Duct_14_avg | TQ1: Inside_Return_Duct_14_std | TR1: Inside_Return_Duct_15_avg | TS1: Inside_Return_Duct_15_std | TT1: Return_Coil_Face_A5_avg | TU1: Return_Coil_Face_A5_std | TV1: Return_Coil_Face_B5_avg | TW1: Return_Coil_Face_B5_std | TX1: Return_Coil_Face_C5_avg | TY1: Return_Coil_Face_C5_std | TZ1: Economizer_1_avg | UA1: Economizer_1_std | UB1: Economizer_2_avg | UC1: Economizer_2_std | UD1: Economizer_3_avg | UE1: Economizer_3_std | UF1: Economizer_4_avg | UG1: Economizer_4_std | UH1: Economizer_5_avg | UI1: Economizer_5_std | UJ1: Economizer_6_avg | UK1: Economizer_6_std | UL1: Return_Coil_Face_D5_avg | UM1: Return_Coil_Face_D5_std | UN1: OD_Inlet_Grid_3_avg | UO1: OD_Inlet_Grid_3_std | UP1: Return_Coil_Face_1_avg | UQ1: Return_Coil_Face_1_std | UR1: Return_Coil_Face_2_avg | US1: Return_Coil_Face_2_std | UT1: Return_Coil_Face_3_avg | UU1: Return_Coil_Face_3_std | UV1: Return_Coil_Face_4_avg | UW1: Return_Coil_Face_4_std | UX1: Return_Coil_Face_5_avg | UY1: Return_Coil_Face_5_std | UZ1: Return_Coil_Face_6_avg | VA1: Return_Coil_Face_6_std | VB1: Return_Coil_Face_7_avg | VC1: Return_Coil_Face_7_std | VD1: Return_Coil_Face_8_avg | VE1: Return_Coil_Face_8_std | VF1: Return_Coil_Face_9_avg | VG1: Return_Coil_Face_9_std | VH1: Return_Coil_Face_10_avg | VI1: Return_Coil_Face_10_std | VJ1: Return_Coil_Face_11_avg | VK1: Return_Coil_Face_11_std | VL1: Return_Coil_Face_12_avg | VM1: Return_Coil_Face_12_std | VN1: Return_Coil_Face_13_avg | VO1: Return_Coil_Face_13_std | VP1: Return_Coil_Face_14_avg | VQ1: Return_Coil_Face_14_std | VR1: Return_Coil_Face_15_avg | VS1: Return_Coil_Face_15_std | VT1: Return_Coil_Face_16_avg | VU1: Return_Coil_Face_16_std | VV1: Economizer_grid_avg | VW1: Economizer_grid_std | VX1: Liq_Bef_FlowM_Ck1_avg | VY1: Liq_Bef_FlowM_Ck1_1std | VZ1: Liq_After_FlowM_Ck1_avg | WA1: Liq_After_FlowM_Ck1_std | WB1: Liq_Bef_FlowM_Ck2_avg | WC1: Liq_Bef_FlowM_Ck2_std | WD1: Liq_After_FlowM_Ck2_avg | WE1: Liq_After_FlowM_Ck2_std | WF1: Inside_Supply_Duct_7_avg | WG1: Inside_Supply_Duct_7_std | WH1: Inside_Supply_Duct_8_avg | WI1: Inside_Supply_Duct_8_std | WJ1: Comparison | WK1: ID_Inlet_Dry_Air_mean | WL1: ID_Inlet_Dry_Air_std | WM1: ID_Inlet_Wet_Air_mean | WN1: ID_Inlet_Wet_Air_std | WO1: ID_Outlet_Dry_Air_mean | WP1: ID_Outlet_Dry_Air_std | WQ1: ID_Outlet_Wet_Air_mean | WR1: ID_Outlet_Wet_Air_std | WS1: OD_Inlet_Dry_Air_mean | WT1: OD_Inlet_Dry_Air_std | WU1: OD_Inlet_Wet_Air_mean | WV1: OD_Inlet_Wet_Air_std | WW1: Tot_Air_Flow_CFM_mean | WX1: Tot_Air_Flow_CFM_std | WY1: Tot_Air_Flow_SCFM_mean | WZ1: Tot_Air_Flow_SCFM_std | XA1: Unit_Total_Static_mean | XB1: Unit_Total_Static_std | XC1: Unit_Inlet_Static_mean | XD1: Unit_Inlet_Static_std | XE1: B4_Nozzle_Static_mean | XF1: B4_Nozzle_Static_std | XG1: Nozzle_Delta_mean | XH1: Nozzle_Delta_std | XI1: Barometric_Pressure_mean | XJ1: Barometric_Pressure_std | XK1: Total_Power_mean | XL1: Total_Power_std | XM1: ID_Blower_W_avg | XN1: ID_Blower_W_std | XO1: OA_Comp_Ratio | XP1: OA_Comp | XQ1: Spec_Vol_Comp | XR1: Delta_P_Comp | XS1: Fan_Heat_DT | XT1: SA_Mass_Flow | XU1: Flow_Power | XV1: OA_Flow_Corrected | XW1: OA_Mass_Flow_Corrected | XX1: RA_Mass_Flow_Rate | XY1: MA_Hum_Ratio | XZ1: MA_Enthalpy | YA1: Coil_Leaving_DB | YB1: OA_Spec_Vol | YC1: Coil_Out_Spec_Vol | YD1: OA_Hum_Ratio | YE1: OA_Enthalpy | YF1: RA_Hum_Ratio | YG1: RA_Enthalpy | YH1: Coil_Out_Hum_Ratio | YI1: SA_Enthalpy | YJ1: MA_Dry_Bulb | YK1: MA_Wet_Bulb | YL1: Coil_Leaving_Enthalpy | YM1: Gross_Cooling_Capacity | YN1: Gross_Sensible_Capacity | YO1: Comp_Unit_Power | YP1: EIR | YQ1: Net_Cooling_Capacity | YR1: Net_Sensible_Capacity | YS1: EER | YT1: Coil_Bypass_Factor | YU1: dh | YV1: dT | YW1: Ts | YX1: Gross_Coil_Capacity | YY1: Space_Load | YZ1: Fan_Heat | ZA1: OA_Load | ZB1: Total load | ZC1: Calibration
A2: 5 | B2: C-55-1ER-DM | C2: 30N0001 | D2: C-55-1ER-DM | E2: 1 Finger | F2: Off | G2: N/A | H2: 3 turns | I2: unsealed | J2: unsealed | M2: horizontal | N2: 0 | O2: 0 | P2: CUST 1 | Q2: 3/13/2014 | R2: 6:42:49 | S2: 10 Ton | T2: 0:30:00 | U2: 75/62 55/51 | V2: ENG 1 | W2: TECH 1 | X2: RTU5 | Y2: RTU5 | Z2: 3 | AA2: R22 | AB2: PSC Air Handler | AC2: 5.5 LBS | AD2: 208/230/1 | AE2: TU1 | AF2: AHRI 210/240 2008 | AG2: 75 | AH2: 62 | AI2: 55 | AJ2: 51 | AK2: 5.5 | AM2: 5.5 | AO2: 230.2 | AP2: 0.8 | AQ2: 1.7 | AR2: 0 | AS2: 7597 | AT2: 27 | AU2: 6946 | AV2: 49 | AW2: 3193 | AX2: 71 | AY2: 10793 | AZ2: 82 | BB2: 943 | BD2: 12.9 | BF2: 109.86 | BG2: 0.01 | BH2: 0 | CN2: 28.78133333 | CO2: Econo 1F-open, no compressor, 55/51 ambient, 53.5% inlet 52% outlet Meriam, adjust code tester speed to match total static of run C-55-1E-DM-SPWCT-SSR | CP2: R22 5.5 LBS. unsealed cab:Inlet Meriam set @ 53.5%: Outlet Meriam set @ 52% manually: Horiz airflow. ID Pulley is 3 turns open from fully closed: Econo open 1F: with flow meter: new filter drier: with isolation ball valves: with code | CQ2: 74.996 | CR2: 0.012 | CS2: 62.002 | CT2: 0.031 | CU2: 54.994 | CV2: 0.014 | CW2: 50.997 | CX2: 0.017 | CY2: 74.36 | CZ2: 0.04 | DA2: 68.97 | DB2: 0.03 | DC2: 71.69 | DD2: 0.02 | DE2: 0.006 | DF2: 0.006 | DG2: 1.1763 | DH2: 0.0064 | DI2: 7597 | DJ2: 27 | DK2: 3193 | DL2: 71 | DM2: 28.827 | DN2: 0.419 | DU2: 230.2 | DV2: 0.8 | DW2: 230.2 | DX2: 0.8 | DY2: 230.2 | DZ2: 0.8 | EA2: 0 | EB2: 0 | EC2: 0 | ED2: 0 | EE2: 0 | EF2: 0 | EG2: 0.3 | EH2: 0.2 | EI2: 0.3 | EJ2: 0.2 | EK2: 0.3 | EL2: 0.2 | EM2: 229.8 | EN2: 0.8 | EO2: 229.8 | EP2: 0.8 | EQ2: 229.8 | ER2: 0.8 | ES2: 1.7 | ET2: 0 | EU2: 1.7 | EV2: 0 | EW2: 1.7 | EX2: 0 | EZ2: 0 | FA2: 0 | FB2: 0 | FC2: 0 | FD2: 0 | FE2: 0 | FF2: 0 | FG2: 0 | FH2: 0 | FI2: 0 | FJ2: 0 | FK2: 0 | FL2: 0 | FM2: 0 | FW2: 0 | FX2: 0 | FY2: 0 | FZ2: 0 | GA2: 0 | GB2: 0 | GC2: 23 | GE2: 397.1 | GF2: 476.6 | GG2: 477.8 | GH2: 478 | GI2: 0.9 | GJ2: 0.9 | GK2: 1 | GL2: 500 | GM2: 0.64 | GN2: 12.9 | GO2: 18 | IH2: -0.59 | II2: 0.04 | IJ2: 26.22 | IK2: 0.01 | IL2: -1277 | IM2: 16 | MX2: 68.86 | MY2: 0.35 | MZ2: 69.81 | NA2: 0.22 | NB2: 69.38 | NC2: 0.02 | ND2: 69.7 | NE2: 0.2 | NF2: 69.18 | NG2: 0.17 | NH2: 69.15 | NI2: 0.17 | OP2: 56.01 | OQ2: 0.02 | OT2: 55.97 | OU2: 0.25 | OV2: 55.9 | OW2: 0.21 | OX2: 55.12 | OY2: 0.17 | OZ2: 55.1 | PA2: 0.12 | PB2: 54.95 | PC2: 0.07 | PD2: 54.98 | PE2: 0.07 | PN2: 54.74 | PO2: 0.07 | QX2: 54.83 | QY2: 0.09 | QZ2: 54.57 | RA2: 0.06 | RB2: 74.4 | RC2: 0.05 | RD2: 74.42 | RE2: 0.05 | RF2: 74.38 | RG2: 0.03 | RH2: 74.49 | RI2: 0.06 | RJ2: 74.45 | RK2: 0.06 | RL2: 74.53 | RM2: 0.06 | RN2: 74.49 | RO2: 0.05 | RP2: 58.54 | RQ2: 0.04 | RR2: 57.71 | RS2: 0.05 | RT2: 57.21 | RU2: 0.05 | RV2: 60.23 | RW2: 0.23 | RX2: 59.32 | RY2: 0.07 | RZ2: 59.98 | SA2: 0.11 | SB2: 60.99 | SC2: 0.14 | SD2: 62.25 | SE2: 0.11 | SF2: 59.85 | SG2: 0.07 | SH2: 74.25 | SI2: 0.06 | SJ2: 73.45 | SK2: 0.1 | SL2: 74.55 | SM2: 0.06 | SN2: 67.72 | SO2: 0.15 | SP2: 73.95 | SQ2: 0.04 | SR2: 74.48 | SS2: 0.03 | ST2: 73.35 | SU2: 0.05 | SV2: 72.46 | SW2: 0.14 | SX2: 74.15 | SY2: 0.06 | SZ2: 74.31 | TA2: 0.05 | TB2: 74.42 | TC2: 0.04 | WJ2: Economizer test | WK2: 74.996 | WL2: 0.012 | WM2: 62.002 | WN2: 0.031 | WO2: 69.095 | WP2: 0.007 | WQ2: 58.991 | WR2: 0.026 | WS2: 54.994 | WT2: 0.014 | WU2: 50.997 | WV2: 0.017 | WW2: 1177.7 | WX2: 3.2 | WY2: 1144.1 | WZ2: 3.1 | XA2: 0.568 | XB2: 0.011 | XC2: -0.136 | XD2: 0.001 | XE2: 0.006 | XF2: 0.006 | XG2: 1.1763 | XH2: 0.0064 | XI2: 29.601 | XJ2: 0.001 | XK2: 375 | XL2: 5 | XM2: 374.1 | XN2: 4.7 | XO2: 0.2550244976 | XP2: 291.7735276 | XQ2: 13.029 | XR2: 0.136 | XS2: =(XM2-XU2)*3.412/XT2/0.24 -> 0.8025309192 | XT2: =WW2*60/YC2 -> 5274.677173 | XU2: =XA2*WY2*746/6350 -> 76.3444417 | XV2: =XP2*SQRT(-XC2*YB2/(XR2*XQ2)) -> 291.7774292 | XW2: =XV2*60/YB2 -> 1343.631711 | XX2: =XT2-XW2 -> 3931.045462 | XY2: =(XW2*YD2+XX2*YF2)/XT2 -> 0.008323930047 | XZ2: =(XW2*YE2+XX2*YG2)/XT2 -> 25.86927045 | YA2: =WO2-XS2 -> 68.29246908 | YB2: 13.02934845 | YC2: 13.39645967 | YD2: 0.006981159144 | YE2: 20.77603116 | YF2: 0.008782889269 | YG2: 27.61014013 | YH2: 0.008250281565 | YI2: 25.58945236 | YJ2: =psych("tdb","h","w",XZ2,XY2) -> 69.91330557 | YK2: =psych("Twb","TDB","W",YJ2,XY2) -> 59.41913647 | YL2: =psych("H","TDB","w",YA2,YH2) -> 25.39390517
A3: 5 | B3: C-55-2ER-DM | C3: 30N0002 | D3: C-55-2ER-DM | E3: 2 Finger | F3: Off | G3: N/A | H3: 3 turns | I3: unsealed | J3: unsealed | M3: horizontal | N3: 0 | O3: 0 | P3: CUST 1 | Q3: 3/13/2014 | R3: 9:20:19 | S3: 10 Ton | T3: 0:30:00 | U3: 75/62 55/51 | V3: ENG 1 | W3: TECH 1 | X3: RTU5 | Y3: RTU5 | Z3: 3 | AA3: R22 | AB3: PSC Air Handler | AC3: 5.5 LBS | AD3: 208/230/1 | AE3: TU1 | AF3: AHRI 210/240 2008 | AG3: 75 | AH3: 62 | AI3: 55 | AJ3: 51 | AK3: 5.5 | AM3: 5.5 | AO3: 230.2 | AP3: 0.8 | AQ3: 1.7 | AR3: 0 | AS3: 9635 | AT3: 29 | AU3: 8894 | AV3: 53 | AW3: 4063 | AX3: 82 | AY3: 13702 | AZ3: 85 | BB3: 942 | BD3: 13.8 | CN3: 36.34482759 | CO3: Econo 2F-open, no compressor, 55/51, 53.5% inlet 52% outlet Meriam, ambient--adjust code tester speed to match total static of run C-55-2E-DM-SPWCT-SSR | CP3: R22 5.5 LBS. unsealed cab:Inlet Meriam set @ 53.5%: Outlet Meriam set @ 52% manually: Horiz airflow. ID Pulley is 3 turns open from fully closed: Econo open 1F: with flow meter: new filter drier: with isolation ball valves: with code | CQ3: 75 | CR3: 0.014 | CS3: 62.001 | CT3: 0.029 | CU3: 55 | CV3: 0.016 | CW3: 50.998 | CX3: 0.018 | CY3: 74.37 | CZ3: 0.06 | DA3: 67.58 | DB3: 0.05 | DC3: 70.69 | DD3: 0.01 | DE3: 0.025 | DF3: 0.004 | DG3: 1.2105 | DH3: 0.0047 | DI3: 9635 | DJ3: 29 | DK3: 4063 | DL3: 82 | DM3: 36.343 | DN3: 0.518 | EM3: 229.8 | EN3: 0.8 | EO3: 229.8 | EP3: 0.8 | EQ3: 229.8 | ER3: 0.8 | ES3: 1.7 | ET3: 0 | EU3: 1.7 | EV3: 0 | EW3: 1.7 | EX3: 0 | GF3: 478 | GG3: 480 | GH3: 480 | GI3: 0.9 | GJ3: 0.9 | GK3: 1.1 | GL3: 510 | GM3: 0.64 | GN3: 13.8 | GO3: 18.4 | MX3: 66.83 | MY3: 0.21 | MZ3: 69.04 | NA3: 0.16 | NB3: 67.99 | NC3: 0.08 | ND3: 68.89 | NE3: 0.13 | NF3: 67.33 | NG3: 0.1 | NH3: 68.12 | NI3: 0.12 | OP3: 56.14 | OQ3: 0.03 | OT3: 55.04 | OU3: 0.18 | OV3: 55.27 | OW3: 0.19 | OX3: 54.58 | OY3: 0.11 | OZ3: 54.89 | PA3: 0.12 | PB3: 54.82 | PC3: 0.1 | PD3: 54.82 | PE3: 0.09 | QX3: 55.22 | QY3: 0.1 | QZ3: 54.95 | RA3: 0.1 | RB3: 74.68 | RC3: 0.09 | RD3: 74.64 | RE3: 0.07 | RF3: 74.47 | RG3: 0.03 | RH3: 74.85 | RI3: 0.1 | RJ3: 74.79 | RK3: 0.1 | RL3: 74.85 | RM3: 0.1 | RN3: 74.75 | RO3: 0.08 | RP3: 59.12 | RQ3: 0.07 | RR3: 58.71 | RS3: 0.07 | RT3: 57.59 | RU3: 0.07 | RV3: 58.85 | RW3: 0.12 | RX3: 60.43 | RY3: 0.09 | RZ3: 59.03 | SA3: 0.13 | SB3: 58.94 | SC3: 0.1 | SD3: 59.74 | SE3: 0.1 | SF3: 60.27 | SG3: 0.09 | SH3: 73.41 | SI3: 0.07 | SJ3: 68.9 | SK3: 0.15 | SL3: 70.64 | SM3: 0.12 | SN3: 64.85 | SO3: 0.15 | SP3: 73.3 | SQ3: 0.04 | SR3: 73.73 | SS3: 0.04 | ST3: 72.75 | SU3: 0.05 | SV3: 70.62 | SW3: 0.15 | SX3: 73.23 | SY3: 0.05 | SZ3: 73.84 | TA3: 0.04 | TB3: 72.84 | TC3: 0.03 | WJ3: Economizer test | WK3: 75 | WL3: 0.014 | WM3: 62.001 | WN3: 0.029 | WO3: 67.639 | WP3: 0.008 | WQ3: 58.203 | WR3: 0.026 | WS3: 55 | WT3: 0.016 | WU3: 50.998 | WV3: 0.018 | WW3: 1192.7 | WX3: 2.4 | WY3: 1162.9 | WZ3: 2.3 | XA3: 0.538 | XB3: 0.007 | XC3: -0.108 | XD3: 0.002 | XE3: 0.025 | XF3: 0.004 | XG3: 1.2105 | XH3: 0.0047 | XI3: 29.645 | XJ3: 0.001 | XK3: 377 | XL3: 5 | XM3: 376.8 | XN3: 4.9 | XO3: 0.32805 | XP3: 381.489345 | XQ3: 13.029 | XR3: 0.108 | XS3: 0.8049021486 | XT3: 5357.060123 | XU3: 73.50040775 | XV3: 381.4965699 | XW3: 1756.767765 | XX3: 3600.292358 | XY3: 0.008190672325 | XZ3: 25.36863748 | YA3: 66.83409785 | YB3: 13.02949351 | YC3: 13.3584463 | YD3: 0.006980280398 | YE3: 20.77653595 | YF3: 0.008781284783 | YG3: 27.60935994 | YH3: 0.008108743613 | YI3: 25.08025646 | YJ3: 68.45576624 | YK3: 58.65065184 | YL3: 24.88418207
A4: 5 | B4: C-55-3ER-DM | C4: 30N0003 | D4: C-55-3ER-DM | E4: 3 Finger | F4: Off | G4: N/A | H4: 3 turns | I4: unsealed | J4: unsealed | M4: horizontal | N4: 0 | O4: 0 | P4: CUST 1 | Q4: 3/13/2014 | R4: 16:28:28 | S4: 10 Ton | T4: 0:30:00 | U4: 75/62 55/51 | V4: ENG 1 | W4: TECH 2 | X4: RTU5 | Y4: RTU5 | Z4: 3 | AA4: R22 | AB4: PSC Air Handler | AC4: 5.5 LBS | AD4: 208/230/1 | AE4: TU1 | AF4: AHRI 210/240 2008 | AG4: 75 | AH4: 62 | AI4: 55 | AJ4: 51 | AK4: 5.5 | AM4: 5.5 | AO4: 230.2 | AP4: 0.8 | AQ4: 1.7 | AR4: 0 | AS4: 13008 | AT4: 144 | AU4: 12228 | AV4: 143 | AW4: 5272 | AX4: 135 | AY4: 18284 | AZ4: 260 | BB4: 942 | BD4: 14 | CN4: 48.49867374 | CO4: Econo 3F-open, no compressor, 55/51 ambient, 53.5% inlet 52% outlet Meriam,--adjust code tester speed to match total static of run C-55-3E-DM-SPWCT-SSR | CP4: R22 5.5 LBS. unsealed cab:Inlet Meriam set @ 53.5%: Outlet Meriam set @ 52% manually: Horiz airflow. ID Pulley is 3 turns open from fully closed: Econo open 3F: with flow meter: new filter drier: with isolation ball valves: with code | CQ4: 75.002 | CR4: 0.017 | CS4: 62.003 | CT4: 0.031 | CU4: 55 | CV4: 0.011 | CW4: 51.002 | CX4: 0.019 | CY4: 74.38 | CZ4: 0.05 | DA4: 65.03 | DB4: 0.03 | DC4: 69.01 | DD4: 0.03 | DE4: 0.016 | DF4: 0.014 | DG4: 1.2053 | DH4: 0.0251 | DI4: 13008 | DJ4: 144 | DK4: 5272 | DL4: 135 | DM4: 48.572 | DN4: 0.838 | EM4: 229.8 | EN4: 0.8 | EO4: 229.8 | EP4: 0.8 | EQ4: 229.8 | ER4: 0.8 | ES4: 1.7 | ET4: 0 | EU4: 1.7 | EV4: 0 | EW4: 1.7 | EX4: 0 | GF4: 482 | GG4: 482 | GH4: 482 | GI4: 0.9 | GJ4: 0.9 | GK4: 1 | GL4: 500 | GM4: 0.63 | GN4: 14 | GO4: 18.3 | MX4: 64.13 | MY4: 0.23 | MZ4: 66.26 | NA4: 0.17 | NB4: 65.1 | NC4: 0.08 | ND4: 66.18 | NE4: 0.16 | NF4: 64.35 | NG4: 0.13 | NH4: 65.42 | NI4: 0.13 | OP4: 56.31 | OQ4: 0.02 | OT4: 55.23 | OU4: 0.1 | OV4: 55.4 | OW4: 0.13 | OX4: 54.59 | OY4: 0.06 | OZ4: 54.8 | PA4: 0.07 | PB4: 54.72 | PC4: 0.06 | PD4: 54.73 | PE4: 0.06 | QX4: 55.11 | QY4: 0.09 | QZ4: 54.67 | RA4: 0.07 | RB4: 74.43 | RC4: 0.05 | RD4: 74.43 | RE4: 0.05 | RF4: 74.4 | RG4: 0.04 | RH4: 74.49 | RI4: 0.07 | RJ4: 74.45 | RK4: 0.07 | RL4: 74.53 | RM4: 0.07 | RN4: 74.53 | RO4: 0.06 | RP4: 57.27 | RQ4: 0.04 | RR4: 57.09 | RS4: 0.03 | RT4: 57.1 | RU4: 0.04 | RV4: 56.92 | RW4: 0.03 | RX4: 57.04 | RY4: 0.08 | RZ4: 59.98 | SA4: 0.08 | SB4: 57.19 | SC4: 0.05 | SD4: 57.04 | SE4: 0.06 | SF4: 60.89 | SG4: 0.09 | SH4: 69.3 | SI4: 0.13 | SJ4: 61.55 | SK4: 0.14 | SL4: 65.53 | SM4: 0.15 | SN4: 67.15 | SO4: 0.09 | SP4: 72.69 | SQ4: 0.06 | SR4: 71.5 | SS4: 0.05 | ST4: 69.75 | SU4: 0.06 | SV4: 69.75 | SW4: 0.1 | SX4: 72.47 | SY4: 0.06 | SZ4: 72.67 | TA4: 0.04 | TB4: 69.27 | TC4: 0.05 | WJ4: Economizer test | WK4: 75.002 | WL4: 0.017 | WM4: 62.003 | WN4: 0.031 | WO4: 65.039 | WP4: 0.007 | WQ4: 56.87 | WR4: 0.023 | WS4: 55 | WT4: 0.011 | WU4: 51.002 | WV4: 0.019 | WW4: 1191.7 | WX4: 12.5 | WY4: 1159 | WZ4: 12.3 | XA4: 0.497 | XB4: 0.004 | XC4: -0.061 | XD4: 0.002 | XE4: 0.016 | XF4: 0.014 | XG4: 1.2053 | XH4: 0.0251 | XI4: 29.471 | XJ4: 0.002 | XK4: 377 | XL4: 5 | XM4: 376.1 | XN4: 5.3 | XO4: 0.4576042396 | XP4: 530.3633137 | XQ4: 13.03 | XR4: 0.061 | XS4: 0.8150689776 | XT4: 5379.700659 | XU4: 67.67136346 | XV4: 530.3533421 | XW4: 2442.240762 | XX4: 2937.459897 | XY4: 0.007965103738 | XZ4: 24.50925921 | YA4: 64.22393102 | YB4: 13.02951004 | YC4: 13.29107408 | YD4: 0.006982405758 | YE4: 20.77884286 | YF4: 0.008782131083 | YG4: 27.61077384 | YH4: 0.007918430542 | YI4: 24.23947783 | YJ4: 65.93789326 | YK4: 57.30290099 | YL4: 24.04099567
A5: 5 | B5: C-55-CE-DM | C5: 30N0004 | D5: C-55-CE-DM | E5: closed | F5: Off | G5: N/A | H5: 3 turns | I5: unsealed | J5: unsealed | M5: horizontal | N5: 0 | O5: 0 | P5: CUST 1 | Q5: 3/12/2014 | R5: 23:25:52 | S5: 10 Ton | T5: 0:30:00 | U5: 75/62 - 55/51 | V5: ENG 1 | W5: TECH 1 | X5: RTU5 | Y5: RTU5 | Z5: 3 | AA5: R22 | AB5: PSC Air Handler | AC5: 5.5 LBS | AD5: 208/230/1 | AE5: TU1 | AF5: AHRI 210/240 2008 | AG5: 75 | AH5: 62 | AI5: 55 | AJ5: 51 | AK5: 5.5 | AM5: 5.5 | AO5: 230.2 | AP5: 0.5 | AQ5: 1.7 | AR5: 0 | AS5: 5340 | AT5: 17 | AU5: 4796 | AV5: 44 | AW5: 2236 | AX5: 49 | AY5: 7578 | AZ5: 48 | BB5: 942 | BD5: 13.8 | CN5: 20.10079576 | CO5: Econo closed, no compressor, 55/51 ambient, 53.5% inlet 52% outlet Meriam,--adjust code tester speed to match total static of run C-55-CE-DM-SPWCT-SS | CP5: R22 5.5 LBS. unsealed cab:Inlet Meriam set @ 53.5%: Outlet Meriam set @ 52% manually: Horiz airflow. ID Pulley is 3 turns open from fully closed: Econo fulley closed: with flow meter: new filter drier: with isolation ball valves: with code | CQ5: 74.996 | CR5: 0.01 | CS5: 62 | CT5: 0.028 | CU5: 54.981 | CV5: 0.013 | CW5: 51 | CX5: 0.017 | CY5: 74.36 | CZ5: 0.03 | DA5: 70.67 | DB5: 0.05 | DC5: 72.83 | DD5: 0.01 | DE5: 0.033 | DF5: 0.004 | DG5: 1.1992 | DH5: 0.0047 | DI5: 5340 | DJ5: 17 | DK5: 2236 | DL5: 49 | DM5: 20.12 | DN5: 0.288 | EM5: 229.9 | EN5: 0.5 | EO5: 229.9 | EP5: 0.5 | EQ5: 229.9 | ER5: 0.5 | ES5: 1.7 | ET5: 0 | EU5: 1.7 | EV5: 0 | EW5: 1.7 | EX5: 0 | GF5: 486 | GG5: 487 | GH5: 488 | GI5: 0.9 | GJ5: 0.9 | GK5: 1.1 | GL5: 510 | GM5: 0.62 | GN5: 13.8 | GO5: 18.4 | MX5: 70.73 | MY5: 0.04 | MZ5: 71.62 | NA5: 0.03 | NB5: 71.38 | NC5: 0.03 | ND5: 71.34 | NE5: 0.03 | NF5: 71.33 | NG5: 0.03 | NH5: 70.9 | NI5: 0.04 | OP5: 55.99 | OQ5: 0.03 | OT5: 54.32 | OU5: 0.1 | OV5: 54.41 | OW5: 0.11 | OX5: 54.01 | OY5: 0.08 | OZ5: 54.24 | PA5: 0.09 | PB5: 54.33 | PC5: 0.07 | PD5: 54.36 | PE5: 0.07 | PN5: 54.19 | PO5: 0.07 | QX5: 54.67 | QY5: 0.11 | QZ5: 54.29 | RA5: 0.07 | RB5: 74.5 | RC5: 0.06 | RD5: 74.52 | RE5: 0.05 | RF5: 74.45 | RG5: 0.03 | RH5: 74.61 | RI5: 0.06 | RJ5: 74.58 | RK5: 0.07 | RL5: 74.63 | RM5: 0.07 | RN5: 74.57 | RO5: 0.06 | RP5: 64.16 | RQ5: 0.08 | RR5: 65.54 | RS5: 0.14 | RT5: 67.94 | RU5: 0.09 | RV5: 63.66 | RW5: 0.11 | RX5: 64.15 | RY5: 0.08 | RZ5: 65.01 | SA5: 0.16 | SB5: 70.92 | SC5: 0.1 | SD5: 65.15 | SE5: 0.14 | SF5: 58.35 | SG5: 0.07 | SH5: 72.28 | SI5: 0.11 | SJ5: 74.93 | SK5: 0.07 | SL5: 74.91 | SM5: 0.06 | SN5: 67.61 | SO5: 0.21 | SP5: 74.78 | SQ5: 0.05 | SR5: 74.87 | SS5: 0.04 | ST5: 74.28 | SU5: 0.05 | SV5: 73.84 | SW5: 0.06 | SX5: 74.28 | SY5: 0.06 | SZ5: 74.38 | TA5: 0.04 | TB5: 74.5 | TC5: 0.03 | WJ5: Economizer test | WK5: 74.996 | WL5: 0.01 | WM5: 62 | WN5: 0.028 | WO5: 70.879 | WP5: 0.009 | WQ5: 59.927 | WR5: 0.026 | WS5: 54.981 | WT5: 0.013 | WU5: 51 | WV5: 0.017 | WW5: 1190.2 | WX5: 2.4 | WY5: 1153.9 | WZ5: 2.3 | XA5: 0.599 | XB5: 0.007 | XC5: -0.182 | XD5: 0.001 | XE5: 0.033 | XF5: 0.004 | XG5: 1.1992 | XH5: 0.0047 | XI5: 29.611 | XJ5: 0.001 | XK5: 377 | XL5: 5 | XM5: 376.3 | XN5: 4.8 | XO5: 0.166225331 | XP5: 191.8074094 | XQ5: 13.029 | XR5: 0.182 | XS5: 0.7897509758 | XT5: 5312.215682 | XU5: 81.20076072 | XV5: 191.8078179 | XW5: 883.2926594 | XX5: 4428.923022 | XY5: 0.008482978752 | XZ5: 26.4729039 | YA5: 70.08924902 | YB5: 13.02905549 | YC5: 13.44297828 | YD5: 0.006985808295 | YE5: 20.77791711 | YF5: 0.008781570456 | YG5: 27.60869695 | YH5: 0.008415418409 | YI5: 26.20455447 | YJ5: 71.6770662 | YK5: 60.3302539 | YL5: 26.01206338
A6: 5 | B6: C-55-OER-DM | C6: 30N0005 | D6: C-55-OER-DM | E6: Fully open | F6: Off | G6: N/A | H6: 3 turns | I6: unsealed | J6: unsealed | M6: horizontal | N6: 0 | O6: 0 | P6: CUST 1 | Q6: 3/13/2014 | R6: 18:30:01 | S6: 10 Ton | T6: 0:30:00 | U6: 75/62 - 55/51 | V6: ENG 1 | W6: TECH 1 | X6: RTU5 | Y6: RTU5 | Z6: 3 | AA6: R22 | AB6: PSC Air Handler | AC6: 5.5 LBS | AD6: 208/230/1 | AE6: TU1 | AF6: AHRI 210/240 2008 | AG6: 75 | AH6: 62 | AI6: 55 | AJ6: 51 | AK6: 5.5 | AM6: 5.5 | AO6: 230.2 | AP6: 0.6 | AQ6: 1.7 | AR6: 0 | AS6: 16001 | AT6: 132 | AU6: 15186 | AV6: 132 | AW6: 6554 | AX6: 120 | AY6: 22562 | AZ6: 221 | BB6: 943 | BD6: 12.1 | CN6: 60.65053763 | CO6: Econo fully open, no compressor, 55/51 ambient, 53.5% inlet 52% outlet Meriam,--adjust code tester speed to match total static of run C-55-OE-DM-SPWCT-SSR | CP6: R22 5.5 LBS. unsealed cab:Inlet Meriam set @ 53.5%: Outlet Meriam set @ 52% manually: Horiz airflow. ID Pulley is 3 turns open from fully closed: Econo fully open: with flow meter: new filter drier: with isolation ball valves: with code | CQ6: 74.998 | CR6: 0.02 | CS6: 62.005 | CT6: 0.025 | CU6: 54.998 | CV6: 0.011 | CW6: 50.999 | CX6: 0.015 | CY6: 74.36 | CZ6: 0.05 | DA6: 62.31 | DB6: 0.03 | DC6: 67.26 | DD6: 0.02 | DE6: 0.01 | DF6: 0.009 | DG6: 1.1155 | DH6: 0.0178 | DI6: 16001 | DJ6: 132 | DK6: 6554 | DL6: 120 | DM6: 60.729 | DN6: 0.928 | EM6: 229.8 | EN6: 0.6 | EO6: 229.8 | EP6: 0.6 | EQ6: 229.8 | ER6: 0.6 | ES6: 1.7 | ET6: 0 | EU6: 1.7 | EV6: 0 | EW6: 1.7 | EX6: 0 | GF6: 480 | GG6: 480 | GH6: 480 | GI6: 0.8 | GJ6: 0.9 | GK6: 0.9 | GL6: 490 | GM6: 0.63 | GN6: 12.1 | GO6: 17.6 | MX6: 62.45 | MY6: 0.21 | MZ6: 62.55 | NA6: 0.14 | NB6: 62.33 | NC6: 0.05 | ND6: 62.46 | NE6: 0.13 | NF6: 62.26 | NG6: 0.14 | NH6: 61.98 | NI6: 0.11 | OP6: 56.42 | OQ6: 0.03 | OT6: 55.53 | OU6: 0.11 | OV6: 55.68 | OW6: 0.17 | OX6: 54.68 | OY6: 0.08 | OZ6: 54.92 | PA6: 0.08 | PB6: 54.74 | PC6: 0.07 | PD6: 54.75 | PE6: 0.06 | QX6: 55.15 | QY6: 0.1 | QZ6: 54.77 | RA6: 0.09 | RB6: 74.37 | RC6: 0.05 | RD6: 74.38 | RE6: 0.04 | RF6: 74.37 | RG6: 0.03 | RH6: 74.43 | RI6: 0.06 | RJ6: 74.41 | RK6: 0.06 | RL6: 74.47 | RM6: 0.05 | RN6: 74.48 | RO6: 0.04 | RP6: 57.19 | RQ6: 0.04 | RR6: 57.07 | RS6: 0.04 | RT6: 57.32 | RU6: 0.05 | RV6: 57.17 | RW6: 0.04 | RX6: 57.12 | RY6: 0.04 | RZ6: 58.78 | SA6: 0.1 | SB6: 57.75 | SC6: 0.09 | SD6: 56.51 | SE6: 0.07 | SF6: 70.09 | SG6: 0.09 | SH6: 66.39 | SI6: 0.09 | SJ6: 56.32 | SK6: 0.13 | SL6: 56.24 | SM6: 0.09 | SN6: 74 | SO6: 0.05 | SP6: 72.44 | SQ6: 0.05 | SR6: 62.87 | SS6: 0.09 | ST6: 63.7 | SU6: 0.13 | SV6: 72.98 | SW6: 0.05 | SX6: 71.28 | SY6: 0.07 | SZ6: 65.26 | TA6: 0.07 | TB6: 64.8 | TC6: 0.1 | WJ6: Economizer test | WK6: 74.998 | WL6: 0.02 | WM6: 62.005 | WN6: 0.025 | WO6: 62.294 | WP6: 0.009 | WQ6: 55.341 | WR6: 0.019 | WS6: 54.998 | WT6: 0.011 | WU6: 50.999 | WV6: 0.015 | WW6: 1145.1 | WX6: 9.1 | WY6: 1116.2 | WZ6: 8.8 | XA6: 0.425 | XB6: 0.003 | XC6: -0.023 | XD6: 0.001 | XE6: 0.01 | XF6: 0.009 | XG6: 1.1155 | XH6: 0.0178 | XI6: 29.43 | XJ6: 0.001 | XK6: 372 | XL6: 5 | XM6: 371.2 | XN6: 5.1 | XO6: 0.5922 | XP6: 661.01364 | XQ6: 13.029 | XR6: 0.023 | XS6: 0.862934085 | XT6: 5197.290416 | XU6: 55.73089921 | XV6: 661.0250719 | XW6: 3043.988986 | XX6: 2153.30143 | XY6: 0.007728333796 | XZ6: 23.60901893 | YA6: 61.43106592 | YB6: 13.02945067 | YC6: 13.21958069 | YD6: 0.006981281743 | YE6: 20.77713663 | YF6: 0.008784395056 | YG6: 27.61227571 | YH6: 0.007669323672 | YI6: 23.29983468 | YJ6: 63.30020708 | YK6: 55.85132327 | YL6: 23.08979206
A7: 5 | B7: C-MF-75629575-1E3J | C7: 30N0006 | D7: C-MF-75629575-1E3J | E7: 1 Finger | F7: on | G7: N/A | H7: 3 turns | I7: unsealed | J7: unsealed | M7: horizontal | N7: 0 | O7: 0 | P7: CUST 1 | Q7: 3/11/2014 | R7: 18:53:52 | S7: 10 Ton | T7: 0:30:00 | U7: 75/62 - 95/75 | V7: ENG 1 | W7: TECH 1 | X7: RTU5 | Y7: RTU5 | Z7: 3 | AA7: R22 | AB7: PSC Air Handler | AC7: 5.5 LBS | AD7: 208/230/1 | AE7: TU1 | AF7: AHRI 210/240 2008 | AG7: 75 | AH7: 62 | AI7: 95 | AJ7: 75 | AK7: 5.5 | AM7: 5.5 | AO7: 230.3 | AP7: 1 | AQ7: 15.2 | AR7: 0 | AS7: 17856 | AT7: 38 | AU7: 16991 | AV7: 73 | AW7: -1179 | AX7: 73 | AY7: 16677 | AZ7: 81 | BB7: 939 | BD7: 8.23 | BF7: 112.36 | BG7: 0.01 | BH7: 54.3 | CN7: 4.996105452 | CO7: Factory charge, 3 turns, Econo 1-F open unsealed cab, 53.5% inlet 52% outlet Meriam,--adjust code tester speed to match total static of run C-1E3J-SPWCT-SS | CP7: R22 5.5 LBS. unsealed cab:Inlet Meriam set @ 53.5%: Outlet Meriam set @ 52% manually: Horiz airflow. ID Pulley is 3 turns open from fully closed: Econo open 1F: with flow meter: new filter drier: with isolation ball valves: with code | CQ7: 74.999 | CR7: 0.022 | CS7: 62.001 | CT7: 0.029 | CU7: 94.999 | CV7: 0.01 | CW7: 75.002 | CX7: 0.012 | CY7: 74.31 | CZ7: 0.06 | DA7: 60.6 | DB7: 0.04 | DC7: 66.14 | DD7: 0.02 | DE7: 0.014 | DF7: 0.003 | DG7: 0.8123 | DH7: 0.0028 | DI7: 17856 | DJ7: 38 | DK7: -1179 | DL7: 73 | DM7: 4.997 | DN7: 0.027 | DQ7: 10.93379269 | DU7: 229.8 | DV7: 1 | DW7: 229.8 | DX7: 1 | DY7: 229.8 | DZ7: 1 | EA7: 13.5 | EB7: 0 | EC7: 13.5 | ED7: 0 | EE7: 13.5 | EF7: 0 | EG7: 2974.4 | EH7: 5.6 | EI7: 2974.4 | EJ7: 5.6 | EK7: 2974.4 | EL7: 5.6 | EM7: 230 | EN7: 1 | EO7: 230 | EP7: 1 | EQ7: 230 | ER7: 1 | ES7: 1.7 | ET7: 0 | EU7: 1.7 | EV7: 0 | EW7: 1.7 | EX7: 0 | EZ7: 227.8 | FA7: 1 | FB7: 227.8 | FC7: 1 | FD7: 227.8 | FE7: 1 | FF7: 12.8 | FG7: 0 | FH7: 12.8 | FI7: 0 | FJ7: 12.8 | FK7: 0 | FL7: 2781.7 | FM7: 4.9 | FW7: 228.3 | FX7: 1 | FY7: 0.7 | FZ7: 0 | GA7: 169.1 | GB7: 0.9 | GC7: 23 | GE7: 3335.8 | GF7: 482 | GG7: 483 | GH7: 483 | GI7: 0.7 | GJ7: 0.8 | GK7: 0.8 | GL7: 400 | GM7: 0.62 | GN7: 8.23 | GO7: 15.8 | HB7: 264.87 | HC7: 0.17 | HD7: 182.61 | HE7: 0.04 | HF7: 121.25 | HG7: 0.05 | HH7: 61.36 | HI7: 0.05 | HJ7: 244.87 | HK7: 0.22 | HL7: 103.24 | HM7: 0.04 | HN7: 115.48 | HO7: 0.07 | HP7: 12.24 | HQ7: 0.07 | HR7: 78.35 | HS7: 0.04 | HT7: 65.87 | HU7: 0.07 | HV7: 46.14 | HW7: 0.02 | HZ7: 79.13 | IA7: 0.02 | IB7: 69.51 | IC7: 0.06 | ID7: 46.63 | IE7: 0.01 | IF7: 22.88 | IG7: 0.06 | IH7: 525.11 | II7: 0.53 | IJ7: 40.5 | IK7: 0.01 | IL7: 36497 | IM7: 47 | IN7: 37733 | IO7: 43 | JL7: 248.56 | JM7: 0.22 | JN7: 104.19 | JO7: 0.05 | JP7: 116.57 | JQ7: 0.06 | JR7: 12.38 | JS7: 0.07 | JT7: 247.15 | JU7: 0.19 | JV7: 116.15 | JW7: 0.06 | JX7: 12.99 | JY7: 0.07 | JZ7: 19.74 | KA7: 0.07 | MX7: 60.06 | MY7: 0.06 | MZ7: 61.83 | NA7: 0.05 | NB7: 61.49 | NC7: 0.08 | ND7: 61.64 | NE7: 0.04 | NF7: 60.99 | NG7: 0.07 | NH7: 61 | NI7: 0.04 | OP7: 103.89 | OQ7: 0.05 | OT7: 87.45 | OU7: 0.27 | OV7: 90.02 | OW7: 0.24 | OX7: 84.71 | OY7: 0.33 | OZ7: 87.18 | PA7: 0.47 | PB7: 91.93 | PC7: 0.7 | PD7: 91.95 | PE7: 0.7 | PN7: 93.58 | PO7: 0.34 | PR7: 103.16 | PS7: 0.05 | QX7: 94.87 | QY7: 0.06 | QZ7: 95.19 | RA7: 0.06 | RB7: 74.68 | RC7: 0.05 | RD7: 74.67 | RE7: 0.05 | RF7: 74.45 | RG7: 0.05 | RH7: 74.86 | RI7: 0.06 | RJ7: 74.87 | RK7: 0.06 | RL7: 74.85 | RM7: 0.06 | RN7: 74.65 | RO7: 0.06 | RP7: 93.15 | RQ7: 0.05 | RR7: 93.03 | RS7: 0.09 | RT7: 92.45 | RU7: 0.17 | RV7: 89.84 | RW7: 0.31 | RX7: 90.76 | RY7: 0.09 | RZ7: 91.15 | SA7: 0.15 | SB7: 89.05 | SC7: 0.14 | SD7: 87.32 | SE7: 0.1 | SF7: 91.63 | SG7: 0.06 | SH7: 76.2 | SI7: 0.1 | SJ7: 76.89 | SK7: 0.12 | SL7: 75.59 | SM7: 0.07 | SN7: 82.46 | SO7: 0.16 | SP7: 75.77 | SQ7: 0.06 | SR7: 75.3 | SS7: 0.06 | ST7: 75.37 | SU7: 0.05 | SV7: 76.65 | SW7: 0.12 | SX7: 74.82 | SY7: 0.04 | SZ7: 74.86 | TA7: 0.04 | TB7: 75.01 | TC7: 0.05 | WJ7: C-55-1ER-DM | WK7: 74.999 | WL7: 0.022 | WM7: 62.001 | WN7: 0.029 | WO7: 60.591 | WP7: 0.013 | WQ7: 57.182 | WR7: 0.022 | WS7: 94.999 | WT7: 0.01 | WU7: 75.002 | WV7: 0.012 | WW7: 1160.9 | WX7: 2 | WY7: 1109.9 | WZ7: 2 | XA7: 0.54 | XB7: 0.004 | XC7: -0.135 | XD7: 0.001 | XE7: 0.014 | XF7: 0.003 | XG7: 0.8123 | XH7: 0.0028 | XI7: 28.879 | XJ7: 0.001 | XK7: 3338 | XL7: 9 | XM7: 362 | XN7: 5.6 | XO7: 0.2550244976 | XP7: 291.7735276 | XQ7: 13.029 | XR7: 0.136 | XS7: 0.7848824732 | XT7: 5281.578688 | XU7: 70.41135685 | XV7: 302.4097955 | XW7: 1286.858941 | XX7: 3994.719747 | XY7: 0.01003418871 | XZ7: 30.17981386 | YA7: 59.80611753 | YB7: 14.09990415 | YC7: 13.18810229 | YD7: 0.01392277047 | YE7: 38.15907575 | YF7: 0.008781521051 | YG7: 27.60937459 | YH7: 0.009155858831 | YI7: 24.50252083 | YJ7: 79.90642562 | YK7: 65.52717034 | YL7: 24.31095833 | YM7: =(XZ7-YL7)*XT7 -> 30996.82225 | YN7: =0.24*(YJ7-YA7)*XT7 -> 25478.72612 | YO7: =XK7-XM7 -> 2976 | YP7: =YO7*3.413/YM7 -> 0.32768159 | YQ7: =YM7-(XM7-XU7)*3.413 -> 30001.63021 | YR7: =YN7-(XM7-XU7)*3.413 -> 24483.53408 | YS7: =YQ7/XK7 -> 8.987905995 | YT7: =(YA7-YW7)/(YJ7-YW7) -> 0.2253433236 | YU7: =-XZ7+YL7 -> -5.868855522 | YV7: =-YJ7+YA7 -> -20.10030809 | YW7: =(-(-0.0182984848494437-(YU7/YV7))+SQRT((-0.0182984848494437-(YU7/YV7))^2-4*0.00577826340327261*(6.76723916086377-XZ7+(YU7/YV7)*YJ7)))/(2*0.00577826340327261) -> 53.95904957 | YX7: =XT7*(XZ7-YL7) -> 30996.82225 | YY7: =XT7*(YG7-YI7) -> 16409.09257 | YZ7: =XT7*(YI7-YL7) -> 1011.752411 | ZA7: =XW7*(YE7-YG7) -> 13575.97727 | ZB7: =SUM(YY7:ZA7) -> 30996.82225 | ZC7: =ZB7/YX7 -> 1
A8: 5 | B8: C-MF-75629575-2E3J | C8: 30N0007 | D8: C-MF-75629575-2E3J | E8: 2 Finger | F8: on | G8: N/A | H8: 3 turns | I8: unsealed | J8: unsealed | M8: horizontal | N8: 0 | O8: 0 | P8: CUST 1 | Q8: 3/11/2014 | R8: 21:36:24 | S8: 10 Ton | T8: 0:30:00 | U8: 75/62 - 95/75 | V8: ENG 1 | W8: TECH 1 | X8: RTU5 | Y8: RTU5 | Z8: 3 | AA8: R22 | AB8: PSC Air Handler | AC8: 5.5 LBS | AD8: 208/230/1 | AE8: TU1 | AF8: AHRI 210/240 2008 | AG8: 75 | AH8: 62 | AI8: 95 | AJ8: 75 | AK8: 5.5 | AM8: 5.5 | AO8: 230.3 | AP8: 0.8 | AQ8: 15.2 | AR8: 0 | AS8: 16314 | AT8: 38 | AU8: 15548 | AV8: 72 | AW8: -3297 | AX8: 77 | AY8: 13014 | AZ8: 65 | BB8: 939 | BD8: 8.5 | BF8: 112.78 | BG8: 0.01 | BH8: 64.84 | CN8: 3.892910559 | CO8: Factory charge, 3 turns, Econo 2-F open unsealed cab, 53.5% inlet 52% outlet--Meriam, adjust code tester speed to match total static of run C-2E3J-SPWCT-SS | CP8: R22 5.5 LBS. unsealed cab:Inlet Meriam set @ 53.5%: Outlet Meriam set @ 52% manually: Horiz airflow. ID Pulley is 3 turns open from fully closed: Econo open 2F: with flow meter: new filter drier: with isolation ball valves: with code | CQ8: 75.002 | CR8: 0.019 | CS8: 61.996 | CT8: 0.029 | CU8: 95.001 | CV8: 0.012 | CW8: 74.998 | CX8: 0.015 | CY8: 74.35 | CZ8: 0.05 | DA8: 61.85 | DB8: 0.04 | DC8: 66.97 | DD8: 0.01 | DE8: 0.023 | DF8: 0.003 | DG8: 0.8243 | DH8: 0.0025 | DI8: 16314 | DJ8: 38 | DK8: -3297 | DL8: 77 | DM8: 3.894 | DN8: 0.022 | DQ8: 11.07298833 | DU8: 229.8 | DV8: 0.8 | DW8: 229.8 | DX8: 0.8 | DY8: 229.8 | DZ8: 0.8 | EA8: 13.5 | EB8: 0 | EC8: 13.5 | ED8: 0 | EE8: 13.5 | EF8: 0 | EG8: 2977.9 | EH8: 6 | EI8: 2977.9 | EJ8: 6 | EK8: 2977.9 | EL8: 6 | EM8: 230 | EN8: 0.8 | EO8: 230 | EP8: 0.8 | EQ8: 230 | ER8: 0.8 | ES8: 1.7 | ET8: 0 | EU8: 1.7 | EV8: 0 | EW8: 1.7 | EX8: 0 | EZ8: 227.8 | FA8: 0.9 | FB8: 227.8 | FC8: 0.9 | FD8: 227.8 | FE8: 0.9 | FF8: 12.8 | FG8: 0 | FH8: 12.8 | FI8: 0 | FJ8: 12.8 | FK8: 0 | FL8: 2784.7 | FM8: 5.6 | FW8: 228.3 | FX8: 0.9 | FY8: 0.7 | FZ8: 0 | GA8: 169.4 | GB8: 0.8 | GC8: 23 | GE8: 3340.7 | GF8: 486 | GG8: 487 | GH8: 488 | GI8: 0.7 | GJ8: 0.7 | GK8: 0.8 | GL8: 410 | GM8: 0.62 | GN8: 8.5 | GO8: 15.9 | HB8: 265.78 | HC8: 0.19 | HD8: 183.77 | HE8: 0.04 | HF8: 121.52 | HG8: 0.05 | HH8: 62.25 | HI8: 0.06 | HJ8: 245.68 | HK8: 0.23 | HL8: 103.04 | HM8: 0.06 | HN8: 115.74 | HO8: 0.07 | HP8: 12.7 | HQ8: 0.09 | HR8: 79.34 | HS8: 0.05 | HT8: 68.53 | HU8: 0.04 | HV8: 46.81 | HW8: 0.03 | HZ8: 79.96 | IA8: 0.03 | IB8: 71.36 | IC8: 0.05 | ID8: 47.2 | IE8: 0.02 | IF8: 24.16 | IG8: 0.06 | IH8: 528.88 | II8: 0.52 | IJ8: 40.44 | IK8: 0.02 | IL8: 37017 | IM8: 46 | IN8: 38259 | IO8: 42 | JL8: 249.41 | JM8: 0.22 | JN8: 103.93 | JO8: 0.05 | JP8: 116.84 | JQ8: 0.06 | JR8: 12.91 | JS8: 0.07 | JT8: 247.94 | JU8: 0.22 | JV8: 116.41 | JW8: 0.07 | JX8: 13.51 | JY8: 0.08 | JZ8: 21.72 | KA8: 0.05 | MX8: 61.5 | MY8: 0.05 | MZ8: 62.89 | NA8: 0.04 | NB8: 62.76 | NC8: 0.05 | ND8: 62.65 | NE8: 0.04 | NF8: 62.45 | NG8: 0.05 | NH8: 62.11 | NI8: 0.04 | OP8: 103.67 | OQ8: 0.06 | OT8: 94.4 | OU8: 0.1 | OV8: 94.28 | OW8: 0.11 | OX8: 94.78 | OY8: 0.09 | OZ8: 94.84 | PA8: 0.09 | PB8: 94.91 | PC8: 0.08 | PD8: 94.94 | PE8: 0.07 | PN8: 94.76 | PO8: 0.08 | PR8: 102.89 | PS8: 0.06 | QX8: 94.7 | QY8: 0.09 | QZ8: 95.04 | RA8: 0.08 | RB8: 74.59 | RC8: 0.06 | RD8: 74.63 | RE8: 0.06 | RF8: 74.49 | RG8: 0.04 | RH8: 74.72 | RI8: 0.07 | RJ8: 74.73 | RK8: 0.07 | RL8: 74.71 | RM8: 0.08 | RN8: 74.57 | RO8: 0.07 | RP8: 91.72 | RQ8: 0.08 | RR8: 91.58 | RS8: 0.08 | RT8: 92.44 | RU8: 0.09 | RV8: 90.63 | RW8: 0.14 | RX8: 89.28 | RY8: 0.09 | RZ8: 91.15 | SA8: 0.1 | SB8: 91.17 | SC8: 0.07 | SD8: 90.26 | SE8: 0.09 | SF8: 90.56 | SG8: 0.08 | SH8: 77.25 | SI8: 0.09 | SJ8: 82.42 | SK8: 0.17 | SL8: 79.1 | SM8: 0.13 | SN8: 84.01 | SO8: 0.14 | SP8: 75.75 | SQ8: 0.06 | SR8: 75.46 | SS8: 0.05 | ST8: 75.18 | SU8: 0.09 | SV8: 77.85 | SW8: 0.15 | SX8: 75.1 | SY8: 0.08 | SZ8: 75.01 | TA8: 0.06 | TB8: 75.27 | TC8: 0.04 | WJ8: C-55-2ER-DM | WK8: 75.002 | WL8: 0.019 | WM8: 61.996 | WN8: 0.029 | WO8: 61.89 | WP8: 0.014 | WQ8: 58.281 | WR8: 0.017 | WS8: 95.001 | WT8: 0.012 | WU8: 74.998 | WV8: 0.015 | WW8: 1167.7 | WX8: 1.8 | WY8: 1119.5 | WZ8: 1.7 | XA8: 0.507 | XB8: 0.003 | XC8: -0.107 | XD8: 0.001 | XE8: 0.023 | XF8: 0.003 | XG8: 0.8243 | XH8: 0.0025 | XI8: 29.02 | XJ8: 0.004 | XK8: 3343 | XL8: 9 | XM8: 363.6 | XN8: 5.6 | XO8: 0.32805 | XP8: 381.489345 | XQ8: 13.029 | XR8: 0.108 | XS8: 0.7967323185 | XT8: 5298.152397 | XU8: 66.68024079 | XV8: 395.0165009 | XW8: 1680.930572 | XX8: 3617.221825 | XY8: 0.01040867247 | XZ8: 30.95271839 | YA8: 61.09326768 | YB8: 14.09992205 | YC8: 13.22385518 | YD8: 0.01391878587 | YE8: 38.15517237 | YF8: 0.008777515414 | YG8: 27.60572291 | YH8: 0.009515939851 | YI8: 25.21150222 | YJ8: 81.38745335 | YK8: 66.53729823 | YL8: 25.0169202 | YM8: 31448.7634 | YN8: 25805.20522 | YO8: 2979.4 | YP8: 0.3233415595 | YQ8: 30435.37626 | YR8: 24791.81809 | YS8: 9.104210667 | YT8: 0.2313956273 | YU8: -5.935798187 | YV8: -20.29418566 | YW8: 54.98351084 | YX8: 31448.7634 | YY8: 12684.94612 | YZ8: 1030.925154 | ZA8: 17732.89212 | ZB8: 31448.7634 | ZC8: 1
A9: 5 | B9: C-MF-75629575-3E3J | C9: 30N0008 | D9: C-MF-75629575-3E3J | E9: 3 Finger | F9: on | G9: N/A | H9: 3 turns | I9: unsealed | J9: unsealed | M9: horizontal | N9: 0 | O9: 0 | P9: CUST 1 | Q9: 3/12/2014 | R9: 5:25:29 | S9: 10 Ton | T9: 0:30:00 | U9: 75/62 95/75 | V9: ENG 1 | W9: TECH 1 | X9: RTU5 | Y9: RTU5 | Z9: 3 | AA9: R22 | AB9: PSC Air Handler | AC9: 5.5 LBS | AD9: 208/230/1 | AE9: TU1 | AF9: AHRI 210/240 2008 | AG9: 75 | AH9: 62 | AI9: 95 | AJ9: 75 | AK9: 5.5 | AM9: 5.5 | AO9: 230.3 | AP9: 0.8 | AQ9: 15.2 | AR9: 0 | AS9: 13667 | AT9: 36 | AU9: 12957 | AV9: 60 | AW9: -6980 | AX9: 61 | AY9: 6681 | AZ9: 70 | BB9: 937 | BD9: 8.6 | BF9: 113.31 | BG9: 0.01 | BH9: 82.27 | CN9: 1.994328358 | CO9: . | CP9: R22 5.5 LBS. unsealed cab:Inlet Meriam set @ 53.5%: Outlet Meriam set @ 52% manually: Horiz airflow. ID Pulley is 3 turns open from fully closed: Econo open 3F: with flow meter: new filter drier: with isolation ball valves: with code | CQ9: 75.002 | CR9: 0.013 | CS9: 62.006 | CT9: 0.017 | CU9: 94.997 | CV9: 0.011 | CW9: 75.001 | CX9: 0.014 | CY9: 74.49 | CZ9: 0.05 | DA9: 64.09 | DB9: 0.03 | DC9: 68.38 | DD9: 0.01 | DE9: 0.026 | DF9: 0.003 | DG9: 0.8395 | DH9: 0.0029 | DI9: 13667 | DJ9: 36 | DK9: -6980 | DL9: 61 | DM9: 1.994 | DN9: 0.022 | DQ9: 11.24626866 | DU9: 229.7 | DV9: 0.8 | DW9: 229.7 | DX9: 0.8 | DY9: 229.7 | DZ9: 0.8 | EA9: 13.5 | EB9: 0 | EC9: 13.5 | ED9: 0 | EE9: 13.5 | EF9: 0 | EG9: 2982.8 | EH9: 5.5 | EI9: 2982.8 | EJ9: 5.5 | EK9: 2982.8 | EL9: 5.5 | EM9: 230 | EN9: 0.8 | EO9: 230 | EP9: 0.8 | EQ9: 230 | ER9: 0.8 | ES9: 1.7 | ET9: 0 | EU9: 1.7 | EV9: 0 | EW9: 1.7 | EX9: 0 | EZ9: 227.8 | FA9: 0.8 | FB9: 227.8 | FC9: 0.8 | FD9: 227.8 | FE9: 0.8 | FF9: 12.8 | FG9: 0 | FH9: 12.8 | FI9: 0 | FJ9: 12.8 | FK9: 0 | FL9: 2789.2 | FM9: 5.1 | FW9: 228.3 | FX9: 0.8 | FY9: 0.7 | FZ9: 0 | GA9: 170.3 | GB9: 0.8 | GC9: 23 | GE9: 3348.5 | GF9: 480 | GG9: 480 | GH9: 480 | GI9: 0.8 | GJ9: 0.7 | GK9: 0.9 | GL9: 410 | GM9: 0.63 | GN9: 8.6 | GO9: 16 | HB9: 266.6 | HC9: 0.2 | HD9: 185.16 | HE9: 0.03 | HF9: 121.8 | HG9: 0.06 | HH9: 63.37 | HI9: 0.05 | HJ9: 246.35 | HK9: 0.23 | HL9: 102.77 | HM9: 0.04 | HN9: 115.99 | HO9: 0.07 | HP9: 13.22 | HQ9: 0.07 | HR9: 80.53 | HS9: 0.05 | HT9: 71.86 | HU9: 0.04 | HV9: 47.66 | HW9: 0.03 | HZ9: 81.33 | IA9: 0.03 | IB9: 73.86 | IC9: 0.05 | ID9: 48.16 | IE9: 0.02 | IF9: 25.7 | IG9: 0.05 | IH9: 533.52 | II9: 0.58 | IJ9: 40.35 | IK9: 0.01 | IL9: 37675 | IM9: 50 | IN9: 38923 | IO9: 47 | JL9: 250.12 | JM9: 0.23 | JN9: 103.65 | JO9: 0.05 | JP9: 117.09 | JQ9: 0.07 | JR9: 13.44 | JS9: 0.07 | JT9: 248.68 | JU9: 0.22 | JV9: 116.67 | JW9: 0.06 | JX9: 14.13 | JY9: 0.07 | JZ9: 24.2 | KA9: 0.05 | MX9: 63.74 | MY9: 0.16 | MZ9: 65.07 | NA9: 0.06 | NB9: 64.98 | NC9: 0.11 | ND9: 64.74 | NE9: 0.08 | NF9: 64.8 | NG9: 0.16 | NH9: 64.19 | NI9: 0.1 | OP9: 103.32 | OQ9: 0.06 | OT9: 94.2 | OU9: 0.18 | OV9: 93.9 | OW9: 0.2 | OX9: 94.72 | OY9: 0.11 | OZ9: 94.72 | PA9: 0.13 | PB9: 94.89 | PC9: 0.08 | PD9: 94.9 | PE9: 0.08 | PN9: 94.79 | PO9: 0.08 | PR9: 102.55 | PS9: 0.06 | QX9: 94.93 | QY9: 0.08 | QZ9: 95.31 | RA9: 0.06 | RB9: 74.87 | RC9: 0.04 | RD9: 74.86 | RE9: 0.03 | RF9: 74.59 | RG9: 0.03 | RH9: 75.06 | RI9: 0.04 | RJ9: 75.06 | RK9: 0.05 | RL9: 75.02 | RM9: 0.04 | RN9: 74.82 | RO9: 0.04 | RP9: 93.97 | RQ9: 0.05 | RR9: 93.41 | RS9: 0.05 | RT9: 93.39 | RU9: 0.05 | RV9: 92.93 | RW9: 0.06 | RX9: 92.96 | RY9: 0.05 | RZ9: 90.7 | SA9: 0.09 | SB9: 93.27 | SC9: 0.06 | SD9: 93.26 | SE9: 0.06 | SF9: 89.69 | SG9: 0.07 | SH9: 80.42 | SI9: 0.11 | SJ9: 90.01 | SK9: 0.14 | SL9: 85.57 | SM9: 0.17 | SN9: 84.07 | SO9: 0.11 | SP9: 75.65 | SQ9: 0.03 | SR9: 76.16 | SS9: 0.04 | ST9: 76.01 | SU9: 0.04 | SV9: 80.83 | SW9: 0.11 | SX9: 75.76 | SY9: 0.04 | SZ9: 75.98 | TA9: 0.03 | TB9: 77.02 | TC9: 0.03 | WJ9: C-55-3ER-DM | WK9: 75.002 | WL9: 0.013 | WM9: 62.006 | WN9: 0.017 | WO9: 64.047 | WP9: 0.015 | WQ9: 60.125 | WR9: 0.019 | WS9: 94.997 | WT9: 0.011 | WU9: 75.001 | WV9: 0.014 | WW9: 1173.2 | WX9: 2.1 | WY9: 1134.1 | WZ9: 2 | XA9: 0.473 | XB9: 0.005 | XC9: -0.067 | XD9: 0.001 | XE9: 0.026 | XF9: 0.003 | XG9: 0.8395 | XH9: 0.0029 | XI9: 29.362 | XJ9: 0.002 | XK9: 3350 | XL9: 8 | XM9: 366 | XN9: 5.4 | XO9: 0.4576042396 | XP9: 530.3633137 | XQ9: 13.03 | XR9: 0.061 | XS9: 0.8128390382 | XT9: 5299.16395 | XU9: 63.01988312 | XV9: 578.2038752 | XW9: 2460.468193 | XX9: 2838.695758 | XY9: 0.01116986951 | XZ9: 32.50920999 | YA9: 63.23416096 | YB9: 14.09985003 | YC9: 13.28360486 | YD9: 0.01392237288 | YE9: 38.15814476 | YF9: 0.008784109445 | YG9: 27.61293877 | YH9: 0.01015901452 | YI9: 26.43888496 | YJ9: 84.33224679 | YK9: 68.50561686 | YL9: 26.2401372 | YM9: 33220.84454 | YN9: 26832.5318 | YO9: 2984 | YP9: 0.3065663183 | YQ9: 32186.7734 | YR9: 25798.46066 | YS9: 9.607992059 | YT9: 0.2370876901 | YU9: -6.269072791 | YV9: -21.09808583 | YW9: 56.67757986 | YX9: 33220.84454 | YY9: 6221.503614 | YZ9: 1053.19698 | ZA9: 25946.14394 | ZB9: 33220.84454 | ZC9: 1
A10: 5 | B10: C-MF-75629575-E3J | C10: 30N0009 | D10: C-MF-75629575-E3J | E10: closed | F10: on | G10: N/A | H10: 3 turns | I10: unsealed | J10: unsealed | M10: horizontal | N10: 0 | O10: 0 | P10: CUST 1 | Q10: 3/11/2014 | R10: 12:31:48 | S10: 10 Ton | T10: 0:30:00 | U10: 75/62 95/75 | V10: ENG 1 | W10: TECH 1 | X10: RTU5 | Y10: RTU5 | Z10: 3 | AA10: R22 | AB10: PSC Air Handler | AC10: 5.5 LBS | AD10: 208/230/1 | AE10: TU1 | AF10: AHRI 210/240 2008 | AG10: 75 | AH10: 62 | AI10: 95 | AJ10: 75 | AK10: 5.5 | AM10: 5.5 | AO10: 230.3 | AP10: 1 | AQ10: 15 | AR10: 0 | AS10: 19926 | AT10: 38 | AU10: 19005 | AV10: 79 | AW10: 1249 | AX10: 73 | AY10: 21176 | AZ10: 85 | BB10: 939 | BD10: 8.25 | BF10: 111.82 | BG10: 0.02 | BH10: 40.88 | CN10: 6.366806975 | CO10: Factory charge, 3 turns, closed econo unsealed cab, return and supply Meriam's--set to same as run C-MF-NE3J-SPWCT-SS, adjust code tester speed to match--total static of run C-MF-E3J-SPWCT-SS | CP10: R22 5.5 LBS. unsealed cab:Inlet Meriam set @ 53.5%: Outlet Meriam set @ 52% manually: Horiz airflow. ID Pulley is 3 turns open from fully closed: with economizer: with flow meter: new filter drier: with isolation ball valves: with code | CQ10: 75.001 | CR10: 0.019 | CS10: 61.999 | CT10: 0.025 | CU10: 95 | CV10: 0.009 | CW10: 75.001 | CX10: 0.018 | CY10: 74.41 | CZ10: 0.08 | DA10: 59.2 | DB10: 0.05 | DC10: 65.12 | DD10: 0.02 | DE10: 0.027 | DF10: 0.003 | DG10: 0.8139 | DH10: 0.0027 | DI10: 19926 | DJ10: 38 | DK10: 1249 | DL10: 73 | DM10: 6.367 | DN10: 0.03 | DQ10: 10.76999399 | DU10: 229.7 | DV10: 1 | DW10: 229.7 | DX10: 1 | DY10: 229.7 | DZ10: 1 | EA10: 13.4 | EB10: 0 | EC10: 13.4 | ED10: 0 | EE10: 13.4 | EF10: 0 | EG10: 2962 | EH10: 6.3 | EI10: 2962 | EJ10: 6.3 | EK10: 2962 | EL10: 6.3 | EM10: 229.9 | EN10: 1 | EO10: 229.9 | EP10: 1 | EQ10: 229.9 | ER10: 1 | ES10: 1.6 | ET10: 0 | EU10: 1.6 | EV10: 0 | EW10: 1.6 | EX10: 0 | EZ10: 227.8 | FA10: 1 | FB10: 227.8 | FC10: 1 | FD10: 227.8 | FE10: 1 | FF10: 12.7 | FG10: 0 | FH10: 12.7 | FI10: 0 | FJ10: 12.7 | FK10: 0 | FL10: 2769.4 | FM10: 6 | FW10: 228.3 | FX10: 1 | FY10: 0.7 | FZ10: 0 | GA10: 169.3 | GB10: 0.9 | GC10: 23 | GE10: 3324.8 | GF10: 475 | GG10: 478 | GH10: 478 | GI10: 0.7 | GJ10: 0.7 | GK10: 0.8 | GL10: 400 | GM10: 0.62 | GN10: 8.25 | GO10: 15.8 | HB10: 263.3 | HC10: 0.2 | HD10: 180.58 | HE10: 0.05 | HF10: 120.82 | HG10: 0.06 | HH10: 59.77 | HI10: 0.06 | HJ10: 243.42 | HK10: 0.22 | HL10: 103.44 | HM10: 0.06 | HN10: 115.06 | HO10: 0.07 | HP10: 11.62 | HQ10: 0.08 | HR10: 76.92 | HS10: 0.04 | HT10: 62.46 | HU10: 0.11 | HV10: 45.26 | HW10: 0.03 | HZ10: 77.53 | IA10: 0.02 | IB10: 66.74 | IC10: 0.1 | ID10: 45.64 | IE10: 0.01 | IF10: 21.09 | IG10: 0.1 | IH10: 520.11 | II10: 0.55 | IJ10: 40.57 | IK10: 0.02 | IL10: 35821 | IM10: 50 | IN10: 37060 | IO10: 46 | JL10: 247.06 | JM10: 0.22 | JN10: 104.26 | JO10: 0.05 | JP10: 116.14 | JQ10: 0.07 | JR10: 11.88 | JS10: 0.07 | JT10: 245.66 | JU10: 0.22 | JV10: 115.73 | JW10: 0.06 | JX10: 12.31 | JY10: 0.07 | JZ10: 17.21 | KA10: 0.12 | MX10: 58.28 | MY10: 0.05 | MZ10: 60.34 | NA10: 0.08 | NB10: 59.66 | NC10: 0.11 | ND10: 60.21 | NE10: 0.06 | NF10: 59.05 | NG10: 0.07 | NH10: 59.54 | NI10: 0.04 | OB10: 103.44 | OC10: 0.06 | OP10: 104.11 | OQ10: 0.06 | OT10: 94.75 | OU10: 0.07 | OV10: 94.76 | OW10: 0.06 | OX10: 94.91 | OY10: 0.05 | OZ10: 94.89 | PA10: 0.07 | PB10: 94.78 | PC10: 0.08 | PD10: 94.81 | PE10: 0.07 | PR10: 103.42 | PS10: 0.07 | QX10: 94.83 | QY10: 0.09 | QZ10: 95.13 | RA10: 0.09 | RB10: 74.61 | RC10: 0.08 | RD10: 74.62 | RE10: 0.07 | RF10: 74.46 | RG10: 0.06 | RH10: 74.72 | RI10: 0.09 | RJ10: 74.71 | RK10: 0.09 | RL10: 74.71 | RM10: 0.1 | RN10: 74.59 | RO10: 0.08 | RP10: 86.86 | RQ10: 0.11 | RR10: 82.29 | RS10: 0.11 | RT10: 80.52 | RU10: 0.1 | RV10: 84.64 | RW10: 0.15 | RX10: 84.1 | RY10: 0.09 | RZ10: 86.45 | SA10: 0.11 | SB10: 77.54 | SC10: 0.08 | SD10: 82.79 | SE10: 0.1 | SF10: 92.09 | SG10: 0.05 | SH10: 79.24 | SI10: 0.15 | SJ10: 75 | SK10: 0.07 | SL10: 74.99 | SM10: 0.07 | SN10: 82.59 | SO10: 0.18 | SP10: 74.96 | SQ10: 0.06 | SR10: 74.9 | SS10: 0.06 | ST10: 74.97 | SU10: 0.06 | SV10: 76.04 | SW10: 0.09 | SX10: 74.81 | SY10: 0.05 | SZ10: 74.76 | TA10: 0.06 | TB10: 74.83 | TC10: 0.05 | WJ10: C-55-CE-DM | WK10: 75.001 | WL10: 0.019 | WM10: 61.999 | WN10: 0.025 | WO10: 59.059 | WP10: 0.013 | WQ10: 55.828 | WR10: 0.018 | WS10: 95 | WT10: 0.009 | WU10: 75.001 | WV10: 0.018 | WW10: 1158.9 | WX10: 2 | WY10: 1114.7 | WZ10: 1.9 | XA10: 0.565 | XB10: 0.005 | XC10: -0.176 | XD10: 0.001 | XE10: 0.027 | XF10: 0.003 | XG10: 0.8139 | XH10: 0.0027 | XI10: 28.974 | XJ10: 0.002 | XK10: 3326 | XL10: 9 | XM10: 363.1 | XN10: 5.7 | XO10: 0.166225331 | XP10: 191.8074094 | XQ10: 13.029 | XR10: 0.182 | XS10: 0.7770556291 | XT10: 5289.4335 | XU10: 73.9897485 | XV10: 196.2179831 | XW10: 834.9748576 | XX10: 4454.458642 | XY10: 0.009591419299 | XZ10: 29.2733248 | YA10: 58.28194437 | YB10: 14.09992035 | YC10: 13.14583121 | YD10: 0.01392165457 | YE10: 38.15809089 | YF10: 0.008779729737 | YG10: 27.60790215 | YH10: 0.008715731865 | YI10: 23.65009714 | YJ10: 78.18283446 | YK10: 64.31391802 | YL10: 23.46059675 | YM10: 30746.03846 | YN10: 25263.46433 | YO10: 2962.9 | YP10: 0.3289001837 | YQ10: 29759.30518 | YR10: 24276.73105 | YS10: 8.947476 | YT10: 0.2211604071 | YU10: -5.812728048 | YV10: -19.90089009 | YW10: 52.6308591 | YX10: 30746.03846 | YY10: 20934.54642 | YZ10: 1002.349707 | ZA10: 8809.142342 | ZB10: 30746.03846 | ZC10: 1
A11: 5 | B11: C-MF-75629575-OE3J | C11: 30N0011 | D11: C-MF-75629575-OE3J | E11: Fully open | F11: on | G11: N/A | H11: 3 turns | I11: unsealed | J11: unsealed | M11: horizontal | N11: 0 | O11: 0 | P11: CUST 1 | Q11: 3/12/2014 | R11: 7:42:47 | S11: 10 Ton | T11: 0:30:00 | U11: 75/62 95/75 | V11: ENG 1 | W11: TECH 1 | X11: RTU5 | Y11: RTU5 | Z11: 3 | AA11: R22 | AB11: PSC Air Handler | AC11: 5.5 LBS | AD11: 208/230/1 | AE11: TU1 | AF11: AHRI 210/240 2008 | AG11: 75 | AH11: 62 | AI11: 95 | AJ11: 75 | AK11: 5.5 | AM11: 5.5 | AO11: 230.3 | AP11: 0.9 | AQ11: 15.1 | AR11: 0 | AS11: 10435 | AT11: 28 | AU11: 9786 | AV11: 47 | AW11: -10648 | AX11: 115 | AY11: -223 | AZ11: 126 | BB11: 940 | BD11: 7.3 | BF11: 111.71 | BG11: 0.1 | BH11: 93.61 | CN11: -0.066726511 | CO11: Factory charge, 3 turns, Econo fully open unsealed cab, 53.5% inlet 52% outlet Meriam, CT-SS--adjust code tester speed to match total static of run C-OE3J-SPWCT-SS | CP11: R22 5.5 LBS. unsealed cab:Inlet Meriam set @ 53.5%: Outlet Meriam set @ 52% manually: Horiz airflow. ID Pulley is 3 turns open from fully closed: Econo Fully open: with flow meter: new filter drier: with isolation ball valves: with code | CQ11: 74.996 | CR11: 0.01 | CS11: 62.002 | CT11: 0.028 | CU11: 95 | CV11: 0.012 | CW11: 74.999 | CX11: 0.017 | CY11: 74.5 | CZ11: 0.04 | DA11: 66.19 | DB11: 0.05 | DC11: 69.99 | DD11: 0.03 | DE11: 0.015 | DF11: 0.003 | DG11: 0.7771 | DH11: 0.0026 | DI11: 10435 | DJ11: 28 | DK11: -10648 | DL11: 115 | DM11: 0.005 | DN11: 0.004 | DQ11: 11.08049072 | DU11: 229.8 | DV11: 0.9 | DW11: 229.8 | DX11: 0.9 | DY11: 229.8 | DZ11: 0.9 | EA11: 13.5 | EB11: 0 | EC11: 13.5 | ED11: 0 | EE11: 13.5 | EF11: 0 | EG11: 2981.6 | EH11: 5.6 | EI11: 2981.6 | EJ11: 5.6 | EK11: 2981.6 | EL11: 5.6 | EM11: 230 | EN11: 0.9 | EO11: 230 | EP11: 0.9 | EQ11: 230 | ER11: 0.9 | ES11: 1.6 | ET11: 0 | EU11: 1.6 | EV11: 0 | EW11: 1.6 | EX11: 0 | EZ11: 227.8 | FA11: 0.9 | FB11: 227.8 | FC11: 0.9 | FD11: 227.8 | FE11: 0.9 | FF11: 12.8 | FG11: 0 | FH11: 12.8 | FI11: 0 | FJ11: 12.8 | FK11: 0 | FL11: 2788 | FM11: 5.3 | FW11: 228.3 | FX11: 0.9 | FY11: 0.8 | FZ11: 0 | GA11: 170.6 | GB11: 0.8 | GC11: 23 | GE11: 3341 | GF11: 480 | GG11: 480 | GH11: 480 | GI11: 0.7 | GJ11: 0.7 | GK11: 0.8 | GL11: 390 | GM11: 0.62 | GN11: 7.3 | GO11: 15.3 | HB11: 266.79 | HC11: 0.19 | HD11: 184.19 | HE11: 0.05 | HF11: 121.86 | HG11: 0.05 | HH11: 62.33 | HI11: 0.07 | HJ11: 246.5 | HK11: 0.22 | HL11: 102.57 | HM11: 0.05 | HN11: 116.05 | HO11: 0.06 | HP11: 13.47 | HQ11: 0.07 | HR11: 80.82 | HS11: 0.06 | HT11: 63.15 | HU11: 0.52 | HV11: 47.87 | HW11: 0.04 | HZ11: 81.44 | IA11: 0.03 | IB11: 72.95 | IC11: 0.1 | ID11: 48.26 | IE11: 0.02 | IF11: 24.69 | IG11: 0.11 | IH11: 535.73 | II11: 0.52 | IJ11: 40.29 | IK11: 0.02 | IL11: 37031 | IM11: 73 | IN11: 38260 | IO11: 72 | JL11: 250.3 | JM11: 0.21 | JN11: 103.53 | JO11: 0.05 | JP11: 117.16 | JQ11: 0.06 | JR11: 13.64 | JS11: 0.07 | JT11: 248.89 | JU11: 0.21 | JV11: 116.75 | JW11: 0.06 | JX11: 14.41 | JY11: 0.08 | JZ11: 15.28 | KA11: 0.54 | MX11: 65.8 | MY11: 0.14 | MZ11: 67.49 | NA11: 0.06 | NB11: 67.14 | NC11: 0.14 | ND11: 67.12 | NE11: 0.08 | NF11: 67.06 | NG11: 0.16 | NH11: 66.41 | NI11: 0.1 | OP11: 103.11 | OQ11: 0.06 | OT11: 93.82 | OU11: 0.26 | OV11: 93.4 | OW11: 0.27 | OX11: 94.47 | OY11: 0.18 | OZ11: 94.53 | PA11: 0.17 | PB11: 94.77 | PC11: 0.12 | PD11: 94.77 | PE11: 0.12 | PN11: 94.7 | PO11: 0.12 | PR11: 102.33 | PS11: 0.07 | QX11: 94.93 | QY11: 0.08 | QZ11: 95.33 | RA11: 0.07 | RB11: 74.91 | RC11: 0.03 | RD11: 74.89 | RE11: 0.04 | RF11: 74.61 | RG11: 0.03 | RH11: 75.1 | RI11: 0.04 | RJ11: 75.09 | RK11: 0.04 | RL11: 75.07 | RM11: 0.05 | RN11: 74.86 | RO11: 0.04 | RP11: 93.87 | RQ11: 0.07 | RR11: 93.47 | RS11: 0.07 | RT11: 92.99 | RU11: 0.09 | RV11: 92.82 | RW11: 0.08 | RX11: 92.54 | RY11: 0.08 | RZ11: 91.96 | SA11: 0.13 | SB11: 92.14 | SC11: 0.23 | SD11: 94.02 | SE11: 0.11 | SF11: 79.84 | SG11: 0.09 | SH11: 82.5 | SI11: 0.13 | SJ11: 94.07 | SK11: 0.22 | SL11: 94.08 | SM11: 0.1 | SN11: 75.7 | SO11: 0.02 | SP11: 76.93 | SQ11: 0.03 | SR11: 85.6 | SS11: 0.09 | ST11: 84.58 | SU11: 0.09 | SV11: 76.35 | SW11: 0.03 | SX11: 77.39 | SY11: 0.04 | SZ11: 83.07 | TA11: 0.07 | TB11: 83.84 | TC11: 0.09 | WJ11: C-55-OER-DM | WK11: 74.996 | WL11: 0.01 | WM11: 62.002 | WN11: 0.028 | WO11: 66.16 | WP11: 0.014 | WQ11: 62.017 | WR11: 0.022 | WS11: 95 | WT11: 0.012 | WU11: 74.999 | WV11: 0.017 | WW11: 1128.5 | WX11: 1.9 | WY11: 1090 | WZ11: 1.9 | XA11: 0.413 | XB11: 0.004 | XC11: -0.028 | XD11: 0.001 | XE11: 0.015 | XF11: 0.003 | XG11: 0.7771 | XH11: 0.0026 | XI11: 29.462 | XJ11: 0.002 | XK11: 3342 | XL11: 8 | XM11: 359.4 | XN11: 5.5 | XO11: 0.5922 | XP11: 661.01364 | XQ11: 13.029 | XR11: 0.023 | XS11: 0.8587112025 | XT11: 5074.588223 | XU11: 52.88611339 | XV11: 758.7139747 | XW11: 3228.591661 | XX11: 1845.996561 | XY11: 0.01205119692 | XZ11: 34.31980427 | YA11: 65.3012888 | YB11: 14.09990586 | YC11: 13.34295455 | YD11: 0.0139199017 | YE11: 38.15615716 | YF11: 0.008782889269 | YG11: 27.61014013 | YH11: 0.01088848782 | YI11: 27.75093534 | YJ11: 87.76613062 | YK11: 70.69267298 | YL11: 27.54069322 | YM11: 34401.19711 | YN11: 27359.95722 | YO11: 2982.6 | YP11: 0.2959087083 | YQ11: 33355.06522 | YR11: 26313.82532 | YS11: 9.980570083 | YT11: 0.2311512748 | YU11: -6.779111053 | YV11: -22.46484182 | YW11: 58.54732452 | YX11: 34401.19711 | YY11: -714.4777141 | YZ11: 1066.892176 | ZA11: 34048.78265 | ZB11: 34401.19711 | ZC11: 1
A12: 5 | B12: C-95-3+10-C | C12: 30N0016 | D12: C-95-3+10-C | E12: closed | F12: on | G12: N/A | H12: 3 turns | I12: unsealed | J12: unsealed | M12: horizontal | N12: 0 | O12: 0 | P12: CUST 1 | Q12: 3/18/2014 | R12: 10:38:37 | S12: 10 Ton | T12: 0:30:00 | U12: 75/62 95/75 | V12: ENG 1 | W12: TECH 3 | X12: RTU5 | Y12: RTU5 | Z12: 3 | AA12: R22 | AB12: PSC Air Handler | AC12: 6.1 LBS | AD12: 208/230/1 | AE12: TU1 | AF12: AHRI 210/240 2008 | AG12: 75 | AH12: 62 | AI12: 95 | AJ12: 75 | AK12: 6.1 | AM12: 5.5 | AO12: 230.3 | AP12: 0.9 | AQ12: 15.4 | AR12: 0 | AS12: 20231 | AT12: 42 | AU12: 19565 | AV12: 69 | AW12: 1542 | AX12: 116 | AY12: 21774 | AZ12: 123 | BB12: 945 | BD12: 12.17 | BE12: 5.941556535 | BF12: 109.77 | BG12: 0.01 | BH12: 42.85 | CN12: 6.394713656 | CO12: Closed damper, +10% charge 95F Test, adjust code tester speed to match total--static of run C-95-FC3-EC-SPWCT-SS | CP12: R22 6.1 LBS: Unsealed cab:Inlet Meriam set @ 53.5%: Outlet @ 52% Horiz airflow. ID Pulley is 3 turns open from fully closed: with flow meter: new filter drier: with isolation ball valves: with code: | CQ12: 75.002 | CR12: 0.018 | CS12: 62.002 | CT12: 0.04 | CU12: 94.995 | CV12: 0.008 | CW12: 74.999 | CX12: 0.014 | CY12: 74.56 | CZ12: 0.06 | DA12: 58.77 | DB12: 0.04 | DC12: 65.12 | DD12: 0.02 | DE12: 0.018 | DF12: 0.003 | DG12: 1.1047 | DH12: 0.0033 | DI12: 20231 | DJ12: 42 | DK12: 1542 | DL12: 116 | DM12: 6.394 | DN12: 0.039 | DQ12: 11.18883994 | DU12: 229.8 | DV12: 0.9 | DW12: 229.8 | DX12: 0.9 | DY12: 229.8 | DZ12: 0.9 | EA12: 13.7 | EB12: 0 | EC12: 13.7 | ED12: 0 | EE12: 13.7 | EF12: 0 | EG12: 3036.9 | EH12: 4.9 | EI12: 3036.9 | EJ12: 4.9 | EK12: 3036.9 | EL12: 4.9 | EM12: 230 | EN12: 0.9 | EO12: 230 | EP12: 0.9 | EQ12: 230 | ER12: 0.9 | ES12: 1.7 | ET12: 0 | EU12: 1.7 | EV12: 0 | EW12: 1.7 | EX12: 0 | EZ12: 227.7 | FA12: 0.9 | FB12: 227.7 | FC12: 0.9 | FD12: 227.7 | FE12: 0.9 | FF12: 13 | FG12: 0 | FH12: 13 | FI12: 0 | FJ12: 13 | FK12: 0 | FL12: 2843.1 | FM12: 4.6 | FW12: 228.2 | FX12: 0.9 | FY12: 0.7 | FZ12: 0 | GA12: 168.9 | GB12: 0.8 | GC12: 23 | GE12: 3402 | GF12: 480 | GG12: 480 | GH12: 480 | GI12: 0.8 | GJ12: 0.8 | GK12: 1 | GL12: 490 | GM12: 0.65 | GN12: 12.17 | GO12: 17.6 | HB12: 273.51 | HC12: 0.15 | HD12: 161.58 | HE12: 0.08 | HF12: 123.66 | HG12: 0.04 | HH12: 37.92 | HI12: 0.08 | HJ12: 252.77 | HK12: 0.24 | HL12: 101.43 | HM12: 0.05 | HN12: 117.81 | HO12: 0.07 | HP12: 16.38 | HQ12: 0.08 | HR12: 78.8 | HS12: 0.04 | HT12: 51.81 | HU12: 0.04 | HV12: 46.46 | HW12: 0.03 | HZ12: 79 | IA12: 0.04 | IB12: 51.97 | IC12: 0.05 | ID12: 46.59 | IE12: 0.03 | IF12: 5.39 | IG12: 0.04 | IH12: 563.47 | II12: 0.45 | IJ12: 39.93 | IK12: 0.01 | IL12: 38098 | IM12: 38 | IN12: 39351 | IO12: 34 | JL12: 256.81 | JM12: 0.23 | JN12: 102.25 | JO12: 0.04 | JP12: 118.98 | JQ12: 0.06 | JR12: 16.72 | JS12: 0.07 | JT12: 255.38 | JU12: 0.24 | JV12: 118.56 | JW12: 0.07 | JX12: 16.59 | JY12: 0.08 | JZ12: 5.35 | KA12: 0.04 | MX12: 57.76 | MY12: 0.04 | MZ12: 60.16 | NA12: 0.05 | NB12: 59.36 | NC12: 0.1 | ND12: 59.96 | NE12: 0.04 | NF12: 58.79 | NG12: 0.07 | NH12: 59.11 | NI12: 0.04 | OP12: 102.04 | OQ12: 0.04 | OV12: 95.06 | OW12: 0.16 | OX12: 95.19 | OY12: 0.13 | OZ12: 95.29 | PA12: 0.11 | PB12: 95.27 | PC12: 0.08 | PD12: 95.3 | PE12: 0.08 | PR12: 101.98 | PS12: 0.04 | QX12: 94.87 | QY12: 0.09 | QZ12: 95.35 | RA12: 0.08 | RB12: 75.03 | RC12: 0.07 | RD12: 74.97 | RE12: 0.06 | RF12: 74.74 | RG12: 0.04 | RH12: 75.21 | RI12: 0.07 | RJ12: 75.17 | RK12: 0.08 | RL12: 75.15 | RM12: 0.08 | RN12: 74.97 | RO12: 0.06 | RP12: 91.9 | RQ12: 0.11 | RR12: 84 | RS12: 0.13 | RT12: 81.05 | RU12: 0.08 | RV12: 86.69 | RW12: 0.14 | RX12: 85.3 | RY12: 0.16 | RZ12: 86.11 | SA12: 0.13 | SB12: 78.08 | SC12: 0.07 | SD12: 83.29 | SE12: 0.11 | SF12: 92.88 | SG12: 0.08 | SH12: 79.29 | SI12: 0.16 | SJ12: 75.26 | SK12: 0.05 | SL12: 75.34 | SM12: 0.05 | SN12: 83.55 | SO12: 0.22 | SP12: 75.22 | SQ12: 0.06 | SR12: 75.27 | SS12: 0.05 | ST12: 74.98 | SU12: 0.05 | SV12: 76.16 | SW12: 0.08 | SX12: 75.04 | SY12: 0.05 | SZ12: 75.03 | TA12: 0.04 | TB12: 75.11 | TC12: 0.04 | WJ12: C-55-CE-DM | WK12: 75.002 | WL12: 0.018 | WM12: 62.002 | WN12: 0.04 | WO12: 58.665 | WP12: 0.012 | WQ12: 55.579 | WR12: 0.017 | WS12: 94.995 | WT12: 0.008 | WU12: 74.999 | WV12: 0.014 | WW12: 1146.4 | WX12: 1.7 | WY12: 1103.2 | WZ12: 1.6 | XA12: 0.569 | XB12: 0.004 | XC12: -0.177 | XD12: 0.001 | XE12: 0.018 | XF12: 0.003 | XG12: 1.1047 | XH12: 0.0033 | XI12: 28.985 | XJ12: 0.001 | XK12: 3405 | XL12: 8 | XM12: 367 | XN12: 5.2 | XO12: 0.166225331 | XP12: 191.8074094 | XQ12: 13.029 | XR12: 0.182 | XS12: 0.7961605139 | XT12: 5236.520555 | XU12: 73.74483729 | XV12: 196.773712 | XW12: 837.3474958 | XX12: 4399.17306 | XY12: 0.009603325393 | XZ12: 29.29644488 | YA12: 57.86883949 | YB12: 14.09978865 | YC12: 13.1354397 | YD12: 0.01392109887 | YE12: 38.15624695 | YF12: 0.008781471658 | YG12: 27.61005223 | YH12: 0.00866363968 | YI12: 23.49738578 | YJ12: 78.22407844 | YK12: 64.34520447 | YL12: 23.3032447 | YM12: 31383.51593 | YN12: 25581.75053 | YO12: 3038 | YP12: 0.3303866279 | YQ12: 30382.63606 | YR12: 24580.87066 | YS12: 8.922947447 | YT12: 0.2097973918 | YU12: -5.993200178 | YV12: -20.35523895 | YW12: 52.46455963 | YX12: 31383.51593 | YY12: 21536.06244 | YZ12: 1016.623751 | ZA12: 8830.829734 | ZB12: 31383.51593 | ZC12: 1
A13: 5 | B13: C-95-3+40-C | C13: 30N0017 | D13: C-95-3+40-C | E13: closed | F13: on | G13: N/A | H13: 3 turns | I13: unsealed | J13: unsealed | M13: horizontal | N13: 0 | O13: 0 | P13: CUST 1 | Q13: 3/18/2014 | R13: 5:37:43 | S13: 10 Ton | T13: 0:30:00 | U13: 75/62 95/75 | V13: ENG 1 | W13: TECH 3 | X13: RTU5 | Y13: RTU5 | Z13: 3 | AA13: R22 | AB13: PSC Air Handler | AC13: 7.7 LBS | AD13: 208/230/1 | AE13: TU1 | AF13: AHRI 210/240 2008 | AG13: 75 | AH13: 62 | AI13: 95 | AJ13: 75 | AK13: 7.7 | AM13: 5.5 | AO13: 230.3 | AP13: 1 | AQ13: 15.5 | AR13: 0 | AS13: 19797 | AT13: 34 | AU13: 19133 | AV13: 74 | AW13: 910 | AX13: 104 | AY13: 20707 | AZ13: 111 | BB13: 943 | BD13: 12.3 | BE13: 5.778458844 | BF13: 109.8 | BG13: 0.01 | BH13: 49.29 | CN13: 6.044074723 | CO13: Closed Damper, +40% charge, 95F Test, adjust code tester speed to match total static--of run C-95-FC3-EC-SPWCT-SS | CP13: R22 7.7 LBS: Unsealed cab:Inlet Meriam set @ 53.5%: Outlet @ 52% Horiz airflow. ID Pulley is 3 turns open from fully closed: with flow meter: new filter drier: with isolation ball valves: with code: | CQ13: 74.998 | CR13: 0.012 | CS13: 62.001 | CT13: 0.04 | CU13: 95 | CV13: 0.006 | CW13: 75.002 | CX13: 0.015 | CY13: 74.53 | CZ13: 0.06 | DA13: 59.05 | DB13: 0.04 | DC13: 65.34 | DD13: 0.02 | DE13: 0.019 | DF13: 0.003 | DG13: 1.1039 | DH13: 0.0038 | DI13: 19797 | DJ13: 34 | DK13: 910 | DL13: 104 | DM13: 6.043 | DN13: 0.034 | DQ13: 11.91827204 | DU13: 229.7 | DV13: 1 | DW13: 229.7 | DX13: 1 | DY13: 229.7 | DZ13: 1 | EA13: 13.8 | EB13: 0 | EC13: 13.8 | ED13: 0 | EE13: 13.8 | EF13: 0 | EG13: 3058.4 | EH13: 6 | EI13: 3058.4 | EJ13: 6 | EK13: 3058.4 | EL13: 6 | EM13: 229.9 | EN13: 1 | EO13: 229.9 | EP13: 1 | EQ13: 229.9 | ER13: 1 | ES13: 1.7 | ET13: 0 | EU13: 1.7 | EV13: 0 | EW13: 1.7 | EX13: 0 | EZ13: 227.7 | FA13: 1 | FB13: 227.7 | FC13: 1 | FD13: 227.7 | FE13: 1 | FF13: 13.1 | FG13: 0 | FH13: 13.1 | FI13: 0 | FJ13: 13.1 | FK13: 0 | FL13: 2864.4 | FM13: 5.5 | FW13: 228.2 | FX13: 1 | FY13: 0.7 | FZ13: 0 | GA13: 168.9 | GB13: 0.9 | GC13: 23 | GE13: 3423.1 | GF13: 480 | GG13: 480 | GH13: 480 | GI13: 0.8 | GJ13: 0.8 | GK13: 1 | GL13: 490 | GM13: 0.63 | GN13: 12.3 | GO13: 17.7 | HB13: 281.17 | HC13: 0.18 | HD13: 140.7 | HE13: 0.08 | HF13: 125.74 | HG13: 0.05 | HH13: 14.97 | HI13: 0.07 | HJ13: 260.14 | HK13: 0.18 | HL13: 99.68 | HM13: 0.04 | HN13: 119.92 | HO13: 0.05 | HP13: 20.25 | HQ13: 0.06 | HR13: 79.73 | HS13: 0.04 | HT13: 52.29 | HU13: 0.04 | HV13: 47.04 | HW13: 0.03 | HZ13: 79.91 | IA13: 0.05 | IB13: 52.03 | IC13: 0.05 | ID13: 47.15 | IE13: 0.03 | IF13: 4.88 | IG13: 0.04 | IH13: 597.61 | II13: 0.49 | IJ13: 39.38 | IK13: 0.01 | IL13: 40832 | IM13: 41 | IN13: 42084 | IO13: 37 | JL13: 264.51 | JM13: 0.21 | JN13: 100.58 | JO13: 0.03 | JP13: 121.16 | JQ13: 0.06 | JR13: 20.57 | JS13: 0.06 | JT13: 262.98 | JU13: 0.19 | JV13: 120.73 | JW13: 0.05 | JX13: 20.31 | JY13: 0.06 | JZ13: 5.25 | KA13: 0.03 | MX13: 58.1 | MY13: 0.05 | MZ13: 60.43 | NA13: 0.05 | NB13: 59.64 | NC13: 0.12 | ND13: 60.22 | NE13: 0.04 | NF13: 59.1 | NG13: 0.09 | NH13: 59.39 | NI13: 0.04 | OP13: 100.42 | OQ13: 0.04 | OV13: 95.03 | OW13: 0.08 | OX13: 95.21 | OY13: 0.07 | OZ13: 95.25 | PA13: 0.07 | PB13: 95.24 | PC13: 0.07 | PD13: 95.28 | PE13: 0.07 | PR13: 100.42 | PS13: 0.03 | QX13: 94.84 | QY13: 0.07 | QZ13: 95.3 | RA13: 0.07 | RB13: 74.98 | RC13: 0.05 | RD13: 74.94 | RE13: 0.04 | RF13: 74.71 | RG13: 0.03 | RH13: 75.13 | RI13: 0.06 | RJ13: 75.1 | RK13: 0.06 | RL13: 75.09 | RM13: 0.05 | RN13: 74.92 | RO13: 0.04 | RP13: 91.96 | RQ13: 0.09 | RR13: 84.4 | RS13: 0.11 | RT13: 80.93 | RU13: 0.09 | RV13: 86.66 | RW13: 0.14 | RX13: 85.38 | RY13: 0.14 | RZ13: 86.12 | SA13: 0.11 | SB13: 78.07 | SC13: 0.06 | SD13: 83.19 | SE13: 0.09 | SF13: 93.06 | SG13: 0.05 | SH13: 79.27 | SI13: 0.15 | SJ13: 75.23 | SK13: 0.04 | SL13: 75.3 | SM13: 0.04 | SN13: 83.63 | SO13: 0.21 | SP13: 75.2 | SQ13: 0.05 | SR13: 75.28 | SS13: 0.05 | ST13: 74.99 | SU13: 0.05 | SV13: 76.2 | SW13: 0.08 | SX13: 75.05 | SY13: 0.04 | SZ13: 75.03 | TA13: 0.04 | TB13: 75.11 | TC13: 0.04 | WJ13: C-55-CE-DM | WK13: 74.998 | WL13: 0.012 | WM13: 62.001 | WN13: 0.04 | WO13: 58.981 | WP13: 0.012 | WQ13: 55.906 | WR13: 0.02 | WS13: 95 | WT13: 0.006 | WU13: 75.002 | WV13: 0.015 | WW13: 1146.6 | WX13: 1.9 | WY13: 1102 | WZ13: 1.9 | XA13: 0.568 | XB13: 0.005 | XC13: -0.177 | XD13: 0.001 | XE13: 0.019 | XF13: 0.003 | XG13: 1.1039 | XH13: 0.0038 | XI13: 28.968 | XJ13: 0.002 | XK13: 3426 | XL13: 9 | XM13: 366.8 | XN13: 5.3 | XO13: 0.166225331 | XP13: 191.8074094 | XQ13: 13.029 | XR13: 0.182 | XS13: 0.7965882103 | XT13: 5233.881752 | XU13: 73.53515843 | XV13: 196.7746815 | XW13: 837.3433702 | XX13: 4396.538382 | XY13: 0.009604204786 | XZ13: 29.29717957 | YA13: 58.18441179 | YB13: 14.0999276 | YC13: 13.14435504 | YD13: 0.01392253104 | YE13: 38.15905779 | YF13: 0.008781757319 | YG13: 27.60938924 | YH13: 0.008779825302 | YI13: 23.70075688 | YJ13: 78.2231414 | YK13: 64.34615319 | YL13: 23.50647042 | YM13: 30307.88696 | YN13: 25171.2819 | YO13: 3059.2 | YP13: 0.344499424 | YQ13: 29306.97405 | YR13: 24170.36899 | YS13: 8.554283144 | YT13: 0.2076298122 | YU13: -5.790709151 | YV13: -20.03872961 | YW13: 52.93353571 | YX13: 30307.88696 | YY13: 20457.31955 | YZ13: 1016.872381 | ZA13: 8833.695022 | ZB13: 30307.88696 | ZC13: 1
A14: 5 | B14: C-95-3-10-C | C14: 30N0018 | D14: C-95-3+10-C | E14: closed | F14: on | G14: N/A | H14: 3 turns | I14: unsealed | J14: unsealed | M14: horizontal | N14: 0 | O14: 0 | P14: CUST 1 | Q14: 3/18/2014 | R14: 10:38:37 | S14: 10 Ton | T14: 0:30:00 | U14: 75/62 95/75 | V14: ENG 1 | W14: TECH 3 | X14: RTU5 | Y14: RTU5 | Z14: 3 | AA14: R22 | AB14: PSC Air Handler | AC14: 4.95 LBS | AD14: 208/230/1 | AE14: TU1 | AF14: AHRI 210/240 2008 | AG14: 75 | AH14: 62 | AI14: 95 | AJ14: 75 | AK14: 6.1 | AM14: 5.5 | AO14: 230.3 | AP14: 1 | AQ14: 14.9 | AR14: 0 | AS14: 19376 | AT14: 34 | AU14: 18738 | AV14: 62 | AW14: 1101 | AX14: 97 | AY14: 20478 | AZ14: 101 | BB14: 944 | BD14: 12.8 | BE14: 5.903717246 | BF14: 112.55 | BG14: 0.01 | BH14: 41.7 | CN14: 6.239488117 | CO14: Closed Damper, -10% charge, 95F Test, adjust code tester speed to match total--static of run C-95-FC3-EC-SPWCT-SS | CP14: R22 4.95 LBS: Unsealed cab:Inlet Meriam set @ 53.5%: Outlet @ 52% Horiz airflow. ID Pulley is 3 turns open from fully closed: with flow meter: new filter drier: with isolation ball valves: with code: | CQ14: 75.002 | CR14: 0.011 | CS14: 62.007 | CT14: 0.044 | CU14: 94.996 | CV14: 0.008 | CW14: 74.992 | CX14: 0.012 | CY14: 74.59 | CZ14: 0.05 | DA14: 59.64 | DB14: 0.05 | DC14: 65.67 | DD14: 0.02 | DE14: 0.035 | DF14: 0.003 | DG14: 1.1374 | DH14: 0.0042 | DI14: 19376 | DJ14: 34 | DK14: 1101 | DL14: 97 | DM14: 6.239 | DN14: 0.035 | DQ14: 10.70231566 | DU14: 229.8 | DV14: 1 | DW14: 229.8 | DX14: 1 | DY14: 229.8 | DZ14: 1 | EA14: 13.2 | EB14: 0 | EC14: 13.2 | ED14: 0 | EE14: 13.2 | EF14: 0 | EG14: 2912.7 | EH14: 5.6 | EI14: 2912.7 | EJ14: 5.6 | EK14: 2912.7 | EL14: 5.6 | EM14: 230 | EN14: 1 | EO14: 230 | EP14: 1 | EQ14: 230 | ER14: 1 | ES14: 1.7 | ET14: 0 | EU14: 1.7 | EV14: 0 | EW14: 1.7 | EX14: 0 | EZ14: 227.8 | FA14: 1 | FB14: 227.8 | FC14: 1 | FD14: 227.8 | FE14: 1 | FF14: 12.5 | FG14: 0 | FH14: 12.5 | FI14: 0 | FJ14: 12.5 | FK14: 0 | FL14: 2720.9 | FM14: 5 | FW14: 228.3 | FX14: 1 | FY14: 0.7 | FZ14: 0 | GA14: 168.8 | GB14: 0.9 | GC14: 23 | GE14: 3281.2 | GF14: 480 | GG14: 480 | GH14: 480 | GI14: 0.8 | GJ14: 0.9 | GK14: 1 | GL14: 510 | GM14: 0.65 | GN14: 12.8 | GO14: 17.9 | HB14: 260.05 | HC14: 0.13 | HD14: 183.21 | HE14: 0.04 | HF14: 119.89 | HG14: 0.04 | HH14: 63.31 | HI14: 0.05 | HJ14: 240.38 | HK14: 0.18 | HL14: 104.21 | HM14: 0.05 | HN14: 114.15 | HO14: 0.05 | HP14: 9.94 | HQ14: 0.06 | HR14: 76.16 | HS14: 0.05 | HT14: 66.29 | HU14: 0.06 | HV14: 44.76 | HW14: 0.03 | HZ14: 76.01 | IA14: 0.04 | IB14: 69.26 | IC14: 0.07 | ID14: 44.66 | IE14: 0.03 | IF14: 24.6 | IG14: 0.07 | IH14: 507.13 | II14: 0.46 | IJ14: 40.81 | IK14: 0.02 | IL14: 35125 | IM14: 42 | IN14: 36383 | IO14: 37 | JL14: 243.88 | JM14: 0.19 | JN14: 104.72 | JO14: 0.05 | JP14: 115.2 | JQ14: 0.06 | JR14: 10.47 | JS14: 0.07 | JT14: 242.53 | JU14: 0.19 | JV14: 114.79 | JW14: 0.06 | JX14: 10.12 | JY14: 0.08 | JZ14: 21.53 | KA14: 0.07 | MX14: 58.68 | MY14: 0.05 | MZ14: 60.83 | NA14: 0.07 | NB14: 60.05 | NC14: 0.07 | ND14: 60.69 | NE14: 0.06 | NF14: 59.47 | NG14: 0.06 | NH14: 59.96 | NI14: 0.05 | OP14: 104.59 | OQ14: 0.04 | OV14: 95.09 | OW14: 0.07 | OX14: 95.22 | OY14: 0.06 | OZ14: 95.26 | PA14: 0.08 | PB14: 96.07 | PC14: 0.08 | PD14: 96.09 | PE14: 0.07 | PR14: 104.67 | PS14: 0.05 | QX14: 94.7 | QY14: 0.09 | QZ14: 95.18 | RA14: 0.09 | RB14: 74.89 | RC14: 0.08 | RD14: 74.88 | RE14: 0.06 | RF14: 74.72 | RG14: 0.04 | RH14: 75 | RI14: 0.09 | RJ14: 74.98 | RK14: 0.1 | RL14: 75 | RM14: 0.09 | RN14: 74.87 | RO14: 0.07 | RP14: 91.72 | RQ14: 0.09 | RR14: 83.9 | RS14: 0.12 | RT14: 81.17 | RU14: 0.11 | RV14: 86.97 | RW14: 0.15 | RX14: 85.25 | RY14: 0.15 | RZ14: 85.91 | SA14: 0.13 | SB14: 78.19 | SC14: 0.06 | SD14: 83.6 | SE14: 0.11 | SF14: 92.99 | SG14: 0.06 | SH14: 79.49 | SI14: 0.15 | SJ14: 75.45 | SK14: 0.05 | SL14: 75.49 | SM14: 0.04 | SN14: 83.76 | SO14: 0.2 | SP14: 75.41 | SQ14: 0.04 | SR14: 75.37 | SS14: 0.04 | ST14: 74.85 | SU14: 0.06 | SV14: 76.03 | SW14: 0.09 | SX14: 74.94 | SY14: 0.06 | SZ14: 75.01 | TA14: 0.04 | TB14: 75.1 | TC14: 0.03 | WJ14: C-55-CE-DM | WK14: 75.002 | WL14: 0.011 | WM14: 62.007 | WN14: 0.044 | WO14: 59.544 | WP14: 0.018 | WQ14: 56.077 | WR14: 0.03 | WS14: 94.996 | WT14: 0.008 | WU14: 74.992 | WV14: 0.012 | WW14: 1164.8 | WX14: 2.1 | WY14: 1118 | WZ14: 2.1 | XA14: 0.568 | XB14: 0.004 | XC14: -0.18 | XD14: 0.001 | XE14: 0.035 | XF14: 0.003 | XG14: 1.1374 | XH14: 0.0042 | XI14: 28.944 | XJ14: 0.001 | XK14: 3282 | XL14: 8 | XM14: 368.5 | XN14: 5.3 | XO14: 0.166225331 | XP14: 191.8074094 | XQ14: 13.029 | XR14: 0.182 | XS14: 0.7866699755 | XT14: 5311.297468 | XU14: 74.60281953 | XV14: 198.4340872 | XW14: 844.4146613 | XX14: 4466.882807 | XY14: 0.009600353101 | XZ14: 29.28869089 | YA14: 58.75733002 | YB14: 14.09976138 | YC14: 13.15836675 | YD14: 0.01391472504 | YE14: 38.14946165 | YF14: 0.008784768929 | YG14: 27.61366044 | YH14: 0.008747002353 | YI14: 23.80237869 | YJ14: 78.20566732 | YK14: 64.33462207 | YL14: 23.61052273 | YM14: 30158.44021 | YN14: 24791.01711 | YO14: 2913.5 | YP14: 0.3297178312 | YQ14: 29155.36914 | YR14: 23787.94604 | YS14: 8.883415337 | YT14: 0.2383703492 | YU14: -5.678168168 | YV14: -19.4483373 | YW14: 52.6705043 | YX14: 30158.44021 | YY14: 20242.85113 | YZ14: 1019.004074 | ZA14: 8896.585013 | ZB14: 30158.44021 | ZC14: 1
A15: 5 | B15: C-95-3-40-C | C15: 30N0019 | D15: C-95-3+40-C | E15: closed | F15: on | G15: N/A | H15: 3 turns | I15: unsealed | J15: unsealed | M15: horizontal | N15: 0 | O15: 0 | P15: CUST 1 | Q15: 3/18/2014 | R15: 5:37:43 | S15: 10 Ton | T15: 0:30:00 | U15: 75/62 95/75 | V15: ENG 1 | W15: TECH 3 | X15: RTU5 | Y15: RTU5 | Z15: 3 | AA15: R22 | AB15: PSC Air Handler | AC15: 3.3 LBS | AD15: 208/230/1 | AE15: TU1 | AF15: AHRI 210/240 2008 | AG15: 75 | AH15: 62 | AI15: 95 | AJ15: 75 | AK15: 7.7 | AM15: 5.5 | AO15: 230.3 | AP15: 1 | AQ15: 14.1 | AR15: 0 | AS15: 14400 | AT15: 27 | AU15: 13831 | AV15: 58 | AW15: -1373 | AX15: 72 | AY15: 13026 | AZ15: 73 | BB15: 942 | BD15: 16.9 | BF15: 114.13 | BG15: 0.01 | BH15: 52.13 | CN15: 4.17633857 | CO15: Closed Damper, -40% charge, 95F Test, adjust code tester speed--to match total static of run C-95-FC3-EC-SPWCT-SS | CP15: R22 3.3 LBS: Unsealed cab:Inlet Meriam set @ 53.5%: Outlet @ 52% Horiz airflow. ID Pulley is 3 turns open from fully closed: with flow meter: new filter drier: with isolation ball valves: with code: | CQ15: 74.998 | CR15: 0.017 | CS15: 61.999 | CT15: 0.039 | CU15: 95.001 | CV15: 0.007 | CW15: 75.002 | CX15: 0.015 | CY15: 74.58 | CZ15: 0.05 | DA15: 64.15 | DB15: 0.04 | DC15: 68.42 | DD15: 0.01 | DE15: 0.139 | DF15: 0.002 | DG15: 1.2959 | DH15: 0.0027 | DI15: 14400 | DJ15: 27 | DK15: -1373 | DL15: 72 | DM15: 4.177 | DN15: 0.026 | DQ15: 8.725232446 | DU15: 229.8 | DV15: 1 | DW15: 229.8 | DX15: 1 | DY15: 229.8 | DZ15: 1 | EA15: 12.4 | EB15: 0 | EC15: 12.4 | ED15: 0 | EE15: 12.4 | EF15: 0 | EG15: 2739.1 | EH15: 6 | EI15: 2739.1 | EJ15: 6 | EK15: 2739.1 | EL15: 6 | EM15: 229.9 | EN15: 1 | EO15: 229.9 | EP15: 1 | EQ15: 229.9 | ER15: 1 | ES15: 1.7 | ET15: 0 | EU15: 1.7 | EV15: 0 | EW15: 1.7 | EX15: 0 | EZ15: 227.9 | FA15: 1 | FB15: 227.9 | FC15: 1 | FD15: 227.9 | FE15: 1 | FF15: 11.7 | FG15: 0 | FH15: 11.7 | FI15: 0 | FJ15: 11.7 | FK15: 0 | FL15: 2549.2 | FM15: 5.4 | FW15: 228.4 | FX15: 1 | FY15: 0.7 | FZ15: 0 | GA15: 169.4 | GB15: 0.9 | GC15: 23 | GE15: 3120.2 | GF15: 478 | GG15: 478 | GH15: 479 | GI15: 1 | GJ15: 1 | GK15: 1.2 | GL15: 600 | GM15: 0.64 | GN15: 16.9 | GO15: 19.9 | HB15: 239.37 | HC15: 0.14 | HD15: 196.34 | HE15: 0.09 | HF15: 113.87 | HG15: 0.04 | HH15: 82.47 | HI15: 0.09 | HJ15: 222.46 | HK15: 0.24 | HL15: 108.2 | HM15: 0.06 | HN15: 108.65 | HO15: 0.08 | HP15: 0.45 | HQ15: 0.09 | HR15: 61.14 | HS15: 0.06 | HT15: 70.72 | HU15: 0.03 | HV15: 34.41 | HW15: 0.04 | HZ15: 60.93 | IA15: 0.05 | IB15: 73.73 | IC15: 0.03 | ID15: 34.25 | IE15: 0.04 | IF15: 39.48 | IG15: 0.05 | IH15: 395.66 | II15: 2.38 | IJ15: 42.08 | IK15: 0.02 | IL15: 27214 | IM15: 175 | IN15: 28508 | IO15: 174 | JL15: 225.51 | JM15: 0.16 | JN15: 107.84 | JO15: 0.03 | JP15: 109.61 | JQ15: 0.05 | JR15: 1.77 | JS15: 0.05 | JT15: 224.31 | JU15: 0.24 | JV15: 109.23 | JW15: 0.07 | JX15: 0.43 | JY15: 0.07 | JZ15: 36.3 | KA15: 0.05 | MX15: 63.19 | MY15: 0.06 | MZ15: 65.67 | NA15: 0.07 | NB15: 64.7 | NC15: 0.07 | ND15: 65.53 | NE15: 0.06 | NF15: 63.77 | NG15: 0.05 | NH15: 64.88 | NI15: 0.05 | OP15: 109 | OQ15: 0.04 | OV15: 94.63 | OW15: 0.11 | OX15: 94.8 | OY15: 0.11 | OZ15: 94.87 | PA15: 0.09 | PB15: 94.92 | PC15: 0.08 | PD15: 94.95 | PE15: 0.08 | PR15: 108.8 | PS15: 0.03 | QX15: 94.64 | QY15: 0.07 | QZ15: 95.01 | RA15: 0.07 | RB15: 74.78 | RC15: 0.07 | RD15: 74.81 | RE15: 0.05 | RF15: 74.67 | RG15: 0.04 | RH15: 74.85 | RI15: 0.09 | RJ15: 74.84 | RK15: 0.09 | RL15: 74.89 | RM15: 0.08 | RN15: 74.79 | RO15: 0.06 | RP15: 87.53 | RQ15: 0.77 | RR15: 83.16 | RS15: 0.19 | RT15: 80.79 | RU15: 0.12 | RV15: 86.54 | RW15: 0.19 | RX15: 84.81 | RY15: 0.14 | RZ15: 85.46 | SA15: 0.17 | SB15: 78.34 | SC15: 0.08 | SD15: 83.59 | SE15: 0.12 | SF15: 92.9 | SG15: 0.06 | SH15: 78.28 | SI15: 0.37 | SJ15: 75.52 | SK15: 0.05 | SL15: 75.54 | SM15: 0.05 | SN15: 84.57 | SO15: 0.28 | SP15: 75.4 | SQ15: 0.04 | SR15: 75.37 | SS15: 0.04 | ST15: 74.87 | SU15: 0.08 | SV15: 76.08 | SW15: 0.11 | SX15: 74.93 | SY15: 0.08 | SZ15: 74.98 | TA15: 0.05 | TB15: 75.1 | TC15: 0.05 | WJ15: C-55-CE-DM | WK15: 74.998 | WL15: 0.017 | WM15: 61.999 | WN15: 0.039 | WO15: 64.144 | WP15: 0.013 | WQ15: 58.517 | WR15: 0.029 | WS15: 95.001 | WT15: 0.007 | WU15: 75.002 | WV15: 0.015 | WW15: 1243.9 | WX15: 1.3 | WY15: 1193.1 | WZ15: 1.3 | XA15: 0.541 | XB15: 0.003 | XC15: -0.195 | XD15: 0.001 | XE15: 0.139 | XF15: 0.002 | XG15: 1.2959 | XH15: 0.0027 | XI15: 29.084 | XJ15: 0.002 | XK15: 3119 | XL15: 9 | XM15: 378.6 | XN15: 5.2 | XO15: 0.166225331 | XP15: 191.8074094 | XQ15: 13.029 | XR15: 0.182 | XS15: 0.7657819505 | XT15: 5620.901275 | XU15: 75.8296782 | XV15: 206.5381353 | XW15: 878.8887341 | XX15: 4742.012541 | XY15: 0.009584422901 | XZ15: 29.25772377 | YA15: 63.37821805 | YB15: 14.09995104 | YC15: 13.2779418 | YD15: 0.0139222916 | YE15: 38.15903983 | YF15: 0.008780438538 | YG15: 27.60794609 | YH15: 0.009127242266 | YI15: 25.33850732 | YJ15: 78.15034805 | YK15: 64.29270105 | YL15: 25.15161632 | YM15: 23080.02456 | YN15: 19927.84424 | YO15: 2740.4 | YP15: 0.4052415618 | YQ15: 22046.66945 | YR15: 18894.48913 | YS15: 7.068505756 | YT15: 0.3947563342 | YU15: -4.106107443 | YV15: -14.77213 | YW15: 53.74343422 | YX15: 23080.02456 | YY15: 12756.2913 | YZ15: 1050.495838 | ZA15: 9273.237419 | ZB15: 23080.02456 | ZC15: 1
A16: 5 | B16: C-95-3-FC-C | C16: 30N0020 | D16: C-95-3-FC-C | E16: closed | F16: on | G16: N/A | H16: 3 turns | I16: unsealed | J16: unsealed | M16: horizontal | N16: 0 | O16: 0 | P16: CUST 1 | Q16: 3/17/2014 | R16: 23:01:06 | S16: 10 Ton | T16: 0:30:08 | U16: 75/62 - 95/75 | V16: ENG 1 | W16: TECH 1 | X16: RTU5 | Y16: RTU5 | Z16: 3 | AA16: R22 | AB16: PSC Air Handler | AC16: 5.5 LBS | AD16: 208/230/1 | AE16: TU1 | AF16: AHRI 210/240 2008 | AG16: 75 | AH16: 62 | AI16: 95 | AJ16: 75 | AK16: 5.5 | AM16: 5.5 | AO16: 230.3 | AP16: 0.8 | AQ16: 15.1 | AR16: 0 | AS16: 19903 | AT16: 39 | AU16: 19222 | AV16: 57 | AW16: 1384 | AX16: 112 | AY16: 21288 | AZ16: 117 | BB16: 944 | BD16: 12.6 | BE16: 5.966127098 | BF16: 111.39 | BG16: 0.05 | BH16: 40.85 | CN16: 6.381294964 | CO16: Closed damper, 5.5 lbs factory charge 95F test, adjust code tester speed to match--total static of run C -95-FC3-EC-SPWCT-SS | CP16: R22 5.5 LBS: Unsealed cab:Inlet Meriam set @ 53.5%: Outlet @ 52% Horiz airflow. ID Pulley is 3 turns open from fully closed: with flow meter: new filter drier: with isolation ball valves: with code: | CQ16: 74.992 | CR16: 0.011 | CS16: 62.005 | CT16: 0.044 | CU16: 94.996 | CV16: 0.014 | CW16: 75 | CX16: 0.014 | CY16: 74.55 | CZ16: 0.04 | DA16: 59.18 | DB16: 0.03 | DC16: 65.48 | DD16: 0.03 | DE16: 0.03 | DF16: 0.003 | DG16: 1.1258 | DH16: 0.0036 | DI16: 19903 | DJ16: 39 | DK16: 1384 | DL16: 112 | DM16: 6.383 | DN16: 0.037 | DQ16: 10.79016787 | DU16: 229.8 | DV16: 0.8 | DW16: 229.8 | DX16: 0.8 | DY16: 229.8 | DZ16: 0.8 | EA16: 13.4 | EB16: 0 | EC16: 13.4 | ED16: 0 | EE16: 13.4 | EF16: 0 | EG16: 2965.5 | EH16: 4.4 | EI16: 2965.5 | EJ16: 4.4 | EK16: 2965.5 | EL16: 4.4 | EM16: 230 | EN16: 0.8 | EO16: 230 | EP16: 0.8 | EQ16: 230 | ER16: 0.8 | ES16: 1.7 | ET16: 0 | EU16: 1.7 | EV16: 0 | EW16: 1.7 | EX16: 0 | EZ16: 227.8 | FA16: 0.8 | FB16: 227.8 | FC16: 0.8 | FD16: 227.8 | FE16: 0.8 | FF16: 12.7 | FG16: 0 | FH16: 12.7 | FI16: 0 | FJ16: 12.7 | FK16: 0 | FL16: 2772.5 | FM16: 4 | FW16: 228.3 | FX16: 0.8 | FY16: 0.7 | FZ16: 0 | GA16: 169.3 | GB16: 0.8 | GC16: 23 | GE16: 3334.4 | GF16: 489 | GG16: 490 | GH16: 491 | GI16: 0.8 | GJ16: 0.8 | GK16: 1 | GL16: 490 | GM16: 0.63 | GN16: 12.6 | GO16: 17.9 | HB16: 264.19 | HC16: 0.15 | HD16: 178.57 | HE16: 0.07 | HF16: 121.08 | HG16: 0.04 | HH16: 57.49 | HI16: 0.07 | HJ16: 244.25 | HK16: 0.21 | HL16: 103.13 | HM16: 0.02 | HN16: 115.32 | HO16: 0.06 | HP16: 12.19 | HQ16: 0.06 | HR16: 77.42 | HS16: 0.05 | HT16: 60.24 | HU16: 0.29 | HV16: 45.61 | HW16: 0.03 | HZ16: 77.72 | IA16: 0.05 | IB16: 64.91 | IC16: 0.18 | ID16: 45.8 | IE16: 0.03 | IF16: 19.11 | IG16: 0.17 | IH16: 525.32 | II16: 0.43 | IJ16: 40.47 | IK16: 0.01 | IL16: 35996 | IM16: 51 | IN16: 37255 | IO16: 49 | JL16: 247.9 | JM16: 0.25 | JN16: 103.82 | JO16: 0.03 | JP16: 116.4 | JQ16: 0.07 | JR16: 12.59 | JS16: 0.07 | JT16: 246.44 | JU16: 0.21 | JV16: 115.97 | JW16: 0.06 | JX16: 12.37 | JY16: 0.07 | JZ16: 14.64 | KA16: 0.28 | MX16: 58.19 | MY16: 0.04 | MZ16: 60.38 | NA16: 0.05 | NB16: 59.64 | NC16: 0.07 | ND16: 60.25 | NE16: 0.04 | NF16: 59.06 | NG16: 0.05 | NH16: 59.53 | NI16: 0.04 | OP16: 103.54 | OQ16: 0.04 | OV16: 95.02 | OW16: 0.08 | OX16: 95.17 | OY16: 0.06 | OZ16: 95.12 | PA16: 0.06 | PB16: 95.16 | PC16: 0.05 | PD16: 95.2 | PE16: 0.05 | PR16: 103.61 | PS16: 0.04 | QX16: 94.67 | QY16: 0.07 | QZ16: 95.14 | RA16: 0.07 | RB16: 74.83 | RC16: 0.04 | RD16: 74.84 | RE16: 0.03 | RF16: 74.66 | RG16: 0.03 | RH16: 74.96 | RI16: 0.04 | RJ16: 74.93 | RK16: 0.04 | RL16: 74.97 | RM16: 0.04 | RN16: 74.82 | RO16: 0.04 | RP16: 86.79 | RQ16: 0.09 | RR16: 83.29 | RS16: 0.12 | RT16: 80.63 | RU16: 0.07 | RV16: 86.33 | RW16: 0.14 | RX16: 84.49 | RY16: 0.08 | RZ16: 86.11 | SA16: 0.12 | SB16: 78.12 | SC16: 0.06 | SD16: 83.37 | SE16: 0.1 | SF16: 93.01 | SG16: 0.05 | SH16: 79.15 | SI16: 0.16 | SJ16: 75.38 | SK16: 0.04 | SL16: 75.45 | SM16: 0.04 | SN16: 83.12 | SO16: 0.2 | SP16: 75.38 | SQ16: 0.04 | SR16: 75.41 | SS16: 0.03 | ST16: 74.92 | SU16: 0.05 | SV16: 75.98 | SW16: 0.08 | SX16: 75.02 | SY16: 0.04 | SZ16: 75.09 | TA16: 0.04 | TB16: 75.18 | TC16: 0.04 | WJ16: C-55-CE-DM | WK16: 74.992 | WL16: 0.011 | WM16: 62.005 | WN16: 0.044 | WO16: 59.083 | WP16: 0.017 | WQ16: 55.793 | WR16: 0.022 | WS16: 94.996 | WT16: 0.014 | WU16: 75 | WV16: 0.014 | WW16: 1156 | WX16: 1.9 | WY16: 1115 | WZ16: 1.8 | XA16: 0.571 | XB16: 0.004 | XC16: -0.18 | XD16: 0.001 | XE16: 0.03 | XF16: 0.003 | XG16: 1.1258 | XH16: 0.0036 | XI16: 29.07 | XJ16: 0.001 | XK16: 3336 | XL16: 7 | XM16: 369.6 | XN16: 5.2 | XO16: 0.166225331 | XP16: 191.8074094 | XQ16: 13.029 | XR16: 0.182 | XS16: 0.7943722263 | XT16: 5276.03519 | XU16: 74.79560472 | XV16: 198.434495 | XW16: 844.4129258 | XX16: 4431.622264 | XY16: 0.009607801118 | XZ16: 29.30003102 | YA16: 58.28862777 | YB16: 14.09981934 | YC16: 13.14623529 | YD16: 0.01392173586 | YE16: 38.15719584 | YF16: 0.00878581268 | YG16: 27.61236361 | YH16: 0.008689599223 | YI16: 23.62753775 | YJ16: 78.21868248 | YK16: 64.34981862 | YL16: 23.43382358 | YM16: 30950.31688 | YN16: 25236.40079 | YO16: 2966.4 | YP16: 0.3271153326 | YQ16: 29944.14948 | YR16: 24230.23338 | YS16: 8.976063992 | YT16: 0.2253725987 | YU16: -5.866207439 | YV16: -19.9300547 | YW16: 52.49011327 | YX16: 30950.31688 | YY16: 21024.08148 | YZ16: 1022.042762 | ZA16: 8904.19264 | ZB16: 30950.31688 | ZC16: 1
A17: 5 | B17: C-95-3+10-1 | C17: 30N0039 | D17: C-95-3+10-1 | E17: 1 Finger | F17: on | G17: N/A | H17: 3 turns | I17: unsealed | J17: unsealed | M17: horizontal | N17: 0 | O17: 0 | P17: CUST 1 | Q17: 3/18/2014 | R17: 11:54:44 | S17: 10 Ton | T17: 0:30:00 | U17: 75/62 95/75 | V17: ENG 1 | W17: TECH 3 | X17: RTU5 | Y17: RTU5 | Z17: 3 | AA17: R22 | AB17: PSC Air Handler | AC17: 6.1 LBS | AD17: 208/230/1 | AE17: TU1 | AF17: AHRI 210/240 2008 | AG17: 75 | AH17: 62 | AI17: 95 | AJ17: 75 | AK17: 6.1 | AM17: 5.5 | AO17: 230.3 | AP17: 1 | AQ17: 15.5 | AR17: 0 | AS17: 18714 | AT17: 36 | AU17: 18080 | AV17: 63 | AW17: -1097 | AX17: 109 | AY17: 17616 | AZ17: 120 | BB17: 945 | BD17: 13.3 | BE17: 5.45915986 | BF17: 109.98 | BG17: 0.01 | BH17: 54.29 | CN17: 5.138856476 | CO17: 1 Finger Open, +10% charge 95F Test, adjust code tester speed to match total--static of run C-95-FC3-1F-SPWCT-SS | CP17: R22 6.1 LBS: Unsealed cab:Inlet Meriam set @ 53.5%: Outlet @ 52% Horiz airflow. ID Pulley is 3 turns open from fully closed: with flow meter: new filter drier: with isolation ball valves: with code: | CQ17: 74.996 | CR17: 0.016 | CS17: 61.992 | CT17: 0.041 | CU17: 95 | CV17: 0.008 | CW17: 75.003 | CX17: 0.017 | CY17: 74.64 | CZ17: 0.05 | DA17: 60.27 | DB17: 0.03 | DC17: 65.98 | DD17: 0.02 | DE17: 0.032 | DF17: 0.003 | DG17: 1.1538 | DH17: 0.0036 | DI17: 18714 | DJ17: 36 | DK17: -1097 | DL17: 109 | DM17: 5.139 | DN17: 0.037 | DQ17: 11.24066511 | DU17: 229.7 | DV17: 1 | DW17: 229.7 | DX17: 1 | DY17: 229.7 | DZ17: 1 | EA17: 13.8 | EB17: 0 | EC17: 13.8 | ED17: 0 | EE17: 13.8 | EF17: 0 | EG17: 3056.6 | EH17: 5.9 | EI17: 3056.6 | EJ17: 5.9 | EK17: 3056.6 | EL17: 5.9 | EM17: 230 | EN17: 1 | EO17: 230 | EP17: 1 | EQ17: 230 | ER17: 1 | ES17: 1.7 | ET17: 0 | EU17: 1.7 | EV17: 0 | EW17: 1.7 | EX17: 0 | EZ17: 227.7 | FA17: 1 | FB17: 227.7 | FC17: 1 | FD17: 227.7 | FE17: 1 | FF17: 13.1 | FG17: 0 | FH17: 13.1 | FI17: 0 | FJ17: 13.1 | FK17: 0 | FL17: 2862.5 | FM17: 5.5 | FW17: 228.2 | FX17: 1 | FY17: 0.7 | FZ17: 0 | GA17: 168.8 | GB17: 0.9 | GC17: 23 | GE17: 3424.5 | GF17: 480 | GG17: 480 | GH17: 480 | GI17: 0.9 | GJ17: 0.9 | GK17: 1 | GL17: 510 | GM17: 0.65 | GN17: 13.3 | GO17: 18.2 | HB17: 275.74 | HC17: 0.18 | HD17: 167.51 | HE17: 0.06 | HF17: 124.27 | HG17: 0.05 | HH17: 43.24 | HI17: 0.07 | HJ17: 254.7 | HK17: 0.28 | HL17: 101.63 | HM17: 0.04 | HN17: 118.37 | HO17: 0.08 | HP17: 16.74 | HQ17: 0.08 | HR17: 80.58 | HS17: 0.05 | HT17: 53.55 | HU17: 0.05 | HV17: 47.58 | HW17: 0.03 | HZ17: 81.28 | IA17: 0.05 | IB17: 53.97 | IC17: 0.06 | ID17: 48.01 | IE17: 0.03 | IF17: 5.95 | IG17: 0.05 | IH17: 568.64 | II17: 0.47 | IJ17: 39.99 | IK17: 0.01 | IL17: 38533 | IM17: 40 | IN17: 39795 | IO17: 35 | JL17: 258.81 | JM17: 0.27 | JN17: 102.51 | JO17: 0.04 | JP17: 119.55 | JQ17: 0.08 | JR17: 17.03 | JS17: 0.08 | JT17: 257.4 | JU17: 0.28 | JV17: 119.14 | JW17: 0.08 | JX17: 17.02 | JY17: 0.08 | JZ17: 5.97 | KA17: 0.04 | MX17: 59.47 | MY17: 0.06 | MZ17: 61.19 | NA17: 0.05 | NB17: 60.71 | NC17: 0.09 | ND17: 61.02 | NE17: 0.05 | NF17: 60.36 | NG17: 0.08 | NH17: 60.39 | NI17: 0.05 | OP17: 101.98 | OQ17: 0.04 | OV17: 95.16 | OW17: 0.08 | OX17: 95.27 | OY17: 0.07 | OZ17: 95.34 | PA17: 0.07 | PB17: 96.18 | PC17: 0.07 | PD17: 96.18 | PE17: 0.07 | PR17: 102.12 | PS17: 0.05 | QX17: 94.68 | QY17: 0.07 | QZ17: 95.18 | RA17: 0.07 | RB17: 74.88 | RC17: 0.06 | RD17: 74.86 | RE17: 0.05 | RF17: 74.68 | RG17: 0.03 | RH17: 74.98 | RI17: 0.06 | RJ17: 74.96 | RK17: 0.07 | RL17: 75 | RM17: 0.07 | RN17: 74.85 | RO17: 0.05 | RP17: 93.22 | RQ17: 0.04 | RR17: 93.33 | RS17: 0.05 | RT17: 92.22 | RU17: 0.08 | RV17: 89.16 | RW17: 0.11 | RX17: 89.17 | RY17: 0.13 | RZ17: 90.94 | SA17: 0.1 | SB17: 88.52 | SC17: 0.13 | SD17: 87.49 | SE17: 0.09 | SF17: 92.22 | SG17: 0.07 | SH17: 76.22 | SI17: 0.08 | SJ17: 76.54 | SK17: 0.11 | SL17: 75.78 | SM17: 0.06 | SN17: 81.73 | SO17: 0.16 | SP17: 75.82 | SQ17: 0.05 | SR17: 75.48 | SS17: 0.04 | ST17: 75.72 | SU17: 0.05 | SV17: 76.83 | SW17: 0.12 | SX17: 75.03 | SY17: 0.05 | SZ17: 75.05 | TA17: 0.04 | TB17: 75.13 | TC17: 0.04 | WJ17: C-55-1ER-DM | WK17: 74.996 | WL17: 0.016 | WM17: 61.992 | WN17: 0.041 | WO17: 60.12 | WP17: 0.01 | WQ17: 56.953 | WR17: 0.022 | WS17: 95 | WT17: 0.008 | WU17: 75.003 | WV17: 0.017 | WW17: 1172.8 | WX17: 1.9 | WY17: 1125.9 | WZ17: 1.8 | XA17: 0.543 | XB17: 0.004 | XC17: -0.142 | XD17: 0.001 | XE17: 0.032 | XF17: 0.003 | XG17: 1.1538 | XH17: 0.0036 | XI17: 28.983 | XJ17: 0.002 | XK17: 3428 | XL17: 8 | XM17: 370.2 | XN17: 5.2 | XO17: 0.2550244976 | XP17: 291.7735276 | XQ17: 13.029 | XR17: 0.136 | XS17: 0.7942732478 | XT17: 5340.634999 | XU17: 71.82320003 | XV17: 310.1513065 | XW17: 1319.798893 | XX17: 4020.836106 | XY17: 0.01004827045 | XZ17: 30.21183725 | YA17: 59.32572675 | YB17: 14.09993484 | YC17: 13.17596129 | YD17: 0.01392340753 | YE17: 38.16002471 | YF17: 0.008776295789 | YG17: 27.6029249 | YH17: 0.00913007801 | YI17: 24.3595245 | YJ17: 79.97426074 | YK17: 65.56959379 | YL17: 24.16567913 | YM17: 32290.32369 | YN17: 26466.30799 | YO17: 3057.8 | YP17: 0.3232012011 | YQ17: 31271.96367 | YR17: 25447.94798 | YS17: 9.122509823 | YT17: 0.2072164382 | YU17: -6.046158125 | YV17: -20.64853399 | YW17: 53.92864756 | YX17: 32290.32369 | YY17: 17321.81768 | YZ17: 1035.257359 | ZA17: 13933.24865 | ZB17: 32290.32369 | ZC17: 1
A18: 5 | B18: C-95-3+20-1 | C18: 30N0040 | D18: C-95-3+20-1 | E18: 1 Finger | F18: on | G18: N/A | H18: 3 turns | I18: unsealed | J18: unsealed | M18: horizontal | N18: 0 | O18: 0 | P18: CUST 1 | Q18: 3/18/2014 | R18: 8:44:20 | S18: 10 Ton | T18: 0:30:00 | U18: 75/62 95/75 | V18: ENG 1 | W18: TECH 3 | X18: RTU5 | Y18: RTU5 | Z18: 3 | AA18: R22 | AB18: PSC Air Handler | AC18: 6.6 LBS | AD18: 208/230/1 | AE18: TU1 | AF18: AHRI 210/240 2008 | AG18: 75 | AH18: 62 | AI18: 95 | AJ18: 75 | AK18: 6.6 | AM18: 5.5 | AO18: 230.3 | AP18: 1 | AQ18: 15.7 | AR18: 0 | AS18: 18437 | AT18: 38 | AU18: 17795 | AV18: 65 | AW18: -1220 | AX18: 117 | AY18: 17216 | AZ18: 116 | BB18: 944 | BD18: 12.5 | BE18: 5.319388344 | BF18: 109.93 | BG18: 0.01 | BH18: 57.24 | CN18: 4.967109059 | CO18: 1 Finger Open, +20% charge 95F Test, adjust code tester speed to match total--static of run C-95-FC3-1F-SPWCT-SS | CP18: R22 6.6 LBS: Unsealed cab:Inlet Meriam set @ 53.5%: Outlet @ 52% Horiz airflow. ID Pulley is 3 turns open from fully closed: with flow meter: new filter drier: with isolation ball valves: with code: | CQ18: 74.998 | CR18: 0.02 | CS18: 62 | CT18: 0.042 | CU18: 94.999 | CV18: 0.009 | CW18: 75 | CX18: 0.019 | CY18: 74.62 | CZ18: 0.06 | DA18: 60.3 | DB18: 0.03 | DC18: 66.08 | DD18: 0.01 | DE18: 0.017 | DF18: 0.003 | DG18: 1.1261 | DH18: 0.0035 | DI18: 18437 | DJ18: 38 | DK18: -1220 | DL18: 117 | DM18: 4.967 | DN18: 0.035 | DQ18: 11.61684939 | DU18: 229.8 | DV18: 1 | DW18: 229.8 | DX18: 1 | DY18: 229.8 | DZ18: 1 | EA18: 14 | EB18: 0 | EC18: 14 | ED18: 0 | EE18: 14 | EF18: 0 | EG18: 3097 | EH18: 5.2 | EI18: 3097 | EJ18: 5.2 | EK18: 3097 | EL18: 5.2 | EM18: 230 | EN18: 1 | EO18: 230 | EP18: 1 | EQ18: 230 | ER18: 1 | ES18: 1.7 | ET18: 0 | EU18: 1.7 | EV18: 0 | EW18: 1.7 | EX18: 0 | EZ18: 227.7 | FA18: 1 | FB18: 227.7 | FC18: 1 | FD18: 227.7 | FE18: 1 | FF18: 13.3 | FG18: 0 | FH18: 13.3 | FI18: 0 | FJ18: 13.3 | FK18: 0 | FL18: 2902.5 | FM18: 4.8 | FW18: 228.2 | FX18: 1 | FY18: 0.7 | FZ18: 0 | GA18: 168.9 | GB18: 0.9 | GC18: 23 | GE18: 3462.5 | GF18: 482 | GG18: 483 | GH18: 483 | GI18: 0.8 | GJ18: 0.8 | GK18: 1 | GL18: 490 | GM18: 0.65 | GN18: 12.5 | GO18: 17.9 | HB18: 281.13 | HC18: 0.16 | HD18: 156.14 | HE18: 0.1 | HF18: 125.72 | HG18: 0.04 | HH18: 30.42 | HI18: 0.09 | HJ18: 259.86 | HK18: 0.18 | HL18: 100.58 | HM18: 0.04 | HN18: 119.84 | HO18: 0.05 | HP18: 19.26 | HQ18: 0.06 | HR18: 80.99 | HS18: 0.04 | HT18: 53.44 | HU18: 0.03 | HV18: 47.83 | HW18: 0.03 | HZ18: 81.77 | IA18: 0.04 | IB18: 53.4 | IC18: 0.05 | ID18: 48.31 | IE18: 0.02 | IF18: 5.08 | IG18: 0.04 | IH18: 590.89 | II18: 0.44 | IJ18: 39.66 | IK18: 0.01 | IL18: 40264 | IM18: 37 | IN18: 41521 | IO18: 32 | JL18: 264.18 | JM18: 0.2 | JN18: 101.52 | JO18: 0.04 | JP18: 121.07 | JQ18: 0.06 | JR18: 19.55 | JS18: 0.07 | JT18: 262.76 | JU18: 0.18 | JV18: 120.67 | JW18: 0.05 | JX18: 19.52 | JY18: 0.08 | JZ18: 5.61 | KA18: 0.04 | MX18: 59.53 | MY18: 0.08 | MZ18: 61.5 | NA18: 0.04 | NB18: 60.94 | NC18: 0.13 | ND18: 61.25 | NE18: 0.04 | NF18: 60.52 | NG18: 0.12 | NH18: 60.49 | NI18: 0.06 | OP18: 101.21 | OQ18: 0.04 | OV18: 95.09 | OW18: 0.1 | OX18: 95.3 | OY18: 0.08 | OZ18: 95.36 | PA18: 0.07 | PB18: 95.41 | PC18: 0.06 | PD18: 95.42 | PE18: 0.06 | PR18: 101.15 | PS18: 0.06 | QX18: 94.91 | QY18: 0.06 | QZ18: 95.4 | RA18: 0.07 | RB18: 75.08 | RC18: 0.04 | RD18: 75.02 | RE18: 0.03 | RF18: 74.75 | RG18: 0.04 | RH18: 75.27 | RI18: 0.04 | RJ18: 75.23 | RK18: 0.04 | RL18: 75.24 | RM18: 0.04 | RN18: 75 | RO18: 0.04 | RP18: 93.56 | RQ18: 0.04 | RR18: 93.43 | RS18: 0.06 | RT18: 92.43 | RU18: 0.08 | RV18: 89.58 | RW18: 0.1 | RX18: 89.3 | RY18: 0.15 | RZ18: 90.49 | SA18: 0.11 | SB18: 88.4 | SC18: 0.14 | SD18: 87.6 | SE18: 0.09 | SF18: 91.98 | SG18: 0.07 | SH18: 75.88 | SI18: 0.06 | SJ18: 76.59 | SK18: 0.1 | SL18: 75.75 | SM18: 0.05 | SN18: 82.48 | SO18: 0.15 | SP18: 75.92 | SQ18: 0.04 | SR18: 75.5 | SS18: 0.03 | ST18: 76.19 | SU18: 0.04 | SV18: 77.18 | SW18: 0.14 | SX18: 75.23 | SY18: 0.03 | SZ18: 75.13 | TA18: 0.03 | TB18: 75.26 | TC18: 0.04 | WJ18: C-55-1ER-DM | WK18: 74.998 | WL18: 0.02 | WM18: 62 | WN18: 0.042 | WO18: 60.157 | WP18: 0.007 | WQ18: 57.019 | WR18: 0.018 | WS18: 94.999 | WT18: 0.009 | WU18: 75 | WV18: 0.019 | WW18: 1158.9 | WX18: 1.8 | WY18: 1111.9 | WZ18: 1.7 | XA18: 0.541 | XB18: 0.005 | XC18: -0.137 | XD18: 0.001 | XE18: 0.017 | XF18: 0.003 | XG18: 1.1261 | XH18: 0.0035 | XI18: 28.973 | XJ18: 0.001 | XK18: 3466 | XL18: 8 | XM18: 368.1 | XN18: 5.3 | XO18: 0.2550244976 | XP18: 291.7735276 | XQ18: 13.029 | XR18: 0.136 | XS18: 0.8013239997 | XT18: 5276.865971 | XU18: 70.66886195 | XV18: 304.6414758 | XW18: 1296.35685 | XX18: 3980.509121 | XY18: 0.01004381145 | XZ18: 30.20008973 | YA18: 59.355676 | YB18: 14.09988966 | YC18: 13.17713969 | YD18: 0.01392101756 | YE18: 38.15714197 | YF18: 0.008781097921 | YG18: 27.60866766 | YH18: 0.009160828339 | YI18: 24.40200192 | YJ18: 79.94620621 | YK18: 65.55397236 | YL18: 24.20642485 | YM18: 31627.76625 | YN18: 26076.83236 | YO18: 3097.9 | YP18: 0.3342990655 | YQ18: 30612.63377 | YR18: 25061.69989 | YS18: 8.832265947 | YT18: 0.2045740584 | YU18: -5.99366488 | YV18: -20.59053021 | YW18: 54.06003739 | YX18: 31627.76625 | YY18: 16921.14532 | YZ18: 1032.033993 | ZA18: 13674.58693 | ZB18: 31627.76625 | ZC18: 1
A19: 5 | B19: C-95-3+20-C | C19: 30N0041 | D19: C-95-3+20-C | E19: closed | F19: on | G19: N/A | H19: 3 turns | I19: unsealed | J19: unsealed | M19: horizontal | N19: 0 | O19: 0 | P19: CUST 1 | Q19: 3/18/2014 | R19: 9:50:45 | S19: 10 Ton | T19: 0:30:00 | U19: 75/62 95/75 | V19: ENG 1 | W19: TECH 3 | X19: RTU5 | Y19: RTU5 | Z19: 3 | AA19: R22 | AB19: PSC Air Handler | AC19: 6.6 LBS | AD19: 208/230/1 | AE19: TU1 | AF19: AHRI 210/240 2008 | AG19: 75 | AH19: 62 | AI19: 95 | AJ19: 75 | AK19: 6.6 | AM19: 5.5 | AO19: 230.3 | AP19: 0.8 | AQ19: 15.5 | AR19: 0 | AS19: 20098 | AT19: 40 | AU19: 19432 | AV19: 66 | AW19: 1337 | AX19: 122 | AY19: 21436 | AZ19: 128 | BB19: 945 | BD19: 12.17 | BE19: 5.857767415 | BF19: 109.77 | BG19: 0.01 | BH19: 45.83 | CN19: 6.247741183 | CO19: Closed damper, +20% charge 95F Test, adjust code tester speed to match total--static of run C-95-FC3-EC-SPWCT-SS | CP19: R22 6.6 LBS: Unsealed cab:Inlet Meriam set @ 53.5%: Outlet @ 52% Horiz airflow. ID Pulley is 3 turns open from fully closed: with flow meter: new filter drier: with isolation ball valves: with code: | CQ19: 75.001 | CR19: 0.012 | CS19: 62.001 | CT19: 0.044 | CU19: 95 | CV19: 0.009 | CW19: 74.998 | CX19: 0.015 | CY19: 74.58 | CZ19: 0.06 | DA19: 58.87 | DB19: 0.04 | DC19: 65.22 | DD19: 0.02 | DE19: 0.019 | DF19: 0.003 | DG19: 1.1035 | DH19: 0.0033 | DI19: 20098 | DJ19: 40 | DK19: 1337 | DL19: 122 | DM19: 6.248 | DN19: 0.039 | DQ19: 11.53308073 | DU19: 229.8 | DV19: 0.8 | DW19: 229.8 | DX19: 0.8 | DY19: 229.8 | DZ19: 0.8 | EA19: 13.8 | EB19: 0 | EC19: 13.8 | ED19: 0 | EE19: 13.8 | EF19: 0 | EG19: 3062.9 | EH19: 5.2 | EI19: 3062.9 | EJ19: 5.2 | EK19: 3062.9 | EL19: 5.2 | EM19: 230 | EN19: 0.8 | EO19: 230 | EP19: 0.8 | EQ19: 230 | ER19: 0.8 | ES19: 1.7 | ET19: 0 | EU19: 1.7 | EV19: 0 | EW19: 1.7 | EX19: 0 | EZ19: 227.7 | FA19: 0.8 | FB19: 227.7 | FC19: 0.8 | FD19: 227.7 | FE19: 0.8 | FF19: 13.1 | FG19: 0 | FH19: 13.1 | FI19: 0 | FJ19: 13.1 | FK19: 0 | FL19: 2868.8 | FM19: 5 | FW19: 228.2 | FX19: 0.8 | FY19: 0.7 | FZ19: 0 | GA19: 168.9 | GB19: 0.7 | GC19: 23 | GE19: 3427.4 | GF19: 482 | GG19: 482 | GH19: 482 | GI19: 0.8 | GJ19: 0.8 | GK19: 1 | GL19: 490 | GM19: 0.64 | GN19: 12.17 | GO19: 17.7 | HB19: 277.96 | HC19: 0.16 | HD19: 151.43 | HE19: 0.1 | HF19: 124.87 | HG19: 0.04 | HH19: 26.56 | HI19: 0.1 | HJ19: 257.01 | HK19: 0.24 | HL19: 100.59 | HM19: 0.05 | HN19: 119.03 | HO19: 0.07 | HP19: 18.44 | HQ19: 0.08 | HR19: 79.35 | HS19: 0.05 | HT19: 52.02 | HU19: 0.04 | HV19: 46.8 | HW19: 0.03 | HZ19: 79.57 | IA19: 0.06 | IB19: 52.01 | IC19: 0.06 | ID19: 46.94 | IE19: 0.04 | IF19: 5.07 | IG19: 0.05 | IH19: 582.27 | II19: 0.48 | IJ19: 39.67 | IK19: 0.01 | IL19: 39570 | IM19: 41 | IN19: 40821 | IO19: 37 | JL19: 261.25 | JM19: 0.22 | JN19: 101.43 | JO19: 0.04 | JP19: 120.24 | JQ19: 0.06 | JR19: 18.82 | JS19: 0.07 | JT19: 259.84 | JU19: 0.23 | JV19: 119.84 | JW19: 0.07 | JX19: 18.69 | JY19: 0.17 | JZ19: 5.22 | KA19: 0.04 | MX19: 57.86 | MY19: 0.05 | MZ19: 60.3 | NA19: 0.06 | NB19: 59.5 | NC19: 0.12 | ND19: 60.08 | NE19: 0.04 | NF19: 58.93 | NG19: 0.09 | NH19: 59.21 | NI19: 0.04 | OP19: 101.29 | OQ19: 0.04 | OV19: 95.08 | OW19: 0.14 | OX19: 95.25 | OY19: 0.13 | OZ19: 95.33 | PA19: 0.12 | PB19: 95.31 | PC19: 0.11 | PD19: 95.33 | PE19: 0.11 | PR19: 101.15 | PS19: 0.15 | QX19: 94.93 | QY19: 0.06 | QZ19: 95.42 | RA19: 0.08 | RB19: 75.08 | RC19: 0.04 | RD19: 75.01 | RE19: 0.03 | RF19: 74.75 | RG19: 0.03 | RH19: 75.27 | RI19: 0.04 | RJ19: 75.24 | RK19: 0.04 | RL19: 75.22 | RM19: 0.04 | RN19: 75.01 | RO19: 0.04 | RP19: 92 | RQ19: 0.11 | RR19: 84.05 | RS19: 0.11 | RT19: 81.07 | RU19: 0.08 | RV19: 86.65 | RW19: 0.14 | RX19: 85.35 | RY19: 0.15 | RZ19: 86.07 | SA19: 0.12 | SB19: 78.01 | SC19: 0.07 | SD19: 83.16 | SE19: 0.1 | SF19: 92.81 | SG19: 0.07 | SH19: 79.2 | SI19: 0.15 | SJ19: 75.2 | SK19: 0.05 | SL19: 75.27 | SM19: 0.05 | SN19: 83.51 | SO19: 0.2 | SP19: 75.15 | SQ19: 0.05 | SR19: 75.19 | SS19: 0.04 | ST19: 75.03 | SU19: 0.04 | SV19: 76.22 | SW19: 0.08 | SX19: 75.08 | SY19: 0.03 | SZ19: 75.05 | TA19: 0.03 | TB19: 75.12 | TC19: 0.03 | WJ19: C-55-CE-DM | WK19: 75.001 | WL19: 0.012 | WM19: 62.001 | WN19: 0.044 | WO19: 58.754 | WP19: 0.012 | WQ19: 55.68 | WR19: 0.022 | WS19: 95 | WT19: 0.009 | WU19: 74.998 | WV19: 0.015 | WW19: 1146 | WX19: 1.7 | WY19: 1102.2 | WZ19: 1.6 | XA19: 0.568 | XB19: 0.005 | XC19: -0.177 | XD19: 0.002 | XE19: 0.019 | XF19: 0.003 | XG19: 1.1035 | XH19: 0.0033 | XI19: 28.976 | XJ19: 0.001 | XK19: 3431 | XL19: 8 | XM19: 366.7 | XN19: 5.2 | XO19: 0.166225331 | XP19: 191.8074094 | XQ19: 13.029 | XR19: 0.182 | XS19: 0.7963114462 | XT19: 5233.677248 | XU19: 73.54850419 | XV19: 196.7744793 | XW19: 837.3442307 | XX19: 4396.333018 | XY19: 0.009603081479 | XZ19: 29.29659158 | YA19: 57.95768855 | YB19: 14.09989861 | YC19: 13.13799012 | YD19: 0.0139190253 | YE19: 38.15519033 | YF19: 0.008781048515 | YG19: 27.60934529 | YH19: 0.008701428546 | YI19: 23.5601679 | YJ19: 78.22577319 | YK19: 64.34543169 | YL19: 23.36597666 | YM19: 31038.92435 | YN19: 25458.38722 | YO19: 3064.3 | YP19: 0.336946467 | YQ19: 30038.39829 | YR19: 24457.86116 | YS19: 8.754998045 | YT19: 0.2084020876 | YU19: -5.930614915 | YV19: -20.26808463 | YW19: 52.62175843 | YX19: 31038.92435 | YY19: 21192.08755 | YZ19: 1016.334296 | ZA19: 8830.502503 | ZB19: 31038.92435 | ZC19: 1
A20: 5 | B20: C-95-3+30-1 | C20: 30N0042 | D20: C-95-3+30-1 | E20: 1 Finger | F20: on | G20: N/A | H20: 3 turns | I20: unsealed | J20: unsealed | M20: horizontal | N20: 0 | O20: 0 | P20: CUST 1 | Q20: 3/18/2014 | R20: 7:39:56 | S20: 10 Ton | T20: 0:30:00 | U20: 75/62 95/75 | V20: ENG 1 | W20: TECH 3 | X20: RTU5 | Y20: RTU5 | Z20: 3 | AA20: R22 | AB20: PSC Air Handler | AC20: 7.2 LBS | AD20: 208/230/1 | AE20: TU1 | AF20: AHRI 210/240 2008 | AG20: 75 | AH20: 62 | AI20: 95 | AJ20: 75 | AK20: 7.2 | AM20: 5.5 | AO20: 230.3 | AP20: 1 | AQ20: 15.7 | AR20: 0 | AS20: 18262 | AT20: 41 | AU20: 17642 | AV20: 71 | AW20: -1459 | AX20: 113 | AY20: 16802 | AZ20: 117 | BB20: 944 | BD20: 12.5 | BE20: 5.27041847 | BF20: 109.93 | BG20: 0.01 | BH20: 59.32 | CN20: 4.849062049 | CO20: 1 Finger Open, +30% charge 95F Test, adjust code tester speed to match total static--of run C-95-FC3-1F-SPWCT-SS | CP20: R22 7.2 LBS: Unsealed cab:Inlet Meriam set @ 53.5%: Outlet @ 52% Horiz airflow. ID Pulley is 3 turns open from fully closed: with flow meter: new filter drier: with isolation ball valves: with code: | CQ20: 75 | CR20: 0.016 | CS20: 61.997 | CT20: 0.039 | CU20: 95.004 | CV20: 0.008 | CW20: 75.006 | CX20: 0.023 | CY20: 74.56 | CZ20: 0.05 | DA20: 60.35 | DB20: 0.03 | DC20: 66.15 | DD20: 0.02 | DE20: 0.015 | DF20: 0.004 | DG20: 1.1261 | DH20: 0.0038 | DI20: 18262 | DJ20: 41 | DK20: -1459 | DL20: 113 | DM20: 4.849 | DN20: 0.035 | DQ20: 11.92005772 | DU20: 229.7 | DV20: 1 | DW20: 229.7 | DX20: 1 | DY20: 229.7 | DZ20: 1 | EA20: 14 | EB20: 0 | EC20: 14 | ED20: 0 | EE20: 14 | EF20: 0 | EG20: 3095.6 | EH20: 5.4 | EI20: 3095.6 | EJ20: 5.4 | EK20: 3095.6 | EL20: 5.4 | EM20: 230 | EN20: 1 | EO20: 230 | EP20: 1 | EQ20: 230 | ER20: 1 | ES20: 1.7 | ET20: 0 | EU20: 1.7 | EV20: 0 | EW20: 1.7 | EX20: 0 | EZ20: 227.7 | FA20: 1 | FB20: 227.7 | FC20: 1 | FD20: 227.7 | FE20: 1 | FF20: 13.3 | FG20: 0 | FH20: 13.3 | FI20: 0 | FJ20: 13.3 | FK20: 0 | FL20: 2901 | FM20: 5 | FW20: 228.2 | FX20: 1 | FY20: 0.7 | FZ20: 0 | GA20: 168.9 | GB20: 0.9 | GC20: 23 | GE20: 3461 | GF20: 480 | GG20: 480 | GH20: 480 | GI20: 0.8 | GJ20: 0.8 | GK20: 1 | GL20: 490 | GM20: 0.65 | GN20: 12.5 | GO20: 17.8 | HB20: 284.07 | HC20: 0.17 | HD20: 147.56 | HE20: 0.09 | HF20: 126.51 | HG20: 0.04 | HH20: 21.05 | HI20: 0.09 | HJ20: 262.76 | HK20: 0.18 | HL20: 99.89 | HM20: 0.03 | HN20: 120.67 | HO20: 0.05 | HP20: 20.77 | HQ20: 0.06 | HR20: 81.33 | HS20: 0.05 | HT20: 53.53 | HU20: 0.03 | HV20: 48.04 | HW20: 0.03 | HZ20: 81.95 | IA20: 0.04 | IB20: 53.43 | IC20: 0.05 | ID20: 48.42 | IE20: 0.03 | IF20: 5.01 | IG20: 0.04 | IH20: 603.83 | II20: 0.49 | IJ20: 39.44 | IK20: 0.01 | IL20: 41303 | IM20: 41 | IN20: 42559 | IO20: 37 | JL20: 267.21 | JM20: 0.2 | JN20: 100.89 | JO20: 0.03 | JP20: 121.91 | JQ20: 0.05 | JR20: 21.03 | JS20: 0.06 | JT20: 265.76 | JU20: 0.19 | JV20: 121.51 | JW20: 0.05 | JX20: 20.92 | JY20: 0.07 | JZ20: 5.49 | KA20: 0.03 | MX20: 59.62 | MY20: 0.1 | MZ20: 61.54 | NA20: 0.04 | NB20: 60.96 | NC20: 0.18 | ND20: 61.31 | NE20: 0.04 | NF20: 60.58 | NG20: 0.16 | NH20: 60.6 | NI20: 0.07 | OP20: 100.58 | OQ20: 0.04 | OV20: 94.81 | OW20: 0.15 | OX20: 95.06 | OY20: 0.14 | OZ20: 95.03 | PA20: 0.13 | PB20: 95.14 | PC20: 0.11 | PD20: 95.17 | PE20: 0.11 | PR20: 100.59 | PS20: 0.05 | QX20: 94.74 | QY20: 0.07 | QZ20: 95.2 | RA20: 0.08 | RB20: 74.91 | RC20: 0.04 | RD20: 74.89 | RE20: 0.03 | RF20: 74.7 | RG20: 0.03 | RH20: 75.04 | RI20: 0.05 | RJ20: 75.01 | RK20: 0.06 | RL20: 75.02 | RM20: 0.04 | RN20: 74.85 | RO20: 0.03 | RP20: 93.34 | RQ20: 0.09 | RR20: 93.21 | RS20: 0.11 | RT20: 92.31 | RU20: 0.11 | RV20: 89.51 | RW20: 0.12 | RX20: 89.16 | RY20: 0.13 | RZ20: 90.59 | SA20: 0.13 | SB20: 88.54 | SC20: 0.15 | SD20: 87.77 | SE20: 0.09 | SF20: 92.13 | SG20: 0.08 | SH20: 76.06 | SI20: 0.07 | SJ20: 76.77 | SK20: 0.1 | SL20: 75.87 | SM20: 0.06 | SN20: 82.79 | SO20: 0.16 | SP20: 76.07 | SQ20: 0.05 | SR20: 75.64 | SS20: 0.04 | ST20: 76.17 | SU20: 0.04 | SV20: 77.22 | SW20: 0.14 | SX20: 75.22 | SY20: 0.03 | SZ20: 75.14 | TA20: 0.03 | TB20: 75.3 | TC20: 0.03 | WJ20: C-55-1ER-DM | WK20: 75 | WL20: 0.016 | WM20: 61.997 | WN20: 0.039 | WO20: 60.289 | WP20: 0.012 | WQ20: 57.139 | WR20: 0.017 | WS20: 95.004 | WT20: 0.008 | WU20: 75.006 | WV20: 0.023 | WW20: 1159.2 | WX20: 2 | WY20: 1111.6 | WZ20: 1.9 | XA20: 0.54 | XB20: 0.006 | XC20: -0.135 | XD20: 0.001 | XE20: 0.015 | XF20: 0.004 | XG20: 1.1261 | XH20: 0.0038 | XI20: 28.968 | XJ20: 0.001 | XK20: 3465 | XL20: 8 | XM20: 368.1 | XN20: 5.3 | XO20: 0.2550244976 | XP20: 291.7735276 | XQ20: 13.029 | XR20: 0.136 | XS20: 0.8017426185 | XT20: 5276.764498 | XU20: 70.51920378 | XV20: 302.4113632 | XW20: 1286.85227 | XX20: 3989.912228 | XY20: 0.0100337152 | XZ20: 30.18087356 | YA20: 59.48725738 | YB20: 14.10005034 | YC20: 13.18080426 | YD20: 0.01392507936 | YE20: 38.16285378 | YF20: 0.008778647283 | YG20: 27.60647372 | YH20: 0.009201544454 | YI20: 24.47850852 | YJ20: 79.91288444 | YK20: 65.52865888 | YL20: 24.28281478 | YM20: 31122.66716 | YN20: 25867.49369 | YO20: 3096.9 | YP20: 0.3396148423 | YQ20: 30107.0239 | YR20: 24851.85044 | YS20: 8.688895787 | YT20: 0.2050306217 | YU20: -5.898058777 | YV20: -20.42562706 | YW20: 54.21928213 | YX20: 31122.66716 | YY20: 16505.53575 | YZ20: 1032.629761 | ZA20: 13584.50165 | ZB20: 31122.66716 | ZC20: 1
A21: 5 | B21: C-95-3+30-C | C21: 30N0043 | D21: C-95-3+30-C | E21: closed | F21: on | G21: N/A | H21: 3 turns | I21: unsealed | J21: unsealed | M21: horizontal | N21: 0 | O21: 0 | P21: CUST 1 | Q21: 3/18/2014 | R21: 6:33:57 | S21: 10 Ton | T21: 0:30:00 | U21: 75/62 95/75 | V21: ENG 1 | W21: TECH 3 | X21: RTU5 | Y21: RTU5 | Z21: 3 | AA21: R22 | AB21: PSC Air Handler | AC21: 7.2 LBS | AD21: 208/230/1 | AE21: TU1 | AF21: AHRI 210/240 2008 | AG21: 75 | AH21: 62 | AI21: 95 | AJ21: 75 | AK21: 7.2 | AM21: 5.5 | AO21: 230.3 | AP21: 0.9 | AQ21: 15.5 | AR21: 0 | AS21: 19903 | AT21: 34 | AU21: 19231 | AV21: 61 | AW21: 1135 | AX21: 128 | AY21: 21040 | AZ21: 124 | BB21: 944 | BD21: 12.1 | BE21: 5.819590643 | BF21: 109.77 | BG21: 0.01 | BH21: 47.85 | CN21: 6.152046784 | CO21: Closed damper, +30% charge 95F Test, adjust code tester speed to match total--static of run C-95-FC3-EC-SPWCT-SS | CP21: R22 7.2 LBS: Unsealed cab:Inlet Meriam set @ 53.5%: Outlet @ 52% Horiz airflow. ID Pulley is 3 turns open from fully closed: with flow meter: new filter drier: with isolation ball valves: with code: | CQ21: 75 | CR21: 0.014 | CS21: 62 | CT21: 0.046 | CU21: 95.003 | CV21: 0.005 | CW21: 74.998 | CX21: 0.017 | CY21: 74.56 | CZ21: 0.06 | DA21: 58.96 | DB21: 0.05 | DC21: 65.26 | DD21: 0.02 | DE21: 0.013 | DF21: 0.003 | DG21: 1.0965 | DH21: 0.0031 | DI21: 19903 | DJ21: 34 | DK21: 1135 | DL21: 128 | DM21: 6.153 | DN21: 0.038 | DQ21: 11.79707602 | DU21: 229.8 | DV21: 0.9 | DW21: 229.8 | DX21: 0.9 | DY21: 229.8 | DZ21: 0.9 | EA21: 13.8 | EB21: 0 | EC21: 13.8 | ED21: 0 | EE21: 13.8 | EF21: 0 | EG21: 3052.6 | EH21: 5.6 | EI21: 3052.6 | EJ21: 5.6 | EK21: 3052.6 | EL21: 5.6 | EM21: 230 | EN21: 0.9 | EO21: 230 | EP21: 0.9 | EQ21: 230 | ER21: 0.9 | ES21: 1.7 | ET21: 0 | EU21: 1.7 | EV21: 0 | EW21: 1.7 | EX21: 0 | EZ21: 227.7 | FA21: 0.9 | FB21: 227.7 | FC21: 0.9 | FD21: 227.7 | FE21: 0.9 | FF21: 13.1 | FG21: 0 | FH21: 13.1 | FI21: 0 | FJ21: 13.1 | FK21: 0 | FL21: 2858.6 | FM21: 5.1 | FW21: 228.2 | FX21: 0.9 | FY21: 0.7 | FZ21: 0 | GA21: 168.9 | GB21: 0.8 | GC21: 23 | GE21: 3416.6 | GF21: 480 | GG21: 480 | GH21: 480 | GI21: 0.8 | GJ21: 0.8 | GK21: 1 | GL21: 480 | GM21: 0.65 | GN21: 12.1 | GO21: 17.6 | HB21: 279.92 | HC21: 0.16 | HD21: 144.4 | HE21: 0.08 | HF21: 125.4 | HG21: 0.04 | HH21: 19 | HI21: 0.08 | HJ21: 258.96 | HK21: 0.17 | HL21: 100.05 | HM21: 0.05 | HN21: 119.59 | HO21: 0.05 | HP21: 19.54 | HQ21: 0.07 | HR21: 79.55 | HS21: 0.04 | HT21: 52.08 | HU21: 0.05 | HV21: 46.93 | HW21: 0.03 | HZ21: 79.75 | IA21: 0.05 | IB21: 51.97 | IC21: 0.04 | ID21: 47.05 | IE21: 0.03 | IF21: 4.92 | IG21: 0.03 | IH21: 591.87 | II21: 0.44 | IJ21: 39.49 | IK21: 0.01 | IL21: 40346 | IM21: 38 | IN21: 41595 | IO21: 33 | JL21: 263.27 | JM21: 0.19 | JN21: 100.86 | JO21: 0.03 | JP21: 120.81 | JQ21: 0.05 | JR21: 19.95 | JS21: 0.06 | JT21: 261.84 | JU21: 0.17 | JV21: 120.41 | JW21: 0.05 | JX21: 19.67 | JY21: 0.06 | JZ21: 5.16 | KA21: 0.04 | MX21: 57.98 | MY21: 0.05 | MZ21: 60.34 | NA21: 0.04 | NB21: 59.58 | NC21: 0.08 | ND21: 60.14 | NE21: 0.04 | NF21: 59.02 | NG21: 0.07 | NH21: 59.3 | NI21: 0.04 | OP21: 100.77 | OQ21: 0.04 | OV21: 95.07 | OW21: 0.07 | OX21: 95.25 | OY21: 0.06 | OZ21: 95.3 | PA21: 0.07 | PB21: 95.28 | PC21: 0.06 | PD21: 95.3 | PE21: 0.05 | PR21: 100.73 | PS21: 0.05 | QX21: 94.87 | QY21: 0.06 | QZ21: 95.34 | RA21: 0.06 | RB21: 75.02 | RC21: 0.05 | RD21: 74.98 | RE21: 0.05 | RF21: 74.74 | RG21: 0.04 | RH21: 75.18 | RI21: 0.06 | RJ21: 75.15 | RK21: 0.06 | RL21: 75.15 | RM21: 0.06 | RN21: 74.96 | RO21: 0.05 | RP21: 91.97 | RQ21: 0.1 | RR21: 84.36 | RS21: 0.12 | RT21: 80.92 | RU21: 0.09 | RV21: 86.66 | RW21: 0.13 | RX21: 85.35 | RY21: 0.18 | RZ21: 86.1 | SA21: 0.13 | SB21: 77.99 | SC21: 0.07 | SD21: 83.09 | SE21: 0.1 | SF21: 92.97 | SG21: 0.06 | SH21: 79.16 | SI21: 0.16 | SJ21: 75.22 | SK21: 0.04 | SL21: 75.29 | SM21: 0.04 | SN21: 83.54 | SO21: 0.21 | SP21: 75.19 | SQ21: 0.04 | SR21: 75.21 | SS21: 0.05 | ST21: 75.05 | SU21: 0.05 | SV21: 76.25 | SW21: 0.09 | SX21: 75.1 | SY21: 0.04 | SZ21: 75.06 | TA21: 0.04 | TB21: 75.13 | TC21: 0.03 | WJ21: C-55-CE-DM | WK21: 75 | WL21: 0.014 | WM21: 62 | WN21: 0.046 | WO21: 58.85 | WP21: 0.017 | WQ21: 55.78 | WR21: 0.019 | WS21: 95.003 | WT21: 0.005 | WU21: 74.998 | WV21: 0.017 | WW21: 1142.6 | WX21: 1.6 | WY21: 1098.4 | WZ21: 1.5 | XA21: 0.569 | XB21: 0.004 | XC21: -0.176 | XD21: 0.001 | XE21: 0.013 | XF21: 0.003 | XG21: 1.0965 | XH21: 0.0031 | XI21: 28.966 | XJ21: 0.001 | XK21: 3420 | XL21: 8 | XM21: 366.1 | XN21: 5.2 | XO21: 0.166225331 | XP21: 191.8074094 | XQ21: 13.029 | XR21: 0.182 | XS21: 0.7975501615 | XT21: 5217.073093 | XU21: 73.42397506 | XV21: 196.2183212 | XW21: 834.9734189 | XX21: 4382.099674 | XY21: 0.00960289249 | XZ21: 29.29656671 | YA21: 58.05244984 | YB21: 14.09996894 | YC21: 13.14070146 | YD21: 0.013918307 | YE21: 38.15513646 | YF21: 0.008780625386 | YG21: 27.60863836 | YH21: 0.008737095467 | YI21: 23.62235335 | YJ21: 78.22651916 | YK21: 64.34541392 | YL21: 23.4278474 | YM21: 30617.53759 | YN21: 25259.90262 | YO21: 3053.9 | YP21: 0.3404245253 | YQ21: 29618.63432 | YR21: 24260.99934 | YS21: 8.660419392 | YT21: 0.2076164621 | YU21: -5.868719308 | YV21: -20.17406932 | YW21: 52.76653879 | YX21: 30617.53759 | YY21: 20796.74025 | YZ21: 1014.751766 | ZA21: 8806.045576 | ZB21: 30617.53759 | ZC21: 1
A22: 5 | B22: C-95-3+40-1 | C22: 30N0044 | D22: C-95-3+40-1 | E22: 1 Finger | F22: on | G22: N/A | H22: 3 turns | I22: unsealed | J22: unsealed | M22: horizontal | N22: 0 | O22: 0 | P22: CUST 1 | Q22: 3/18/2014 | R22: 3:01:30 | S22: 10 Ton | T22: 0:30:00 | U22: 75/62 - 95/75 | V22: ENG 1 | W22: TECH 1 | X22: RTU5 | Y22: RTU5 | Z22: 3 | AA22: R22 | AB22: PSC Air Handler | AC22: 7.7 LBS | AD22: 208/230/1 | AE22: TU1 | AF22: AHRI 210/240 2008 | AG22: 75 | AH22: 62 | AI22: 95 | AJ22: 75 | AK22: 7.7 | AM22: 5.5 | AO22: 230.3 | AP22: 0.7 | AQ22: 15.7 | AR22: 0 | AS22: 18021 | AT22: 135 | AU22: 17406 | AV22: 129 | AW22: -1789 | AX22: 112 | AY22: 16230 | AZ22: 185 | BB22: 944 | BD22: 12.5 | BE22: 5.18888569 | BF22: 109.94 | BG22: 0.01 | BH22: 61.21 | CN22: 4.673193205 | CO22: 1 Finger Open, +40% charge, 95F Test, adjust code tester speed--to match total static of run C-95-FC3-1F-SPWCT-SS | CP22: R22 7.7 LBS: Unsealed cab:Inlet Meriam set @ 53.5%: Outlet @ 52% Horiz airflow. ID Pulley is 3 turns open from fully closed: with flow meter: new filter drier: with isolation ball valves: with code: | CQ22: 74.996 | CR22: 0.018 | CS22: 62.001 | CT22: 0.042 | CU22: 94.998 | CV22: 0.014 | CW22: 75 | CX22: 0.015 | CY22: 74.55 | CZ22: 0.05 | DA22: 60.54 | DB22: 0.04 | DC22: 66.31 | DD22: 0.02 | DE22: 0.018 | DF22: 0.011 | DG22: 1.1291 | DH22: 0.0165 | DI22: 18021 | DJ22: 135 | DK22: -1789 | DL22: 112 | DM22: 4.673 | DN22: 0.053 | DQ22: 12.04520587 | DU22: 229.7 | DV22: 0.8 | DW22: 229.7 | DX22: 0.8 | DY22: 229.7 | DZ22: 0.8 | EA22: 14 | EB22: 0 | EC22: 14 | ED22: 0 | EE22: 14 | EF22: 0 | EG22: 3103.1 | EH22: 5.4 | EI22: 3103.1 | EJ22: 5.4 | EK22: 3103.1 | EL22: 5.4 | EM22: 230 | EN22: 0.7 | EO22: 230 | EP22: 0.7 | EQ22: 230 | ER22: 0.7 | ES22: 1.7 | ET22: 0 | EU22: 1.7 | EV22: 0 | EW22: 1.7 | EX22: 0 | EZ22: 227.7 | FA22: 0.8 | FB22: 227.7 | FC22: 0.8 | FD22: 227.7 | FE22: 0.8 | FF22: 13.3 | FG22: 0 | FH22: 13.3 | FI22: 0 | FJ22: 13.3 | FK22: 0 | FL22: 2908.1 | FM22: 4.9 | FW22: 228.2 | FX22: 0.8 | FY22: 0.7 | FZ22: 0 | GA22: 169 | GB22: 0.7 | GC22: 23 | GE22: 3468.5 | GF22: 489 | GG22: 489 | GH22: 490 | GI22: 0.8 | GJ22: 0.9 | GK22: 1.1 | GL22: 500 | GM22: 0.63 | GN22: 12.5 | GO22: 18 | HB22: 285.51 | HC22: 0.2 | HD22: 143.02 | HE22: 0.1 | HF22: 126.9 | HG22: 0.05 | HH22: 16.12 | HI22: 0.08 | HJ22: 264.19 | HK22: 0.21 | HL22: 99.55 | HM22: 0.04 | HN22: 121.07 | HO22: 0.06 | HP22: 21.52 | HQ22: 0.06 | HR22: 81.73 | HS22: 0.08 | HT22: 53.73 | HU22: 0.05 | HV22: 48.3 | HW22: 0.05 | HZ22: 82.07 | IA22: 0.08 | IB22: 53.47 | IC22: 0.06 | ID22: 48.51 | IE22: 0.05 | IF22: 4.96 | IG22: 0.06 | IH22: 610.39 | II22: 0.53 | IJ22: 39.34 | IK22: 0.01 | IL22: 41833 | IM22: 44 | IN22: 43093 | IO22: 40 | JL22: 268.68 | JM22: 0.24 | JN22: 100.48 | JO22: 0.04 | JP22: 122.33 | JQ22: 0.07 | JR22: 21.85 | JS22: 0.07 | JT22: 267.14 | JU22: 0.22 | JV22: 121.9 | JW22: 0.06 | JX22: 21.59 | JY22: 0.08 | JZ22: 5.43 | KA22: 0.03 | MX22: 59.85 | MY22: 0.08 | MZ22: 61.65 | NA22: 0.09 | NB22: 61.1 | NC22: 0.15 | ND22: 61.43 | NE22: 0.07 | NF22: 60.77 | NG22: 0.12 | NH22: 60.76 | NI22: 0.06 | OP22: 100.18 | OQ22: 0.04 | OV22: 95.04 | OW22: 0.11 | OX22: 95.22 | OY22: 0.08 | OZ22: 95.15 | PA22: 0.1 | PB22: 95.21 | PC22: 0.09 | PD22: 95.25 | PE22: 0.09 | PR22: 100.3 | PS22: 0.05 | QX22: 94.62 | QY22: 0.1 | QZ22: 95.11 | RA22: 0.11 | RB22: 74.81 | RC22: 0.09 | RD22: 74.82 | RE22: 0.07 | RF22: 74.67 | RG22: 0.04 | RH22: 74.91 | RI22: 0.11 | RJ22: 74.88 | RK22: 0.11 | RL22: 74.93 | RM22: 0.1 | RN22: 74.79 | RO22: 0.07 | RP22: 93.56 | RQ22: 0.07 | RR22: 93.33 | RS22: 0.08 | RT22: 92.39 | RU22: 0.1 | RV22: 89.55 | RW22: 0.09 | RX22: 89.53 | RY22: 0.12 | RZ22: 90.84 | SA22: 0.12 | SB22: 88.6 | SC22: 0.14 | SD22: 87.81 | SE22: 0.09 | SF22: 92.21 | SG22: 0.06 | SH22: 76.22 | SI22: 0.07 | SJ22: 76.78 | SK22: 0.09 | SL22: 75.86 | SM22: 0.05 | SN22: 83.3 | SO22: 0.15 | SP22: 76.16 | SQ22: 0.05 | SR22: 75.69 | SS22: 0.04 | ST22: 76.18 | SU22: 0.07 | SV22: 77.15 | SW22: 0.16 | SX22: 75.19 | SY22: 0.06 | SZ22: 75.15 | TA22: 0.03 | TB22: 75.36 | TC22: 0.04 | WJ22: C-55-1ER-DM | WK22: 74.996 | WL22: 0.018 | WM22: 62.001 | WN22: 0.042 | WO22: 60.493 | WP22: 0.021 | WQ22: 57.319 | WR22: 0.032 | WS22: 94.998 | WT22: 0.014 | WU22: 75 | WV22: 0.015 | WW22: 1160.3 | WX22: 8.6 | WY22: 1113.3 | WZ22: 8.3 | XA22: 0.54 | XB22: 0.004 | XC22: -0.136 | XD22: 0.002 | XE22: 0.018 | XF22: 0.011 | XG22: 1.1291 | XH22: 0.0165 | XI22: 28.996 | XJ22: 0.001 | XK22: 3473 | XL22: 8 | XM22: 368.4 | XN22: 5.3 | XO22: 0.2550244976 | XP22: 291.7735276 | XQ22: 13.029 | XR22: 0.136 | XS22: 0.8018427458 | XT22: 5279.512454 | XU22: 70.62705071 | XV22: 303.527357 | XW22: 1291.618029 | XX22: 3987.894425 | XY22: 0.01003947854 | XZ22: 30.18989411 | YA22: 59.69115725 | YB22: 14.09986622 | YC22: 13.18644489 | YD22: 0.01392125699 | YE22: 38.15715993 | YF22: 0.008782229855 | YG22: 27.60941853 | YH22: 0.009261519011 | YI22: 24.59354581 | YJ22: 79.92393402 | YK22: 65.54045179 | YL22: 24.39780628 | YM22: 30579.39983 | YN22: 25636.60726 | YO22: 3104.6 | YP22: 0.3465077751 | YQ22: 29563.10076 | YR22: 24620.30819 | YS22: 8.51226627 | YT22: 0.2062152683 | YU22: -5.79208783 | YV22: -20.23277677 | YW22: 54.43493687 | YX22: 30579.39983 | YY22: 15922.3376 | YZ22: 1033.409276 | ZA22: 13623.65295 | ZB22: 30579.39983 | ZC22: 1
A23: 5 | B23: C-95-3-10-1 | C23: 30N0045 | D23: C-95-3+10-1 | E23: 1 Finger | F23: on | G23: N/A | H23: 3 turns | I23: unsealed | J23: unsealed | M23: horizontal | N23: 0 | O23: 0 | P23: CUST 1 | Q23: 3/18/2014 | R23: 11:54:44 | S23: 10 Ton | T23: 0:30:00 | U23: 75/62 95/75 | V23: ENG 1 | W23: TECH 3 | X23: RTU5 | Y23: RTU5 | Z23: 3 | AA23: R22 | AB23: PSC Air Handler | AC23: 4.95 | AD23: 208/230/1 | AE23: TU1 | AF23: AHRI 210/240 2008 | AG23: 75 | AH23: 62 | AI23: 95 | AJ23: 75 | AK23: 6.1 | AM23: 5.5 | AO23: 230.3 | AP23: 0.9 | AQ23: 14.9 | AR23: 0 | AS23: 17538 | AT23: 36 | AU23: 16911 | AV23: 62 | AW23: -1648 | AX23: 100 | AY23: 15888 | AZ23: 101 | BB23: 944 | BD23: 13.3 | BE23: 5.320995146 | BF23: 112.93 | BG23: 0.01 | BH23: 55.49 | CN23: 4.82038835 | CO23: 1 Finger Open, -10% charge, 95F Test, adjust code tester speed to match total--static of run C-95-FC3-1F-SPWCT-SS | CP23: R22 4.95 LBS: Unsealed cab:Inlet Meriam set @ 53.5%: Outlet @ 52% Horiz airflow. ID Pulley is 3 turns open from fully closed: with flow meter: new filter drier: with isolation ball valves: with code: | CQ23: 74.994 | CR23: 0.014 | CS23: 62.003 | CT23: 0.042 | CU23: 94.999 | CV23: 0.008 | CW23: 75.002 | CX23: 0.015 | CY23: 74.63 | CZ23: 0.04 | DA23: 61.18 | DB23: 0.04 | DC23: 66.58 | DD23: 0.02 | DE23: 0.031 | DF23: 0.003 | DG23: 1.1604 | DH23: 0.0035 | DI23: 17538 | DJ23: 36 | DK23: -1648 | DL23: 100 | DM23: 4.822 | DN23: 0.032 | DQ23: 10.83131068 | DU23: 229.7 | DV23: 0.9 | DW23: 229.7 | DX23: 0.9 | DY23: 229.7 | DZ23: 0.9 | EA23: 13.2 | EB23: 0 | EC23: 13.2 | ED23: 0 | EE23: 13.2 | EF23: 0 | EG23: 2923.8 | EH23: 5.2 | EI23: 2923.8 | EJ23: 5.2 | EK23: 2923.8 | EL23: 5.2 | EM23: 229.9 | EN23: 0.9 | EO23: 229.9 | EP23: 0.9 | EQ23: 229.9 | ER23: 0.9 | ES23: 1.7 | ET23: 0 | EU23: 1.7 | EV23: 0 | EW23: 1.7 | EX23: 0 | EZ23: 227.8 | FA23: 0.9 | FB23: 227.8 | FC23: 0.9 | FD23: 227.8 | FE23: 0.9 | FF23: 12.5 | FG23: 0 | FH23: 12.5 | FI23: 0 | FJ23: 12.5 | FK23: 0 | FL23: 2731.7 | FM23: 4.8 | FW23: 228.3 | FX23: 0.9 | FY23: 0.7 | FZ23: 0 | GA23: 168.8 | GB23: 0.8 | GC23: 23 | GE23: 3294.1 | GF23: 480 | GG23: 480 | GH23: 480 | GI23: 0.9 | GJ23: 0.9 | GK23: 1 | GL23: 510 | GM23: 0.65 | GN23: 13.3 | GO23: 18.2 | HB23: 261.29 | HC23: 0.16 | HD23: 184.46 | HE23: 0.06 | HF23: 120.25 | HG23: 0.04 | HH23: 64.21 | HI23: 0.07 | HJ23: 241.52 | HK23: 0.2 | HL23: 104.04 | HM23: 0.05 | HN23: 114.49 | HO23: 0.06 | HP23: 10.45 | HQ23: 0.08 | HR23: 77.25 | HS23: 0.05 | HT23: 68.73 | HU23: 0.04 | HV23: 45.47 | HW23: 0.03 | HZ23: 77.14 | IA23: 0.06 | IB23: 71.48 | IC23: 0.05 | ID23: 45.39 | IE23: 0.04 | IF23: 26.09 | IG23: 0.06 | IH23: 512.15 | II23: 0.46 | IJ23: 40.75 | IK23: 0.01 | IL23: 35700 | IM23: 40 | IN23: 36965 | IO23: 37 | JL23: 245.06 | JM23: 0.21 | JN23: 104.52 | JO23: 0.04 | JP23: 115.55 | JQ23: 0.06 | JR23: 11.02 | JS23: 0.07 | JT23: 243.72 | JU23: 0.19 | JV23: 115.15 | JW23: 0.06 | JX23: 10.74 | JY23: 0.07 | JZ23: 23.27 | KA23: 0.05 | MX23: 60.55 | MY23: 0.08 | MZ23: 62.25 | NA23: 0.04 | NB23: 61.87 | NC23: 0.1 | ND23: 62.06 | NE23: 0.03 | NF23: 61.42 | NG23: 0.09 | NH23: 61.43 | NI23: 0.04 | OP23: 104.3 | OQ23: 0.04 | OV23: 95.09 | OW23: 0.09 | OX23: 95.25 | OY23: 0.08 | OZ23: 95.35 | PA23: 0.07 | PB23: 96.22 | PC23: 0.07 | PD23: 96.23 | PE23: 0.07 | PR23: 104.41 | PS23: 0.04 | QX23: 94.81 | QY23: 0.06 | QZ23: 95.31 | RA23: 0.06 | RB23: 75.01 | RC23: 0.04 | RD23: 74.97 | RE23: 0.03 | RF23: 74.73 | RG23: 0.04 | RH23: 75.16 | RI23: 0.04 | RJ23: 75.14 | RK23: 0.05 | RL23: 75.18 | RM23: 0.05 | RN23: 74.97 | RO23: 0.04 | RP23: 93.43 | RQ23: 0.05 | RR23: 93.4 | RS23: 0.07 | RT23: 92.26 | RU23: 0.08 | RV23: 89.12 | RW23: 0.09 | RX23: 89.42 | RY23: 0.11 | RZ23: 91.01 | SA23: 0.11 | SB23: 88.49 | SC23: 0.13 | SD23: 87.48 | SE23: 0.09 | SF23: 92.31 | SG23: 0.07 | SH23: 76.32 | SI23: 0.07 | SJ23: 76.62 | SK23: 0.09 | SL23: 75.84 | SM23: 0.05 | SN23: 81.89 | SO23: 0.16 | SP23: 75.9 | SQ23: 0.04 | SR23: 75.53 | SS23: 0.03 | ST23: 75.63 | SU23: 0.04 | SV23: 76.72 | SW23: 0.13 | SX23: 74.93 | SY23: 0.05 | SZ23: 75 | TA23: 0.04 | TB23: 75.13 | TC23: 0.04 | WJ23: C-55-1ER-DM | WK23: 74.994 | WL23: 0.014 | WM23: 62.003 | WN23: 0.042 | WO23: 61.056 | WP23: 0.012 | WQ23: 57.489 | WR23: 0.022 | WS23: 94.999 | WT23: 0.008 | WU23: 75.002 | WV23: 0.015 | WW23: 1177.4 | WX23: 1.8 | WY23: 1127.9 | WZ23: 1.7 | XA23: 0.544 | XB23: 0.005 | XC23: -0.142 | XD23: 0.001 | XE23: 0.031 | XF23: 0.003 | XG23: 1.1604 | XH23: 0.0035 | XI23: 28.961 | XJ23: 0.002 | XK23: 3296 | XL23: 8 | XM23: 370.6 | XN23: 5.2 | XO23: 0.2550244976 | XP23: 291.7735276 | XQ23: 13.029 | XR23: 0.136 | XS23: 0.793013822 | XT23: 5351.624962 | XU23: 72.0832897 | XV23: 310.150969 | XW23: 1319.800329 | XX23: 4031.824633 | XY23: 0.01005132285 | XZ23: 30.21225002 | YA23: 60.26298618 | YB23: 14.09990415 | YC23: 13.20047659 | YD23: 0.01392277047 | YE23: 38.15907575 | YF23: 0.008784021236 | YG23: 27.61089104 | YH23: 0.009230791117 | YI23: 24.69754564 | YJ23: 79.96225802 | YK23: 65.56988352 | YL23: 24.50397218 | YM23: 30548.56219 | YN23: 25301.54758 | YO23: 2925.4 | YP23: 0.3268366654 | YQ23: 29529.72466 | YR23: 24282.71005 | YS23: 8.959261123 | YT23: 0.2356070729 | YU23: -5.708277843 | YV23: -19.69927184 | YW23: 54.19112495 | YX23: 30548.56219 | YY23: 15591.13197 | YZ23: 1035.932569 | ZA23: 13921.49765 | ZB23: 30548.56219 | ZC23: 1
A24: 5 | B24: C-95-3-20-1 | C24: 30N0046 | D24: C-95-3+20-1 | E24: 1 Finger | F24: on | G24: N/A | H24: 3 turns | I24: unsealed | J24: unsealed | M24: horizontal | N24: 0 | O24: 0 | P24: CUST 1 | Q24: 3/18/2014 | R24: 8:44:20 | S24: 10 Ton | T24: 0:30:00 | U24: 75/62 95/75 | V24: ENG 1 | W24: TECH 3 | X24: RTU5 | Y24: RTU5 | Z24: 3 | AA24: R22 | AB24: PSC Air Handler | AC24: 4.4 LBS | AD24: 208/230/1 | AE24: TU1 | AF24: AHRI 210/240 2008 | AG24: 75 | AH24: 62 | AI24: 95 | AJ24: 75 | AK24: 6.6 | AM24: 5.5 | AO24: 230.3 | AP24: 0.9 | AQ24: 14.7 | AR24: 0 | AS24: 16420 | AT24: 232 | AU24: 15827 | AV24: 76 | AW24: -2510 | AX24: 113 | AY24: 13908 | AZ24: 248 | BB24: 943 | BD24: 14.4 | BE24: 5.06477483 | BF24: 113.54 | BG24: 0.01 | BH24: 58.73 | CN24: 4.289944479 | CO24: 1-Finger Open, -20% charge, 95F Test, adjust code tester speed to match total--static of run C-95-FC3-1F-SPWCT-SS | CP24: R22 4.4 LBS: Unsealed cab:Inlet Meriam set @ 53.5%: Outlet @ 52% Horiz airflow. ID Pulley is 3 turns open from fully closed: with flow meter: new filter drier: with isolation ball valves: with code: | CQ24: 75.004 | CR24: 0.017 | CS24: 61.998 | CT24: 0.038 | CU24: 95.001 | CV24: 0.008 | CW24: 75.001 | CX24: 0.014 | CY24: 74.59 | CZ24: 0.05 | DA24: 62.16 | DB24: 0.04 | DC24: 67.19 | DD24: 0.02 | DE24: 0.055 | DF24: 0.005 | DG24: 1.1989 | DH24: 0.0049 | DI24: 16420 | DJ24: 232 | DK24: -2510 | DL24: 113 | DM24: 4.29 | DN24: 0.074 | DQ24: 10.4025293 | DU24: 229.8 | DV24: 0.9 | DW24: 229.8 | DX24: 0.9 | DY24: 229.8 | DZ24: 0.9 | EA24: 13 | EB24: 0 | EC24: 13 | ED24: 0 | EE24: 13 | EF24: 0 | EG24: 2867.9 | EH24: 5.8 | EI24: 2867.9 | EJ24: 5.8 | EK24: 2867.9 | EL24: 5.8 | EM24: 230 | EN24: 0.9 | EO24: 230 | EP24: 0.9 | EQ24: 230 | ER24: 0.9 | ES24: 1.7 | ET24: 0 | EU24: 1.7 | EV24: 0 | EW24: 1.7 | EX24: 0 | EZ24: 227.9 | FA24: 0.9 | FB24: 227.9 | FC24: 0.9 | FD24: 227.9 | FE24: 0.9 | FF24: 12.3 | FG24: 0 | FH24: 12.3 | FI24: 0 | FJ24: 12.3 | FK24: 0 | FL24: 2676.6 | FM24: 5.3 | FW24: 228.3 | FX24: 0.9 | FY24: 0.7 | FZ24: 0 | GA24: 168.7 | GB24: 0.8 | GC24: 23 | GE24: 3241.3 | GF24: 482 | GG24: 482 | GH24: 482 | GI24: 0.9 | GJ24: 1 | GK24: 1 | GL24: 500 | GM24: 0.64 | GN24: 14.4 | GO24: 18.7 | HB24: 254.62 | HC24: 0.15 | HD24: 188.27 | HE24: 0.04 | HF24: 118.34 | HG24: 0.04 | HH24: 69.93 | HI24: 0.05 | HJ24: 235.4 | HK24: 0.2 | HL24: 105.67 | HM24: 0.05 | HN24: 112.64 | HO24: 0.06 | HP24: 6.97 | HQ24: 0.07 | HR24: 73.66 | HS24: 0.04 | HT24: 71.05 | HU24: 0.03 | HV24: 43.11 | HW24: 0.02 | HZ24: 73.25 | IA24: 0.03 | IB24: 73.81 | IC24: 0.03 | ID24: 42.84 | IE24: 0.02 | IF24: 30.97 | IG24: 0.04 | IH24: 484.29 | II24: 0.43 | IJ24: 41.27 | IK24: 0.01 | IL24: 33725 | IM24: 38 | IN24: 34998 | IO24: 34 | JL24: 238.7 | JM24: 0.21 | JN24: 105.98 | JO24: 0.03 | JP24: 113.64 | JQ24: 0.06 | JR24: 7.66 | JS24: 0.07 | JT24: 237.41 | JU24: 0.22 | JV24: 113.25 | JW24: 0.07 | JX24: 7.28 | JY24: 0.08 | JZ24: 27.94 | KA24: 0.04 | MX24: 61.46 | MY24: 0.16 | MZ24: 62.98 | NA24: 0.05 | NB24: 62.6 | NC24: 0.18 | ND24: 62.83 | NE24: 0.05 | NF24: 62.24 | NG24: 0.19 | NH24: 62.37 | NI24: 0.06 | OP24: 105.99 | OQ24: 0.05 | OV24: 95.04 | OW24: 0.09 | OX24: 95.22 | OY24: 0.07 | OZ24: 95.17 | PA24: 0.07 | PB24: 95.2 | PC24: 0.06 | PD24: 95.23 | PE24: 0.06 | PR24: 105.97 | PS24: 0.05 | QX24: 94.52 | QY24: 0.07 | QZ24: 95.02 | RA24: 0.07 | RB24: 74.74 | RC24: 0.05 | RD24: 74.78 | RE24: 0.04 | RF24: 74.66 | RG24: 0.04 | RH24: 74.78 | RI24: 0.06 | RJ24: 74.77 | RK24: 0.06 | RL24: 74.83 | RM24: 0.06 | RN24: 74.74 | RO24: 0.04 | RP24: 93.18 | RQ24: 0.04 | RR24: 93.08 | RS24: 0.05 | RT24: 92.13 | RU24: 0.06 | RV24: 89.51 | RW24: 0.1 | RX24: 89.72 | RY24: 0.13 | RZ24: 91.02 | SA24: 0.11 | SB24: 88.6 | SC24: 0.13 | SD24: 87.34 | SE24: 0.08 | SF24: 92.31 | SG24: 0.06 | SH24: 76.33 | SI24: 0.08 | SJ24: 76.76 | SK24: 0.09 | SL24: 75.89 | SM24: 0.05 | SN24: 82.38 | SO24: 0.15 | SP24: 76.06 | SQ24: 0.04 | SR24: 75.6 | SS24: 0.04 | ST24: 75.84 | SU24: 0.04 | SV24: 76.85 | SW24: 0.12 | SX24: 74.98 | SY24: 0.04 | SZ24: 75.02 | TA24: 0.05 | TB24: 75.19 | TC24: 0.05 | WJ24: C-55-1ER-DM | WK24: 75.004 | WL24: 0.017 | WM24: 61.998 | WN24: 0.038 | WO24: 62.109 | WP24: 0.03 | WQ24: 58.123 | WR24: 0.028 | WS24: 95.001 | WT24: 0.008 | WU24: 75.001 | WV24: 0.014 | WW24: 1198.5 | WX24: 2.5 | WY24: 1144.9 | WZ24: 2.4 | XA24: 0.539 | XB24: 0.007 | XC24: -0.145 | XD24: 0.001 | XE24: 0.055 | XF24: 0.005 | XG24: 1.1989 | XH24: 0.0049 | XI24: 28.92 | XJ24: 0.001 | XK24: 3242 | XL24: 8 | XM24: 373 | XN24: 5.2 | XO24: 0.2550244976 | XP24: 291.7735276 | XQ24: 13.029 | XR24: 0.136 | XS24: 0.7858850726 | XT24: 5436.097261 | XU24: 72.49723159 | XV24: 313.4105285 | XW24: 1333.66714 | XX24: 4102.430121 | XY24: 0.01004013472 | XZ24: 30.19565492 | YA24: 61.32311493 | YB24: 14.09994379 | YC24: 13.22824014 | YD24: 0.01392141514 | YE24: 38.15807293 | YF24: 0.008778361573 | YG24: 27.60713666 | YH24: 0.009367113878 | YI24: 25.10297907 | YJ24: 79.94455647 | YK24: 65.54825211 | YL24: 24.91109815 | YM24: 28727.36454 | YN24: 24294.71217 | YO24: 2869 | YP24: 0.3408560847 | YQ24: 27701.74859 | YR24: 23269.09622 | YS24: 8.544647931 | YT24: 0.2644674558 | YU24: -5.284556762 | YV24: -18.62144154 | YW24: 54.62760525 | YX24: 28727.36454 | YY24: 13612.84424 | YZ24: 1043.083302 | ZA24: 14071.437 | ZB24: 28727.36454 | ZC24: 1
A25: 5 | B25: C-95-3-20-C | C25: 30N0047 | D25: C-95-3+20-C | E25: closed | F25: on | G25: N/A | H25: 3 turns | I25: unsealed | J25: unsealed | M25: horizontal | N25: 0 | O25: 0 | P25: CUST 1 | Q25: 3/18/2014 | R25: 9:50:45 | S25: 10 Ton | T25: 0:30:00 | U25: 75/62 95/75 | V25: ENG 1 | W25: TECH 3 | X25: RTU5 | Y25: RTU5 | Z25: 3 | AA25: R22 | AB25: PSC Air Handler | AC25: 4.4 LBS | AD25: 208/230/1 | AE25: TU1 | AF25: AHRI 210/240 2008 | AG25: 75 | AH25: 62 | AI25: 95 | AJ25: 75 | AK25: 6.6 | AM25: 5.5 | AO25: 230.3 | AP25: 1 | AQ25: 14.7 | AR25: 0 | AS25: 18445 | AT25: 39 | AU25: 17822 | AV25: 70 | AW25: 459 | AX25: 99 | AY25: 18904 | AZ25: 102 | BB25: 944 | BD25: 12.8 | BE25: 5.706992574 | BF25: 113.23 | BG25: 0.01 | BH25: 43.27 | CN25: 5.849009901 | CO25: Closed Damper, -20% charge, 95F Test, adjust code tester speed to match total--static of run C-95-FC3-EC-SPWCT-SS | CP25: R22 4.4 LBS: Unsealed cab:Inlet Meriam set @ 53.5%: Outlet @ 52% Horiz airflow. ID Pulley is 3 turns open from fully closed: with flow meter: new filter drier: with isolation ball valves: with code: | CQ25: 75.002 | CR25: 0.017 | CS25: 61.999 | CT25: 0.043 | CU25: 94.997 | CV25: 0.005 | CW25: 74.998 | CX25: 0.013 | CY25: 74.63 | CZ25: 0.05 | DA25: 60.33 | DB25: 0.04 | DC25: 66.06 | DD25: 0.01 | DE25: 0.026 | DF25: 0.003 | DG25: 1.1282 | DH25: 0.0035 | DI25: 18445 | DJ25: 39 | DK25: 459 | DL25: 99 | DM25: 5.848 | DN25: 0.035 | DQ25: 10.30971535 | DU25: 229.8 | DV25: 1 | DW25: 229.8 | DX25: 1 | DY25: 229.8 | DZ25: 1 | EA25: 13 | EB25: 0 | EC25: 13 | ED25: 0 | EE25: 13 | EF25: 0 | EG25: 2863.3 | EH25: 5.9 | EI25: 2863.3 | EJ25: 5.9 | EK25: 2863.3 | EL25: 5.9 | EM25: 230 | EN25: 1 | EO25: 230 | EP25: 1 | EQ25: 230 | ER25: 1 | ES25: 1.7 | ET25: 0 | EU25: 1.7 | EV25: 0 | EW25: 1.7 | EX25: 0 | EZ25: 227.9 | FA25: 1 | FB25: 227.9 | FC25: 1 | FD25: 227.9 | FE25: 1 | FF25: 12.3 | FG25: 0 | FH25: 12.3 | FI25: 0 | FJ25: 12.3 | FK25: 0 | FL25: 2671.8 | FM25: 5.1 | FW25: 228.3 | FX25: 1 | FY25: 0.7 | FZ25: 0 | GA25: 168.8 | GB25: 0.9 | GC25: 23 | GE25: 3231.6 | GF25: 480 | GG25: 480 | GH25: 480 | GI25: 0.9 | GJ25: 1 | GK25: 0.9 | GL25: 500 | GM25: 0.64 | GN25: 12.8 | GO25: 17.9 | HB25: 253.89 | HC25: 0.14 | HD25: 187.14 | HE25: 0.04 | HF25: 118.13 | HG25: 0.04 | HH25: 69.01 | HI25: 0.05 | HJ25: 234.76 | HK25: 0.2 | HL25: 105.91 | HM25: 0.04 | HN25: 112.45 | HO25: 0.06 | HP25: 6.54 | HQ25: 0.07 | HR25: 72.7 | HS25: 0.06 | HT25: 69.02 | HU25: 0.03 | HV25: 42.48 | HW25: 0.04 | HZ25: 72.35 | IA25: 0.05 | IB25: 71.87 | IC25: 0.03 | ID25: 42.24 | IE25: 0.03 | IF25: 29.63 | IG25: 0.04 | IH25: 481.04 | II25: 0.44 | IJ25: 41.35 | IK25: 0.01 | IL25: 33321 | IM25: 39 | IN25: 34578 | IO25: 34 | JL25: 238.05 | JM25: 0.21 | JN25: 106.23 | JO25: 0.04 | JP25: 113.44 | JQ25: 0.06 | JR25: 7.21 | JS25: 0.07 | JT25: 236.72 | JU25: 0.2 | JV25: 113.04 | JW25: 0.06 | JX25: 6.8 | JY25: 0.07 | JZ25: 26.54 | KA25: 0.05 | MX25: 59.35 | MY25: 0.05 | MZ25: 61.43 | NA25: 0.08 | NB25: 60.67 | NC25: 0.11 | ND25: 61.3 | NE25: 0.06 | NF25: 60.1 | NG25: 0.08 | NH25: 60.61 | NI25: 0.04 | OP25: 106.26 | OQ25: 0.04 | OV25: 95.09 | OW25: 0.06 | OX25: 95.19 | OY25: 0.06 | OZ25: 95.23 | PA25: 0.07 | PB25: 96.1 | PC25: 0.06 | PD25: 96.11 | PE25: 0.06 | PR25: 106.24 | PS25: 0.04 | QX25: 94.69 | QY25: 0.06 | QZ25: 95.16 | RA25: 0.06 | RB25: 74.89 | RC25: 0.05 | RD25: 74.88 | RE25: 0.05 | RF25: 74.71 | RG25: 0.04 | RH25: 74.98 | RI25: 0.06 | RJ25: 74.96 | RK25: 0.06 | RL25: 74.98 | RM25: 0.06 | RN25: 74.85 | RO25: 0.05 | RP25: 91.62 | RQ25: 0.08 | RR25: 83.81 | RS25: 0.11 | RT25: 81.09 | RU25: 0.1 | RV25: 86.84 | RW25: 0.14 | RX25: 85.19 | RY25: 0.16 | RZ25: 85.84 | SA25: 0.13 | SB25: 78.12 | SC25: 0.06 | SD25: 83.53 | SE25: 0.09 | SF25: 92.91 | SG25: 0.06 | SH25: 79.51 | SI25: 0.16 | SJ25: 75.42 | SK25: 0.04 | SL25: 75.46 | SM25: 0.04 | SN25: 83.76 | SO25: 0.18 | SP25: 75.36 | SQ25: 0.04 | SR25: 75.32 | SS25: 0.04 | ST25: 74.88 | SU25: 0.06 | SV25: 76.08 | SW25: 0.09 | SX25: 74.96 | SY25: 0.06 | SZ25: 75.01 | TA25: 0.05 | TB25: 75.1 | TC25: 0.04 | WJ25: C-55-CE-DM | WK25: 75.002 | WL25: 0.017 | WM25: 61.999 | WN25: 0.043 | WO25: 60.195 | WP25: 0.017 | WQ25: 56.519 | WR25: 0.03 | WS25: 94.997 | WT25: 0.005 | WU25: 74.998 | WV25: 0.013 | WW25: 1160.9 | WX25: 1.8 | WY25: 1112.4 | WZ25: 1.8 | XA25: 0.572 | XB25: 0.005 | XC25: -0.178 | XD25: 0.002 | XE25: 0.026 | XF25: 0.003 | XG25: 1.1282 | XH25: 0.0035 | XI25: 28.922 | XJ25: 0.001 | XK25: 3232 | XL25: 8 | XM25: 368 | XN25: 5.2 | XO25: 0.166225331 | XP25: 191.8074094 | XQ25: 13.029 | XR25: 0.182 | XS25: 0.7886071408 | XT25: 5286.549636 | XU25: 74.75187855 | XV25: 197.3290644 | XW25: 839.7083724 | XX25: 4446.841264 | XY25: 0.009595963828 | XZ25: 29.28321533 | YA25: 59.40639286 | YB25: 14.09982829 | YC25: 13.1757015 | YD25: 0.0139197436 | YE25: 38.1552442 | YF25: 0.008779493471 | YG25: 27.6078875 | YH25: 0.008853883948 | YI25: 24.07740491 | YJ25: 78.20294017 | YK25: 64.32735406 | YL25: 23.88503908 | YM25: 28537.72669 | YN25: 23848.53129 | YO25: 2864 | YP25: 0.3425231486 | YQ25: 27536.87086 | YR25: 22847.67545 | YS25: 8.520071428 | YT25: 0.2525877944 | YU25: -5.39817625 | YV25: -18.79654732 | YW25: 53.05410373 | YX25: 28537.72669 | YY25: 18664.07148 | YZ25: 1016.951491 | ZA25: 8856.703727 | ZB25: 28537.72669 | ZC25: 1
A26: 5 | B26: C-95-3-30-1 | C26: 30N0048 | D26: C-95-3+30-1 | E26: 1 Finger | F26: on | G26: N/A | H26: 3 turns | I26: unsealed | J26: unsealed | M26: horizontal | N26: 0 | O26: 0 | P26: CUST 1 | Q26: 3/18/2014 | R26: 7:39:56 | S26: 10 Ton | T26: 0:30:00 | U26: 75/62 95/75 | V26: ENG 1 | W26: TECH 3 | X26: RTU5 | Y26: RTU5 | Z26: 3 | AA26: R22 | AB26: PSC Air Handler | AC26: 3.85 LBS | AD26: 208/230/1 | AE26: TU1 | AF26: AHRI 210/240 2008 | AG26: 75 | AH26: 62 | AI26: 95 | AJ26: 75 | AK26: 7.2 | AM26: 5.5 | AO26: 230.3 | AP26: 1 | AQ26: 14.4 | AR26: 0 | AS26: 14475 | AT26: 39 | AU26: 13929 | AV26: 61 | AW26: -3287 | AX26: 92 | AY26: 11184 | AZ26: 91 | BB26: 943 | BD26: 14.3 | BE26: 4.561928774 | BF26: 113.93 | BG26: 0.01 | BH26: 63.68 | CN26: 3.524739994 | CO26: 1 Finger Open, -30% charge, 95F Test, adjust code tester speed to match total--static of run C-95-FC3-1F-SPWCT-SS | CP26: R22 3.85 LBS: Unsealed cab:Inlet Meriam set @ 53.5%: Outlet @ 52% Horiz airflow. ID Pulley is 3 turns open from fully closed: with flow meter: new filter drier: with isolation ball valves: with code: | CQ26: 75.004 | CR26: 0.015 | CS26: 61.997 | CT26: 0.042 | CU26: 95.002 | CV26: 0.005 | CW26: 74.998 | CX26: 0.011 | CY26: 74.61 | CZ26: 0.05 | DA26: 63.59 | DB26: 0.04 | DC26: 68.11 | DD26: 0.02 | DE26: 0.048 | DF26: 0.004 | DG26: 1.1908 | DH26: 0.0042 | DI26: 14475 | DJ26: 39 | DK26: -3287 | DL26: 92 | DM26: 3.525 | DN26: 0.03 | DQ26: 9.704065553 | DU26: 229.8 | DV26: 1 | DW26: 229.8 | DX26: 1 | DY26: 229.8 | DZ26: 1 | EA26: 12.7 | EB26: 0 | EC26: 12.7 | ED26: 0 | EE26: 12.7 | EF26: 0 | EG26: 2799.9 | EH26: 5.9 | EI26: 2799.9 | EJ26: 5.9 | EK26: 2799.9 | EL26: 5.9 | EM26: 230 | EN26: 1 | EO26: 230 | EP26: 1 | EQ26: 230 | ER26: 1 | ES26: 1.7 | ET26: 0 | EU26: 1.7 | EV26: 0 | EW26: 1.7 | EX26: 0 | EZ26: 227.9 | FA26: 1 | FB26: 227.9 | FC26: 1 | FD26: 227.9 | FE26: 1 | FF26: 12 | FG26: 0 | FH26: 12 | FI26: 0 | FJ26: 12 | FK26: 0 | FL26: 2609.5 | FM26: 5.3 | FW26: 228.4 | FX26: 1 | FY26: 0.7 | FZ26: 0 | GA26: 168.8 | GB26: 0.9 | GC26: 23 | GE26: 3173.3 | GF26: 482 | GG26: 482 | GH26: 482 | GI26: 0.9 | GJ26: 1 | GK26: 1 | GL26: 530 | GM26: 0.64 | GN26: 14.3 | GO26: 18.7 | HB26: 246.55 | HC26: 0.12 | HD26: 192.14 | HE26: 0.03 | HF26: 115.98 | HG26: 0.04 | HH26: 76.15 | HI26: 0.05 | HJ26: 228.31 | HK26: 0.17 | HL26: 108.57 | HM26: 0.04 | HN26: 110.46 | HO26: 0.05 | HP26: 1.88 | HQ26: 0.07 | HR26: 67.66 | HS26: 0.05 | HT26: 71.5 | HU26: 0.03 | HV26: 39.04 | HW26: 0.03 | HZ26: 67.43 | IA26: 0.05 | IB26: 74.31 | IC26: 0.03 | ID26: 38.88 | IE26: 0.03 | IF26: 35.43 | IG26: 0.05 | IH26: 446.93 | II26: 0.32 | IJ26: 42.2 | IK26: 0.01 | IL26: 30791 | IM26: 30 | IN26: 32060 | IO26: 25 | JL26: 231.31 | JM26: 0.18 | JN26: 108.12 | JO26: 0.03 | JP26: 111.39 | JQ26: 0.05 | JR26: 3.27 | JS26: 0.06 | JT26: 230.03 | JU26: 0.19 | JV26: 110.99 | JW26: 0.06 | JX26: 2.22 | JY26: 0.07 | JZ26: 32.46 | KA26: 0.04 | MX26: 62.92 | MY26: 0.11 | MZ26: 64.57 | NA26: 0.05 | NB26: 64.15 | NC26: 0.13 | ND26: 64.41 | NE26: 0.05 | NF26: 63.8 | NG26: 0.13 | NH26: 63.88 | NI26: 0.05 | OP26: 109.03 | OQ26: 0.04 | OV26: 95 | OW26: 0.09 | OX26: 95.18 | OY26: 0.07 | OZ26: 95.16 | PA26: 0.08 | PB26: 95.19 | PC26: 0.07 | PD26: 95.22 | PE26: 0.07 | PR26: 108.77 | PS26: 0.03 | QX26: 94.56 | QY26: 0.07 | QZ26: 95.05 | RA26: 0.08 | RB26: 74.78 | RC26: 0.06 | RD26: 74.8 | RE26: 0.04 | RF26: 74.68 | RG26: 0.04 | RH26: 74.84 | RI26: 0.07 | RJ26: 74.82 | RK26: 0.07 | RL26: 74.87 | RM26: 0.06 | RN26: 74.77 | RO26: 0.04 | RP26: 93.17 | RQ26: 0.04 | RR26: 93.1 | RS26: 0.05 | RT26: 92.15 | RU26: 0.08 | RV26: 89.58 | RW26: 0.1 | RX26: 89.7 | RY26: 0.14 | RZ26: 90.93 | SA26: 0.12 | SB26: 88.58 | SC26: 0.15 | SD26: 87.31 | SE26: 0.09 | SF26: 92.24 | SG26: 0.08 | SH26: 76.33 | SI26: 0.07 | SJ26: 76.72 | SK26: 0.09 | SL26: 75.87 | SM26: 0.06 | SN26: 82.27 | SO26: 0.15 | SP26: 76.06 | SQ26: 0.04 | SR26: 75.62 | SS26: 0.04 | ST26: 75.87 | SU26: 0.05 | SV26: 76.85 | SW26: 0.13 | SX26: 74.99 | SY26: 0.06 | SZ26: 75.05 | TA26: 0.05 | TB26: 75.2 | TC26: 0.04 | WJ26: C-55-1ER-DM | WK26: 75.004 | WL26: 0.015 | WM26: 61.997 | WN26: 0.042 | WO26: 63.556 | WP26: 0.022 | WQ26: 58.885 | WR26: 0.026 | WS26: 95.002 | WT26: 0.005 | WU26: 74.998 | WV26: 0.011 | WW26: 1195.5 | WX26: 2.2 | WY26: 1139.7 | WZ26: 2.1 | XA26: 0.54 | XB26: 0.006 | XC26: -0.143 | XD26: 0.001 | XE26: 0.048 | XF26: 0.004 | XG26: 1.1908 | XH26: 0.0042 | XI26: 28.917 | XJ26: 0.001 | XK26: 3173 | XL26: 8 | XM26: 372 | XN26: 5.2 | XO26: 0.2550244976 | XP26: 291.7735276 | XQ26: 13.029 | XR26: 0.136 | XS26: 0.7879861382 | XT26: 5407.08585 | XU26: 72.30185008 | XV26: 311.2415903 | XW26: 1324.437419 | XX26: 4082.648432 | XY26: 0.01003692514 | XZ26: 30.19027369 | YA26: 62.76801386 | YB26: 14.0999455 | YC26: 13.26592586 | YD26: 0.01391854644 | YE26: 38.15515442 | YF26: 0.008777702222 | YG26: 27.60641513 | YH26: 0.009494355671 | YI26: 25.5948713 | YJ26: 79.93693979 | YK26: 65.54119812 | YL26: 25.40243287 | YM26: 25888.2663 | YN26: 22280.12554 | YO26: 2801 | YP26: 0.3692720435 | YQ26: 24865.39651 | YR26: 21257.25576 | YS26: 7.836557363 | YT26: 0.3118224438 | YU26: -4.78784081 | YV26: -17.16892592 | YW26: 54.98854417 | YX26: 25888.2663 | YY26: 10876.59019 | YZ26: 1040.531079 | ZA26: 13971.14503 | ZB26: 25888.2663 | ZC26: 1
A27: 5 | B27: C-95-3-30-C | C27: 30N0049 | D27: C-95-3+30-C | E27: closed | F27: on | G27: N/A | H27: 3 turns | I27: unsealed | J27: unsealed | M27: horizontal | N27: 0 | O27: 0 | P27: CUST 1 | Q27: 3/18/2014 | R27: 6:33:57 | S27: 10 Ton | T27: 0:30:00 | U27: 75/62 95/75 | V27: ENG 1 | W27: TECH 3 | X27: RTU5 | Y27: RTU5 | Z27: 3 | AA27: R22 | AB27: PSC Air Handler | AC27: 3.85 LBS | AD27: 208/230/1 | AE27: TU1 | AF27: AHRI 210/240 2008 | AG27: 75 | AH27: 62 | AI27: 95 | AJ27: 75 | AK27: 7.2 | AM27: 5.5 | AO27: 230.3 | AP27: 0.9 | AQ27: 14.4 | AR27: 0 | AS27: 16722 | AT27: 41 | AU27: 16128 | AV27: 68 | AW27: -480 | AX27: 83 | AY27: 16241 | AZ27: 84 | BB27: 943 | BD27: 13.5 | BE27: 5.281743525 | BF27: 113.68 | BG27: 0.01 | BH27: 46.96 | CN27: 5.129816804 | CO27: Closed Damper, -30% charge, 95F Test, adjust code tester speed to--match total static of run C-95-FC3-EC-SPWCT-SS | CP27: R22 3.85 LBS: Unsealed cab:Inlet Meriam set @ 53.5%: Outlet @ 52% Horiz airflow. ID Pulley is 3 turns open from fully closed: with flow meter: new filter drier: with isolation ball valves: with code: | CQ27: 75.002 | CR27: 0.012 | CS27: 62.004 | CT27: 0.039 | CU27: 95 | CV27: 0.006 | CW27: 75.002 | CX27: 0.015 | CY27: 74.6 | CZ27: 0.05 | DA27: 61.81 | DB27: 0.06 | DC27: 67.04 | DD27: 0.01 | DE27: 0.035 | DF27: 0.005 | DG27: 1.1607 | DH27: 0.006 | DI27: 16722 | DJ27: 41 | DK27: -480 | DL27: 83 | DM27: 5.13 | DN27: 0.029 | DQ27: 9.672457359 | DU27: 229.8 | DV27: 0.9 | DW27: 229.8 | DX27: 0.9 | DY27: 229.8 | DZ27: 0.9 | EA27: 12.7 | EB27: 0 | EC27: 12.7 | ED27: 0 | EE27: 12.7 | EF27: 0 | EG27: 2794.8 | EH27: 5.6 | EI27: 2794.8 | EJ27: 5.6 | EK27: 2794.8 | EL27: 5.6 | EM27: 229.9 | EN27: 0.9 | EO27: 229.9 | EP27: 0.9 | EQ27: 229.9 | ER27: 0.9 | ES27: 1.7 | ET27: 0 | EU27: 1.7 | EV27: 0 | EW27: 1.7 | EX27: 0 | EZ27: 227.9 | FA27: 0.9 | FB27: 227.9 | FC27: 0.9 | FD27: 227.9 | FE27: 0.9 | FF27: 12 | FG27: 0 | FH27: 12 | FI27: 0 | FJ27: 12 | FK27: 0 | FL27: 2604.2 | FM27: 5.2 | FW27: 228.3 | FX27: 0.9 | FY27: 0.7 | FZ27: 0 | GA27: 169 | GB27: 0.8 | GC27: 23 | GE27: 3166.4 | GF27: 477 | GG27: 478 | GH27: 478 | GI27: 0.9 | GJ27: 0.9 | GK27: 1 | GL27: 500 | GM27: 0.65 | GN27: 13.5 | GO27: 18.3 | HB27: 246.49 | HC27: 0.12 | HD27: 190.93 | HE27: 0.04 | HF27: 115.98 | HG27: 0.04 | HH27: 74.95 | HI27: 0.05 | HJ27: 228.25 | HK27: 0.16 | HL27: 108.71 | HM27: 0.07 | HN27: 110.45 | HO27: 0.05 | HP27: 1.74 | HQ27: 0.09 | HR27: 67.32 | HS27: 0.04 | HT27: 70 | HU27: 0.04 | HV27: 38.83 | HW27: 0.03 | HZ27: 67.13 | IA27: 0.04 | IB27: 72.89 | IC27: 0.05 | ID27: 38.7 | IE27: 0.03 | IF27: 34.18 | IG27: 0.05 | IH27: 446.34 | II27: 0.29 | IJ27: 42.25 | IK27: 0.02 | IL27: 30623 | IM27: 31 | IN27: 31886 | IO27: 25 | JL27: 231.25 | JM27: 0.18 | JN27: 108.14 | JO27: 0.04 | JP27: 111.38 | JQ27: 0.05 | JR27: 3.24 | JS27: 0.06 | JT27: 229.97 | JU27: 0.19 | JV27: 110.99 | JW27: 0.06 | JX27: 2.06 | JY27: 0.07 | JZ27: 31.17 | KA27: 0.05 | MX27: 60.91 | MY27: 0.08 | MZ27: 62.83 | NA27: 0.09 | NB27: 62.2 | NC27: 0.14 | ND27: 62.69 | NE27: 0.07 | NF27: 61.68 | NG27: 0.1 | NH27: 62.14 | NI27: 0.05 | OP27: 109.22 | OQ27: 0.04 | OV27: 94.7 | OW27: 0.09 | OX27: 94.87 | OY27: 0.08 | OZ27: 94.9 | PA27: 0.08 | PB27: 94.96 | PC27: 0.07 | PD27: 94.98 | PE27: 0.07 | PR27: 108.92 | PS27: 0.05 | QX27: 94.62 | QY27: 0.06 | QZ27: 95.01 | RA27: 0.07 | RB27: 74.79 | RC27: 0.08 | RD27: 74.82 | RE27: 0.05 | RF27: 74.72 | RG27: 0.05 | RH27: 74.83 | RI27: 0.1 | RJ27: 74.82 | RK27: 0.1 | RL27: 74.87 | RM27: 0.09 | RN27: 74.8 | RO27: 0.06 | RP27: 91.23 | RQ27: 0.07 | RR27: 83.71 | RS27: 0.12 | RT27: 81.02 | RU27: 0.09 | RV27: 86.88 | RW27: 0.13 | RX27: 85.07 | RY27: 0.17 | RZ27: 86.07 | SA27: 0.14 | SB27: 78.32 | SC27: 0.08 | SD27: 83.72 | SE27: 0.12 | SF27: 92.84 | SG27: 0.08 | SH27: 79.47 | SI27: 0.17 | SJ27: 75.55 | SK27: 0.08 | SL27: 75.54 | SM27: 0.06 | SN27: 83.77 | SO27: 0.2 | SP27: 75.38 | SQ27: 0.05 | SR27: 75.37 | SS27: 0.04 | ST27: 74.94 | SU27: 0.08 | SV27: 76.04 | SW27: 0.11 | SX27: 74.97 | SY27: 0.08 | SZ27: 75 | TA27: 0.06 | TB27: 75.12 | TC27: 0.04 | WJ27: C-55-CE-DM | WK27: 75.002 | WL27: 0.012 | WM27: 62.004 | WN27: 0.039 | WO27: 61.741 | WP27: 0.022 | WQ27: 57.389 | WR27: 0.027 | WS27: 95 | WT27: 0.006 | WU27: 75.002 | WV27: 0.015 | WW27: 1176.8 | WX27: 3 | WY27: 1128.9 | WZ27: 3 | XA27: 0.574 | XB27: 0.006 | XC27: -0.177 | XD27: 0.002 | XE27: 0.035 | XF27: 0.005 | XG27: 1.1607 | XH27: 0.006 | XI27: 29.016 | XJ27: 0.004 | XK27: 3166 | XL27: 8 | XM27: 370.2 | XN27: 5.2 | XO27: 0.166225331 | XP27: 191.8074094 | XQ27: 13.029 | XR27: 0.182 | XS27: 0.7825350621 | XT27: 5342.57644 | XU27: 76.12590482 | XV27: 196.7746815 | XW27: 837.3433702 | XX27: 4505.23307 | XY27: 0.009588343367 | XZ27: 29.26461761 | YA27: 60.95846494 | YB27: 14.0999276 | YC27: 13.21609542 | YD27: 0.01392253104 | YE27: 38.15905779 | YF27: 0.008782790523 | YG27: 27.61149547 | YH27: 0.009008233817 | YI27: 24.62251883 | YJ27: 78.16098515 | YK27: 64.30200299 | YL27: 24.43158054 | YM27: 25820.86994 | YN27: 22057.38701 | YO27: 2795.8 | YP27: 0.3695485637 | YQ27: 24817.19505 | YR27: 21053.71212 | YS27: 7.838659209 | YT27: 0.301639171 | YU27: -4.833037062 | YV27: -17.20252021 | YW27: 53.52827452 | YX27: 25820.86994 | YY27: 15968.83617 | YZ27: 1020.102387 | ZA27: 8831.931382 | ZB27: 25820.86994 | ZC27: 1
A28: 5 | B28: C-95-3-40-1 | C28: 30N0050 | D28: C-95-3+40-1 | E28: 1 Finger | F28: on | G28: N/A | H28: 3 turns | I28: unsealed | J28: unsealed | M28: horizontal | N28: 0 | O28: 0 | P28: CUST 1 | Q28: 3/18/2014 | R28: 3:01:30 | S28: 10 Ton | T28: 0:30:00 | U28: 75/62 - 95/75 | V28: ENG 1 | W28: TECH 1 | X28: RTU5 | Y28: RTU5 | Z28: 3 | AA28: R22 | AB28: PSC Air Handler | AC28: 3.3 LBS | AD28: 208/230/1 | AE28: TU1 | AF28: AHRI 210/240 2008 | AG28: 75 | AH28: 62 | AI28: 95 | AJ28: 75 | AK28: 7.7 | AM28: 5.5 | AO28: 230.3 | AP28: 0.8 | AQ28: 14.2 | AR28: 0 | AS28: 11858 | AT28: 29 | AU28: 11385 | AV28: 52 | AW28: -3781 | AX28: 83 | AY28: 8073 | AZ28: 93 | BB28: 943 | BD28: 13.7 | BE28: 3.810411311 | BF28: 114.36 | BG28: 0.01 | BH28: 70.77 | CN28: 2.594151671 | CO28: 1 Finger Open, -40% charge, 95F Test, adjust code tester speed--to match total static of run C-95-FC3-1F-SPWCT-SS | CP28: R22 3.3 LBS: Unsealed cab:Inlet Meriam set @ 53.5%: Outlet @ 52% Horiz airflow. ID Pulley is 3 turns open from fully closed: with flow meter: new filter drier: with isolation ball valves: with code: | CQ28: 75 | CR28: 0.018 | CS28: 61.994 | CT28: 0.047 | CU28: 94.997 | CV28: 0.011 | CW28: 75.001 | CX28: 0.015 | CY28: 74.61 | CZ28: 0.05 | DA28: 65.55 | DB28: 0.05 | DC28: 69.5 | DD28: 0.01 | DE28: 0.031 | DF28: 0.004 | DG28: 1.1789 | DH28: 0.0041 | DI28: 11858 | DJ28: 29 | DK28: -3781 | DL28: 83 | DM28: 2.594 | DN28: 0.031 | DQ28: 8.874678663 | DU28: 229.8 | DV28: 0.8 | DW28: 229.8 | DX28: 0.8 | DY28: 229.8 | DZ28: 0.8 | EA28: 12.5 | EB28: 0 | EC28: 12.5 | ED28: 0 | EE28: 12.5 | EF28: 0 | EG28: 2738.7 | EH28: 5.8 | EI28: 2738.7 | EJ28: 5.8 | EK28: 2738.7 | EL28: 5.8 | EM28: 229.9 | EN28: 0.8 | EO28: 229.9 | EP28: 0.8 | EQ28: 229.9 | ER28: 0.8 | ES28: 1.7 | ET28: 0 | EU28: 1.7 | EV28: 0 | EW28: 1.7 | EX28: 0 | EZ28: 228 | FA28: 0.8 | FB28: 228 | FC28: 0.8 | FD28: 228 | FE28: 0.8 | FF28: 11.7 | FG28: 0 | FH28: 11.7 | FI28: 0 | FJ28: 11.7 | FK28: 0 | FL28: 2548.4 | FM28: 5.2 | FW28: 228.4 | FX28: 0.8 | FY28: 0.7 | FZ28: 0 | GA28: 169.7 | GB28: 0.8 | GC28: 23 | GE28: 3113 | GF28: 482 | GG28: 483 | GH28: 484 | GI28: 0.9 | GJ28: 0.9 | GK28: 1 | GL28: 510 | GM28: 0.64 | GN28: 13.7 | GO28: 18.4 | HB28: 239.2 | HC28: 0.16 | HD28: 197 | HE28: 0.08 | HF28: 113.83 | HG28: 0.05 | HH28: 83.16 | HI28: 0.1 | HJ28: 222.27 | HK28: 0.27 | HL28: 108.15 | HM28: 0.06 | HN28: 108.6 | HO28: 0.09 | HP28: 0.46 | HQ28: 0.1 | HR28: 61.63 | HS28: 0.05 | HT28: 72.18 | HU28: 0.04 | HV28: 34.82 | HW28: 0.04 | HZ28: 61.43 | IA28: 0.06 | IB28: 75.26 | IC28: 0.04 | ID28: 34.67 | IE28: 0.05 | IF28: 40.58 | IG28: 0.06 | IH28: 399.59 | II28: 2.5 | IJ28: 42.06 | IK28: 0.02 | IL28: 27618 | IM28: 181 | IN28: 28885 | IO28: 180 | JL28: 225.29 | JM28: 0.17 | JN28: 107.71 | JO28: 0.03 | JP28: 109.56 | JQ28: 0.05 | JR28: 1.85 | JS28: 0.05 | JT28: 224.1 | JU28: 0.23 | JV28: 109.18 | JW28: 0.07 | JX28: 0.45 | JY28: 0.07 | JZ28: 37.37 | KA28: 0.05 | MX28: 65.06 | MY28: 0.09 | MZ28: 66.72 | NA28: 0.07 | NB28: 66.38 | NC28: 0.14 | ND28: 66.57 | NE28: 0.05 | NF28: 65.77 | NG28: 0.12 | NH28: 66.1 | NI28: 0.04 | OP28: 108.93 | OQ28: 0.05 | OV28: 94.98 | OW28: 0.09 | OX28: 95.33 | OY28: 0.06 | OZ28: 95.23 | PA28: 0.08 | PB28: 95.25 | PC28: 0.07 | PD28: 95.27 | PE28: 0.06 | PR28: 108.73 | PS28: 0.04 | QX28: 94.62 | QY28: 0.07 | QZ28: 95.1 | RA28: 0.07 | RB28: 74.86 | RC28: 0.06 | RD28: 74.88 | RE28: 0.05 | RF28: 74.73 | RG28: 0.04 | RH28: 74.95 | RI28: 0.07 | RJ28: 74.93 | RK28: 0.07 | RL28: 74.99 | RM28: 0.07 | RN28: 74.85 | RO28: 0.05 | RP28: 93.47 | RQ28: 0.05 | RR28: 93.37 | RS28: 0.06 | RT28: 92.51 | RU28: 0.08 | RV28: 89.72 | RW28: 0.1 | RX28: 89.68 | RY28: 0.1 | RZ28: 91.08 | SA28: 0.11 | SB28: 88.9 | SC28: 0.12 | SD28: 87.7 | SE28: 0.1 | SF28: 91.93 | SG28: 0.08 | SH28: 76.32 | SI28: 0.07 | SJ28: 76.97 | SK28: 0.1 | SL28: 75.98 | SM28: 0.07 | SN28: 82.82 | SO28: 0.14 | SP28: 76.2 | SQ28: 0.05 | SR28: 75.71 | SS28: 0.04 | ST28: 76.13 | SU28: 0.06 | SV28: 77.02 | SW28: 0.14 | SX28: 75.12 | SY28: 0.07 | SZ28: 75.08 | TA28: 0.05 | TB28: 75.3 | TC28: 0.03 | WJ28: C-55-1ER-DM | WK28: 75 | WL28: 0.018 | WM28: 61.994 | WN28: 0.047 | WO28: 65.569 | WP28: 0.012 | WQ28: 59.741 | WR28: 0.031 | WS28: 94.997 | WT28: 0.011 | WU28: 75.001 | WV28: 0.015 | WW28: 1185.2 | WX28: 2.1 | WY28: 1138 | WZ28: 2 | XA28: 0.547 | XB28: 0.005 | XC28: -0.139 | XD28: 0.001 | XE28: 0.031 | XF28: 0.004 | XG28: 1.1789 | XH28: 0.0041 | XI28: 29.204 | XJ28: 0.002 | XK28: 3112 | XL28: 8 | XM28: 371.9 | XN28: 5.2 | XO28: 0.2550244976 | XP28: 291.7735276 | XQ28: 13.029 | XR28: 0.136 | XS28: 0.7954495452 | XT28: 5339.76748 | XU28: 73.12985134 | XV28: 306.8566481 | XW28: 1305.786859 | XX28: 4033.98062 | XY28: 0.01003499978 | XZ28: 30.18514441 | YA28: 64.77355045 | YB28: 14.09985003 | YC28: 13.31743382 | YD28: 0.01392237288 | YE28: 38.15814476 | YF28: 0.00877666931 | YG28: 27.60430923 | YH28: 0.009553894336 | YI28: 26.15138094 | YJ28: 79.92459345 | YK28: 65.53437192 | YL28: 25.95709881 | YM28: 22576.78039 | YN28: 19416.7312 | YO28: 2740.1 | YP28: 0.4142291832 | YQ28: 21557.07787 | YR28: 18397.02869 | YS28: 6.927081579 | YT28: 0.3928722706 | YU28: -4.228045599 | YV28: -15.151043 | YW28: 54.9693126 | YX28: 22576.78039 | YY28: 7758.299221 | YZ28: 1037.421407 | ZA28: 13781.05976 | ZB28: 22576.78039 | ZC28: 1
A29: 5 | B29: C-95-3-FC-1 | C29: 30N0051 | D29: C-95-3-FC-1 | E29: 1 Finger | F29: on | G29: N/A | H29: 3 turns | I29: unsealed | J29: unsealed | M29: horizontal | N29: 0 | O29: 0 | P29: CUST 1 | Q29: 3/18/2014 | R29: 0:55:24 | S29: 10 Ton | T29: 0:30:00 | U29: 75/62 - 95/75 | V29: ENG 1 | W29: TECH 1 | X29: RTU5 | Y29: RTU5 | Z29: 3 | AA29: R22 | AB29: PSC Air Handler | AC29: 5.5 LBS | AD29: 208/230/1 | AE29: TU1 | AF29: AHRI 210/240 2008 | AG29: 75 | AH29: 62 | AI29: 95 | AJ29: 75 | AK29: 5.5 | AM29: 5.5 | AO29: 230.3 | AP29: 0.8 | AQ29: 15.2 | AR29: 0 | AS29: 17780 | AT29: 138 | AU29: 17152 | AV29: 128 | AW29: -1406 | AX29: 120 | AY29: 16373 | AZ29: 179 | BB29: 944 | BD29: 12.6 | BE29: 5.304295943 | BF29: 112.21 | BG29: 0.02 | BH29: 55.56 | CN29: 4.884546539 | CO29: 1 Finger Open, 5.5 lbs factory charge 95F test, adjust code tester speed to match--total static of run C -95-FC3-1F-SPWCT-SS | CP29: R22 5.5 LBS: Unsealed cab:Inlet Meriam set @ 53.5%: Outlet @ 52% Horiz airflow. ID Pulley is 3 turns open from fully closed: with flow meter: new filter drier: with isolation ball valves: with code: | CQ29: 75 | CR29: 0.023 | CS29: 62.008 | CT29: 0.045 | CU29: 95.001 | CV29: 0.011 | CW29: 75.001 | CX29: 0.019 | CY29: 74.55 | CZ29: 0.05 | DA29: 60.82 | DB29: 0.04 | DC29: 66.68 | DD29: 0.05 | DE29: 0.021 | DF29: 0.011 | DG29: 1.1375 | DH29: 0.0166 | DI29: 17780 | DJ29: 138 | DK29: -1406 | DL29: 120 | DM29: 4.885 | DN29: 0.052 | DQ29: 10.99134845 | DU29: 229.8 | DV29: 0.8 | DW29: 229.8 | DX29: 0.8 | DY29: 229.8 | DZ29: 0.8 | EA29: 13.5 | EB29: 0 | EC29: 13.5 | ED29: 0 | EE29: 13.5 | EF29: 0 | EG29: 2980.9 | EH29: 4.8 | EI29: 2980.9 | EJ29: 4.8 | EK29: 2980.9 | EL29: 4.8 | EM29: 230 | EN29: 0.8 | EO29: 230 | EP29: 0.8 | EQ29: 230 | ER29: 0.8 | ES29: 1.7 | ET29: 0 | EU29: 1.7 | EV29: 0 | EW29: 1.7 | EX29: 0 | EZ29: 227.8 | FA29: 0.9 | FB29: 227.8 | FC29: 0.9 | FD29: 227.8 | FE29: 0.9 | FF29: 12.8 | FG29: 0 | FH29: 12.8 | FI29: 0 | FJ29: 12.8 | FK29: 0 | FL29: 2787.8 | FM29: 4.4 | FW29: 228.3 | FX29: 0.9 | FY29: 0.7 | FZ29: 0 | GA29: 169.2 | GB29: 0.8 | GC29: 23 | GE29: 3349.6 | GF29: 490 | GG29: 490 | GH29: 490 | GI29: 0.8 | GJ29: 0.8 | GK29: 1 | GL29: 510 | GM29: 0.63 | GN29: 12.6 | GO29: 17.9 | HB29: 266 | HC29: 0.16 | HD29: 181.39 | HE29: 0.07 | HF29: 121.59 | HG29: 0.05 | HH29: 59.8 | HI29: 0.08 | HJ29: 245.88 | HK29: 0.21 | HL29: 103.03 | HM29: 0.03 | HN29: 115.8 | HO29: 0.06 | HP29: 12.78 | HQ29: 0.06 | HR29: 79.04 | HS29: 0.07 | HT29: 65.31 | HU29: 0.11 | HV29: 46.62 | HW29: 0.04 | HZ29: 79.71 | IA29: 0.07 | IB29: 68.48 | IC29: 0.1 | ID29: 47.05 | IE29: 0.04 | IF29: 21.43 | IG29: 0.11 | IH29: 530.86 | II29: 0.46 | IJ29: 40.43 | IK29: 0.01 | IL29: 36843 | IM29: 43 | IN29: 38104 | IO29: 40 | JL29: 249.59 | JM29: 0.23 | JN29: 103.79 | JO29: 0.03 | JP29: 116.89 | JQ29: 0.07 | JR29: 13.1 | JS29: 0.07 | JT29: 248.13 | JU29: 0.21 | JV29: 116.47 | JW29: 0.06 | JX29: 13 | JY29: 0.07 | JZ29: 18.68 | KA29: 0.12 | MX29: 60.19 | MY29: 0.09 | MZ29: 61.96 | NA29: 0.06 | NB29: 61.47 | NC29: 0.1 | ND29: 61.76 | NE29: 0.05 | NF29: 60.99 | NG29: 0.1 | NH29: 61.07 | NI29: 0.06 | OP29: 103.38 | OQ29: 0.04 | OV29: 95.07 | OW29: 0.1 | OX29: 95.22 | OY29: 0.07 | OZ29: 95.21 | PA29: 0.07 | PB29: 95.26 | PC29: 0.06 | PD29: 95.3 | PE29: 0.06 | PR29: 103.47 | PS29: 0.05 | QX29: 94.78 | QY29: 0.05 | QZ29: 95.28 | RA29: 0.06 | RB29: 74.96 | RC29: 0.04 | RD29: 74.95 | RE29: 0.04 | RF29: 74.71 | RG29: 0.03 | RH29: 75.12 | RI29: 0.04 | RJ29: 75.09 | RK29: 0.04 | RL29: 75.12 | RM29: 0.04 | RN29: 74.93 | RO29: 0.04 | RP29: 93.67 | RQ29: 0.04 | RR29: 93.31 | RS29: 0.08 | RT29: 92.43 | RU29: 0.07 | RV29: 89.38 | RW29: 0.09 | RX29: 89.78 | RY29: 0.13 | RZ29: 90.98 | SA29: 0.13 | SB29: 88.45 | SC29: 0.14 | SD29: 87.8 | SE29: 0.09 | SF29: 92.25 | SG29: 0.06 | SH29: 76.26 | SI29: 0.06 | SJ29: 76.69 | SK29: 0.09 | SL29: 75.84 | SM29: 0.05 | SN29: 83.35 | SO29: 0.14 | SP29: 76.13 | SQ29: 0.04 | SR29: 75.74 | SS29: 0.03 | ST29: 76.32 | SU29: 0.04 | SV29: 77.28 | SW29: 0.15 | SX29: 75.26 | SY29: 0.04 | SZ29: 75.15 | TA29: 0.03 | TB29: 75.4 | TC29: 0.04 | WJ29: C-55-1ER-DM | WK29: 75 | WL29: 0.023 | WM29: 62.008 | WN29: 0.045 | WO29: 60.762 | WP29: 0.024 | WQ29: 57.302 | WR29: 0.032 | WS29: 95.001 | WT29: 0.011 | WU29: 75.001 | WV29: 0.019 | WW29: 1164.2 | WX29: 8.6 | WY29: 1118.1 | WZ29: 8.3 | XA29: 0.54 | XB29: 0.005 | XC29: -0.137 | XD29: 0.002 | XE29: 0.021 | XF29: 0.011 | XG29: 1.1375 | XH29: 0.0166 | XI29: 29.038 | XJ29: 0.001 | XK29: 3352 | XL29: 8 | XM29: 369.6 | XN29: 5.3 | XO29: 0.2550244976 | XP29: 291.7735276 | XQ29: 13.029 | XR29: 0.136 | XS29: 0.801939249 | XT29: 5294.752271 | XU29: 70.93155969 | XV29: 304.6420606 | XW29: 1296.354362 | XX29: 3998.39791 | XY29: 0.01004326786 | XZ29: 30.19589605 | YA29: 59.96006075 | YB29: 14.09994379 | YC29: 13.19268521 | YD29: 0.01392141514 | YE29: 38.15807293 | YF29: 0.008785900968 | YG29: 27.61441143 | YH29: 0.009187563965 | YI29: 24.57875048 | YJ29: 79.93148952 | YK29: 65.54830072 | YL29: 24.38301373 | YM29: 30777.7719 | YN29: 25378.50428 | YO29: 2982.4 | YP29: 0.3307234595 | YQ29: 29758.41652 | YR29: 24359.1489 | YS29: 8.877809223 | YT29: 0.2279731893 | YU29: -5.812882327 | YV29: -19.97142877 | YW29: 54.06266153 | YX29: 30777.7719 | YY29: 16073.0727 | YZ29: 1036.377619 | ZA29: 13668.32158 | ZB29: 30777.7719 | ZC29: 1
A30: 5 | B30: C-55-T1ER-DM | C30: 30N0021 | D30: C-55-T1ER-DM | E30: 1 Finger | F30: Off | G30: N/A | H30: 3 turns | I30: unsealed | J30: unsealed | M30: horizontal | N30: 0 | O30: 0 | P30: CUST 1 | Q30: 3/13/2014 | R30: 4:49:30 | S30: 10 Ton | T30: 0:30:00 | U30: 75/62 55/51 | V30: ENG 1 | W30: TECH 1 | X30: RTU5 | Y30: RTU5 | Z30: 3 | AA30: R22 | AB30: PSC Air Handler | AC30: 5.5 LBS | AD30: 208/230/1 | AE30: TU1 | AF30: AHRI 210/240 2008 | AG30: 75 | AH30: 62 | AI30: 55 | AJ30: 51 | AK30: 5.5 | AM30: 5.5 | AO30: 230.1 | AP30: 0.8 | AQ30: 1.7 | AR30: 0 | AS30: 6120 | AT30: 21 | AU30: 5475 | AV30: 38 | AW30: 2578 | AX30: 46 | AY30: 8700 | AZ30: 56 | BB30: 942 | BD30: 13.7 | BF30: 110.12 | BG30: 0.01 | BH30: 0 | CN30: 23.2 | CO30: Econo 1F-open, tape around damper perimeter frame gaps, no compressor,--55/51 ambient, 53.5% inlet 52% outlet Meriam, adjust code tester speed to match--total static of run C-55-T1E-DM-SPWCT-SSR | CP30: R22 5.5 LBS. unsealed cab:Inlet Meriam set @ 53.5%: Outlet Meriam set @ 52% manually: Horiz airflow. ID Pulley is 3 turns open from fully closed: Econo open 1F: with flow meter: new filter drier: with isolation ball valves: without code | CQ30: 74.991 | CR30: 0.013 | CS30: 61.998 | CT30: 0.026 | CU30: 54.991 | CV30: 0.012 | CW30: 51.001 | CX30: 0.018 | CY30: 74.34 | CZ30: 0.05 | DA30: 70.11 | DB30: 0.05 | DC30: 72.42 | DD30: 0.01 | DE30: 0.041 | DF30: 0.005 | DG30: 1.1912 | DH30: 0.0051 | DI30: 6120 | DJ30: 21 | DK30: 2578 | DL30: 46 | DM30: 23.204 | DN30: 0.335 | DU30: 230.2 | DV30: 0.8 | DW30: 230.2 | DX30: 0.8 | DY30: 230.2 | DZ30: 0.8 | EA30: 0 | EB30: 0 | EC30: 0 | ED30: 0 | EE30: 0 | EF30: 0 | EG30: 0.3 | EH30: 0.2 | EI30: 0.3 | EJ30: 0.2 | EK30: 0.3 | EL30: 0.2 | EM30: 229.8 | EN30: 0.8 | EO30: 229.8 | EP30: 0.8 | EQ30: 229.8 | ER30: 0.8 | ES30: 1.7 | ET30: 0 | EU30: 1.7 | EV30: 0 | EW30: 1.7 | EX30: 0 | EZ30: 0 | FA30: 0 | FB30: 0 | FC30: 0 | FD30: 0 | FE30: 0 | FF30: 0 | FG30: 0 | FH30: 0 | FI30: 0 | FJ30: 0 | FK30: 0 | FL30: 0 | FM30: 0 | FW30: 0 | FX30: 0 | FY30: 0 | FZ30: 0 | GA30: 0 | GB30: 0 | GC30: 23 | GE30: 374.6 | GF30: 482 | GG30: 482 | GH30: 483 | GI30: 0.9 | GJ30: 0.9 | GK30: 1.1 | GL30: 510 | GM30: 0.63 | GN30: 13.7 | GO30: 18.4 | IH30: -0.6 | II30: 0 | IJ30: 26.2 | IK30: 0.01 | IL30: -1278 | IM30: 16 | MX30: 69.68 | MY30: 0.24 | MZ30: 71.35 | NA30: 0.14 | NB30: 70.71 | NC30: 0.04 | ND30: 71.15 | NE30: 0.14 | NF30: 70.19 | NG30: 0.14 | NH30: 70.59 | NI30: 0.12 | OP30: 55.98 | OQ30: 0.03 | OT30: 54.73 | OU30: 0.08 | OV30: 54.81 | OW30: 0.09 | OX30: 54.35 | OY30: 0.06 | OZ30: 54.66 | PA30: 0.07 | PB30: 54.67 | PC30: 0.05 | PD30: 54.68 | PE30: 0.04 | PN30: 54.49 | PO30: 0.06 | QX30: 54.99 | QY30: 0.1 | QZ30: 54.68 | RA30: 0.09 | RB30: 74.56 | RC30: 0.08 | RD30: 74.56 | RE30: 0.07 | RF30: 74.42 | RG30: 0.04 | RH30: 74.71 | RI30: 0.09 | RJ30: 74.66 | RK30: 0.09 | RL30: 74.73 | RM30: 0.09 | RN30: 74.64 | RO30: 0.08 | RP30: 63.6 | RQ30: 0.04 | RR30: 63.55 | RS30: 0.04 | RT30: 63.44 | RU30: 0.06 | RV30: 63.2 | RW30: 0.07 | RX30: 62.28 | RY30: 0.04 | RZ30: 63.41 | SA30: 0.08 | SB30: 62.98 | SC30: 0.09 | SD30: 63.2 | SE30: 0.1 | SF30: 61.33 | SG30: 0.1 | SH30: 74.28 | SI30: 0.07 | SJ30: 73.77 | SK30: 0.1 | SL30: 74.41 | SM30: 0.08 | SN30: 69.05 | SO30: 0.15 | SP30: 73.49 | SQ30: 0.07 | SR30: 74.23 | SS30: 0.06 | ST30: 73.2 | SU30: 0.09 | SV30: 73.06 | SW30: 0.11 | SX30: 74.15 | SY30: 0.09 | SZ30: 74.32 | TA30: 0.05 | TB30: 74.38 | TC30: 0.04 | WJ30: Economizer test | WK30: 74.991 | WL30: 0.013 | WM30: 61.998 | WN30: 0.026 | WO30: 70.259 | WP30: 0.007 | WQ30: 59.6 | WR30: 0.02 | WS30: 54.991 | WT30: 0.012 | WU30: 51.001 | WV30: 0.018 | WW30: 1186.2 | WX30: 2.6 | WY30: 1150.2 | WZ30: 2.5 | XA30: 0.569 | XB30: 0.008 | XC30: -0.164 | XD30: 0.001 | XE30: 0.041 | XF30: 0.005 | XG30: 1.1912 | XH30: 0.0051 | XI30: 29.59 | XJ30: 0.001 | XK30: 375 | XL30: 5 | XM30: 374.6 | XN30: 4.8 | XO30: 0.1966 | XP30: 226.12932 | XQ30: 13.029 | XR30: 0.164 | XS30: 0.7984711682 | XT30: 5300.744909 | XU30: 76.88661335 | XV30: 226.1318757 | XW30: 1041.339002 | XX30: 4259.405907 | XY30: 0.008428322659 | XZ30: 26.26576937 | YA30: 69.46052883 | YB30: 13.02929451 | YC30: 13.42679212 | YD30: 0.00698398951 | YE30: 20.77837399 | YF30: 0.00878143304 | YG30: 27.60732708 | YH30: 0.008355722122 | YI30: 25.98823789 | YJ30: 71.07230833 | YK30: 60.0195119 | YL30: 25.79364253
A31: 5 | B31: C-55-T2ER-DM | C31: 30N0022 | D31: C-55-T2ER-DM | E31: 2 Finger | F31: Off | G31: N/A | H31: 3 turns | I31: unsealed | J31: unsealed | M31: horizontal | N31: 0 | O31: 0 | P31: CUST 1 | Q31: 3/13/2014 | R31: 11:45:56 | S31: 10 Ton | T31: 0:30:00 | U31: 75/62 55/51 | V31: ENG 1 | W31: TECH 2 | X31: RTU5 | Y31: RTU5 | Z31: 3 | AA31: R22 | AB31: PSC Air Handler | AC31: 5.5 LBS | AD31: 208/230/1 | AE31: TU1 | AF31: AHRI 210/240 2008 | AG31: 75 | AH31: 62 | AI31: 55 | AJ31: 51 | AK31: 5.5 | AM31: 5.5 | AO31: 230.1 | AP31: 0.8 | AQ31: 1.7 | AR31: 0 | AS31: 8232 | AT31: 28 | AU31: 7564 | AV31: 44 | AW31: 3518 | AX31: 54 | AY31: 11753 | AZ31: 65 | BB31: 943 | BD31: 13.55 | CN31: 31.34133333 | CO31: Econo 2F-open, tape around damper perimeter frame gaps, no compressor,--55/51, 53.5% inlet 52% outlet Meriam, ambient adjust code tester speed to match--otal static of run C-55-T2E-DM-SPWCT-SSR | CP31: R22 5.5 LBS. unsealed cab:Inlet Meriam set @ 53.5%: Outlet Meriam set @ 52% manually: Horiz airflow. ID Pulley is 3 turns open from fully closed: Econo open 2F: with flow meter: new filter drier: with isolation ball valves: with code | CQ31: 74.997 | CR31: 0.009 | CS31: 62.001 | CT31: 0.027 | CU31: 54.999 | CV31: 0.011 | CW31: 50.999 | CX31: 0.017 | CY31: 74.39 | CZ31: 0.04 | DA31: 68.56 | DB31: 0.03 | DC31: 71.37 | DD31: 0.01 | DE31: 0.044 | DF31: 0.006 | DG31: 1.1905 | DH31: 0.0062 | DI31: 8232 | DJ31: 28 | DK31: 3518 | DL31: 54 | DM31: 31.359 | DN31: 0.436 | EM31: 229.8 | EN31: 0.8 | EO31: 229.8 | EP31: 0.8 | EQ31: 229.8 | ER31: 0.8 | ES31: 1.7 | ET31: 0 | EU31: 1.7 | EV31: 0 | EW31: 1.7 | EX31: 0 | GF31: 480 | GG31: 481 | GH31: 482 | GI31: 0.9 | GJ31: 0.9 | GK31: 1 | GL31: 520 | GM31: 0.64 | GN31: 13.55 | GO31: 18.3 | MX31: 68.07 | MY31: 0.35 | MZ31: 69.63 | NA31: 0.23 | NB31: 68.81 | NC31: 0.06 | ND31: 69.54 | NE31: 0.21 | NF31: 68.34 | NG31: 0.16 | NH31: 68.9 | NI31: 0.19 | OP31: 55.96 | OQ31: 0.02 | OT31: 55.18 | OU31: 0.14 | OV31: 55.25 | OW31: 0.14 | OX31: 54.51 | OY31: 0.07 | OZ31: 54.71 | PA31: 0.08 | PB31: 54.68 | PC31: 0.04 | PD31: 54.69 | PE31: 0.04 | QX31: 55.18 | QY31: 0.06 | QZ31: 54.92 | RA31: 0.05 | RB31: 74.64 | RC31: 0.03 | RD31: 74.62 | RE31: 0.03 | RF31: 74.46 | RG31: 0.03 | RH31: 74.78 | RI31: 0.04 | RJ31: 74.71 | RK31: 0.04 | RL31: 74.77 | RM31: 0.04 | RN31: 74.7 | RO31: 0.04 | RP31: 61.33 | RQ31: 0.03 | RR31: 61.56 | RS31: 0.04 | RT31: 61.31 | RU31: 0.05 | RV31: 60.53 | RW31: 0.07 | RX31: 60.26 | RY31: 0.03 | RZ31: 62.43 | SA31: 0.09 | SB31: 60.77 | SC31: 0.07 | SD31: 60.94 | SE31: 0.07 | SF31: 61.59 | SG31: 0.07 | SH31: 73.82 | SI31: 0.05 | SJ31: 70.33 | SK31: 0.13 | SL31: 71.36 | SM31: 0.11 | SN31: 66.42 | SO31: 0.13 | SP31: 73.38 | SQ31: 0.04 | SR31: 74.02 | SS31: 0.03 | ST31: 72.92 | SU31: 0.05 | SV31: 71.37 | SW31: 0.14 | SX31: 73.01 | SY31: 0.04 | SZ31: 73.93 | TA31: 0.03 | TB31: 73.2 | TC31: 0.03 | WJ31: Economizer test | WK31: 74.997 | WL31: 0.009 | WM31: 62.001 | WN31: 0.027 | WO31: 68.647 | WP31: 0.01 | WQ31: 58.731 | WR31: 0.02 | WS31: 54.999 | WT31: 0.011 | WU31: 50.999 | WV31: 0.017 | WW31: 1183.9 | WX31: 3.1 | WY31: 1152.1 | WZ31: 3 | XA31: 0.536 | XB31: 0.01 | XC31: -0.126 | XD31: 0.001 | XE31: 0.044 | XF31: 0.006 | XG31: 1.1905 | XH31: 0.0062 | XI31: 29.629 | XJ31: 0.001 | XK31: 375 | XL31: 5 | XM31: 374.5 | XN31: 4.9 | XO31: 0.2770277028 | XP31: 319.1636164 | XQ31: 13.029 | XR31: 0.126 | XS31: 0.808869353 | XT31: 5307.116266 | XU31: 72.54710198 | XV31: 319.1694238 | XW31: 1469.757352 | XX31: 3837.358914 | XY31: 0.008283237813 | XZ31: 25.71726658 | YA31: 67.83813065 | YB31: 13.02947415 | YC31: 13.38467003 | YD31: 0.006981046732 | YE31: 20.77712464 | YF31: 0.008781993587 | YG31: 27.60940388 | YH31: 0.008195104444 | YI31: 25.4200666 | YJ31: 69.47187725 | YK31: 59.18708544 | YL31: 25.22299478
A32: 5 | B32: C-55-T3ER-DM | C32: 30N0023 | D32: C-55-T3ER-DM | E32: 3 Finger | F32: Off | G32: N/A | I32: unsealed | J32: unsealed | M32: horizontal | N32: 0 | O32: 0 | P32: CUST 1 | Q32: 3/13/2014 | R32: 14:38:07 | S32: 10 Ton | T32: 0:30:00 | U32: 75/62 55/51 | V32: ENG 1 | W32: TECH 2 | X32: RTU5 | Y32: RTU5 | Z32: 3 | AA32: R22 | AB32: PSC Air Handler | AC32: 5.5 LBS | AD32: 208/230/1 | AE32: TU1 | AF32: AHRI 210/240 2008 | AG32: 75 | AH32: 62 | AI32: 55 | AJ32: 51 | AK32: 5.5 | AM32: 5.5 | AO32: 230.2 | AP32: 0.8 | AQ32: 1.7 | AR32: 0 | AS32: 12185 | AT32: 55 | AU32: 11392 | AV32: 77 | AW32: 5034 | AX32: 101 | AY32: 17224 | AZ32: 127 | BB32: 943 | BD32: 13.1 | CN32: 46.1769437 | CO32: Econo 3F-open, tape around damper perimeter frame gaps, no compressor,--55/51 ambient, 53.5% inlet 52% outlet Meriam, adjust code tester speed to match--match total static of run C-55-T3E-DM-SPWCT-SSR | CP32: R22 5.5 LBS. unsealed cab:Inlet Meriam set @ 53.5%: Outlet Meriam set @ 52% manually: Horiz airflow. ID Pulley is 3 turns open from fully closed: Econo open 3F: with flow meter: new filter drier: with isolation ball valves: with code | CQ32: 75.008 | CR32: 0.012 | CS32: 61.998 | CT32: 0.028 | CU32: 55.001 | CV32: 0.013 | CW32: 51.001 | CX32: 0.018 | CY32: 74.38 | CZ32: 0.05 | DA32: 65.48 | DB32: 0.02 | DC32: 69.27 | DD32: 0.01 | DE32: 0.004 | DF32: 0.008 | DG32: 1.156 | DH32: 0.0094 | DI32: 12185 | DJ32: 55 | DK32: 5034 | DL32: 101 | DM32: 46.184 | DN32: 0.678 | EM32: 229.8 | EN32: 0.8 | EO32: 229.8 | EP32: 0.8 | EQ32: 229.8 | ER32: 0.8 | ES32: 1.7 | ET32: 0 | EU32: 1.7 | EV32: 0 | EW32: 1.7 | EX32: 0 | GF32: 478 | GG32: 478 | GH32: 478 | GI32: 0.9 | GJ32: 0.9 | GK32: 1 | GL32: 500 | GM32: 0.63 | GN32: 13.1 | GO32: 18.1 | MX32: 65.03 | MY32: 0.42 | MZ32: 66.27 | NA32: 0.29 | NB32: 65.38 | NC32: 0.1 | ND32: 66.27 | NE32: 0.25 | NF32: 64.95 | NG32: 0.2 | NH32: 65.62 | NI32: 0.22 | OP32: 56.21 | OQ32: 0.03 | OT32: 55.39 | OU32: 0.15 | OV32: 55.69 | OW32: 0.21 | OX32: 54.66 | OY32: 0.1 | OZ32: 55 | PA32: 0.12 | PB32: 54.83 | PC32: 0.07 | PD32: 54.83 | PE32: 0.07 | QX32: 55.03 | QY32: 0.07 | QZ32: 54.8 | RA32: 0.09 | RB32: 74.44 | RC32: 0.07 | RD32: 74.42 | RE32: 0.06 | RF32: 74.37 | RG32: 0.03 | RH32: 74.5 | RI32: 0.08 | RJ32: 74.45 | RK32: 0.08 | RL32: 74.53 | RM32: 0.07 | RN32: 74.52 | RO32: 0.06 | RP32: 57.92 | RQ32: 0.04 | RR32: 58.22 | RS32: 0.04 | RT32: 58.08 | RU32: 0.06 | RV32: 57.19 | RW32: 0.05 | RX32: 57.99 | RY32: 0.05 | RZ32: 60.03 | SA32: 0.08 | SB32: 57.61 | SC32: 0.05 | SD32: 57.5 | SE32: 0.06 | SF32: 62.46 | SG32: 0.11 | SH32: 69.02 | SI32: 0.14 | SJ32: 62.66 | SK32: 0.17 | SL32: 64.7 | SM32: 0.16 | SN32: 68.99 | SO32: 0.07 | SP32: 72.77 | SQ32: 0.05 | SR32: 71.55 | SS32: 0.06 | ST32: 70.04 | SU32: 0.07 | SV32: 70.55 | SW32: 0.08 | SX32: 72.54 | SY32: 0.06 | SZ32: 72.66 | TA32: 0.04 | TB32: 69.57 | TC32: 0.05 | WJ32: Economizer test | WK32: 75.008 | WL32: 0.012 | WM32: 61.998 | WN32: 0.028 | WO32: 65.486 | WP32: 0.012 | WQ32: 57.066 | WR32: 0.021 | WS32: 55.001 | WT32: 0.013 | WU32: 51.001 | WV32: 0.018 | WW32: 1166.1 | WX32: 4.8 | WY32: 1135.8 | WZ32: 4.7 | XA32: 0.491 | XB32: 0.008 | XC32: -0.063 | XD32: 0.001 | XE32: 0.004 | XF32: 0.008 | XG32: 1.156 | XH32: 0.0094 | XI32: 29.531 | XJ32: 0.002 | XK32: 373 | XL32: 5 | XM32: 372.6 | XN32: 4.9 | XO32: 0.4344479432 | XP32: 493.4459739 | XQ32: 13.03 | XR32: 0.063 | XS32: 0.8300429118 | XT32: 5259.617881 | XU32: 65.51616359 | XV32: 493.4370629 | XW32: 2272.240453 | XX32: 2987.377428 | XY32: 0.008001611595 | XZ32: 24.65691508 | YA32: 64.65595709 | YB32: 13.0295294 | YC32: 13.30248729 | YD32: 0.006981639391 | YE32: 20.77825413 | YF32: 0.008777416513 | YG32: 27.60707807 | YH32: 0.007929860567 | YI32: 24.36078897 | YJ32: 66.38072231 | YK32: 57.53726993 | YL32: 24.15865621
A33: 5 | B33: C-55-TCE-DM | C33: 30N0024 | D33: C-55-TCE-DM | E33: closed | F33: Off | G33: N/A | I33: unsealed | J33: unsealed | M33: horizontal | N33: 0 | O33: 0 | P33: CUST 1 | Q33: 3/13/2014 | R33: 1:56:07 | S33: 10 Ton | T33: 0:30:00 | U33: 75/62 - 55/51 | V33: ENG 1 | W33: TECH 1 | X33: RTU5 | Y33: RTU5 | Z33: 3 | AA33: R22 | AB33: PSC Air Handler | AC33: 5.5 LBS | AD33: 208/230/1 | AE33: TU1 | AF33: AHRI 210/240 2008 | AG33: 75 | AH33: 62 | AI33: 55 | AJ33: 51 | AK33: 5.5 | AM33: 5.5 | AO33: 230.1 | AP33: 0.9 | AQ33: 1.7 | AR33: 0 | AS33: 2635 | AT33: 13 | AU33: 2131 | AV33: 30 | AW33: 1266 | AX33: 35 | AY33: 3902 | AZ33: 36 | BB33: 944 | BD33: 11.9 | CN33: 10.60326087 | CO33: Econo closed, tape around damper perimeter frame gaps, no compressor, 55/51 ambient,--53.5% inlet 52% outlet Meriam, adjust code tester speed to match total static of run C-55-TCE-DM-SPWCT-SS | CP33: R22 5.5 LBS. unsealed cab:Inlet Meriam set @ 53.5%: Outlet Meriam set @ 52% manually: Horiz airflow. ID Pulley is 3 turns open from fully closed: Econo fulley closed: with flow meter: new filter drier: with isolation ball valves: with code | CQ33: 74.999 | CR33: 0.01 | CS33: 62 | CT33: 0.03 | CU33: 54.991 | CV33: 0.014 | CW33: 50.995 | CX33: 0.014 | CY33: 74.37 | CZ33: 0.04 | DA33: 72.65 | DB33: 0.04 | DC33: 74.2 | DD33: 0 | DE33: 0.014 | DF33: 0.005 | DG33: 1.0892 | DH33: 0.0049 | DI33: 2635 | DJ33: 13 | DK33: 1266 | DL33: 35 | DM33: 10.62 | DN33: 0.172 | EM33: 229.8 | EN33: 0.9 | EO33: 229.8 | EP33: 0.9 | EQ33: 229.8 | ER33: 0.9 | ES33: 1.7 | ET33: 0 | EU33: 1.7 | EV33: 0 | EW33: 1.7 | EX33: 0 | GF33: 484 | GG33: 485 | GH33: 486 | GI33: 0.8 | GJ33: 0.8 | GK33: 1 | GL33: 470 | GM33: 0.62 | GN33: 11.9 | GO33: 17.5 | MX33: 72.64 | MY33: 0.05 | MZ33: 73.72 | NA33: 0.03 | NB33: 73.51 | NC33: 0.03 | ND33: 73.43 | NE33: 0.04 | NF33: 73.25 | NG33: 0.04 | NH33: 72.99 | NI33: 0.05 | OP33: 55.84 | OQ33: 0.03 | OT33: 54.71 | OU33: 0.08 | OV33: 54.7 | OW33: 0.08 | OX33: 54.42 | OY33: 0.06 | OZ33: 54.61 | PA33: 0.07 | PB33: 54.7 | PC33: 0.06 | PD33: 54.72 | PE33: 0.05 | PN33: 54.47 | PO33: 0.08 | QX33: 54.89 | QY33: 0.07 | QZ33: 54.64 | RA33: 0.06 | RB33: 74.64 | RC33: 0.05 | RD33: 74.63 | RE33: 0.04 | RF33: 74.47 | RG33: 0.02 | RH33: 74.81 | RI33: 0.06 | RJ33: 74.76 | RK33: 0.05 | RL33: 74.8 | RM33: 0.06 | RN33: 74.69 | RO33: 0.05 | RP33: 70.89 | RQ33: 0.05 | RR33: 70.84 | RS33: 0.05 | RT33: 71.29 | RU33: 0.08 | RV33: 70.33 | RW33: 0.06 | RX33: 69.81 | RY33: 0.05 | RZ33: 68.63 | SA33: 0.1 | SB33: 72.18 | SC33: 0.08 | SD33: 69.81 | SE33: 0.07 | SF33: 60.24 | SG33: 0.11 | SH33: 72.44 | SI33: 0.09 | SJ33: 74.61 | SK33: 0.05 | SL33: 74.62 | SM33: 0.05 | SN33: 61.53 | SO33: 0.14 | SP33: 74.49 | SQ33: 0.04 | SR33: 74.62 | SS33: 0.04 | ST33: 74.34 | SU33: 0.06 | SV33: 73.74 | SW33: 0.08 | SX33: 74.36 | SY33: 0.06 | SZ33: 74.41 | TA33: 0.03 | TB33: 74.51 | TC33: 0.04 | WJ33: Economizer test | WK33: 74.999 | WL33: 0.01 | WM33: 62 | WN33: 0.03 | WO33: 72.866 | WP33: 0.005 | WQ33: 60.908 | WR33: 0.025 | WS33: 54.991 | WT33: 0.014 | WU33: 50.995 | WV33: 0.014 | WW33: 1135.7 | WX33: 2.6 | WY33: 1097.5 | WZ33: 2.5 | XA33: 0.598 | XB33: 0.009 | XC33: -0.209 | XD33: 0.002 | XE33: 0.014 | XF33: 0.005 | XG33: 1.0892 | XH33: 0.0049 | XI33: 29.601 | XJ33: 0 | XK33: 368 | XL33: 5 | XM33: 367.1 | XN33: 4.9 | XO33: 0.0656237505 | XP33: 72.02206617 | XQ33: 13.029 | XR33: 0.209 | XS33: 0.8164622177 | XT33: 5049.580688 | XU33: 77.10291811 | XV33: 72.02281165 | XW33: 331.6662248 | XX33: 4717.914464 | XY33: 0.008662630226 | XZ33: 27.1597998 | YA33: 72.04953778 | YB33: 13.02926972 | YC33: 13.49458583 | YD33: 0.006980801574 | YE33: 20.77491375 | YF33: 0.008780861653 | YG33: 27.60865301 | YH33: 0.008572627211 | YI33: 26.86074343 | YJ33: 73.68886024 | YK33: 61.34698517 | YL33: 26.66168484
A34: 5 | B34: C-55-TOER-DM | C34: 30N0025 | D34: C-55-TOER-DM | E34: Fully open | F34: Off | G34: N/A | I34: unsealed | J34: unsealed | M34: horizontal | N34: 0 | O34: 0 | P34: CUST 1 | Q34: 3/13/2014 | R34: 20:37:37 | S34: 10 Ton | T34: 0:30:00 | U34: 75/62 - 55/51 | V34: ENG 1 | W34: TECH 1 | X34: RTU5 | Y34: RTU5 | Z34: 3 | AA34: R22 | AB34: PSC Air Handler | AC34: 5.5 LBS | AD34: 208/230/1 | AE34: TU1 | AF34: AHRI 210/240 2008 | AG34: 75 | AH34: 62 | AI34: 55 | AJ34: 51 | AK34: 5.5 | AM34: 5.5 | AO34: 230.1 | AP34: 0.8 | AQ34: 1.7 | AR34: 0 | AS34: 15988 | AT34: 116 | AU34: 15169 | AV34: 138 | AW34: 6508 | AX34: 111 | AY34: 22503 | AZ34: 193 | BB34: 944 | BD34: 11.7 | CN34: 60.49193548 | CO34: Econo fully-open, tape around damper perimeter frame gaps, no compressor,--55/51 ambient, 53.5% inlet 52% outlet Meriam, adjust code tester speed to match--match total static of run C-55-TOE-DM-SPWCT-SSR | CP34: R22 5.5 LBS. unsealed cab:Inlet Meriam set @ 53.5%: Outlet Meriam set @ 52% manually: Horiz airflow. ID Pulley is 3 turns open from fully closed: Econo fully open: with flow meter: new filter drier: with isolation ball valves: with code | CQ34: 75.002 | CR34: 0.016 | CS34: 62 | CT34: 0.025 | CU34: 54.992 | CV34: 0.009 | CW34: 50.998 | CX34: 0.014 | CY34: 74.36 | CZ34: 0.05 | DA34: 62.38 | DB34: 0.03 | DC34: 67.3 | DD34: 0.02 | DE34: 0.025 | DF34: 0.009 | DG34: 1.1268 | DH34: 0.0169 | DI34: 15988 | DJ34: 116 | DK34: 6508 | DL34: 111 | DM34: 60.512 | DN34: 0.901 | EM34: 229.8 | EN34: 0.8 | EO34: 229.8 | EP34: 0.8 | EQ34: 229.8 | ER34: 0.8 | ES34: 1.7 | ET34: 0 | EU34: 1.7 | EV34: 0 | EW34: 1.7 | EX34: 0 | GF34: 481 | GG34: 481 | GH34: 481 | GI34: 0.8 | GJ34: 0.8 | GK34: 1 | GL34: 470 | GM34: 0.63 | GN34: 11.7 | GO34: 17.5 | MX34: 62.09 | MY34: 0.17 | MZ34: 62.79 | NA34: 0.14 | NB34: 62.39 | NC34: 0.06 | ND34: 62.65 | NE34: 0.14 | NF34: 61.99 | NG34: 0.13 | NH34: 62.21 | NI34: 0.13 | OP34: 56.56 | OQ34: 0.02 | OT34: 55.67 | OU34: 0.11 | OV34: 55.8 | OW34: 0.17 | OX34: 54.73 | OY34: 0.09 | OZ34: 54.9 | PA34: 0.08 | PB34: 54.67 | PC34: 0.07 | PD34: 54.69 | PE34: 0.07 | QX34: 55.11 | QY34: 0.09 | QZ34: 54.73 | RA34: 0.09 | RB34: 74.33 | RC34: 0.06 | RD34: 74.36 | RE34: 0.05 | RF34: 74.37 | RG34: 0.04 | RH34: 74.35 | RI34: 0.07 | RJ34: 74.32 | RK34: 0.07 | RL34: 74.41 | RM34: 0.06 | RN34: 74.45 | RO34: 0.05 | RP34: 57.8 | RQ34: 0.05 | RR34: 58.13 | RS34: 0.05 | RT34: 58.41 | RU34: 0.06 | RV34: 57.08 | RW34: 0.06 | RX34: 57.12 | RY34: 0.05 | RZ34: 62.49 | SA34: 0.13 | SB34: 58.06 | SC34: 0.08 | SD34: 57.46 | SE34: 0.07 | SF34: 68.43 | SG34: 0.07 | SH34: 65.82 | SI34: 0.1 | SJ34: 56.4 | SK34: 0.15 | SL34: 55.92 | SM34: 0.09 | SN34: 73.9 | SO34: 0.04 | SP34: 72.2 | SQ34: 0.04 | SR34: 62 | SS34: 0.09 | ST34: 61.8 | SU34: 0.14 | SV34: 72.88 | SW34: 0.05 | SX34: 71.2 | SY34: 0.06 | SZ34: 64.89 | TA34: 0.07 | TB34: 63.28 | TC34: 0.12 | WJ34: Economizer test | WK34: 75.002 | WL34: 0.016 | WM34: 62 | WN34: 0.025 | WO34: 62.366 | WP34: 0.019 | WQ34: 55.388 | WR34: 0.022 | WS34: 54.992 | WT34: 0.009 | WU34: 50.998 | WV34: 0.014 | WW34: 1151.1 | WX34: 8.7 | WY34: 1121.6 | WZ34: 8.5 | XA34: 0.416 | XB34: 0.004 | XC34: -0.024 | XD34: 0.001 | XE34: 0.025 | XF34: 0.009 | XG34: 1.1268 | XH34: 0.0169 | XI34: 29.416 | XJ34: 0.001 | XK34: 372 | XL34: 5 | XM34: 371.5 | XN34: 5.2 | XO34: 0.5885057471 | XP34: 660.068046 | XQ34: 13.029 | XR34: 0.024 | XS34: =(XM34-XU34)*3.412/XT34/0.24 -> 0.8618698807 | XT34: 5223.770479 | XU34: 54.81462324 | XV34: =XP34*SQRT(-XC34*YB34/(XR34*XQ34)) -> 660.075787 | XW34: 3039.651416 | XX34: 2184.119063 | XY34: 0.007733921959 | XZ34: 23.6331608 | YA34: 61.50413012 | YB34: 13.0293056 | YC34: 13.22148442 | YD34: 0.006982160482 | YE34: 20.77663183 | YF34: 0.008780152852 | YG34: 27.60860906 | YH34: 0.007679507296 | YI34: 23.32844667 | YJ34: 63.37437823 | YK34: 55.89086749 | YL34: 23.11865918
A35: 5 | B35: C-75629575-T1E3 | C35: 30N0026 | D35: C-75629575-T1E3 | E35: 1 Finger | F35: on | G35: N/A | H35: 3 turns | I35: unsealed | J35: unsealed | M35: horizontal | N35: 0 | O35: 0 | P35: CUST 1 | Q35: 3/11/2014 | R35: 16:39:59 | S35: 10 Ton | T35: 0:30:00 | U35: 75/62 95/75 | V35: ENG 1 | W35: TECH 1 | X35: RTU5 | Y35: RTU5 | Z35: 3 | AA35: R22 | AB35: PSC Air Handler | AC35: 5.5 LBS | AD35: 208/230/1 | AE35: TU1 | AF35: AHRI 210/240 2008 | AG35: 75 | AH35: 62 | AI35: 95 | AJ35: 75 | AK35: 5.5 | AM35: 5.5 | AO35: 230.3 | AP35: 0.9 | AQ35: 15 | AR35: 0 | AS35: 19299 | AT35: 73 | AU35: 18440 | AV35: 105 | AW35: 1127 | AX35: 70 | AY35: 20427 | AZ35: 101 | BB35: 939 | BD35: 7.38 | BF35: 112.07 | BG35: 0.01 | BH35: 43.3 | CN35: 5.802465424 | CO35: 1 Finger open damper, tape around damper perimiter frame gaps, unsealed cab,--53.5% inlet 52% outlet Meriam, adjust code tester speed to match total static--of run C-T1EM3-SPWCT-SR | CP35: R22 5.5 LBS. unsealed cab:Inlet Meriam set @ 53.5%: Outlet Meriam set @ 52% manually: Horiz airflow. ID Pulley is 3 turns open from fully closed: with economizer: with flow meter: new filter drier: with isolation ball valves: with code | CQ35: 74.996 | CR35: 0.01 | CS35: 61.999 | CT35: 0.021 | CU35: 95.002 | CV35: 0.014 | CW35: 75 | CX35: 0.018 | CY35: 74.41 | CZ35: 0.07 | DA35: 59.27 | DB35: 0.05 | DC35: 65.41 | DD35: 0.05 | DE35: 0.01 | DF35: 0.006 | DG35: 0.7755 | DH35: 0.0059 | DI35: 19299 | DJ35: 73 | DK35: 1127 | DL35: 70 | DM35: 6.142 | DN35: 0.034 | DQ35: 10.83042694 | DU35: 229.8 | DV35: 0.9 | DW35: 229.8 | DX35: 0.9 | DY35: 229.8 | DZ35: 0.9 | EA35: 13.4 | EB35: 0 | EC35: 13.4 | ED35: 0 | EE35: 13.4 | EF35: 0 | EG35: 2966.3 | EH35: 5.7 | EI35: 2966.3 | EJ35: 5.7 | EK35: 2966.3 | EL35: 5.7 | EM35: 230 | EN35: 0.9 | EO35: 230 | EP35: 0.9 | EQ35: 230 | ER35: 0.9 | ES35: 1.6 | ET35: 0 | EU35: 1.6 | EV35: 0 | EW35: 1.6 | EX35: 0 | EZ35: 227.8 | FA35: 0.9 | FB35: 227.8 | FC35: 0.9 | FD35: 227.8 | FE35: 0.9 | FF35: 12.7 | FG35: 0 | FH35: 12.7 | FI35: 0 | FJ35: 12.7 | FK35: 0 | FL35: 2773.6 | FM35: 5.1 | FW35: 228.3 | FX35: 0.9 | FY35: 0.7 | FZ35: 0 | GA35: 168.9 | GB35: 0.8 | GC35: 23 | GE35: 3323.7 | GF35: 484 | GG35: 485 | GH35: 484 | GI35: 0.7 | GJ35: 0.7 | GK35: 0.7 | GL35: 380 | GM35: 0.62 | GN35: 7.38 | GO35: 15.3 | HB35: 263.72 | HC35: 0.19 | HD35: 181.44 | HE35: 0.03 | HF35: 120.92 | HG35: 0.05 | HH35: 60.51 | HI35: 0.05 | HJ35: 243.8 | HK35: 0.22 | HL35: 103.46 | HM35: 0.05 | HN35: 115.16 | HO35: 0.07 | HP35: 11.7 | HQ35: 0.09 | HR35: 77.31 | HS35: 0.06 | HT35: 63.98 | HU35: 0.06 | HV35: 45.47 | HW35: 0.04 | HZ35: 78.01 | IA35: 0.03 | IB35: 67.56 | IC35: 0.06 | ID35: 45.92 | IE35: 0.02 | IF35: 21.64 | IG35: 0.06 | IH35: 520.89 | II35: 0.54 | IJ35: 40.57 | IK35: 0.02 | IL35: 36022 | IM35: 46 | IN35: 37245 | IO35: 42 | JL35: 247.45 | JM35: 0.23 | JN35: 104.3 | JO35: 0.04 | JP35: 116.24 | JQ35: 0.07 | JR35: 11.93 | JS35: 0.07 | JT35: 246.06 | JU35: 0.21 | JV35: 115.83 | JW35: 0.06 | JX35: 12.54 | JY35: 0.07 | JZ35: 18.51 | KA35: 0.07 | MX35: 58.53 | MY35: 0.07 | MZ35: 60.32 | NA35: 0.05 | NB35: 59.81 | NC35: 0.1 | ND35: 60.14 | NE35: 0.03 | NF35: 59.41 | NG35: 0.1 | NH35: 59.42 | NI35: 0.05 | OP35: 104.07 | OQ35: 0.06 | OT35: 94.69 | OU35: 0.08 | OV35: 94.63 | OW35: 0.09 | OX35: 94.85 | OY35: 0.06 | OZ35: 94.9 | PA35: 0.07 | PB35: 94.89 | PC35: 0.06 | PD35: 94.91 | PE35: 0.06 | PR35: 103.29 | PS35: 0.06 | QX35: 94.96 | QY35: 0.08 | QZ35: 95.26 | RA35: 0.08 | RB35: 74.74 | RC35: 0.05 | RD35: 74.72 | RE35: 0.04 | RF35: 74.47 | RG35: 0.05 | RH35: 74.9 | RI35: 0.06 | RJ35: 74.9 | RK35: 0.06 | RL35: 74.87 | RM35: 0.05 | RN35: 74.68 | RO35: 0.05 | RP35: 87.16 | RQ35: 0.04 | RR35: 86.45 | RS35: 0.04 | RT35: 86.2 | RU35: 0.06 | RV35: 85.62 | RW35: 0.07 | RX35: 86.12 | RY35: 0.05 | RZ35: 86.46 | SA35: 0.07 | SB35: 86.35 | SC35: 0.08 | SD35: 86.03 | SE35: 0.08 | SF35: 89.46 | SG35: 0.06 | SH35: 75.69 | SI35: 0.08 | SJ35: 75.85 | SK35: 0.07 | SL35: 75.29 | SM35: 0.05 | SN35: 81.39 | SO35: 0.16 | SP35: 75.8 | SQ35: 0.05 | SR35: 75.06 | SS35: 0.05 | ST35: 75.55 | SU35: 0.04 | SV35: 76.24 | SW35: 0.09 | SX35: 74.95 | SY35: 0.04 | SZ35: 74.87 | TA35: 0.04 | TB35: 74.96 | TC35: 0.05 | WJ35: C-55-T1ER-DM | WK35: 74.996 | WL35: 0.01 | WM35: 61.999 | WN35: 0.021 | WO35: 59.146 | WP35: 0.015 | WQ35: 55.908 | WR35: 0.02 | WS35: 95.002 | WT35: 0.014 | WU35: 75 | WV35: 0.018 | WW35: 1133.5 | WX35: 4.3 | WY35: 1085.3 | WZ35: 4.2 | XA35: 0.544 | XB35: 0.005 | XC35: -0.159 | XD35: 0.002 | XE35: 0.01 | XF35: 0.006 | XG35: 0.7755 | XH35: 0.0059 | XI35: 28.861 | XJ35: 0.001 | XK35: 3326 | XL35: 9 | XM35: 358.2 | XN35: 5.6 | XO35: 0.1966 | XP35: 226.12932 | XQ35: 13.029 | XR35: 0.164 | XS35: 0.7938690407 | XT35: 5172.555008 | XU35: 69.36075389 | XV35: 231.6257897 | XW35: 985.6444553 | XX35: 4186.910552 | XY35: 0.0097602355 | XZ35: 29.61813757 | YA35: 58.35213096 | YB35: 14.09995999 | YC35: 13.14824103 | YD35: 0.01392029926 | YE35: 38.1570881 | YF35: 0.008780911072 | YG35: 27.60797539 | YH35: 0.008741976885 | YI35: 23.69984899 | YJ35: 78.83701659 | YK35: 64.77913338 | YL35: 23.50623907 | YM35: =(XZ35-YL35)*XT35 -> 31614.13121 | YN35: =0.24*(YJ35-YA35)*XT35 -> 25430.20746 | YO35: =XK35-XM35 -> 2967.8 | YP35: =YO35*3.413/YM35 -> 0.3203979048 | YQ35: =YM35-(XM35-XU35)*3.413 -> 30628.32286 | YR35: =YN35-(XM35-XU35)*3.413 -> 24444.39911 | YS35: =YQ35/XK35 -> 9.208756121 | YT35: =(YA35-YW35)/(YJ35-YW35) -> 0.2194192599 | YU35: =-XZ35+YL35 -> -6.111898503 | YV35: =-YJ35+YA35 -> -20.48488563 | YW35: =(-(-0.0182984848494437-(YU35/YV35))+SQRT((-0.0182984848494437-(YU35/YV35))^2-4*0.00577826340327261*(6.76723916086377-XZ35+(YU35/YV35)*YJ35)))/(2*0.00577826340327261) -> 52.59388173 | YX35: =XT35*(XZ35-YL35) -> 31614.13121 | YY35: =XT35*(YG35-YI35) -> 20214.99878 | YZ35: =XT35*(YI35-YL35) -> 1001.457977 | ZA35: =XW35*(YE35-YG35) -> 10397.67445 | ZB35: =SUM(YY35:ZA35) -> 31614.13121 | ZC35: =ZB35/YX35 -> 1
A36: 5 | B36: C-75629575-T2E3-1 | C36: 30N0027 | D36: C-75629575-T2E3-1 | E36: 2 Finger | F36: on | G36: N/A | H36: 3 turns | I36: unsealed | J36: unsealed | M36: horizontal | N36: 0 | O36: 0 | P36: CUST 1 | Q36: 3/11/2014 | R36: 23:42:30 | S36: 10 Ton | T36: 0:30:00 | U36: 75/62 - 95/75 | V36: ENG 1 | W36: TECH 1 | X36: RTU5 | Y36: RTU5 | Z36: 3 | AA36: R22 | AB36: PSC Air Handler | AC36: 5.5 LBS | AD36: 208/230/1 | AE36: TU1 | AF36: AHRI 210/240 2008 | AG36: 75 | AH36: 62 | AI36: 95 | AJ36: 75 | AK36: 5.5 | AM36: 5.5 | AO36: 230.3 | AP36: 0.9 | AQ36: 15 | AR36: 0 | AS36: 17224 | AT36: 33 | AU36: 16415 | AV36: 67 | AW36: -1803 | AX36: 74 | AY36: 15419 | AZ36: 75 | BB36: 939 | BD36: 7.5 | BF36: 112.64 | BG36: 0.01 | BH36: 58.01 | CN36: 5.172372372 | CO36: Factory charge, 3 turns, Econo 2 Fingers open damper, tape around damper perimiter frame gaps, unsealed cab,--cab, 53.5% inlet 52% outlet Meriam, adjust code tester speed to match total static of run C-T2EM3-SPWCT-SR | CP36: R22 5.5 LBS. unsealed cab:Inlet Meriam set @ 53.5%: Outlet Meriam set @ 52% manually: Horiz airflow. ID Pulley is 3 turns open from fully closed: Econo open 2F: with flow meter: new filter drier: with isolation ball valves: with code | CQ36: 75.003 | CR36: 0.013 | CS36: 62 | CT36: 0.023 | CU36: 94.998 | CV36: 0.007 | CW36: 75.002 | CX36: 0.025 | CY36: 74.41 | CZ36: 0.05 | DA36: 61.02 | DB36: 0.03 | DC36: 66.44 | DD36: 0.02 | DE36: 0.008 | DF36: 0.002 | DG36: 0.7908 | DH36: 0.0024 | DI36: 17224 | DJ36: 33 | DK36: -1803 | DL36: 74 | DM36: 4.63 | DN36: 0.025 | DQ36: 11.02822823 | DU36: 229.7 | DV36: 0.9 | DW36: 229.7 | DX36: 0.9 | DY36: 229.7 | DZ36: 0.9 | EA36: 13.4 | EB36: 0 | EC36: 13.4 | ED36: 0 | EE36: 13.4 | EF36: 0 | EG36: 2967.8 | EH36: 5.1 | EI36: 2967.8 | EJ36: 5.1 | EK36: 2967.8 | EL36: 5.1 | EM36: 230 | EN36: 0.9 | EO36: 230 | EP36: 0.9 | EQ36: 230 | ER36: 0.9 | ES36: 1.6 | ET36: 0 | EU36: 1.6 | EV36: 0 | EW36: 1.6 | EX36: 0 | EZ36: 227.8 | FA36: 0.9 | FB36: 227.8 | FC36: 0.9 | FD36: 227.8 | FE36: 0.9 | FF36: 12.7 | FG36: 0 | FH36: 12.7 | FI36: 0 | FJ36: 12.7 | FK36: 0 | FL36: 2774.8 | FM36: 4.6 | FW36: 228.3 | FX36: 0.9 | FY36: 0.7 | FZ36: 0 | GA36: 169.7 | GB36: 0.8 | GC36: 23 | GE36: 3328.5 | GF36: 487 | GG36: 488 | GH36: 489 | GI36: 0.7 | GJ36: 0.7 | GK36: 0.8 | GL36: 380 | GM36: 0.63 | GN36: 7.5 | GO36: 15.4 | HB36: 264.75 | HC36: 0.17 | HD36: 182.86 | HE36: 0.04 | HF36: 121.25 | HG36: 0.05 | HH36: 61.61 | HI36: 0.06 | HJ36: 244.71 | HK36: 0.22 | HL36: 103.14 | HM36: 0.04 | HN36: 115.47 | HO36: 0.07 | HP36: 12.33 | HQ36: 0.08 | HR36: 78.55 | HS36: 0.04 | HT36: 67.55 | HU36: 0.04 | HV36: 46.35 | HW36: 0.03 | HZ36: 79.31 | IA36: 0.02 | IB36: 70.18 | IC36: 0.04 | ID36: 46.83 | IE36: 0.01 | IF36: 23.35 | IG36: 0.04 | IH36: 525.9 | II36: 0.51 | IJ36: 40.47 | IK36: 0.01 | IL36: 36724 | IM36: 45 | IN36: 37956 | IO36: 41 | JL36: 248.41 | JM36: 0.21 | JN36: 103.98 | JO36: 0.04 | JP36: 116.56 | JQ36: 0.06 | JR36: 12.59 | JS36: 0.07 | JT36: 247 | JU36: 0.2 | JV36: 116.15 | JW36: 0.06 | JX36: 13.13 | JY36: 0.07 | JZ36: 21.2 | KA36: 0.05 | MX36: 60.61 | MY36: 0.06 | MZ36: 61.97 | NA36: 0.07 | NB36: 61.76 | NC36: 0.09 | ND36: 61.74 | NE36: 0.06 | NF36: 61.49 | NG36: 0.06 | NH36: 61.12 | NI36: 0.04 | OP36: 103.7 | OQ36: 0.05 | OT36: 94.67 | OU36: 0.08 | OV36: 94.64 | OW36: 0.08 | OX36: 94.86 | OY36: 0.06 | OZ36: 94.91 | PA36: 0.08 | PB36: 94.89 | PC36: 0.08 | PD36: 94.91 | PE36: 0.07 | PN36: 94.85 | PO36: 0.07 | PR36: 103.02 | PS36: 0.05 | QX36: 94.79 | QY36: 0.09 | QZ36: 95.12 | RA36: 0.08 | RB36: 74.65 | RC36: 0.07 | RD36: 74.68 | RE36: 0.05 | RF36: 74.5 | RG36: 0.05 | RH36: 74.78 | RI36: 0.09 | RJ36: 74.8 | RK36: 0.09 | RL36: 74.79 | RM36: 0.09 | RN36: 74.65 | RO36: 0.06 | RP36: 89.75 | RQ36: 0.07 | RR36: 88.87 | RS36: 0.05 | RT36: 88.99 | RU36: 0.05 | RV36: 89.26 | RW36: 0.06 | RX36: 88.87 | RY36: 0.03 | RZ36: 87.94 | SA36: 0.08 | SB36: 89.83 | SC36: 0.07 | SD36: 89.49 | SE36: 0.08 | SF36: 88.79 | SG36: 0.08 | SH36: 76.15 | SI36: 0.06 | SJ36: 80.1 | SK36: 0.14 | SL36: 78.78 | SM36: 0.13 | SN36: 83.16 | SO36: 0.14 | SP36: 75.83 | SQ36: 0.04 | SR36: 75.63 | SS36: 0.04 | ST36: 75.78 | SU36: 0.06 | SV36: 77.62 | SW36: 0.14 | SX36: 75.51 | SY36: 0.06 | SZ36: 75.09 | TA36: 0.04 | TB36: 75.75 | TC36: 0.04 | WJ36: C-55-T2ER-DM | WK36: 75.003 | WL36: 0.013 | WM36: 62 | WN36: 0.023 | WO36: 60.959 | WP36: 0.007 | WQ36: 57.484 | WR36: 0.012 | WS36: 94.998 | WT36: 0.007 | WU36: 75.002 | WV36: 0.025 | WW36: 1140.3 | WX36: 1.7 | WY36: 1099.8 | WZ36: 1.7 | XA36: 0.516 | XB36: 0.003 | XC36: -0.12 | XD36: 0.001 | XE36: 0.008 | XF36: 0.002 | XG36: 0.7908 | XH36: 0.0024 | XI36: 29.15 | XJ36: 0.003 | XK36: 3330 | XL36: 8 | XM36: 361 | XN36: 5.6 | XO36: 0.2770277028 | XP36: 319.1636164 | XQ36: 13.029 | XR36: 0.126 | XS36: 0.807190832 | XT36: 5183.898973 | XU36: 66.6697028 | XV36: 324.019319 | XW36: 1378.817278 | XX36: 3805.081695 | XY36: 0.01014788035 | XZ36: 30.41482401 | YA36: 60.15180917 | YB36: 14.09988071 | YC36: 13.19817388 | YD36: 0.01392300991 | YE36: 38.15909371 | YF36: 0.008779916586 | YG36: 27.60859441 | YH36: 0.009250742926 | YI36: 24.69557697 | YJ36: 80.35774326 | YK36: 65.83667906 | YL36: 24.49853577 | YM36: =(XZ36-YL36)*XT36 -> 30669.44054 | YN36: =0.24*(YJ36-YA36)*XT36 -> 25138.92504 | YO36: =XK36-XM36 -> 2969 | YP36: =YO36*3.413/YM36 -> 0.3304004514 | YQ36: =YM36-(XM36-XU36)*3.413 -> 29664.89124 | YR36: =YN36-(XM36-XU36)*3.413 -> 24134.37573 | YS36: =YQ36/XK36 -> 8.908375747 | YT36: =(YA36-YW36)/(YJ36-YW36) -> 0.2269796173 | YU36: =-XZ36+YL36 -> -5.916288242 | YV36: =-YJ36+YA36 -> -20.20593409 | YW36: =(-(-0.0182984848494437-(YU36/YV36))+SQRT((-0.0182984848494437-(YU36/YV36))^2-4*0.00577826340327261*(6.76723916086377-XZ36+(YU36/YV36)*YJ36)))/(2*0.00577826340327261) -> 54.21880237 | YX36: =XT36*(XZ36-YL36) -> 30669.44054 | YY36: =XT36*(YG36-YI36) -> 15100.78816 | YZ36: =XT36*(YI36-YL36) -> 1021.441668 | ZA36: =XW36*(YE36-YG36) -> 14547.21071 | ZB36: =SUM(YY36:ZA36) -> 30669.44054 | ZC36: =ZB36/YX36 -> 1
A37: 5 | B37: C-75629575-T3E3 | C37: 30N0028 | D37: C-75629575-T3E3 | E37: 3 Finger | F37: on | G37: N/A | H37: 3 turns | I37: unsealed | J37: unsealed | M37: horizontal | N37: 0 | O37: 0 | P37: CUST 1 | Q37: 3/12/2014 | R37: 2:32:39 | S37: 10 Ton | T37: 0:30:00 | U37: 75/62 - 95/75 | V37: ENG 1 | W37: TECH 1 | X37: RTU5 | Y37: RTU5 | Z37: 3 | AA37: R22 | AB37: PSC Air Handler | AC37: 5.5 LBS | AD37: 208/230/1 | AE37: TU1 | AF37: AHRI 210/240 2008 | AG37: 75 | AH37: 62 | AI37: 95 | AJ37: 75 | AK37: 5.5 | AM37: 5.5 | AO37: 230.3 | AP37: 0.9 | AQ37: 15.2 | AR37: 0 | AS37: 14084 | AT37: 30 | AU37: 13373 | AV37: 60 | AW37: -6256 | AX37: 72 | AY37: 7822 | AZ37: 80 | BB37: 939 | BD37: 8.3 | BF37: 113.19 | BG37: 0.01 | BH37: 79.15 | CN37: 4.209205021 | CO37: Factory charge, 3 turns, Econo 3 Fingers open damper, tape around damper perimiter frame gaps, unsealed cab,--cab, 53.5% inlet 52% outlet Meriam, adjust code tester speed to match total static of run C-T3EM3-SPWCT-SR | CP37: R22 5.5 LBS. unsealed cab:Inlet Meriam set @ 53.5%: Outlet Meriam set @ 52% manually: Horiz airflow. ID Pulley is 3 turns open from fully closed: Econo open 3F: with flow meter: new filter drier: with isolation ball valves: with code | CQ37: 74.994 | CR37: 0.007 | CS37: 61.999 | CT37: 0.021 | CU37: 95 | CV37: 0.008 | CW37: 75.001 | CX37: 0.012 | CY37: 74.42 | CZ37: 0.05 | DA37: 63.57 | DB37: 0.05 | DC37: 68.17 | DD37: 0.02 | DE37: 0.024 | DF37: 0.005 | DG37: 0.8191 | DH37: 0.0035 | DI37: 14084 | DJ37: 30 | DK37: -6256 | DL37: 72 | DM37: 2.338 | DN37: 0.025 | DQ37: 11.21338912 | DU37: 229.8 | DV37: 0.9 | DW37: 229.8 | DX37: 0.9 | DY37: 229.8 | DZ37: 0.9 | EA37: 13.5 | EB37: 0 | EC37: 13.5 | ED37: 0 | EE37: 13.5 | EF37: 0 | EG37: 2981 | EH37: 6.4 | EI37: 2981 | EJ37: 6.4 | EK37: 2981 | EL37: 6.4 | EM37: 230 | EN37: 0.9 | EO37: 230 | EP37: 0.9 | EQ37: 230 | ER37: 0.9 | ES37: 1.7 | ET37: 0 | EU37: 1.7 | EV37: 0 | EW37: 1.7 | EX37: 0 | EZ37: 227.8 | FA37: 1 | FB37: 227.8 | FC37: 1 | FD37: 227.8 | FE37: 1 | FF37: 12.8 | FG37: 0 | FH37: 12.8 | FI37: 0 | FJ37: 12.8 | FK37: 0 | FL37: 2787.8 | FM37: 6.1 | FW37: 228.3 | FX37: 1 | FY37: 0.7 | FZ37: 0 | GA37: 170.1 | GB37: 0.9 | GC37: 23 | GE37: 3344.8 | GF37: 488 | GG37: 489 | GH37: 490 | GI37: 0.8 | GJ37: 0.7 | GK37: 0.9 | GL37: 410 | GM37: 0.62 | GN37: 8.3 | GO37: 15.8 | HB37: 266.27 | HC37: 0.19 | HD37: 184.64 | HE37: 0.03 | HF37: 121.69 | HG37: 0.05 | HH37: 62.95 | HI37: 0.06 | HJ37: 246.05 | HK37: 0.22 | HL37: 102.82 | HM37: 0.05 | HN37: 115.89 | HO37: 0.07 | HP37: 13.07 | HQ37: 0.08 | HR37: 80.16 | HS37: 0.05 | HT37: 71.1 | HU37: 0.06 | HV37: 47.4 | HW37: 0.03 | HZ37: 80.86 | IA37: 0.03 | IB37: 73.12 | IC37: 0.05 | ID37: 47.84 | IE37: 0.02 | IF37: 25.27 | IG37: 0.06 | IH37: 532.28 | II37: 0.55 | IJ37: 40.37 | IK37: 0.02 | IL37: 37520 | IM37: 47 | IN37: 38762 | IO37: 43 | JL37: 249.83 | JM37: 0.21 | JN37: 103.73 | JO37: 0.06 | JP37: 117 | JQ37: 0.06 | JR37: 13.27 | JS37: 0.06 | JT37: 248.39 | JU37: 0.22 | JV37: 116.58 | JW37: 0.06 | JX37: 13.91 | JY37: 0.07 | JZ37: 23.7 | KA37: 0.07 | MX37: 63.18 | MY37: 0.28 | MZ37: 64.04 | NA37: 0.07 | NB37: 63.91 | NC37: 0.19 | ND37: 63.9 | NE37: 0.11 | NF37: 63.98 | NG37: 0.27 | NH37: 63.6 | NI37: 0.15 | OP37: 103.3 | OQ37: 0.05 | OT37: 94.38 | OU37: 0.15 | OV37: 94.19 | OW37: 0.15 | OX37: 94.72 | OY37: 0.09 | OZ37: 94.64 | PA37: 0.11 | PB37: 94.79 | PC37: 0.07 | PD37: 94.82 | PE37: 0.07 | PN37: 94.76 | PO37: 0.07 | PR37: 102.66 | PS37: 0.07 | QX37: 94.49 | QY37: 0.07 | QZ37: 94.88 | RA37: 0.07 | RB37: 74.47 | RC37: 0.05 | RD37: 74.57 | RE37: 0.03 | RF37: 74.5 | RG37: 0.03 | RH37: 74.48 | RI37: 0.06 | RJ37: 74.52 | RK37: 0.06 | RL37: 74.55 | RM37: 0.05 | RN37: 74.54 | RO37: 0.04 | RP37: 92.59 | RQ37: 0.04 | RR37: 92.06 | RS37: 0.04 | RT37: 91.89 | RU37: 0.05 | RV37: 92.41 | RW37: 0.05 | RX37: 91.97 | RY37: 0.04 | RZ37: 90.54 | SA37: 0.09 | SB37: 93.38 | SC37: 0.06 | SD37: 93.22 | SE37: 0.07 | SF37: 88.77 | SG37: 0.11 | SH37: 80.85 | SI37: 0.12 | SJ37: 90.04 | SK37: 0.13 | SL37: 86.05 | SM37: 0.19 | SN37: 82.49 | SO37: 0.09 | SP37: 75.96 | SQ37: 0.04 | SR37: 76.24 | SS37: 0.04 | ST37: 75.94 | SU37: 0.04 | SV37: 79.79 | SW37: 0.09 | SX37: 75.58 | SY37: 0.03 | SZ37: 75.82 | TA37: 0.03 | TB37: 76.81 | TC37: 0.04 | WJ37: C-55-T3ER-DM | WK37: 74.994 | WL37: 0.007 | WM37: 61.999 | WN37: 0.021 | WO37: 63.581 | WP37: 0.016 | WQ37: 59.76 | WR37: 0.016 | WS37: 95 | WT37: 0.008 | WU37: 75.001 | WV37: 0.012 | WW37: 1160 | WX37: 2.5 | WY37: 1119.1 | WZ37: 2.4 | XA37: 0.468 | XB37: 0.007 | XC37: -0.071 | XD37: 0.001 | XE37: 0.024 | XF37: 0.005 | XG37: 0.8191 | XH37: 0.0035 | XI37: 29.286 | XJ37: 0.002 | XK37: 3346 | XL37: 9 | XM37: 363.9 | XN37: 5.5 | XO37: 0.4344479432 | XP37: 493.4459739 | XQ37: 13.03 | XR37: 0.063 | XS37: 0.8196468905 | XT37: 5244.584928 | XU37: 61.52899918 | XV37: 544.9223631 | XW37: 2318.831665 | XX37: 2925.753263 | XY37: 0.01105409408 | XZ37: 32.27260147 | YA37: 62.76135311 | YB37: 14.09992035 | YC37: 13.27083095 | YD37: 0.01392165457 | YE37: 38.15809089 | YF37: 0.008781383607 | YG37: 27.60800469 | YH37: 0.01003757382 | YI37: 26.19266618 | YJ37: 83.88540251 | YK37: 68.21184801 | YL37: 25.99229802 | YM37: =(XZ37-YL37)*XT37 -> 32937.58482 | YN37: =0.24*(YJ37-YA37)*XT37 -> 26588.84907 | YO37: =XK37-XM37 -> 2982.1 | YP37: =YO37*3.413/YM37 -> 0.3090058775 | YQ37: =YM37-(XM37-XU37)*3.413 -> 31905.59259 | YR37: =YN37-(XM37-XU37)*3.413 -> 25556.85684 | YS37: =YQ37/XK37 -> 9.535443094 | YT37: =(YA37-YW37)/(YJ37-YW37) -> 0.232658044 | YU37: =-XZ37+YL37 -> -6.28030345 | YV37: =-YJ37+YA37 -> -21.1240494 | YW37: =(-(-0.0182984848494437-(YU37/YV37))+SQRT((-0.0182984848494437-(YU37/YV37))^2-4*0.00577826340327261*(6.76723916086377-XZ37+(YU37/YV37)*YJ37)))/(2*0.00577826340327261) -> 56.35654235 | YX37: =XT37*(XZ37-YL37) -> 32937.58482 | YY37: =XT37*(YG37-YI37) -> 7422.863028 | YZ37: =XT37*(YI37-YL37) -> 1050.847831 | ZA37: =XW37*(YE37-YG37) -> 24463.87396 | ZB37: =SUM(YY37:ZA37) -> 32937.58482 | ZC37: =ZB37/YX37 -> 1
A38: 5 | B38: C-75629575-TE3 | C38: 30N0029 | D38: C-75629575-TE3 | E38: closed | F38: on | G38: N/A | H38: 3 turns | I38: unsealed | J38: unsealed | M38: horizontal | N38: 0 | O38: 0 | P38: CUST 1 | Q38: 3/11/2014 | R38: 14:48:22 | S38: 10 Ton | T38: 0:30:00 | U38: 75/62 95/75 | V38: ENG 1 | W38: TECH 1 | X38: RTU5 | Y38: RTU5 | Z38: 3 | AA38: R22 | AB38: PSC Air Handler | AC38: 5.5 LBS | AD38: 208/230/1 | AE38: TU1 | AF38: AHRI 210/240 2008 | AG38: 75 | AH38: 62 | AI38: 95 | AJ38: 75 | AK38: 5.5 | AM38: 5.5 | AO38: 230.3 | AP38: 0.9 | AQ38: 15 | AR38: 0 | AS38: 21752 | AT38: 40 | AU38: 20819 | AV38: 88 | AW38: 4239 | AX38: 61 | AY38: 25995 | AZ38: 73 | BB38: 940 | BD38: 7.5 | BF38: 111.06 | BG38: 0.06 | BH38: 25.76 | CN38: 7.85347432 | CO38: Closed damper, tape around damper perimiter frame gaps, 53.5% inlet 52% outlet--Meriam, adjust code tester speed to match total static of run C-TEM3-SPWCT-SR | CP38: R22 5.5 LBS. unsealed cab:Inlet Meriam set @ 53.5%: Outlet Meriam set @ 52% manually: Horiz airflow. ID Pulley is 3 turns open from fully closed: with economizer: with flow meter: new filter drier: with isolation ball valves: with code | CQ38: 74.994 | CR38: 0.015 | CS38: 62 | CT38: 0.024 | CU38: 95 | CV38: 0.014 | CW38: 74.999 | CX38: 0.02 | CY38: 74.35 | CZ38: 0.08 | DA38: 57.32 | DB38: 0.05 | DC38: 64 | DD38: 0.02 | DE38: 0.034 | DF38: 0.003 | DG38: 0.7712 | DH38: 0.0026 | DI38: 21752 | DJ38: 40 | DK38: 4239 | DL38: 61 | DM38: 7.854 | DN38: 0.029 | DQ38: 10.57915408 | DU38: 229.7 | DV38: 0.9 | DW38: 229.7 | DX38: 0.9 | DY38: 229.7 | DZ38: 0.9 | EA38: 13.4 | EB38: 0 | EC38: 13.4 | ED38: 0 | EE38: 13.4 | EF38: 0 | EG38: 2950 | EH38: 5.7 | EI38: 2950 | EJ38: 5.7 | EK38: 2950 | EL38: 5.7 | EM38: 230 | EN38: 0.9 | EO38: 230 | EP38: 0.9 | EQ38: 230 | ER38: 0.9 | ES38: 1.6 | ET38: 0 | EU38: 1.6 | EV38: 0 | EW38: 1.6 | EX38: 0 | EZ38: 227.8 | FA38: 1 | FB38: 227.8 | FC38: 1 | FD38: 227.8 | FE38: 1 | FF38: 12.7 | FG38: 0 | FH38: 12.7 | FI38: 0 | FJ38: 12.7 | FK38: 0 | FL38: 2757.6 | FM38: 5.3 | FW38: 228.3 | FX38: 1 | FY38: 0.7 | FZ38: 0 | GA38: 169 | GB38: 0.9 | GC38: 23 | GE38: 3308.3 | GF38: 482 | GG38: 482 | GH38: 482 | GI38: 0.7 | GJ38: 0.7 | GK38: 0.8 | GL38: 380 | GM38: 0.62 | GN38: 7.5 | GO38: 15.4 | HB38: 261.77 | HC38: 0.19 | HD38: 178.19 | HE38: 0.04 | HF38: 120.37 | HG38: 0.06 | HH38: 57.81 | HI38: 0.07 | HJ38: 242.05 | HK38: 0.23 | HL38: 103.59 | HM38: 0.06 | HN38: 114.64 | HO38: 0.07 | HP38: 11.05 | HQ38: 0.09 | HR38: 75.3 | HS38: 0.05 | HT38: 57.72 | HU38: 0.3 | HV38: 44.18 | HW38: 0.03 | HZ38: 75.88 | IA38: 0.02 | IB38: 63.2 | IC38: 0.15 | ID38: 44.55 | IE38: 0.02 | IF38: 18.64 | IG38: 0.15 | IH38: 514.43 | II38: 0.54 | IJ38: 40.61 | IK38: 0.02 | IL38: 35017 | IM38: 59 | IN38: 36240 | IO38: 56 | JL38: 245.65 | JM38: 0.22 | JN38: 104.38 | JO38: 0.05 | JP38: 115.71 | JQ38: 0.07 | JR38: 11.33 | JS38: 0.07 | JT38: 244.23 | JU38: 0.22 | JV38: 115.29 | JW38: 0.07 | JX38: 11.68 | JY38: 0.08 | JZ38: 13.54 | KA38: 0.31 | MX38: 56.37 | MY38: 0.05 | MZ38: 58.47 | NA38: 0.09 | NB38: 57.74 | NC38: 0.11 | ND38: 58.37 | NE38: 0.07 | NF38: 57.23 | NG38: 0.08 | NH38: 57.58 | NI38: 0.04 | OB38: 103.59 | OC38: 0.06 | OP38: 104.33 | OQ38: 0.05 | OT38: 94.65 | OU38: 0.07 | OV38: 94.66 | OW38: 0.06 | OX38: 94.78 | OY38: 0.05 | OZ38: 94.79 | PA38: 0.08 | PB38: 94.7 | PC38: 0.08 | PD38: 94.73 | PE38: 0.07 | PR38: 103.61 | PS38: 0.06 | QX38: 94.75 | QY38: 0.08 | QZ38: 95.03 | RA38: 0.07 | RB38: 74.53 | RC38: 0.09 | RD38: 74.54 | RE38: 0.07 | RF38: 74.41 | RG38: 0.08 | RH38: 74.61 | RI38: 0.1 | RJ38: 74.62 | RK38: 0.1 | RL38: 74.63 | RM38: 0.09 | RN38: 74.52 | RO38: 0.09 | RP38: 78.99 | RQ38: 0.07 | RR38: 78.76 | RS38: 0.06 | RT38: 78.29 | RU38: 0.08 | RV38: 78.45 | RW38: 0.1 | RX38: 78.49 | RY38: 0.06 | RZ38: 80.41 | SA38: 0.09 | SB38: 76.82 | SC38: 0.09 | SD38: 78.24 | SE38: 0.09 | SF38: 91.19 | SG38: 0.08 | SH38: 78.42 | SI38: 0.1 | SJ38: 75.2 | SK38: 0.1 | SL38: 75.17 | SM38: 0.1 | SN38: 88.24 | SO38: 0.21 | SP38: 75.25 | SQ38: 0.09 | SR38: 75.08 | SS38: 0.08 | ST38: 74.93 | SU38: 0.09 | SV38: 76.4 | SW38: 0.15 | SX38: 74.69 | SY38: 0.08 | SZ38: 74.74 | TA38: 0.07 | TB38: 74.86 | TC38: 0.07 | WJ38: C-55-TCE-DM | WK38: 74.994 | WL38: 0.015 | WM38: 62 | WN38: 0.024 | WO38: 57.201 | WP38: 0.011 | WQ38: 54.125 | WR38: 0.02 | WS38: 95 | WT38: 0.014 | WU38: 74.999 | WV38: 0.02 | WW38: 1128.2 | WX38: 1.9 | WY38: 1085.1 | WZ38: 1.8 | XA38: 0.575 | XB38: 0.005 | XC38: -0.215 | XD38: 0.002 | XE38: 0.034 | XF38: 0.003 | XG38: 0.7712 | XH38: 0.0026 | XI38: 28.884 | XJ38: 0.001 | XK38: 3310 | XL38: 8 | XM38: 358.7 | XN38: 5.6 | XO38: 0.0656237505 | XP38: 72.02206617 | XQ38: 13.029 | XR38: 0.209 | XS38: 0.7848830176 | XT38: 5169.483362 | XU38: 73.29978661 | XV38: 75.99136185 | XW38: 323.3696563 | XX38: 4846.113705 | XY38: 0.009103434414 | XZ38: 28.26850574 | YA38: 56.41611698 | YB38: 14.09990586 | YC38: 13.09453871 | YD38: 0.0139199017 | YE38: 38.15615716 | YF38: 0.008782042993 | YG38: 27.60872625 | YH38: 0.008175579176 | YI38: 22.61016669 | YJ38: 76.25641307 | YK38: 62.93078349 | YL38: 22.41894567 | YM38: =(XZ38-YL38)*XT38 -> 30239.20348 | YN38: =0.24*(YJ38-YA38)*XT38 -> 24615.37933 | YO38: =XK38-XM38 -> 2951.3 | YP38: =YO38*3.413/YM38 -> 0.3331035788 | YQ38: =YM38-(XM38-XU38)*3.413 -> 29265.13255 | YR38: =YN38-(XM38-XU38)*3.413 -> 23641.3084 | YS38: =YQ38/XK38 -> 8.841429773 | YT38: =(YA38-YW38)/(YJ38-YW38) -> 0.2190688492 | YU38: =-XZ38+YL38 -> -5.849560075 | YV38: =-YJ38+YA38 -> -19.84029609 | YW38: =(-(-0.0182984848494437-(YU38/YV38))+SQRT((-0.0182984848494437-(YU38/YV38))^2-4*0.00577826340327261*(6.76723916086377-XZ38+(YU38/YV38)*YJ38)))/(2*0.00577826340327261) -> 50.85046522 | YX38: =XT38*(XZ38-YL38) -> 30239.20348 | YY38: =XT38*(YG38-YI38) -> 25839.97051 | YZ38: =XT38*(YI38-YL38) -> 988.5138603 | ZA38: =XW38*(YE38-YG38) -> 3410.719108 | ZB38: =SUM(YY38:ZA38) -> 30239.20348 | ZC38: =ZB38/YX38 -> 1
A39: 5 | B39: C-75629575-TOE3 | C39: 30N0030 | D39: C-75629575-TOE3 | E39: Fully open | F39: on | G39: N/A | H39: 3 turns | I39: unsealed | J39: unsealed | M39: horizontal | N39: 0 | O39: 0 | P39: CUST 1 | Q39: 3/12/2014 | R39: 10:06:20 | S39: 10 Ton | T39: 0:30:00 | U39: 75/62 95/75 | V39: ENG 1 | W39: TECH 4 | X39: RTU5 | Y39: RTU5 | Z39: 3 | AA39: R22 | AB39: PSC Air Handler | AC39: 5.5 LBS | AD39: 208/230/1 | AE39: TU1 | AF39: AHRI 210/240 2008 | AG39: 75 | AH39: 62 | AI39: 95 | AJ39: 75 | AK39: 5.5 | AM39: 5.5 | AO39: 230.3 | AP39: 0.9 | AQ39: 15 | AR39: 0 | AS39: 10582 | AT39: 114 | AU39: 9950 | AV39: 69 | AW39: -10102 | AX39: 216 | AY39: 470 | AZ39: 182 | BB39: 939 | BD39: 7.3 | BF39: 111.11 | BG39: 0.13 | BH39: 98.38 | CN39: 3.175870348 | CO39: Factory charge, 3 turns, Econo Fully open damper, tape around damper--perimiter frame gaps, unsealed cab, cab, 53.5% inlet 52% outlet Meriam,--adjust code tester speed to match total static of run C-TOEM3-SPWCT-SR | CP39: R22 5.5 LBS. unsealed cab:Inlet Meriam set @ 53.5%: Outlet Meriam set @ 52% manually: Horiz airflow. ID Pulley is 3 turns open from fully closed: Econo Fully open: with flow meter: new filter drier: with isolation ball valves: with code | CQ39: 75.001 | CR39: 0.015 | CS39: 62.004 | CT39: 0.033 | CU39: 95.001 | CV39: 0.015 | CW39: 75 | CX39: 0.02 | CY39: 74.51 | CZ39: 0.04 | DA39: 65.93 | DB39: 0.08 | DC39: 69.74 | DD39: 0.02 | DE39: 0.001 | DF39: 0.012 | DG39: 0.7475 | DH39: 0.0169 | DI39: 10582 | DJ39: 114 | DK39: -10102 | DL39: 216 | DM39: 0.149 | DN39: 0.051 | DQ39: 10.97989196 | DU39: 229.7 | DV39: 0.9 | DW39: 229.7 | DX39: 0.9 | DY39: 229.7 | DZ39: 0.9 | EA39: 13.4 | EB39: 0 | EC39: 13.4 | ED39: 0 | EE39: 13.4 | EF39: 0 | EG39: 2973.3 | EH39: 5.2 | EI39: 2973.3 | EJ39: 5.2 | EK39: 2973.3 | EL39: 5.2 | EM39: 230 | EN39: 0.9 | EO39: 230 | EP39: 0.9 | EQ39: 230 | ER39: 0.9 | ES39: 1.6 | ET39: 0 | EU39: 1.6 | EV39: 0 | EW39: 1.6 | EX39: 0 | EZ39: 227.8 | FA39: 0.9 | FB39: 227.8 | FC39: 0.9 | FD39: 227.8 | FE39: 0.9 | FF39: 12.7 | FG39: 0 | FH39: 12.7 | FI39: 0 | FJ39: 12.7 | FK39: 0 | FL39: 2779.4 | FM39: 4.8 | FW39: 228.3 | FX39: 0.9 | FY39: 0.8 | FZ39: 0 | GA39: 170.9 | GB39: 0.9 | GC39: 23 | GE39: 3307.6 | GF39: 480 | GG39: 480 | GH39: 480 | GI39: 0.7 | GJ39: 0.7 | GK39: 0.8 | GL39: 390 | GM39: 0.63 | GN39: 7.3 | GO39: 15.3 | HB39: 266.03 | HC39: 0.23 | HD39: 183.28 | HE39: 0.09 | HF39: 121.67 | HG39: 0.06 | HH39: 61.61 | HI39: 0.1 | HJ39: 245.84 | HK39: 0.24 | HL39: 102.54 | HM39: 0.07 | HN39: 115.87 | HO39: 0.07 | HP39: 13.33 | HQ39: 0.08 | HR39: 80.18 | HS39: 0.07 | HT39: 59.7 | HU39: 0.72 | HV39: 47.51 | HW39: 0.04 | HZ39: 80.88 | IA39: 0.05 | IB39: 71.79 | IC39: 0.24 | ID39: 47.95 | IE39: 0.03 | IF39: 23.84 | IG39: 0.22 | IH39: 533.73 | II39: 0.58 | IJ39: 40.28 | IK39: 0.02 | IL39: 36585 | IM39: 92 | IN39: 37805 | IO39: 94 | JL39: 249.59 | JM39: 0.24 | JN39: 103.53 | JO39: 0.06 | JP39: 116.97 | JQ39: 0.07 | JR39: 13.44 | JS39: 0.07 | JT39: 248.17 | JU39: 0.24 | JV39: 116.55 | JW39: 0.07 | JX39: 14.22 | JY39: 0.07 | JZ39: 12.19 | KA39: 0.7 | MX39: 65.24 | MY39: 0.35 | MZ39: 67.26 | NA39: 0.1 | NB39: 66.45 | NC39: 0.38 | ND39: 67.02 | NE39: 0.08 | NF39: 66.36 | NG39: 0.46 | NH39: 66.42 | NI39: 0.16 | OP39: 103.09 | OQ39: 0.06 | OT39: 93.8 | OU39: 0.25 | OV39: 93.43 | OW39: 0.26 | OX39: 94.46 | OY39: 0.16 | OZ39: 94.55 | PA39: 0.17 | PB39: 94.79 | PC39: 0.12 | PD39: 94.78 | PE39: 0.12 | PN39: 94.72 | PO39: 0.11 | PR39: 102.33 | PS39: 0.07 | QX39: 94.93 | QY39: 0.09 | QZ39: 95.35 | RA39: 0.09 | RB39: 74.89 | RC39: 0.04 | RD39: 74.86 | RE39: 0.03 | RF39: 74.6 | RG39: 0.03 | RH39: 75.09 | RI39: 0.06 | RJ39: 75.08 | RK39: 0.06 | RL39: 75.05 | RM39: 0.06 | RN39: 74.84 | RO39: 0.04 | RP39: 93.35 | RQ39: 0.08 | RR39: 92.63 | RS39: 0.08 | RT39: 92.1 | RU39: 0.09 | RV39: 93 | RW39: 0.08 | RX39: 92.56 | RY39: 0.07 | RZ39: 88.88 | SA39: 0.14 | SB39: 92.37 | SC39: 0.08 | SD39: 93.36 | SE39: 0.08 | SF39: 81.4 | SG39: 0.12 | SH39: 84.5 | SI39: 0.09 | SJ39: 94.01 | SK39: 0.21 | SL39: 94.5 | SM39: 0.11 | SN39: 75.71 | SO39: 0.02 | SP39: 76.92 | SQ39: 0.03 | SR39: 86.45 | SS39: 0.1 | ST39: 85.71 | SU39: 0.09 | SV39: 76.41 | SW39: 0.03 | SX39: 77.33 | SY39: 0.04 | SZ39: 82.94 | TA39: 0.06 | TB39: 84.51 | TC39: 0.08 | WJ39: C-55-TOER-DM | WK39: 75.001 | WL39: 0.015 | WM39: 62.004 | WN39: 0.033 | WO39: 65.899 | WP39: 0.062 | WQ39: 61.819 | WR39: 0.056 | WS39: 95.001 | WT39: 0.015 | WU39: 75 | WV39: 0.02 | WW39: 1103.9 | WX39: 12.5 | WY39: 1071.3 | WZ39: 12.2 | XA39: 0.408 | XB39: 0.004 | XC39: -0.028 | XD39: 0.001 | XE39: 0.001 | XF39: 0.012 | XG39: 0.7475 | XH39: 0.0169 | XI39: 29.582 | XJ39: 0.001 | XK39: 3332 | XL39: 9 | XM39: 357.3 | XN39: 5.8 | XO39: 0.5885057471 | XP39: 660.068046 | XQ39: 13.029 | XR39: 0.024 | XS39: 0.8757629977 | XT39: 4966.635988 | XU39: 51.34951786 | XV39: 741.6775626 | XW39: 3156.088938 | XX39: 1810.54705 | XY39: 0.01204770021 | XZ39: 34.3127942 | YA39: 65.023237 | YB39: 14.09993655 | YC39: 13.33578707 | YD39: 0.01392053869 | YE39: 38.15710606 | YF39: 0.008783026792 | YG39: 27.61151012 | YH39: 0.01081938347 | YI39: 27.61169189 | YJ39: 87.75323551 | YK39: 70.68441489 | YL39: 27.39730177 | YM39: =(XZ39-YL39)*XT39 -> 34346.73358 | YN39: =0.24*(YJ39-YA39)*XT39 -> 27093.99087 | YO39: =XK39-XM39 -> 2974.7 | YP39: =YO39*3.413/YM39 -> 0.2955929151 | YQ39: =YM39-(XM39-XU39)*3.413 -> 33302.52458 | YR39: =YN39-(XM39-XU39)*3.413 -> 26049.78187 | YS39: =YQ39/XK39 -> 9.994755276 | YT39: =(YA39-YW39)/(YJ39-YW39) -> 0.227397023 | YU39: =-XZ39+YL39 -> -6.91549243 | YV39: =-YJ39+YA39 -> -22.72999851 | YW39: =(-(-0.0182984848494437-(YU39/YV39))+SQRT((-0.0182984848494437-(YU39/YV39))^2-4*0.00577826340327261*(6.76723916086377-XZ39+(YU39/YV39)*YJ39)))/(2*0.00577826340327261) -> 58.33321101 | YX39: =XT39*(XZ39-YL39) -> 34346.73358 | YY39: =XT39*(YG39-YI39) -> -0.9027743326 | YZ39: =XT39*(YI39-YL39) -> 1064.797662 | ZA39: =XW39*(YE39-YG39) -> 33282.83869 | ZB39: =SUM(YY39:ZA39) -> 34346.73358 | ZC39: =ZB39/YX39 -> 1
A40: 5 | B40: C-55-CE | C40: 30N0052 | D40: C-55-CE | E40: closed | F40: Off | G40: N/A | H40: 3 turns | I40: unsealed | J40: unsealed | M40: horizontal | N40: 0 | O40: 0 | P40: CUST 2 | Q40: 6/17/2015 | R40: 0:48:14 | S40: 10 Ton | T40: 0:10:00 | U40: 75/62 55/51 | V40: ENG 1 | W40: TECH 2 | X40: RTU5 | Y40: RTU5 | Z40: 3 | AA40: R22 | AB40: PSC Air Handler | AC40: Manuf. 5.5 lbs | AD40: 208/230/1 | AE40: TU3 | AF40: AHRI 210/240 2008 | AG40: 75 | AH40: 62 | AI40: 55 | AJ40: 51 | AK40: 5.5 | AM40: 5.5 | AO40: 230.1 | AP40: 1.4 | AQ40: 2.2 | AR40: 0 | AS40: 5674 | AT40: 17 | AU40: 5319 | AV40: 69 | AW40: 2708 | AX40: 61 | AY40: 8385 | AZ40: 69 | BB40: 942 | CN40: 17.72727273 | CO40: . | CP40: R22 5.5 LBS. unsealed cab:Inlet Meriam set @ 53.5%: Outlet Meriam set @ 52% manually: Horiz airflow. ID Pulley is 3 turns open from fully closed:installed economizer. No compressor; | CQ40: 74.96 | CR40: 0.075 | CS40: 61.998 | CT40: 0.022 | CU40: 54.999 | CV40: 0.004 | CW40: 51.006 | CX40: 0.017 | CY40: 74.45 | CZ40: 0.09 | DA40: 70.13 | DB40: 0.05 | DC40: 72.67 | DD40: 0.16 | DE40: 0.011 | DF40: 0.003 | DG40: 0.7915 | DH40: 0.0029 | DI40: 5674 | DJ40: 17 | DK40: 2708 | DL40: 61 | DM40: 17.725 | DN40: 0.246 | DU40: 230.1 | DV40: 1.4 | DW40: 230.1 | DX40: 1.4 | DY40: 230.1 | DZ40: 1.4 | EA40: 0 | EB40: 0 | EC40: 0 | ED40: 0 | EE40: 0 | EF40: 0 | EG40: -0.1 | EH40: 0.2 | EI40: -0.1 | EJ40: 0.2 | EK40: -0.1 | EL40: 0.2 | EM40: 229.8 | EN40: 1.4 | EO40: 229.8 | EP40: 1.4 | EQ40: 229.8 | ER40: 1.4 | ES40: 2.2 | ET40: 0 | EU40: 2.2 | EV40: 0 | EW40: 2.2 | EX40: 0 | EZ40: 0 | FA40: 0 | FB40: 0 | FC40: 0 | FD40: 0 | FE40: 0 | FF40: 0 | FG40: 0 | FH40: 0 | FI40: 0 | FJ40: 0 | FK40: 0 | FL40: 0 | FM40: 0 | FW40: 0 | FX40: 0 | FY40: 0 | FZ40: 0 | GA40: 0 | GB40: 0 | GC40: 0.5 | GD40: 0.3 | GE40: 473 | GP40: 230.1 | GQ40: 1.4 | GR40: 0 | GS40: 0 | GT40: 98.28 | GU40: 0.04 | GV40: 55.46 | GW40: 0.02 | GX40: 58 | GY40: 0.02 | GZ40: 2.55 | HA40: 0.03 | HB40: 98.31 | HC40: 0.05 | HD40: 57.49 | HE40: 0.03 | HF40: 58.02 | HG40: 0.03 | HH40: -0.53 | HI40: 0.02 | HJ40: 98.17 | HK40: 0.06 | HL40: 58.23 | HM40: 0.05 | HN40: 57.94 | HO40: 0.04 | HP40: -0.28 | HQ40: 0.09 | HR40: 99.12 | HS40: 0.05 | HT40: 56.22 | HU40: 0.09 | HV40: 58.47 | HW40: 0.03 | HZ40: 98.97 | IA40: 0.04 | IB40: 56.18 | IC40: 0.09 | ID40: 58.38 | IE40: 0.02 | IF40: -2.2 | IG40: 0.08 | JZ40: -2.23 | KA40: 0.08 | MX40: 69.96 | MY40: 0.05 | MZ40: 70.07 | NA40: 0.05 | NB40: 70.15 | NC40: 0.05 | ND40: 70.19 | NE40: 0.03 | NF40: 69.99 | NG40: 0.05 | NH40: 70.05 | NI40: 0.04 | NP40: 56.63 | NQ40: 0.06 | QR40: 61.6 | QS40: 0.09 | QT40: 62.63 | QU40: 0.1 | QV40: 57.45 | QW40: 0.03 | QX40: 54.65 | QY40: 0.04 | QZ40: 56.01 | RA40: 0.09 | RB40: 73.71 | RC40: 0.09 | RD40: 74.03 | RE40: 0.08 | RF40: 74.61 | RG40: 0.06 | RH40: 74.7 | RI40: 0.06 | RJ40: 74.89 | RK40: 0.06 | RL40: 74.88 | RM40: 0.06 | RN40: 74.93 | RO40: 0.05 | SP40: 57.71 | SQ40: 0.05 | TD40: 74.49 | TE40: 0.05 | UN40: 54.78 | UO40: 0.05 | UP40: 59.83 | UQ40: 0.22 | UR40: 67.54 | US40: 0.39 | UT40: 72.61 | UU40: 0.04 | UV40: 62.88 | UW40: 0.18 | UX40: 68.85 | UY40: 0.11 | UZ40: 72.82 | VA40: 0.12 | VB40: 74.82 | VC40: 0.04 | VD40: 74.41 | VE40: 0.03 | VF40: 74.37 | VG40: 0.07 | VH40: 65.87 | VI40: 0.23 | VJ40: 75.06 | VK40: 0.04 | VL40: 74.51 | VM40: 0.06 | VN40: 68.1 | VO40: 0.3 | VP40: 59.52 | VQ40: 0.15 | VR40: 74.6 | VS40: 0.05 | VT40: 64.66 | VU40: 0.41 | VV40: 54.88 | VW40: 0.09 | WJ40: Economizer test | WK40: 74.96 | WL40: 0.075 | WM40: 61.998 | WN40: 0.022 | WO40: 70.344 | WP40: 0.074 | WQ40: 59.582 | WR40: 0.016 | WS40: 54.999 | WT40: 0.004 | WU40: 51.006 | WV40: 0.017 | WW40: 1145.3 | WX40: 2.2 | WY40: 1096.7 | WZ40: 2 | XA40: 0.56 | XB40: 0.002 | XC40: -0.184 | XD40: 0.001 | XE40: 0.011 | XF40: 0.003 | XG40: 0.7915 | XH40: 0.0029 | XI40: 29.243 | XJ40: 0.001 | XK40: 473 | XL40: 5 | XM40: 472.5 | XN40: 5.2 | XO40: 0.1756425029 | XP40: 192.6271329 | XQ40: 13.03 | XR40: 0.184 | XS40: 1.112244036 | XT40: 5117.250677 | XU40: 72.15077039 | XV40: 192.6234598 | XW40: 887.0182936 | XX40: 4230.232383 | XY40: 0.008476055713 | XZ40: 26.42446293 | YA40: 69.23175596 | YB40: 13.02950308 | YC40: 13.42869528 | YD40: 0.006984766301 | YE40: 20.78116194 | YF40: 0.008788757444 | YG40: 27.60778118 | YH40: 0.008324360198 | YI40: 25.97469871 | YJ40: 71.50938184 | YK40: 60.25722168 | YL40: 25.70364927
A41: 5 | B41: C-EB10-55-CE | C41: 30N0053 | D41: C-EB10-55-CE | E41: closed | F41: Off | G41: N/A | H41: 3 turns | I41: unsealed | J41: unsealed | L41: 4.75 | M41: horizontal | N41: 0 | O41: 10 | P41: CUST 2 | Q41: 6/18/2015 | R41: 11:17:04 | S41: 10 Ton | T41: 0:15:00 | U41: 75/62 55/51 | V41: ENG 1 | W41: TECH 2 | X41: RTU5 | Y41: RTU5 | Z41: 3 | AA41: R22 | AB41: PSC Air Handler | AC41: Manuf. 5.5 lbs | AD41: 208/230/1 | AE41: TU3 | AF41: AHRI 210/240 2008 | AG41: 75 | AH41: 62 | AI41: 55 | AJ41: 51 | AK41: 5.5 | AM41: 5.5 | AO41: 230.2 | AP41: 1.1 | AQ41: 2.1 | AR41: 0 | AS41: 5385 | AT41: 22 | AU41: 5147 | AV41: 47 | AW41: 2454 | AX41: 70 | AY41: 7842 | AZ41: 80 | BB41: 943 | CN41: 16.64968153 | CO41: 10% evaporator coil block, economizer closed (2V), no compressor, factory charge (5.5 lbs)--unsealed cabinet, Inlet Meriam set @ 53.5%: Outlet @ 52% Horiz airflow. 4.75" ID pulley--3 turns open from fully closed, adjust code tester speed to match total st | CP41: R22 5.5 LBS. unsealed cab:Inlet Meriam set @ 53.5%: Outlet Meriam set @ 52% manually: Horiz airflow. ID Pulley is 3 turns open from fully closed: installed economizer.;with outlet hose, with code tester, 6" evap coil blockage | CQ41: 74.991 | CR41: 0.013 | CS41: 61.992 | CT41: 0.038 | CU41: 54.992 | CV41: 0.008 | CW41: 50.999 | CX41: 0.019 | CY41: 74.57 | CZ41: 0.06 | DA41: 70.33 | DB41: 0.06 | DC41: 72.34 | DD41: 0.01 | DE41: 0.019 | DF41: 0.003 | DG41: 1.0687 | DH41: 0.0033 | DI41: 5385 | DJ41: 22 | DK41: 2454 | DL41: 70 | DM41: 16.644 | DN41: 0.245 | DU41: 230.2 | DV41: 1.1 | DW41: 230.2 | DX41: 1.1 | DY41: 230.2 | DZ41: 1.1 | EA41: 0 | EB41: 0 | EC41: 0 | ED41: 0 | EE41: 0 | EF41: 0 | EG41: 0 | EH41: 0.2 | EI41: 0 | EJ41: 0.2 | EK41: 0 | EL41: 0.2 | EM41: 229.8 | EN41: 1.1 | EO41: 229.8 | EP41: 1.1 | EQ41: 229.8 | ER41: 1.1 | ES41: 2.1 | ET41: 0 | EU41: 2.1 | EV41: 0 | EW41: 2.1 | EX41: 0 | EZ41: 0 | FA41: 0 | FB41: 0 | FC41: 0 | FD41: 0 | FE41: 0 | FF41: 0 | FG41: 0 | FH41: 0 | FI41: 0 | FJ41: 0 | FK41: 0 | FL41: 0 | FM41: 0 | FW41: 0 | FX41: 0 | FY41: 0 | FZ41: 0 | GA41: 0 | GB41: 0 | GC41: 0.5 | GD41: 0.3 | GP41: 230.2 | GQ41: 1.1 | GR41: 0 | GS41: 0 | GT41: 99.76 | GU41: 0.04 | GV41: 55.99 | GW41: 0.03 | GX41: 58.8 | GY41: 0.02 | GZ41: 2.81 | HA41: 0.02 | HB41: 100.23 | HC41: 0.02 | HD41: 58.77 | HE41: 0.03 | HF41: 59.06 | HG41: 0.01 | HH41: -0.29 | HI41: 0.03 | HJ41: 100.06 | HK41: 0.04 | HL41: 59.4 | HM41: 0.04 | HN41: 58.97 | HO41: 0.02 | HP41: -0.43 | HQ41: 0.06 | HR41: 100.84 | HS41: 0.02 | HT41: 57.91 | HU41: 0.06 | HV41: 59.39 | HW41: 0.01 | HZ41: 100.17 | IA41: 0.03 | IB41: 57.97 | IC41: 0.04 | ID41: 59.03 | IE41: 0.02 | IF41: -1.05 | IG41: 0.03 | JZ41: -1.48 | KA41: 0.05 | MX41: 70.21 | MY41: 0.05 | MZ41: 70.28 | NA41: 0.06 | NB41: 70.37 | NC41: 0.05 | ND41: 70.53 | NE41: 0.05 | NF41: 70.29 | NG41: 0.05 | NH41: 70.26 | NI41: 0.06 | NN41: 59.55 | NO41: 0.05 | NP41: 58.41 | NQ41: 0.06 | OB41: 59.4 | OC41: 0.04 | QR41: 67.42 | QS41: 0.14 | QT41: 69.25 | QU41: 0.15 | QV41: 58.85 | QW41: 0.05 | QX41: 54.44 | QY41: 0.05 | QZ41: 56 | RA41: 0.13 | RB41: 74.28 | RC41: 0.07 | RD41: 74.39 | RE41: 0.05 | RF41: 74.76 | RG41: 0.04 | RH41: 74.83 | RI41: 0.04 | RJ41: 74.96 | RK41: 0.04 | RL41: 74.98 | RM41: 0.04 | RN41: 74.99 | RO41: 0.03 | TD41: 74.51 | TE41: 0.03 | UN41: 54.54 | UO41: 0.06 | UP41: 63.45 | UQ41: 0.91 | UR41: 59.53 | US41: 0.2 | UT41: 71.37 | UU41: 0.05 | UV41: 69.63 | UW41: 0.72 | UX41: 75.23 | UY41: 0.03 | UZ41: 74.4 | VA41: 0.06 | VB41: 70.69 | VC41: 0.21 | VD41: 74.62 | VE41: 0.04 | VF41: 66.98 | VG41: 0.2 | VH41: 73.56 | VI41: 0.22 | VL41: 74.35 | VM41: 0.11 | VN41: 74.42 | VO41: 0.09 | VP41: 69.14 | VQ41: 0.82 | VR41: 65.23 | VS41: 0.14 | VT41: 61.84 | VU41: 0.45 | VV41: 54.97 | VW41: 0.1 | WJ41: Economizer test | WK41: 74.991 | WL41: 0.013 | WM41: 61.992 | WN41: 0.038 | WO41: 70.548 | WP41: 0.014 | WQ41: 59.706 | WR41: 0.024 | WS41: 54.992 | WT41: 0.008 | WU41: 50.999 | WV41: 0.019 | WW41: 1130.5 | WX41: 1.7 | WY41: 1082 | WZ41: 1.7 | XA41: 0.555 | XB41: 0.001 | XC41: -0.195 | XD41: 0.001 | XE41: 0.019 | XF41: 0.003 | XG41: 1.0687 | XH41: 0.0033 | XI41: 29.211 | XJ41: 0.001 | XK41: 471 | XL41: 5 | XM41: 470.6 | XN41: 5 | XO41: 0.1656582829 | XP41: 179.2422621 | XQ41: 13.029 | XR41: 0.195 | XS41: 1.126421515 | XT41: 5049.090754 | XU41: 70.54810394 | XV41: 179.2443926 | XW41: 825.4208226 | XX41: 4223.669931 | XY41: 0.008484067221 | XZ41: 26.48712418 | YA41: 69.42157849 | YB41: 13.02930973 | YC41: 13.43410196 | YD41: 0.00698269181 | YE41: 20.77720854 | YF41: 0.008777477111 | YG41: 27.60299813 | YH41: 0.008354152001 | YI41: 26.05695498 | YJ41: 71.73052207 | YK41: 60.35175932 | YL41: 25.78243565
A42: 5 | B42: C-EB20-55-CE | C42: 30N0054 | D42: C-EB20-55-CE | E42: closed | F42: Off | G42: N/A | H42: 3 turns | I42: unsealed | J42: unsealed | L42: 4.75 | M42: horizontal | N42: 0 | O42: 20 | P42: CUST 2 | Q42: 6/18/2015 | R42: 12:58:46 | S42: 10 Ton | T42: 0:15:00 | U42: 75/62 55/51 | V42: ENG 1 | W42: TECH 2 | X42: RTU5 | Y42: RTU5 | Z42: 3 | AA42: R22 | AB42: PSC Air Handler | AC42: Manuf. 5.5 lbs | AD42: 208/230/1 | AE42: TU3 | AF42: AHRI 210/240 2008 | AG42: 75 | AH42: 62 | AI42: 55 | AJ42: 51 | AK42: 5.5 | AM42: 5.5 | AO42: 230.1 | AP42: 1 | AQ42: 2.1 | AR42: 0 | AS42: 5090 | AT42: 14 | AU42: 4844 | AV42: 55 | AW42: 2518 | AX42: 73 | AY42: 7611 | AZ42: 72 | BB42: 944 | CN42: 16.29764454 | CO42: 20% evaporator coil block, economizer closed (2V), no compressor, factory charge (5.5 lbs)--unsealed cabinet, Inlet Meriam set @ 53.5%: Outlet @ 52% Horiz airflow. 4.75" ID pulley--3 turns open from fully closed, adjust code tester speed to match total st | CP42: R22 5.5 LBS. unsealed cab:Inlet Meriam set @ 53.5%: Outlet Meriam set @ 52% manually: Horiz airflow. ID Pulley is 3 turns open from fully closed: installed economizer.;with outlet duct, with code tester, 9" evap coil blockage | CQ42: 74.971 | CR42: 0.023 | CS42: 61.988 | CT42: 0.026 | CU42: 54.995 | CV42: 0.005 | CW42: 51.001 | CX42: 0.02 | CY42: 74.53 | CZ42: 0.04 | DA42: 70.48 | DB42: 0.05 | DC42: 72.69 | DD42: 0.05 | DE42: 0.012 | DF42: 0.002 | DG42: 1.0405 | DH42: 0.0031 | DI42: 5090 | DJ42: 14 | DK42: 2518 | DL42: 73 | DM42: 16.309 | DN42: 0.23 | DU42: 230.1 | DV42: 1 | DW42: 230.1 | DX42: 1 | DY42: 230.1 | DZ42: 1 | EA42: 0 | EB42: 0 | EC42: 0 | ED42: 0 | EE42: 0 | EF42: 0 | EG42: 0 | EH42: 0.2 | EI42: 0 | EJ42: 0.2 | EK42: 0 | EL42: 0.2 | EM42: 229.8 | EN42: 1 | EO42: 229.8 | EP42: 1 | EQ42: 229.8 | ER42: 1 | ES42: 2.1 | ET42: 0 | EU42: 2.1 | EV42: 0 | EW42: 2.1 | EX42: 0 | EZ42: 0 | FA42: 0 | FB42: 0 | FC42: 0 | FD42: 0 | FE42: 0 | FF42: 0 | FG42: 0 | FH42: 0 | FI42: 0 | FJ42: 0 | FK42: 0 | FL42: 0 | FM42: 0 | FW42: 0 | FX42: 0 | FY42: 0 | FZ42: 0 | GA42: 0 | GB42: 0 | GC42: 0.5 | GD42: 0.3 | GP42: 230.2 | GQ42: 1 | GR42: 0 | GS42: 0 | GT42: 97.73 | GU42: 0.02 | GV42: 55.67 | GW42: 0.01 | GX42: 57.68 | GY42: 0.01 | GZ42: 2.02 | HA42: 0.02 | HB42: 97.77 | HC42: 0.05 | HD42: 56.95 | HE42: 0.03 | HF42: 57.71 | HG42: 0.02 | HH42: -0.76 | HI42: 0.04 | HJ42: 98.02 | HK42: 0.04 | HL42: 58.89 | HM42: 0.05 | HN42: 57.84 | HO42: 0.02 | HP42: -1.04 | HQ42: 0.05 | HR42: 98.85 | HS42: 0.03 | HT42: 55.33 | HU42: 0.02 | HV42: 58.3 | HW42: 0.02 | HZ42: 97.86 | IA42: 0.02 | IB42: 56.37 | IC42: 0.03 | ID42: 57.76 | IE42: 0.01 | IF42: -1.4 | IG42: 0.02 | JZ42: -2.98 | KA42: 0.03 | MX42: 70.25 | MY42: 0.03 | MZ42: 70.41 | NA42: 0.04 | NB42: 70.48 | NC42: 0.03 | ND42: 70.6 | NE42: 0.02 | NF42: 70.42 | NG42: 0.04 | NH42: 70.38 | NI42: 0.04 | NN42: 58.26 | NO42: 0.05 | NP42: 56.24 | NQ42: 0.05 | OB42: 58.89 | OC42: 0.05 | QR42: 61 | QS42: 0.09 | QT42: 62.03 | QU42: 0.09 | QV42: 56.94 | QW42: 0.04 | QX42: 54.6 | QY42: 0.03 | QZ42: 56.13 | RA42: 0.12 | RB42: 74.29 | RC42: 0.05 | RD42: 74.41 | RE42: 0.03 | RF42: 74.81 | RG42: 0.03 | RH42: 74.86 | RI42: 0.02 | RJ42: 74.98 | RK42: 0.02 | RL42: 74.99 | RM42: 0.02 | RN42: 74.99 | RO42: 0.03 | TD42: 74.49 | TE42: 0.03 | UN42: 54.67 | UO42: 0.05 | UP42: 69.59 | UQ42: 0.43 | UR42: 60.49 | US42: 0.15 | UT42: 72.86 | UU42: 0.07 | UV42: 70.54 | UW42: 0.29 | UX42: 75.18 | UY42: 0.02 | UZ42: 73.43 | VA42: 1.39 | VB42: 71.65 | VC42: 0.14 | VD42: 74.61 | VE42: 0.03 | VF42: 67.98 | VG42: 0.13 | VH42: 74.38 | VI42: 0.08 | VJ42: 66.06 | VK42: 0.14 | VL42: 74.5 | VM42: 0.05 | VN42: 74.54 | VO42: 0.03 | VP42: 69.9 | VQ42: 0.37 | VR42: 68.96 | VS42: 0.26 | VT42: 65.5 | VU42: 0.3 | VV42: 54.99 | VW42: 0.1 | WJ42: Economizer test | WK42: 74.971 | WL42: 0.023 | WM42: 61.988 | WN42: 0.026 | WO42: 70.718 | WP42: 0.02 | WQ42: 59.741 | WR42: 0.013 | WS42: 54.995 | WT42: 0.005 | WU42: 51.001 | WV42: 0.02 | WW42: 1115.9 | WX42: 1.7 | WY42: 1066.9 | WZ42: 1.6 | XA42: 0.541 | XB42: 0.001 | XC42: -0.19 | XD42: 0.001 | XE42: 0.012 | XF42: 0.002 | XG42: 1.0405 | XH42: 0.0031 | XI42: 29.202 | XJ42: 0.001 | XK42: 467 | XL42: 5 | XM42: 466.1 | XN42: 4.9 | XO42: 0.1558370044 | XP42: 166.2625 | XQ42: 13.029 | XR42: 0.19 | XS42: 1.136488774 | XT42: 4982.339731 | XU42: 67.80880369 | XV42: 166.2649786 | XW42: 765.6459658 | XX42: 4216.693765 | XY42: 0.008503491266 | XZ42: 26.55204301 | YA42: 69.58151123 | YB42: 13.02938846 | YC42: 13.43826467 | YD42: 0.00698304946 | YE42: 20.77832604 | YF42: 0.008779565413 | YG42: 27.60040539 | YH42: 0.008336064284 | YI42: 26.07862655 | YJ42: 71.90974963 | YK42: 60.44849426 | YL42: 25.80166286
A43: 5 | B43: C-EB35-55-CE | C43: 30N0055 | D43: C-EB35-55-CE | E43: closed | F43: Off | G43: N/A | H43: 3 turns | I43: unsealed | J43: unsealed | L43: 4.75 | M43: horizontal | N43: 0 | O43: 35 | P43: CUST 2 | Q43: 6/18/2015 | R43: 14:08:38 | S43: 10 Ton | T43: 0:15:00 | U43: 75/62 55/51 | V43: ENG 1 | W43: TECH 2 | X43: RTU5 | Y43: RTU5 | Z43: 3 | AA43: R22 | AB43: PSC Air Handler | AC43: Manuf. 5.5 lbs | AD43: 208/230/1 | AE43: TU3 | AF43: AHRI 210/240 2008 | AG43: 75 | AH43: 62 | AI43: 55 | AJ43: 51 | AK43: 5.5 | AM43: 5.5 | AO43: 230.1 | AP43: 1 | AQ43: 2.1 | AR43: 0 | AS43: 4900 | AT43: 13 | AU43: 4667 | AV43: 54 | AW43: 2456 | AX43: 59 | AY43: 7358 | AZ43: 67 | BB43: 945 | CN43: 15.96095445 | CO43: 35% evaporator coil block, economizer closed (2V), no compressor, factory charge--(5.5 lbs) unsealed cabinet, Inlet Meriam set @ 53.5%: Outlet @ 52% Horiz airflow.--4.75" ID pulley 3 turns open from fully closed, adjust code tester speed to match--total s | CP43: R22 5.5 LBS. unsealed cab:Inlet Meriam set @ 53.5%: Outlet Meriam set @ 52% manually: Horiz airflow. ID Pulley is 3 turns open from fully closed: installed economizer.;with outlet duct, with code tester, 14.5" evap coil blockage | CQ43: 74.958 | CR43: 0.021 | CS43: 61.993 | CT43: 0.02 | CU43: 54.974 | CV43: 0.011 | CW43: 51.005 | CX43: 0.018 | CY43: 74.45 | CZ43: 0.05 | DA43: 70.44 | DB43: 0.08 | DC43: 72.46 | DD43: 0.02 | DE43: 0.018 | DF43: 0.002 | DG43: 0.9844 | DH43: 0.0023 | DI43: 4900 | DJ43: 13 | DK43: 2456 | DL43: 59 | DM43: 15.967 | DN43: 0.224 | DU43: 230.1 | DV43: 1 | DW43: 230.1 | DX43: 1 | DY43: 230.1 | DZ43: 1 | EA43: 0 | EB43: 0 | EC43: 0 | ED43: 0 | EE43: 0 | EF43: 0 | EG43: 0 | EH43: 0.2 | EI43: 0 | EJ43: 0.2 | EK43: 0 | EL43: 0.2 | EM43: 229.8 | EN43: 1 | EO43: 229.8 | EP43: 1 | EQ43: 229.8 | ER43: 1 | ES43: 2.1 | ET43: 0 | EU43: 2.1 | EV43: 0 | EW43: 2.1 | EX43: 0 | EZ43: 0 | FA43: 0 | FB43: 0 | FC43: 0 | FD43: 0 | FE43: 0 | FF43: 0 | FG43: 0 | FH43: 0 | FI43: 0 | FJ43: 0 | FK43: 0 | FL43: 0 | FM43: 0 | FW43: 0 | FX43: 0 | FY43: 0 | FZ43: 0 | GA43: 0 | GB43: 0 | GC43: 0.5 | GD43: 0.3 | GP43: 230.1 | GQ43: 1 | GR43: 0 | GS43: 0 | GT43: 96.06 | GU43: 0.03 | GV43: 55.48 | GW43: 0.02 | GX43: 56.76 | GY43: 0.02 | GZ43: 1.28 | HA43: 0.04 | HB43: 96.37 | HC43: 0.04 | HD43: 56.17 | HE43: 0.03 | HF43: 56.93 | HG43: 0.03 | HH43: -0.76 | HI43: 0.04 | HJ43: 96.74 | HK43: 0.05 | HL43: 57.54 | HM43: 0.09 | HN43: 57.13 | HO43: 0.03 | HP43: -0.41 | HQ43: 0.11 | HR43: 96.43 | HS43: 0.03 | HT43: 55.1 | HU43: 0.02 | HV43: 56.96 | HW43: 0.02 | HZ43: 96.79 | IA43: 0.01 | IB43: 55.62 | IC43: 0.03 | ID43: 57.16 | IE43: 0.01 | IF43: -1.54 | IG43: 0.03 | JZ43: -1.86 | KA43: 0.03 | MX43: 70.29 | MY43: 0.05 | MZ43: 70.5 | NA43: 0.04 | NB43: 70.57 | NC43: 0.03 | ND43: 70.65 | NE43: 0.03 | NF43: 70.51 | NG43: 0.04 | NH43: 70.46 | NI43: 0.04 | NN43: 57.09 | NO43: 0.09 | NP43: 55.7 | NQ43: 0.07 | OB43: 57.54 | OC43: 0.09 | QR43: 58.79 | QS43: 0.08 | QT43: 59.52 | QU43: 0.08 | QV43: 56.11 | QW43: 0.06 | QX43: 54.6 | QY43: 0.04 | QZ43: 56.08 | RA43: 0.14 | RB43: 73.85 | RC43: 0.07 | RD43: 74.07 | RE43: 0.06 | RF43: 74.6 | RG43: 0.04 | RH43: 74.68 | RI43: 0.03 | RJ43: 74.88 | RK43: 0.03 | RL43: 74.87 | RM43: 0.03 | RN43: 74.94 | RO43: 0.03 | TD43: 74.45 | TE43: 0.05 | UN43: 54.66 | UO43: 0.05 | UP43: 60.84 | UQ43: 0.16 | UR43: 60.5 | US43: 0.15 | UT43: 74.61 | UU43: 0.04 | UV43: 63.06 | UW43: 0.18 | UZ43: 70.71 | VA43: 0.17 | VB43: 74.84 | VC43: 0.04 | VD43: 73.62 | VE43: 0.08 | VF43: 65.14 | VG43: 0.26 | VH43: 62.66 | VI43: 0.15 | VJ43: 76.05 | VK43: 0.09 | VL43: 72.94 | VM43: 0.17 | VN43: 67.48 | VO43: 0.27 | VP43: 64.06 | VQ43: 0.43 | VR43: 74.59 | VS43: 0.03 | VT43: 61.56 | VU43: 0.22 | VV43: 54.98 | VW43: 0.08 | WJ43: Economizer test | WK43: 74.958 | WL43: 0.021 | WM43: 61.993 | WN43: 0.02 | WO43: 70.749 | WP43: 0.02 | WQ43: 59.76 | WR43: 0.014 | WS43: 54.974 | WT43: 0.011 | WU43: 51.005 | WV43: 0.018 | WW43: 1085.3 | WX43: 1.3 | WY43: 1037.5 | WZ43: 1.2 | XA43: 0.511 | XB43: 0.001 | XC43: -0.181 | XD43: 0.001 | XE43: 0.018 | XF43: 0.002 | XG43: 0.9844 | XH43: 0.0023 | XI43: 29.185 | XJ43: 0.001 | XK43: 461 | XL43: 5 | XM43: 460.3 | XN43: 4.9 | XO43: 0.1520716573 | XP43: 157.7743445 | XQ43: 13.029 | XR43: 0.181 | XS43: 1.167797138 | XT43: 4845.41834 | XU43: 62.28365748 | XV43: 157.77381 | XW43: 726.5709368 | XX43: 4118.847403 | XY43: 0.008516649441 | XZ43: 26.58104574 | YA43: 69.58120286 | YB43: 13.02891173 | YC43: 13.43908729 | YD43: 0.006990110294 | YE43: 20.78088482 | YF43: 0.008785933265 | YG43: 27.60420293 | YH43: 0.008340715097 | YI43: 26.0912619 | YJ43: 71.96972875 | YK43: 60.49123853 | YL43: 25.80666591
A44: 5 | B44: C-EB5-55-CE | C44: 30N0056 | D44: C-EB5-55-CE | E44: closed | F44: Off | G44: N/A | H44: 3 turns | I44: unsealed | J44: unsealed | L44: 4.75 | M44: horizontal | N44: 0 | O44: 5 | P44: CUST 2 | Q44: 6/18/2015 | R44: 16:10:53 | S44: 10 Ton | T44: 0:15:00 | U44: 75/62 55/51 | V44: ENG 1 | W44: TECH 2 | X44: RTU5 | Y44: RTU5 | Z44: 3 | AA44: R22 | AB44: PSC Air Handler | AC44: Manuf. 5.5 lbs | AD44: 208/230/1 | AE44: TU3 | AF44: AHRI 210/240 2008 | AG44: 75 | AH44: 62 | AI44: 55 | AJ44: 51 | AK44: 5.5 | AM44: 5.5 | AO44: 230.1 | AP44: 1.4 | AQ44: 2.1 | AR44: 0 | AS44: 5359 | AT44: 16 | AU44: 5122 | AV44: 59 | AW44: 2652 | AX44: 54 | AY44: 8013 | AZ44: 53 | CN44: 16.97669491 | CO44: 5% evaporator coil block, economizer closed (2V), no compressor, factory charge--(5.5 lbs) unsealed cabinet, Inlet Meriam set @ 53.5%: Outlet @ 52% Horiz airflow.--4.75" ID pulley 3 turns open from fully closed, adjust code tester speed to match--total st | CP44: R22 5.5 LBS. unsealed cab:Inlet Meriam set @ 53.5%: Outlet Meriam set @ 52% manually: Horiz airflow. ID Pulley is 3 turns open from fully closed: installed economizer.;with outlet hose, with code tester, 19" evap coil blockage | CQ44: 74.974 | CR44: 0.02 | CS44: 61.994 | CT44: 0.021 | CU44: 54.996 | CV44: 0.012 | CW44: 51 | CX44: 0.026 | CY44: 74.45 | CZ44: 0.05 | DA44: 70.25 | DB44: 0.05 | DC44: 72.43 | DD44: 0.02 | DE44: 0.01 | DF44: 0.003 | DG44: 1.079 | DH44: 0.0028 | DI44: 5359 | DJ44: 16 | DK44: 2652 | DL44: 54 | DM44: 16.991 | DN44: 0.221 | DU44: 230.1 | DV44: 1.4 | DW44: 230.1 | DX44: 1.4 | DY44: 230.1 | DZ44: 1.4 | EA44: 0 | EB44: 0 | EC44: 0 | ED44: 0 | EE44: 0 | EF44: 0 | EG44: 0 | EH44: 0.2 | EI44: 0 | EJ44: 0.2 | EK44: 0 | EL44: 0.2 | EM44: 229.8 | EN44: 1.4 | EO44: 229.8 | EP44: 1.4 | EQ44: 229.8 | ER44: 1.4 | ES44: 2.1 | ET44: 0 | EU44: 2.1 | EV44: 0 | EW44: 2.1 | EX44: 0 | EZ44: 0 | FA44: 0 | FB44: 0 | FC44: 0 | FD44: 0 | FE44: 0 | FF44: 0 | FG44: 0 | FH44: 0 | FI44: 0 | FJ44: 0 | FK44: 0 | FL44: 0 | FM44: 0 | FW44: 0 | FX44: 0 | FY44: 0 | FZ44: 0 | GA44: 0 | GB44: 0 | GC44: 0.5 | GD44: 0.3 | GP44: 230.1 | GQ44: 1.4 | GR44: 0 | GS44: 0 | GT44: 95.88 | GU44: 0.06 | GV44: 55.61 | GW44: 0.02 | GX44: 56.65 | GY44: 0.03 | GZ44: 1.05 | HA44: 0.04 | HB44: 95.8 | HC44: 0.07 | HD44: 55.52 | HE44: 0.01 | HF44: 56.61 | HG44: 0.04 | HH44: -1.09 | HI44: 0.04 | HJ44: 95.89 | HK44: 0.07 | HL44: 59.9 | HM44: 0.05 | HN44: 56.67 | HO44: 0.04 | HP44: -3.24 | HQ44: 0.07 | HR44: 95.69 | HS44: 0.02 | HT44: 55.94 | HU44: 0.01 | HV44: 56.55 | HW44: 0.01 | HZ44: 95.93 | IA44: 0.03 | IB44: 55.29 | IC44: 0.01 | ID44: 56.68 | IE44: 0.02 | IF44: -1.39 | IG44: 0.02 | JZ44: -0.62 | KA44: 0.02 | MX44: 70.2 | MY44: 0.05 | MZ44: 70.29 | NA44: 0.04 | NB44: 70.37 | NC44: 0.03 | ND44: 70.55 | NE44: 0.02 | NF44: 70.37 | NG44: 0.04 | NH44: 70.27 | NI44: 0.04 | NN44: 59.66 | NO44: 0.05 | NP44: 55.66 | NQ44: 0.04 | OB44: 59.9 | OC44: 0.05 | QR44: 57.06 | QS44: 0.05 | QT44: 57.42 | QU44: 0.05 | QV44: 55.5 | QW44: 0.03 | QX44: 54.66 | QY44: 0.09 | QZ44: 55.99 | RA44: 0.11 | RB44: 74.44 | RC44: 0.05 | RD44: 74.49 | RE44: 0.04 | RF44: 74.86 | RG44: 0.05 | RH44: 74.9 | RI44: 0.04 | RJ44: 75 | RK44: 0.03 | RL44: 75 | RM44: 0.03 | RN44: 74.99 | RO44: 0.04 | TD44: 74.56 | TE44: 0.05 | UN44: 54.69 | UO44: 0.09 | UP44: 65.16 | UQ44: 0.33 | UR44: 66.03 | US44: 0.46 | UT44: 74.84 | UU44: 0.03 | UV44: 60.03 | UW44: 0.22 | UX44: 74.86 | UY44: 0.04 | UZ44: 72.95 | VA44: 0.11 | VB44: 73.75 | VC44: 0.1 | VD44: 74.45 | VE44: 0.04 | VF44: 70.26 | VG44: 0.29 | VH44: 61.32 | VI44: 0.29 | VJ44: 70.74 | VK44: 0.28 | VL44: 73.65 | VM44: 0.18 | VN44: 63.97 | VO44: 0.17 | VP44: 63.45 | VQ44: 0.31 | VR44: 72.23 | VS44: 0.24 | VT44: 67.61 | VU44: 0.4 | VV44: 54.96 | VW44: 0.16 | WJ44: Economizer test | WK44: 74.974 | WL44: 0.02 | WM44: 61.994 | WN44: 0.021 | WO44: 70.576 | WP44: 0.014 | WQ44: 59.67 | WR44: 0.019 | WS44: 54.996 | WT44: 0.012 | WU44: 51 | WV44: 0.026 | WW44: 1136.7 | WX44: 1.5 | WY44: 1086.5 | WZ44: 1.4 | XA44: 0.562 | XB44: 0.001 | XC44: -0.192 | XD44: 0.002 | XE44: 0.01 | XF44: 0.003 | XG44: 1.079 | XH44: 0.0028 | XI44: 29.176 | XJ44: 0.001 | XK44: 472 | XL44: 5 | XM44: 471.2 | XN44: 5.2 | XO44: 0.1640804885 | XP44: 178.2734508 | XQ44: 13.029 | XR44: 0.192 | XS44: 1.118673662 | XT44: 5076.601723 | XU44: 71.73500756 | XV44: 178.2762408 | XW44: 820.9563012 | XX44: 4255.645422 | XY44: 0.008491641926 | XZ44: 26.50067793 | YA44: 69.45732634 | YB44: 13.02940782 | YC44: 13.43457764 | YD44: 0.006982283101 | YE44: 20.77773732 | YF44: 0.008782812246 | YG44: 27.60469005 | YH44: 0.008324897937 | YI44: 26.03182358 | YJ44: 71.75216436 | YK44: 60.37164882 | YL44: 25.759207
A45: 5 | B45: C-EB50-55-CE | C45: 30N0057 | D45: C-EB50-55-CE | E45: closed | F45: Off | G45: N/A | H45: 3 turns | I45: unsealed | J45: unsealed | L45: 4.75 | M45: horizontal | N45: 0 | O45: 50 | P45: CUST 2 | Q45: 6/18/2015 | R45: 15:04:47 | S45: 10 Ton | T45: 0:15:00 | U45: 75/62 55/51 | V45: ENG 1 | W45: TECH 2 | X45: RTU5 | Y45: RTU5 | Z45: 3 | AA45: R22 | AB45: PSC Air Handler | AC45: Manuf. 5.5 lbs | AD45: 208/230/1 | AE45: TU3 | AF45: AHRI 210/240 2008 | AG45: 75 | AH45: 62 | AI45: 55 | AJ45: 51 | AK45: 5.5 | AM45: 5.5 | AO45: 230.1 | AP45: 1 | AQ45: 2 | AR45: 0 | AS45: 4711 | AT45: 14 | AU45: 4483 | AV45: 33 | AW45: 2359 | AX45: 58 | AY45: 7072 | AZ45: 64 | BB45: 945 | CN45: 15.75055679 | CO45: 50% evaporator coil block, economizer closed (2V), no compressor, factory charge--(5.5 lbs) unsealed cabinet, Inlet Meriam set @ 53.5%: Outlet @ 52% Horiz airflow.--4.75" ID pulley 3 turns open from fully closed, adjust code tester speed to match--total s | CP45: R22 5.5 LBS. unsealed cab:Inlet Meriam set @ 53.5%: Outlet Meriam set @ 52% manually: Horiz airflow. ID Pulley is 3 turns open from fully closed: installed economizer.;with code tester, with ouitlet hose, 19" evap coil blockage | CQ45: 74.988 | CR45: 0.015 | CS45: 61.992 | CT45: 0.027 | CU45: 54.995 | CV45: 0.008 | CW45: 51.001 | CX45: 0.022 | CY45: 74.6 | CZ45: 0.04 | DA45: 70.58 | DB45: 0.03 | DC45: 72.56 | DD45: 0.01 | DE45: 0.009 | DF45: 0.002 | DG45: 0.903 | DH45: 0.0019 | DI45: 4711 | DJ45: 14 | DK45: 2359 | DL45: 58 | DM45: 15.735 | DN45: 0.23 | DU45: 230.1 | DV45: 1 | DW45: 230.1 | DX45: 1 | DY45: 230.1 | DZ45: 1 | EA45: 0 | EB45: 0 | EC45: 0 | ED45: 0 | EE45: 0 | EF45: 0 | EG45: 0 | EH45: 0.2 | EI45: 0 | EJ45: 0.2 | EK45: 0 | EL45: 0.2 | EM45: 229.8 | EN45: 1 | EO45: 229.8 | EP45: 1 | EQ45: 229.8 | ER45: 1 | ES45: 2 | ET45: 0 | EU45: 2 | EV45: 0 | EW45: 2 | EX45: 0 | EZ45: 0 | FA45: 0 | FB45: 0 | FC45: 0 | FD45: 0 | FE45: 0 | FF45: 0 | FG45: 0 | FH45: 0 | FI45: 0 | FJ45: 0 | FK45: 0 | FL45: 0 | FM45: 0 | FW45: 0 | FX45: 0 | FY45: 0 | FZ45: 0 | GA45: 0 | GB45: 0 | GC45: 0.5 | GD45: 0.3 | GP45: 230.2 | GQ45: 1 | GR45: 0 | GS45: 0 | GT45: 96.21 | GU45: 0.04 | GV45: 55.46 | GW45: 0.01 | GX45: 56.84 | GY45: 0.02 | GZ45: 1.39 | HA45: 0.03 | HB45: 96 | HC45: 0.03 | HD45: 55.69 | HE45: 0.01 | HF45: 56.73 | HG45: 0.02 | HH45: -1.04 | HI45: 0.02 | HJ45: 96.24 | HK45: 0.04 | HL45: 57.29 | HM45: 0.04 | HN45: 56.86 | HO45: 0.02 | HP45: -0.42 | HQ45: 0.05 | HR45: 95.95 | HS45: 0.03 | HT45: 55.24 | HU45: 0.02 | HV45: 56.7 | HW45: 0.02 | HZ45: 96.28 | IA45: 0.02 | IB45: 55.36 | IC45: 0.02 | ID45: 56.88 | IE45: 0.01 | IF45: -1.52 | IG45: 0.03 | JZ45: -1.46 | KA45: 0.02 | MX45: 70.3 | MY45: 0.02 | MZ45: 70.5 | NA45: 0.02 | NB45: 70.56 | NC45: 0.02 | ND45: 70.64 | NE45: 0.02 | NF45: 70.48 | NG45: 0.02 | NH45: 70.45 | NI45: 0.02 | NN45: 57.01 | NO45: 0.04 | NP45: 55.63 | NQ45: 0.03 | OB45: 57.29 | OC45: 0.04 | QR45: 57.86 | QS45: 0.04 | QT45: 58.41 | QU45: 0.03 | QV45: 55.77 | QW45: 0.03 | QX45: 54.76 | QY45: 0.05 | QZ45: 56.07 | RA45: 0.11 | RB45: 73.56 | RC45: 0.08 | RD45: 73.89 | RE45: 0.07 | RF45: 74.63 | RG45: 0.05 | RH45: 74.71 | RI45: 0.04 | RJ45: 74.94 | RK45: 0.02 | RL45: 74.92 | RM45: 0.02 | RN45: 75.01 | RO45: 0.02 | TD45: 74.48 | TE45: 0.02 | UN45: 54.79 | UO45: 0.06 | UP45: 60.63 | UQ45: 0.13 | UR45: 59.87 | US45: 0.15 | UT45: 74.76 | UU45: 0.02 | UV45: 65.27 | UW45: 0.25 | UZ45: 71.51 | VA45: 0.15 | VB45: 74.83 | VC45: 0.03 | VD45: 73.67 | VE45: 0.08 | VF45: 66.14 | VG45: 0.21 | VH45: 65.17 | VI45: 0.25 | VL45: 73.09 | VM45: 0.14 | VN45: 70.82 | VO45: 0.24 | VP45: 67.25 | VQ45: 0.3 | VR45: 73.99 | VS45: 0.09 | VT45: 61.2 | VU45: 0.22 | VV45: 54.96 | VW45: 0.1 | WJ45: Economizer test | WK45: 74.988 | WL45: 0.015 | WM45: 61.992 | WN45: 0.027 | WO45: 70.762 | WP45: 0.007 | WQ45: 59.748 | WR45: 0.013 | WS45: 54.995 | WT45: 0.008 | WU45: 51.001 | WV45: 0.022 | WW45: 1039.3 | WX45: 1.1 | WY45: 993.2 | WZ45: 1.1 | XA45: 0.464 | XB45: 0.001 | XC45: -0.164 | XD45: 0.001 | XE45: 0.009 | XF45: 0.002 | XG45: 0.903 | XH45: 0.0019 | XI45: 29.178 | XJ45: 0 | XK45: 449 | XL45: 5 | XM45: 448.9 | XN45: 5 | XO45: 0.1508527985 | XP45: 149.8269994 | XQ45: 13.029 | XR45: 0.164 | XS45: 1.209528777 | XT45: 4639.962856 | XU45: 54.14019225 | XV45: 149.829233 | XW45: 689.9597786 | XX45: 3950.003077 | XY45: 0.008511250161 | XZ45: 26.58821076 | YA45: 69.55247122 | YB45: 13.02938846 | YC45: 13.43933172 | YD45: 0.00698304946 | YE45: 20.77832604 | YF45: 0.008778185906 | YG45: 27.60304207 | YH45: 0.008330088841 | YI45: 26.08282172 | YJ45: 72.02332726 | YK45: 60.50258513 | YL45: 25.7880613
A46: 5 | B46: C-R100-EB0-CB0-95CE | C46: 30N0058 | D46: C-R100-EB0-CB0-95CE | E46: closed | F46: on | G46: N/A | H46: 3 turns | I46: unsealed | J46: unsealed | L46: 4.75 | M46: horizontal | N46: 0 | O46: 0 | P46: CUST 2 | Q46: 6/22/2015 | R46: 10:11:08 | S46: 10 Ton | T46: 0:15:00 | U46: 75/62 95/75 | V46: ENG 1 | W46: TECH 2 | X46: RTU5 | Y46: RTU5 | Z46: 3 | AA46: R22 | AB46: PSC Air Handler | AC46: Manuf. 5.5 lbs | AD46: 208/230/1 | AE46: TU3 | AF46: AHRI 210/240 2008 | AG46: 75 | AH46: 62 | AI46: 95 | AJ46: 75 | AK46: 5.5 | AM46: 5.5 | AO46: 230 | AP46: 1 | AQ46: 16 | AR46: 0 | AS46: 18687 | AT46: 25 | AU46: 18192 | AV46: 41 | AW46: 451 | AX46: 83 | AY46: 19138 | AZ46: 92 | BB46: 943 | CN46: 5.401637031 | CO46: Baseline 100% factory charge, 0% evaporator and condenser blockage, economizer closed (2V),--factory charge (5.5 lbs) 95F OD, 75F DB, 62F WB ID conditions, unsealed cabinet,--Inlet Meriam set @ 53.5%: Outlet @ 52% Horiz airflow. 4.75" ID pulley 3 turns op | CP46: R22 5.5 LBS. unsealed cab:Inlet Meriam set @ 53.5%: Outlet Meriam set @ 52% manually: Horiz airflow. ID Pulley is 3 turns open from fully closed: installed economizer. Cond/Evap Coil are blocked 0"., with outlet hose, with code tester | CQ46: 74.998 | CR46: 0.014 | CS46: 62.004 | CT46: 0.029 | CU46: 95.026 | CV46: 0.011 | CW46: 75.001 | CX46: 0.021 | CY46: 74.44 | CZ46: 0.04 | DA46: 59.28 | DB46: 0.02 | DC46: 64.94 | DD46: 0.04 | DE46: 0.007 | DF46: 0.002 | DG46: 1.0568 | DH46: 0.0021 | DI46: 18687 | DJ46: 25 | DK46: 451 | DL46: 83 | DM46: 5.402 | DN46: 0.03 | DU46: 230 | DV46: 1 | DW46: 230 | DX46: 1 | DY46: 230 | DZ46: 1 | EA46: 13.8 | EB46: 0 | EC46: 13.8 | ED46: 0 | EE46: 13.8 | EF46: 0 | EG46: 3066.9 | EH46: 4.8 | EI46: 3066.9 | EJ46: 4.8 | EK46: 3066.9 | EL46: 4.8 | EM46: 229.9 | EN46: 1 | EO46: 229.9 | EP46: 1 | EQ46: 229.9 | ER46: 1 | ES46: 2.2 | ET46: 0 | EU46: 2.2 | EV46: 0 | EW46: 2.2 | EX46: 0 | EZ46: 228.3 | FA46: 1 | FB46: 228.3 | FC46: 1 | FD46: 228.3 | FE46: 1 | FF46: 13 | FG46: 0 | FH46: 13 | FI46: 0 | FJ46: 13 | FK46: 0 | FL46: 2846.3 | FM46: 4.1 | FW46: 228.8 | FX46: 1 | FY46: 0.7 | FZ46: 0 | GA46: 170.9 | GB46: 0.9 | GC46: 13 | GD46: 0.2 | GE46: 3506 | GP46: 230.3 | GQ46: 1 | GR46: 0 | GS46: 0 | GT46: 257.3 | GU46: 0.21 | GV46: 102.69 | GW46: 0.04 | GX46: 119.17 | GY46: 0.06 | GZ46: 16.48 | HA46: 0.04 | HB46: 273.87 | HC46: 0.2 | HD46: 179.46 | HE46: 0.03 | HF46: 123.81 | HG46: 0.05 | HH46: 55.65 | HI46: 0.05 | HJ46: 256.67 | HK46: 0.2 | HL46: 102.39 | HM46: 0.03 | HN46: 118.99 | HO46: 0.06 | HP46: 16.6 | HQ46: 0.05 | HR46: 78.3 | HS46: 0.03 | HT46: 66.31 | HU46: 0.08 | HV46: 46.26 | HW46: 0.02 | HZ46: 77.19 | IA46: 0.02 | IB46: 63.07 | IC46: 0.16 | ID46: 45.55 | IE46: 0.02 | IF46: 17.52 | IG46: 0.16 | JZ46: 20.06 | KA46: 0.09 | MX46: 58.47 | MY46: 0.04 | MZ46: 58.79 | NA46: 0.03 | NB46: 58.84 | NC46: 0.03 | ND46: 58.78 | NE46: 0.02 | NF46: 58.63 | NG46: 0.03 | NH46: 58.72 | NI46: 0.03 | NN46: 54.96 | NO46: 0.21 | NP46: 58.09 | NQ46: 0.16 | OB46: 102.39 | OC46: 0.03 | QR46: 148.82 | QS46: 0.05 | QT46: 87.21 | QU46: 0.09 | QV46: 181.75 | QW46: 0.07 | QX46: 95.23 | QY46: 0.09 | QZ46: 94.25 | RA46: 0.07 | RB46: 75.16 | RC46: 0.03 | RD46: 75.08 | RE46: 0.03 | RF46: 74.92 | RG46: 0.04 | RH46: 74.96 | RI46: 0.04 | RJ46: 74.9 | RK46: 0.03 | RL46: 74.95 | RM46: 0.03 | RN46: 75.02 | RO46: 0.04 | TD46: 74.58 | TE46: 0.04 | UN46: 95.08 | UO46: 0.1 | UP46: 85.13 | UQ46: 0.25 | UR46: 85.23 | US46: 0.27 | UT46: 74.81 | UU46: 0.03 | UV46: 90.65 | UW46: 0.32 | UX46: 75.67 | UY46: 0.04 | UZ46: 76.95 | VA46: 0.09 | VB46: 76.26 | VC46: 0.07 | VD46: 75.11 | VE46: 0.04 | VF46: 79.1 | VG46: 0.29 | VH46: 87.12 | VI46: 0.29 | VJ46: 77.29 | VK46: 0.13 | VL46: 75.28 | VM46: 0.05 | VN46: 81.89 | VO46: 0.41 | VP46: 90.21 | VQ46: 0.26 | VR46: 80.28 | VS46: 0.14 | VT46: 83.52 | VU46: 0.29 | VV46: 95.21 | VW46: 0.1 | WJ46: C-55-CE | WK46: 74.998 | WL46: 0.014 | WM46: 62.004 | WN46: 0.029 | WO46: 59.432 | WP46: 0.01 | WQ46: 56.171 | WR46: 0.008 | WS46: 95.026 | WT46: 0.011 | WU46: 75.001 | WV46: 0.021 | WW46: 1113.8 | WX46: 1.1 | WY46: 1085.8 | WZ46: 1.1 | XA46: 0.566 | XB46: 0.001 | XC46: -0.201 | XD46: 0.001 | XE46: 0.007 | XF46: 0.002 | XG46: 1.0568 | XH46: 0.0021 | XI46: 29.356 | XJ46: 0 | XK46: 3543 | XL46: 8 | XM46: 475.8 | XN46: 5.3 | XO46: 0.1756425029 | XP46: 192.6271329 | XQ46: 13.03 | XR46: 0.184 | XS46: 1.129590186 | XT46: 5079.594803 | XU46: 72.19903131 | XV46: 209.4363621 | XW46: 891.1850753 | XX46: 4188.409727 | XY46: 0.00968406113 | XZ46: 29.4618001 | YA46: 58.30240981 | YB46: 14.10052981 | YC46: 13.15616749 | YD46: 0.01391542935 | YE46: 38.15762399 | YF46: 0.0087837356 | YG46: 27.61155407 | YH46: 0.008828779421 | YI46: 23.8639871 | YJ46: 78.53881696 | YK46: 64.56874986 | YL46: 23.58845749 | YM46: =(XZ46-YL46)*XT46 -> 29834.20059 | YN46: =0.24*(YJ46-YA46)*XT46 -> 24670.25965 | YO46: =XK46-XM46 -> 3067.2 | YP46: =YO46*3.413/YM46 -> 0.3508843339 | YQ46: =YM46-(XM46-XU46)*3.413 -> 28456.71048 | YR46: =YN46-(XM46-XU46)*3.413 -> 23292.76955 | YS46: =YQ46/XK46 -> 8.03181216 | YT46: =(YA46-YW46)/(YJ46-YW46) -> 0.2054808226 | YU46: =-XZ46+YL46 -> -5.873342609 | YV46: =-YJ46+YA46 -> -20.23640714 | YW46: =(-(-0.0182984848494437-(YU46/YV46))+SQRT((-0.0182984848494437-(YU46/YV46))^2-4*0.00577826340327261*(6.76723916086377-XZ46+(YU46/YV46)*YJ46)))/(2*0.00577826340327261) -> 53.06881231 | YX46: =XT46*(XZ46-YL46) -> 29834.20059 | YY46: =XT46*(YG46-YI46) -> 19036.12168 | YZ46: =XT46*(YI46-YL46) -> 1399.578792 | ZA46: =XW46*(YE46-YG46) -> 9398.500121 | ZB46: =SUM(YY46:ZA46) -> 29834.20059 | ZC46: =ZB46/YX46 -> 1
A47: 5 | B47: C-R100-EB20-CB30-95CE | C47: 30N0059 | D47: C-R100-EB20-CB30-95CE | E47: closed | F47: on | G47: N/A | H47: 3 turns | I47: unsealed | J47: unsealed | L47: 4.75 | M47: horizontal | N47: 30 | O47: 20 | P47: CUST 2 | Q47: 6/22/2015 | R47: 11:14:56 | S47: 10 Ton | T47: 0:15:00 | U47: 75/62 95/75 | V47: ENG 1 | W47: TECH 2 | X47: RTU5 | Y47: RTU5 | Z47: 3 | AA47: R22 | AB47: PSC Air Handler | AC47: Manuf. 5.5 lbs | AD47: 208/230/1 | AE47: TU3 | AF47: AHRI 210/240 2008 | AG47: 75 | AH47: 62 | AI47: 95 | AJ47: 75 | AK47: 5.5 | AM47: 5.5 | AO47: 230 | AP47: 1.3 | AQ47: 17.2 | AR47: 0 | AS47: 17323 | AT47: 29 | AU47: 16852 | AV47: 63 | AW47: -378 | AX47: 86 | AY47: 16945 | AZ47: 94 | BB47: 943 | CN47: 4.431223849 | CO47: Baseline 100% factory charge, 20% evaporator blockage, 30% condenser blockage,--economizer closed (2V), factory charge (5.5 lbs) 95F OD, 75F DB, 62F WB ID conditions,--unsealed cabinet, Inlet Meriam set @ 53.5%: Outlet @ 52% Horiz airflow. 4.75" ID pulley | CP47: R22 5.5 LBS. unsealed cab:Inlet Meriam set @ 53.5%: Outlet Meriam set @ 52% manually: Horiz airflow. ID Pulley is 3 turns open from fully closed: installed economizer. Evap coil block 9", Cond coil block 33", with outlet hose, with code tester | CQ47: 75.025 | CR47: 0.018 | CS47: 61.998 | CT47: 0.034 | CU47: 94.996 | CV47: 0.009 | CW47: 75.007 | CX47: 0.025 | CY47: 74.5 | CZ47: 0.05 | DA47: 60.16 | DB47: 0.03 | DC47: 65.51 | DD47: 0.02 | DE47: 0.01 | DF47: 0.002 | DG47: 1.0176 | DH47: 0.0024 | DI47: 17323 | DJ47: 29 | DK47: -378 | DL47: 86 | DM47: 4.431 | DN47: 0.027 | DU47: 230 | DV47: 1.3 | DW47: 230 | DX47: 1.3 | DY47: 230 | DZ47: 1.3 | EA47: 15.1 | EB47: 0 | EC47: 15.1 | ED47: 0 | EE47: 15.1 | EF47: 0 | EG47: 3354 | EH47: 4.9 | EI47: 3354 | EJ47: 4.9 | EK47: 3354 | EL47: 4.9 | EM47: 229.9 | EN47: 1.3 | EO47: 229.9 | EP47: 1.3 | EQ47: 229.9 | ER47: 1.3 | ES47: 2.1 | ET47: 0 | EU47: 2.1 | EV47: 0 | EW47: 2.1 | EX47: 0 | EZ47: 228.1 | FA47: 1.3 | FB47: 228.1 | FC47: 1.3 | FD47: 228.1 | FE47: 1.3 | FF47: 14.2 | FG47: 0 | FH47: 14.2 | FI47: 0 | FJ47: 14.2 | FK47: 0 | FL47: 3121.9 | FM47: 4 | FW47: 228.7 | FX47: 1.3 | FY47: 0.8 | FZ47: 0 | GA47: 176 | GB47: 1.1 | GC47: 13 | GD47: 0.2 | GE47: 3781.2 | GP47: 230.3 | GQ47: 1.3 | GR47: 0 | GS47: 0 | GT47: 285.3 | GU47: 0.19 | GV47: 109.87 | GW47: 0.06 | GX47: 126.89 | GY47: 0.05 | GZ47: 17.02 | HA47: 0.04 | HB47: 302.11 | HC47: 0.19 | HD47: 170.33 | HE47: 0.04 | HF47: 131.28 | HG47: 0.05 | HH47: 39.06 | HI47: 0.07 | HJ47: 284.66 | HK47: 0.19 | HL47: 109.28 | HM47: 0.04 | HN47: 126.72 | HO47: 0.05 | HP47: 17.44 | HQ47: 0.04 | HR47: 78.16 | HS47: 0.02 | HT47: 58.89 | HU47: 0.04 | HV47: 46.17 | HW47: 0.02 | HZ47: 77.17 | IA47: 0.02 | IB47: 53.16 | IC47: 0.03 | ID47: 45.54 | IE47: 0.01 | IF47: 7.62 | IG47: 0.02 | JZ47: 12.72 | KA47: 0.04 | MX47: 59.39 | MY47: 0.03 | MZ47: 59.68 | NA47: 0.03 | NB47: 59.74 | NC47: 0.03 | ND47: 59.71 | NE47: 0.03 | NF47: 59.5 | NG47: 0.02 | NH47: 59.59 | NI47: 0.02 | NN47: 51.38 | NO47: 0.06 | NP47: 49.06 | NQ47: 0.04 | OB47: 109.28 | OC47: 0.04 | QR47: 140.17 | QS47: 0.05 | QT47: 65.17 | QU47: 0.2 | QV47: 172.65 | QW47: 0.09 | QX47: 95.24 | QY47: 0.09 | QZ47: 94.42 | RA47: 0.08 | RB47: 75.43 | RC47: 0.05 | RD47: 75.29 | RE47: 0.05 | RF47: 75.09 | RG47: 0.05 | RH47: 75.11 | RI47: 0.05 | RJ47: 75.01 | RK47: 0.05 | RL47: 75.05 | RM47: 0.05 | RN47: 75.06 | RO47: 0.05 | TD47: 74.59 | TE47: 0.05 | UN47: 95.16 | UO47: 0.08 | UP47: 87.92 | UQ47: 0.37 | UR47: 89.72 | US47: 0.25 | UT47: 74.85 | UU47: 0.04 | UV47: 89.63 | UW47: 0.16 | UX47: 76.48 | UY47: 0.07 | UZ47: 77.84 | VA47: 0.13 | VB47: 75.44 | VC47: 0.05 | VD47: 75.27 | VE47: 0.06 | VF47: 82.89 | VG47: 0.31 | VH47: 88.54 | VI47: 0.14 | VJ47: 75.83 | VK47: 0.06 | VL47: 75.59 | VM47: 0.06 | VN47: 81.71 | VO47: 0.33 | VP47: 85.9 | VQ47: 0.24 | VR47: 78.92 | VS47: 0.24 | VT47: 88.37 | VU47: 0.28 | VV47: 95 | VW47: 0.07 | WJ47: C-EB20-55-CE | WK47: 75.025 | WL47: 0.018 | WM47: 61.998 | WN47: 0.034 | WO47: 60.294 | WP47: 0.007 | WQ47: 56.757 | WR47: 0.011 | WS47: 94.996 | WT47: 0.009 | WU47: 75.007 | WV47: 0.025 | WW47: 1093.2 | WX47: 1.3 | WY47: 1064.7 | WZ47: 1.3 | XA47: 0.535 | XB47: 0.001 | XC47: -0.192 | XD47: 0.001 | XE47: 0.01 | XF47: 0.002 | XG47: 1.0176 | XH47: 0.0024 | XI47: 29.366 | XJ47: 0.001 | XK47: 3824 | XL47: 8 | XM47: 470.3 | XN47: 5.5 | XO47: 0.1558370044 | XP47: 166.2625 | XQ47: 13.029 | XR47: 0.19 | XS47: 1.152258108 | XT47: 4976.958213 | XU47: 66.91849087 | XV47: 173.8681902 | XW47: 739.8714573 | XX47: 4237.086756 | XY47: 0.0095396605 | XZ47: 29.17624612 | YA47: 59.14174189 | YB47: 14.09987006 | YC47: 13.17913416 | YD47: 0.01392787144 | YE47: 38.16396448 | YF47: 0.008773400046 | YG47: 27.60682906 | YH47: 0.008971884771 | YI47: 24.22991191 | YJ47: 78.01756014 | YK47: 64.18247822 | YL47: 23.94877992 | YM47: 26016.88085 | YN47: 22546.59807 | YO47: 3353.7 | YP47: 0.4399519745 | YQ47: 24640.13976 | YR47: 21169.85698 | YS47: 6.443551192 | YT47: 0.2243261299 | YU47: -5.227466203 | YV47: -18.87581825 | YW47: 53.68282492 | YX47: 26016.88085 | YY47: 16806.77554 | YZ47: 1399.182144 | ZA47: 7810.923169 | ZB47: 26016.88085 | ZC47: 1
A48: 5 | B48: C-R120-EB0-CB0-95CE | C48: 30N0060 | D48: C-R120-EB0-CB0-95CE | E48: closed | F48: on | G48: N/A | H48: 3 turns | I48: unsealed | J48: unsealed | L48: 4.75 | M48: horizontal | N48: 0 | O48: 0 | P48: CUST 2 | Q48: 6/22/2015 | R48: 18:43:02 | S48: 10 Ton | T48: 0:15:00 | U48: 75/62 95/75 | V48: ENG 1 | W48: TECH 2 | X48: RTU5 | Y48: RTU5 | Z48: 3 | AA48: R22 | AB48: PSC Air Handler | AC48: Manuf. 5.5 lbs | AD48: 208/230/1 | AE48: TU3 | AF48: AHRI 210/240 2008 | AG48: 75 | AH48: 62 | AI48: 95 | AJ48: 75 | AK48: 5.5 | AM48: 5.5 | AO48: 229.9 | AP48: 1.1 | AQ48: 16.2 | AR48: 0 | AS48: 18671 | AT48: 42 | AU48: 18313 | AV48: 65 | AW48: 574 | AX48: 46 | AY48: 19246 | AZ48: 50 | BB48: 943 | CN48: 5.347596555 | CO48: Baseline 120% factory charge, 0% evaporator and condenser blockage, economizer closed (2V),--120% factory charge (6.6 lbs), 95F OD, 75F DB, 62F WB ID conditions, unsealed cabinet,--Inlet Meriam set @ 53.5%: Outlet @ 52% Horiz airflow. 4.75" ID pulley 3 tu | CP48: R22 6.6 LBS. unsealed cab:Inlet Meriam set @ 53.5%: Outlet Meriam set @ 52% manually: Horiz airflow. ID Pulley is 3 turns open from fully closed: installed economizer. Condenser Coil is blocked 0 in. with outlet hose, with code tester, added 35.2 oz of R2 | CQ48: 75.022 | CR48: 0.022 | CS48: 61.997 | CT48: 0.019 | CU48: 95.007 | CV48: 0.01 | CW48: 74.998 | CX48: 0.026 | CY48: 74.6 | CZ48: 0.05 | DA48: 58.92 | DB48: 0.05 | DC48: 64.25 | DD48: 0.04 | DE48: -0.058 | DF48: 0.002 | DG48: 1.0015 | DH48: 0.0031 | DI48: 18671 | DJ48: 42 | DK48: 574 | DL48: 46 | DM48: 5.348 | DN48: 0.018 | DU48: 229.9 | DV48: 1.1 | DW48: 229.9 | DX48: 1.1 | DY48: 229.9 | DZ48: 1.1 | EA48: 14.1 | EB48: 0 | EC48: 14.1 | ED48: 0 | EE48: 14.1 | EF48: 0 | EG48: 3131.6 | EH48: 4.6 | EI48: 3131.6 | EJ48: 4.6 | EK48: 3131.6 | EL48: 4.6 | EM48: 229.8 | EN48: 1.1 | EO48: 229.8 | EP48: 1.1 | EQ48: 229.8 | ER48: 1.1 | ES48: 2.1 | ET48: 0 | EU48: 2.1 | EV48: 0 | EW48: 2.1 | EX48: 0 | EZ48: 228.1 | FA48: 1.1 | FB48: 228.1 | FC48: 1.1 | FD48: 228.1 | FE48: 1.1 | FF48: 13.3 | FG48: 0 | FH48: 13.3 | FI48: 0 | FJ48: 13.3 | FK48: 0 | FL48: 2910.8 | FM48: 3.8 | FW48: 228.6 | FX48: 1.1 | FY48: 0.7 | FZ48: 0 | GA48: 169.2 | GB48: 1 | GC48: 0.1 | GD48: 0.2 | GE48: 3547 | GP48: 230.1 | GQ48: 1.1 | GR48: 0 | GS48: 0 | GT48: 265.94 | GU48: 0.2 | GV48: 100.6 | GW48: 0.05 | GX48: 121.6 | GY48: 0.06 | GZ48: 21.01 | HA48: 0.05 | HB48: 283.32 | HC48: 0.17 | HD48: 150.99 | HE48: 0.05 | HF48: 126.35 | HG48: 0.05 | HH48: 24.63 | HI48: 0.06 | HJ48: 265.24 | HK48: 0.26 | HL48: 100.13 | HM48: 0.06 | HN48: 121.41 | HO48: 0.07 | HP48: 21.28 | HQ48: 0.06 | HR48: 79.86 | HS48: 0.03 | HT48: 50.03 | HU48: 0.03 | HV48: 47.22 | HW48: 0.02 | HZ48: 79.82 | IA48: 0.03 | IB48: 51.85 | IC48: 0.04 | ID48: 47.2 | IE48: 0.02 | IF48: 4.65 | IG48: 0.04 | JZ48: 2.81 | KA48: 0.02 | MX48: 58 | MY48: 0.03 | MZ48: 58.4 | NA48: 0.03 | NB48: 58.51 | NC48: 0.03 | ND48: 58.51 | NE48: 0.02 | NF48: 58.26 | NG48: 0.03 | NH48: 58.33 | NI48: 0.03 | QR48: 129.98 | QS48: 0.09 | QT48: 59.78 | QU48: 0.08 | QV48: 152.62 | QW48: 0.07 | QX48: 95.56 | QY48: 0.09 | QZ48: 94.64 | RA48: 0.07 | RB48: 75.65 | RC48: 0.05 | RD48: 75.51 | RE48: 0.04 | RF48: 75.63 | RG48: 0.04 | RH48: 75.55 | RI48: 0.04 | RJ48: 75.35 | RK48: 0.04 | RL48: 75.35 | RM48: 0.04 | RN48: 75.3 | RO48: 0.04 | TD48: 74.64 | TE48: 0.04 | UN48: 95.24 | UO48: 0.08 | UP48: 85.84 | UQ48: 0.21 | UR48: 84.84 | US48: 0.39 | UT48: 75.09 | UU48: 0.04 | UV48: 90.94 | UW48: 0.3 | UX48: 75.84 | UY48: 0.04 | UZ48: 77.18 | VA48: 0.09 | VB48: 75.75 | VC48: 0.06 | VD48: 75.23 | VE48: 0.05 | VF48: 80.16 | VG48: 0.29 | VH48: 88.12 | VI48: 0.27 | VJ48: 76.49 | VK48: 0.11 | VL48: 75.47 | VM48: 0.07 | VN48: 82.94 | VO48: 0.35 | VP48: 90.3 | VQ48: 0.27 | VR48: 78.7 | VS48: 0.25 | VT48: 84.05 | VU48: 0.31 | VV48: 95.06 | VW48: 0.11 | WJ48: C-55-CE | WK48: 75.022 | WL48: 0.022 | WM48: 61.997 | WN48: 0.019 | WO48: 59.04 | WP48: 0.011 | WQ48: 55.965 | WR48: 0.012 | WS48: 95.007 | WT48: 0.01 | WU48: 74.998 | WV48: 0.026 | WW48: 1084.7 | WX48: 1.6 | WY48: 1056.2 | WZ48: 1.6 | XA48: 0.581 | XB48: 0.001 | XC48: -0.188 | XD48: 0.001 | XE48: -0.058 | XF48: 0.002 | XG48: 1.0015 | XH48: 0.0031 | XI48: 29.29 | XJ48: 0.001 | XK48: 3599 | XL48: 8 | XM48: 467 | XN48: 5.3 | XO48: 0.1756425029 | XP48: 192.6271329 | XQ48: 13.03 | XR48: 0.184 | XS48: 1.134035804 | XT48: 4950.703156 | XU48: 72.09205373 | XV48: 202.5469873 | XW48: 861.8982408 | XX48: 4088.804915 | XY48: 0.009668982515 | XZ48: 29.44267639 | YA48: 57.9059642 | YB48: 14.1000627 | YC48: 13.14601137 | YD48: 0.01391734928 | YE48: 38.15506463 | YF48: 0.008773449488 | YG48: 27.60615147 | YH48: 0.008800450256 | YI48: 23.73757061 | YJ48: 78.5281761 | YK48: 64.54346783 | YL48: 23.46097089 | YM48: 29613.6483 | YN48: 24502.66789 | YO48: 3132 | YP48: 0.3609658591 | YQ48: 28265.82748 | YR48: 23154.84707 | YS48: 7.853800356 | YT48: 0.1912019257 | YU48: -5.981705501 | YV48: -20.6222119 | YW48: 53.03082075 | YX48: 29613.6483 | YY48: 19152.19548 | YZ48: 1369.363129 | ZA48: 9092.089693 | ZB48: 29613.6483 | ZC48: 1
A49: 5 | B49: C-R120-EB0-CB30-95CE | C49: 30N0061 | D49: C-R120-EB0-CB30-95CE | E49: closed | F49: on | G49: N/A | H49: 3 turns | I49: unsealed | J49: unsealed | L49: 4.75 | M49: horizontal | N49: 30 | O49: 0 | P49: CUST 2 | Q49: 6/22/2015 | R49: 19:50:21 | S49: 10 Ton | T49: 0:15:00 | U49: 75/62 95/75 | V49: ENG 1 | W49: TECH 2 | X49: RTU5 | Y49: RTU5 | Z49: 3 | AA49: R22 | AB49: PSC Air Handler | AC49: Manuf. 5.5 lbs | AD49: 208/230/1 | AE49: TU3 | AF49: AHRI 210/240 2008 | AG49: 75 | AH49: 62 | AI49: 95 | AJ49: 75 | AK49: 5.5 | AM49: 5.5 | AO49: 229.9 | AP49: 1 | AQ49: 17.5 | AR49: 0 | AS49: 17996 | AT49: 25 | AU49: 17630 | AV49: 55 | AW49: -981 | AX49: 77 | AY49: 17014 | AZ49: 84 | BB49: 943 | CN49: 4.395246706 | CO49: Baseline 120% factory charge, 0% evaporator blockage, 30% condenser blockage,--economizer closed (2V), 120% factory charge (6.6 lbs), 95F OD,--75F DB, 62F WB ID conditions, unsealed cabinet, Inlet Meriam set @ 53.5%: Outlet @ 52% Horiz airflow.--4.75" ID | CP49: R22 6.6 LBS. unsealed cab:Inlet Meriam set @ 53.5%: Outlet Meriam set @ 52% manually: Horiz airflow. ID Pulley is 3 turns open from fully closed: installed economizer. Evap coil block 0", Cond coil block 33", with outlet hose, with code tester, added 35.2 | CQ49: 75.013 | CR49: 0.01 | CS49: 61.998 | CT49: 0.026 | CU49: 95.001 | CV49: 0.007 | CW49: 75.003 | CX49: 0.023 | CY49: 74.57 | CZ49: 0.03 | DA49: 59.91 | DB49: 0.03 | DC49: 64.69 | DD49: 0.03 | DE49: -0.001 | DF49: 0.002 | DG49: 1.0673 | DH49: 0.0026 | DI49: 17996 | DJ49: 25 | DK49: -981 | DL49: 77 | DM49: 4.395 | DN49: 0.022 | DU49: 229.9 | DV49: 1 | DW49: 229.9 | DX49: 1 | DY49: 229.9 | DZ49: 1 | EA49: 15.3 | EB49: 0 | EC49: 15.3 | ED49: 0 | EE49: 15.3 | EF49: 0 | EG49: 3397.4 | EH49: 4.3 | EI49: 3397.4 | EJ49: 4.3 | EK49: 3397.4 | EL49: 4.3 | EM49: 229.9 | EN49: 1 | EO49: 229.9 | EP49: 1 | EQ49: 229.9 | ER49: 1 | ES49: 2.2 | ET49: 0 | EU49: 2.2 | EV49: 0 | EW49: 2.2 | EX49: 0 | EZ49: 228 | FA49: 1 | FB49: 228 | FC49: 1 | FD49: 228 | FE49: 1 | FF49: 14.4 | FG49: 0 | FH49: 14.4 | FI49: 0 | FJ49: 14.4 | FK49: 0 | FL49: 3164.9 | FM49: 3.7 | FW49: 228.6 | FX49: 1 | FY49: 0.8 | FZ49: 0 | GA49: 174.5 | GB49: 0.9 | GC49: 0 | GD49: 0.2 | GE49: 3339.4 | GP49: 230.2 | GQ49: 1 | GR49: 0 | GS49: 0 | GT49: 294.47 | GU49: 0.16 | GV49: 108.29 | GW49: 0.03 | GX49: 129.3 | GY49: 0.04 | GZ49: 21.01 | HA49: 0.04 | HB49: 311.77 | HC49: 0.12 | HD49: 152.49 | HE49: 0.06 | HF49: 133.71 | HG49: 0.03 | HH49: 18.78 | HI49: 0.05 | HJ49: 293.63 | HK49: 0.14 | HL49: 107.63 | HM49: 0.03 | HN49: 129.08 | HO49: 0.04 | HP49: 21.45 | HQ49: 0.04 | HR49: 81.97 | HS49: 0.02 | HT49: 51.77 | HU49: 0.02 | HV49: 48.53 | HW49: 0.01 | HZ49: 81.93 | IA49: 0.02 | IB49: 54.39 | IC49: 0.05 | ID49: 48.51 | IE49: 0.01 | IF49: 5.88 | IG49: 0.05 | JZ49: 3.24 | KA49: 0.02 | MX49: 59.02 | MY49: 0.02 | MZ49: 59.41 | NA49: 0.03 | NB49: 59.53 | NC49: 0.03 | ND49: 59.55 | NE49: 0.02 | NF49: 59.3 | NG49: 0.02 | NH49: 59.38 | NI49: 0.03 | QR49: 133.87 | QS49: 0.03 | QT49: 64.13 | QU49: 0.19 | QV49: 153.76 | QW49: 0.12 | QX49: 95.54 | QY49: 0.07 | QZ49: 94.86 | RA49: 0.05 | RB49: 75.63 | RC49: 0.04 | RD49: 75.49 | RE49: 0.03 | RF49: 75.62 | RG49: 0.04 | RH49: 75.54 | RI49: 0.03 | RJ49: 75.33 | RK49: 0.02 | RL49: 75.34 | RM49: 0.02 | RN49: 75.28 | RO49: 0.03 | TD49: 74.6 | TE49: 0.03 | UN49: 95.39 | UO49: 0.05 | UP49: 85.62 | UQ49: 0.26 | UR49: 84.62 | US49: 0.42 | UT49: 75.06 | UU49: 0.04 | UV49: 90.69 | UW49: 0.3 | UX49: 75.78 | UY49: 0.03 | UZ49: 77.09 | VA49: 0.07 | VB49: 75.72 | VC49: 0.06 | VD49: 75.18 | VE49: 0.03 | VF49: 79.99 | VG49: 0.29 | VH49: 87.8 | VI49: 0.29 | VJ49: 76.49 | VK49: 0.12 | VL49: 75.41 | VM49: 0.06 | VN49: 82.9 | VO49: 0.37 | VP49: 90.32 | VQ49: 0.25 | VR49: 78.71 | VS49: 0.25 | VT49: 83.88 | VU49: 0.34 | VV49: 94.9 | VW49: 0.08 | WJ49: C-55-CE | WK49: 75.013 | WL49: 0.01 | WM49: 61.998 | WN49: 0.026 | WO49: 60.051 | WP49: 0.005 | WQ49: 56.868 | WR49: 0.008 | WS49: 95.001 | WT49: 0.007 | WU49: 75.003 | WV49: 0.023 | WW49: 1120.2 | WX49: 1.4 | WY49: 1089.9 | WZ49: 1.3 | XA49: 0.56 | XB49: 0.001 | XC49: -0.199 | XD49: 0.001 | XE49: -0.001 | XF49: 0.002 | XG49: 1.0673 | XH49: 0.0026 | XI49: 29.299 | XJ49: 0 | XK49: 3871 | XL49: 8 | XM49: 473.9 | XN49: 5.3 | XO49: 0.1756425029 | XP49: 192.6271329 | XQ49: 13.03 | XR49: 0.184 | XS49: 1.12074064 | XT49: 5101.889514 | XU49: 71.70340535 | XV49: 208.3875618 | XW49: 886.7582057 | XX49: 4215.131308 | XY49: 0.009670822379 | XZ49: 29.44121959 | YA49: 58.93025936 | YB49: 14.09995828 | YC49: 13.17394268 | YD49: 0.01392316809 | YE49: 38.16000676 | YF49: 0.008776235193 | YG49: 27.60700483 | YH49: 0.009095607653 | YI49: 24.30519267 | YJ49: 78.51395943 | YK49: 64.54127242 | YL49: 24.03168886 | YM49: 27598.8281 | YN49: 23979.32976 | YO49: 3397.1 | YP49: 0.4201012542 | YQ49: 26226.13113 | YR49: 22606.63279 | YS49: 6.775027415 | YT49: 0.1970256306 | YU49: -5.40953073 | YV49: -19.58370007 | YW49: 54.12501152 | YX49: 27598.8281 | YY49: 16845.48084 | YZ49: 1395.386213 | ZA49: 9357.961054 | ZB49: 27598.8281 | ZC49: 1
A50: 5 | B50: C-R120-EB20-CB0-95CE | C50: 30N0062 | D50: C-R120-EB20-CB0-95CE | E50: closed | F50: on | G50: N/A | H50: 3 turns | I50: unsealed | J50: unsealed | L50: 4.75 | M50: horizontal | N50: 0 | O50: 20 | P50: CUST 2 | Q50: 6/22/2015 | R50: 21:38:53 | S50: 10 Ton | T50: 0:15:00 | U50: 75/62 95/75 | V50: ENG 1 | W50: TECH 2 | X50: RTU5 | Y50: RTU5 | Z50: 3 | AA50: R22 | AB50: PSC Air Handler | AC50: Manuf. 5.5 lbs | AD50: 208/230/1 | AE50: TU3 | AF50: AHRI 210/240 2008 | AG50: 75 | AH50: 62 | AI50: 95 | AJ50: 75 | AK50: 5.5 | AM50: 5.5 | AO50: 229.9 | AP50: 1.1 | AQ50: 16.1 | AR50: 0 | AS50: 17953 | AT50: 39 | AU50: 17612 | AV50: 63 | AW50: 427 | AX50: 52 | AY50: 18379 | AZ50: 80 | BB50: 944 | CN50: 5.161190677 | CO50: Baseline 120% factory charge, 20% evaporator blockage, 0% condenser blockage,--economizer closed (2V), 120% factory charge (6.6 lbs), 95F OD, 75F DB, 62F WB ID conditions,--unsealed cabinet, Inlet Meriam set @ 53.5%: Outlet @ 52% Horiz airflow. 4.75"--ID | CP50: R22 6.6 LBS. unsealed cab:Inlet Meriam set @ 53.5%: Outlet Meriam set @ 52% manually: Horiz airflow. ID Pulley is 3 turns open from fully closed: installed economizer. Evap coil block 9", Cond coil block 0", with outlet hose, with code tester, added 35.2 | CQ50: 75.016 | CR50: 0.02 | CS50: 61.993 | CT50: 0.027 | CU50: 95.005 | CV50: 0.008 | CW50: 75.001 | CX50: 0.021 | CY50: 74.61 | CZ50: 0.06 | DA50: 59.58 | DB50: 0.06 | DC50: 64.42 | DD50: 0.02 | DE50: -0.001 | DF50: 0.002 | DG50: 1.0083 | DH50: 0.003 | DI50: 17953 | DJ50: 39 | DK50: 427 | DL50: 52 | DM50: 5.162 | DN50: 0.024 | DU50: 229.9 | DV50: 1.1 | DW50: 229.9 | DX50: 1.1 | DY50: 229.9 | DZ50: 1.1 | EA50: 14 | EB50: 0 | EC50: 14 | ED50: 0 | EE50: 14 | EF50: 0 | EG50: 3093.4 | EH50: 5.4 | EI50: 3093.4 | EJ50: 5.4 | EK50: 3093.4 | EL50: 5.4 | EM50: 229.8 | EN50: 1.1 | EO50: 229.8 | EP50: 1.1 | EQ50: 229.8 | ER50: 1.1 | ES50: 2.1 | ET50: 0 | EU50: 2.1 | EV50: 0 | EW50: 2.1 | EX50: 0 | EZ50: 228.2 | FA50: 1.1 | FB50: 228.2 | FC50: 1.1 | FD50: 228.2 | FE50: 1.1 | FF50: 13.1 | FG50: 0 | FH50: 13.1 | FI50: 0 | FJ50: 13.1 | FK50: 0 | FL50: 2873.5 | FM50: 4.5 | FW50: 228.7 | FX50: 1.1 | FY50: 0.7 | FZ50: 0 | GA50: 169.5 | GB50: 1 | GC50: 0 | GD50: 0.2 | GE50: 3510.1 | GP50: 230.2 | GQ50: 1.1 | GR50: 0 | GS50: 0 | GT50: 262.97 | GU50: 0.22 | GV50: 100.59 | GW50: 0.04 | GX50: 120.77 | GY50: 0.06 | GZ50: 20.18 | HA50: 0.04 | HB50: 280.14 | HC50: 0.19 | HD50: 147.52 | HE50: 0.06 | HF50: 125.51 | HG50: 0.05 | HH50: 22.02 | HI50: 0.07 | HJ50: 262.2 | HK50: 0.2 | HL50: 100.16 | HM50: 0.07 | HN50: 120.56 | HO50: 0.06 | HP50: 20.39 | HQ50: 0.07 | HR50: 78.2 | HS50: 0.03 | HT50: 48.76 | HU50: 0.03 | HV50: 46.18 | HW50: 0.02 | HZ50: 77.94 | IA50: 0.04 | IB50: 50.81 | IC50: 0.05 | ID50: 46.01 | IE50: 0.02 | IF50: 4.79 | IG50: 0.06 | JZ50: 2.58 | KA50: 0.03 | MX50: 58.68 | MY50: 0.03 | MZ50: 59.1 | NA50: 0.03 | NB50: 59.19 | NC50: 0.03 | ND50: 59.16 | NE50: 0.03 | NF50: 58.92 | NG50: 0.03 | NH50: 59.04 | NI50: 0.02 | QR50: 127.73 | QS50: 0.1 | QT50: 55.53 | QU50: 0.1 | QV50: 148.86 | QW50: 0.09 | QX50: 95.56 | QY50: 0.09 | QZ50: 94.69 | RA50: 0.05 | RB50: 75.74 | RC50: 0.05 | RD50: 75.55 | RE50: 0.04 | RF50: 75.65 | RG50: 0.04 | RH50: 75.57 | RI50: 0.04 | RJ50: 75.36 | RK50: 0.03 | RL50: 75.37 | RM50: 0.03 | RN50: 75.29 | RO50: 0.04 | TD50: 74.64 | TE50: 0.04 | UN50: 95.26 | UO50: 0.08 | UP50: 89.11 | UQ50: 0.23 | UR50: 89.91 | US50: 0.14 | UT50: 75.15 | UU50: 0.04 | UV50: 89.81 | UW50: 0.18 | UX50: 76.02 | UY50: 0.06 | UZ50: 77.1 | VA50: 0.1 | VB50: 75.61 | VC50: 0.05 | VD50: 75.32 | VE50: 0.05 | VF50: 82.72 | VG50: 0.36 | VH50: 88.3 | VI50: 0.2 | VJ50: 76.01 | VK50: 0.08 | VL50: 75.65 | VM50: 0.07 | VN50: 83.24 | VO50: 0.24 | VP50: 87.71 | VQ50: 0.27 | VR50: 78.39 | VS50: 0.15 | VT50: 88.27 | VU50: 0.13 | VV50: 95.03 | VW50: 0.09 | WJ50: C-EB20-55-CE | WK50: 75.016 | WL50: 0.02 | WM50: 61.993 | WN50: 0.027 | WO50: 59.704 | WP50: 0.008 | WQ50: 56.265 | WR50: 0.014 | WS50: 95.005 | WT50: 0.008 | WU50: 75.001 | WV50: 0.021 | WW50: 1088 | WX50: 1.7 | WY50: 1060.2 | WZ50: 1.6 | XA50: 0.525 | XB50: 0.001 | XC50: -0.189 | XD50: 0.001 | XE50: -0.001 | XF50: 0.002 | XG50: 1.0083 | XH50: 0.003 | XI50: 29.318 | XJ50: 0.001 | XK50: 3561 | XL50: 9 | XM50: 467.1 | XN50: 5.4 | XO50: 0.1558370044 | XP50: 166.2625 | XQ50: 13.029 | XR50: 0.19 | XS50: 1.151555109 | XT50: 4959.359099 | XU50: 65.39013071 | XV50: 172.5055216 | XW50: 734.0640944 | XX50: 4225.295005 | XY50: 0.00953424946 | XZ50: 29.16560929 | YA50: 58.55244489 | YB50: 14.10003755 | YC50: 13.16299116 | YD50: 0.0139204574 | YE50: 38.1580011 | YF50: 0.008772229824 | YG50: 27.60335341 | YH50: 0.008819837622 | YI50: 23.92060905 | YJ50: 77.99828232 | YK50: 64.16803033 | YL50: 23.63972633 | YM50: 27404.83795 | YN50: 23145.33379 | YO50: 3093.9 | YP50: 0.3853144732 | YQ50: 26033.80217 | YR50: 21774.29801 | YS50: 7.310812179 | YT50: 0.2187591767 | YU50: -5.525882963 | YV50: -19.44583743 | YW50: 53.10731804 | YX50: 27404.83795 | YY50: 18264.05176 | YZ50: 1392.998298 | ZA50: 7747.787896 | ZB50: 27404.83795 | ZC50: 1
A51: 5 | B51: C-R120-EB20-CB30-95CE | C51: 30N0063 | D51: C-R120-EB20-CB30-95CE | E51: closed | F51: on | G51: N/A | H51: 3 turns | I51: unsealed | J51: unsealed | L51: 4.75 | M51: horizontal | N51: 30 | O51: 20 | P51: CUST 2 | Q51: 6/22/2015 | R51: 20:47:48 | S51: 10 Ton | T51: 0:15:00 | U51: 75/62 95/75 | V51: ENG 1 | W51: TECH 2 | X51: RTU5 | Y51: RTU5 | Z51: 3 | AA51: R22 | AB51: PSC Air Handler | AC51: Manuf. 5.5 lbs | AD51: 208/230/1 | AE51: TU3 | AF51: AHRI 210/240 2008 | AG51: 75 | AH51: 62 | AI51: 95 | AJ51: 75 | AK51: 5.5 | AM51: 5.5 | AO51: 229.9 | AP51: 1.1 | AQ51: 17.2 | AR51: 0 | AS51: 17104 | AT51: 24 | AU51: 16745 | AV51: 36 | AW51: -484 | AX51: 52 | AY51: 16620 | AZ51: 58 | BB51: 944 | CN51: 4.351924588 | CO51: Baseline 120% factory charge, 20% evaporator blockage, 30% condenser blockage,--economizer closed (2V), 120% factory charge (6.6 lbs), 95F OD, 75F DB, 62F WB ID conditions,--unsealed cabinet, Inlet Meriam set @ 53.5%: Outlet @ 52% Horiz airflow. 4.75"--ID | CP51: R22 6.6 LBS. unsealed cab:Inlet Meriam set @ 53.5%: Outlet Meriam set @ 52% manually: Horiz airflow. ID Pulley is 3 turns open from fully closed: installed economizer. Evap coil block 9", Cond coil block 33", with outlet hose, with code tester, added 35.2 | CQ51: 75.009 | CR51: 0.012 | CS51: 61.997 | CT51: 0.017 | CU51: 94.994 | CV51: 0.004 | CW51: 74.995 | CX51: 0.029 | CY51: 74.57 | CZ51: 0.06 | DA51: 60.13 | DB51: 0.04 | DC51: 65.02 | DD51: 0.03 | DE51: -0.013 | DF51: 0.002 | DG51: 0.9919 | DH51: 0.0026 | DI51: 17104 | DJ51: 24 | DK51: -484 | DL51: 52 | DM51: 4.352 | DN51: 0.018 | DU51: 229.9 | DV51: 1.1 | DW51: 229.9 | DX51: 1.1 | DY51: 229.9 | DZ51: 1.1 | EA51: 15.1 | EB51: 0 | EC51: 15.1 | ED51: 0 | EE51: 15.1 | EF51: 0 | EG51: 3353.4 | EH51: 4.5 | EI51: 3353.4 | EJ51: 4.5 | EK51: 3353.4 | EL51: 4.5 | EM51: 229.9 | EN51: 1.1 | EO51: 229.9 | EP51: 1.1 | EQ51: 229.9 | ER51: 1.1 | ES51: 2.1 | ET51: 0 | EU51: 2.1 | EV51: 0 | EW51: 2.1 | EX51: 0 | EZ51: 228 | FA51: 1.1 | FB51: 228 | FC51: 1.1 | FD51: 228 | FE51: 1.1 | FF51: 14.2 | FG51: 0 | FH51: 14.2 | FI51: 0 | FJ51: 14.2 | FK51: 0 | FL51: 3121.9 | FM51: 3.9 | FW51: 228.6 | FX51: 1.1 | FY51: 0.8 | FZ51: 0 | GA51: 174.6 | GB51: 1 | GC51: 0.1 | GD51: 0.2 | GE51: 3761.9 | GP51: 230.2 | GQ51: 1.1 | GR51: 0 | GS51: 0 | GT51: 290.29 | GU51: 0.15 | GV51: 108.33 | GW51: 0.03 | GX51: 128.21 | GY51: 0.04 | GZ51: 19.88 | HA51: 0.03 | HB51: 307.36 | HC51: 0.14 | HD51: 150.28 | HE51: 0.05 | HF51: 132.6 | HG51: 0.04 | HH51: 17.68 | HI51: 0.04 | HJ51: 289.47 | HK51: 0.16 | HL51: 107.7 | HM51: 0.04 | HN51: 127.99 | HO51: 0.04 | HP51: 20.3 | HQ51: 0.05 | HR51: 80.11 | HS51: 0.02 | HT51: 50.41 | HU51: 0.03 | HV51: 47.38 | HW51: 0.01 | HZ51: 79.79 | IA51: 0.03 | IB51: 53.28 | IC51: 0.04 | ID51: 47.18 | IE51: 0.02 | IF51: 6.1 | IG51: 0.04 | JZ51: 3.03 | KA51: 0.03 | MX51: 59.27 | MY51: 0.02 | MZ51: 59.71 | NA51: 0.03 | NB51: 59.78 | NC51: 0.03 | ND51: 59.75 | NE51: 0.03 | NF51: 59.53 | NG51: 0.02 | NH51: 59.63 | NI51: 0.02 | QR51: 132.2 | QS51: 0.03 | QT51: 61.41 | QU51: 0.57 | QV51: 151.33 | QW51: 0.13 | QX51: 95.51 | QY51: 0.05 | QZ51: 94.85 | RA51: 0.06 | RB51: 75.69 | RC51: 0.03 | RD51: 75.52 | RE51: 0.03 | RF51: 75.59 | RG51: 0.02 | RH51: 75.51 | RI51: 0.03 | RJ51: 75.32 | RK51: 0.03 | RL51: 75.32 | RM51: 0.03 | RN51: 75.25 | RO51: 0.03 | TD51: 74.63 | TE51: 0.03 | UN51: 95.35 | UO51: 0.06 | UP51: 89.15 | UQ51: 0.17 | UR51: 89.94 | US51: 0.14 | UT51: 75.17 | UU51: 0.03 | UV51: 89.76 | UW51: 0.18 | UX51: 75.98 | UY51: 0.06 | UZ51: 77.04 | VA51: 0.1 | VB51: 75.58 | VC51: 0.07 | VD51: 75.31 | VE51: 0.05 | VF51: 82.65 | VG51: 0.35 | VH51: 88.21 | VI51: 0.2 | VJ51: 75.95 | VK51: 0.1 | VL51: 75.61 | VM51: 0.08 | VN51: 83.22 | VO51: 0.24 | VP51: 87.68 | VQ51: 0.23 | VR51: 78.31 | VS51: 0.16 | VT51: 88.24 | VU51: 0.16 | VV51: 94.89 | VW51: 0.07 | WJ51: C-EB20-55-CE | WK51: 75.009 | WL51: 0.012 | WM51: 61.997 | WN51: 0.017 | WO51: 60.266 | WP51: 0.005 | WQ51: 56.796 | WR51: 0.01 | WS51: 94.994 | WT51: 0.004 | WU51: 74.995 | WV51: 0.029 | WW51: 1079.9 | WX51: 1.4 | WY51: 1050.4 | WZ51: 1.4 | XA51: 0.527 | XB51: 0.001 | XC51: -0.186 | XD51: 0.001 | XE51: -0.013 | XF51: 0.002 | XG51: 0.9919 | XH51: 0.0026 | XI51: 29.307 | XJ51: 0 | XK51: 3819 | XL51: 8 | XM51: 465.4 | XN51: 5.3 | XO51: 0.1558370044 | XP51: 166.2625 | XQ51: 13.029 | XR51: 0.19 | XS51: 1.157691921 | XT51: 4916.585519 | XU51: 65.03249713 | XV51: 171.1291252 | XW51: 728.222666 | XX51: 4188.362853 | XY51: 0.009538029034 | XZ51: 29.16837653 | YA51: 59.10830808 | YB51: 14.09973623 | YC51: 13.17865819 | YD51: 0.0139178328 | YE51: 38.15239771 | YF51: 0.0087765209 | YG51: 27.60634189 | YH51: 0.009001752883 | YI51: 24.25556965 | YJ51: 77.9926575 | YK51: 64.17157564 | YL51: 23.97309655 | YM51: 25543.03832 | YN51: 22283.16453 | YO51: 3353.6 | YP51: 0.448100052 | YQ51: 24176.58403 | YR51: 20916.71025 | YS51: 6.330605927 | YT51: 0.2189159336 | YU51: -5.195279981 | YV51: -18.88434942 | YW51: 53.81555515 | YX51: 25543.03832 | YY51: 16474.35829 | YZ51: 1388.803147 | ZA51: 7679.876887 | ZB51: 25543.03832 | ZC51: 1
A52: 5 | B52: C-R80-EB0-CB0-95CE | C52: 30N0064 | D52: C-R80-EB0-CB0-95CE | E52: closed | F52: on | G52: N/A | H52: 3 turns | I52: unsealed | J52: unsealed | L52: 4.75 | M52: horizontal | N52: 0 | O52: 0 | P52: CUST 2 | Q52: 6/22/2015 | R52: 17:25:26 | S52: 10 Ton | T52: 0:15:00 | U52: 75/62 95/75 | V52: ENG 1 | W52: TECH 2 | X52: RTU5 | Y52: RTU5 | Z52: 3 | AA52: R22 | AB52: PSC Air Handler | AC52: Manuf. 5.5 lbs | AD52: 208/230/1 | AE52: TU3 | AF52: AHRI 210/240 2008 | AG52: 75 | AH52: 62 | AI52: 95 | AJ52: 75 | AK52: 5.5 | AM52: 5.5 | AO52: 230 | AP52: 1 | AQ52: 15.4 | AR52: 0 | AS52: 16724 | AT52: 47 | AU52: 16318 | AV52: 83 | AW52: -861 | AX52: 78 | AY52: 15862 | AZ52: 60 | BB52: 943 | CN52: 4.669414189 | CO52: Baseline 80% factory charge, 0% evaporator and condenser blockage, economizer closed (2V),--80% factory charge (4.4 lbs), 95F OD, 75F DB, 62F WB ID conditions, unsealed cabinet,--Inlet Meriam set @ 53.5%: Outlet @ 52% Horiz airflow. 4.75" ID pulley 3 turn | CP52: R22 5.5 LBS. unsealed cab:Inlet Meriam set @ 53.5%: Outlet Meriam set @ 52% manually: Horiz airflow. ID Pulley is 3 turns open from fully closed: installed economizer. Evap coil block 0", Cond coil block 0", with outlet hose, with code tester, removed 17. | CQ52: 74.911 | CR52: 0.032 | CS52: 61.976 | CT52: 0.023 | CU52: 95.005 | CV52: 0.008 | CW52: 74.997 | CX52: 0.029 | CY52: 74.44 | CZ52: 0.06 | DA52: 60.96 | DB52: 0.03 | DC52: 66.32 | DD52: 0.03 | DE52: 0.011 | DF52: 0.002 | DG52: 1.0845 | DH52: 0.0031 | DI52: 16724 | DJ52: 47 | DK52: -861 | DL52: 78 | DM52: 4.67 | DN52: 0.021 | DU52: 230 | DV52: 1 | DW52: 230 | DX52: 1 | DY52: 230 | DZ52: 1 | EA52: 13.2 | EB52: 0 | EC52: 13.2 | ED52: 0 | EE52: 13.2 | EF52: 0 | EG52: 2920.8 | EH52: 4.4 | EI52: 2920.8 | EJ52: 4.4 | EK52: 2920.8 | EL52: 4.4 | EM52: 229.9 | EN52: 1 | EO52: 229.9 | EP52: 1 | EQ52: 229.9 | ER52: 1 | ES52: 2.2 | ET52: 0 | EU52: 2.2 | EV52: 0 | EW52: 2.2 | EX52: 0 | EZ52: 228.4 | FA52: 1 | FB52: 228.4 | FC52: 1 | FD52: 228.4 | FE52: 1 | FF52: 12.4 | FG52: 0 | FH52: 12.4 | FI52: 0 | FJ52: 12.4 | FK52: 0 | FL52: 2704.7 | FM52: 3.5 | FW52: 228.8 | FX52: 1 | FY52: 0.7 | FZ52: 0 | GA52: 169.4 | GB52: 0.9 | GC52: 13 | GD52: 0.2 | GE52: 3362.7 | GP52: 230.2 | GQ52: 1 | GR52: 0 | GS52: 0 | GT52: 242.24 | GU52: 0.13 | GV52: 105.55 | GW52: 0.04 | GX52: 114.76 | GY52: 0.04 | GZ52: 9.21 | HA52: 0.03 | HB52: 258.14 | HC52: 0.13 | HD52: 190.46 | HE52: 0.03 | HF52: 119.4 | HG52: 0.04 | HH52: 71.06 | HI52: 0.04 | HJ52: 241.66 | HK52: 0.14 | HL52: 105.81 | HM52: 0.04 | HN52: 114.58 | HO52: 0.04 | HP52: 8.77 | HQ52: 0.05 | HR52: 71.72 | HS52: 0.02 | HT52: 72.3 | HU52: 0.05 | HV52: 41.94 | HW52: 0.01 | HZ52: 72.42 | IA52: 0.02 | IB52: 72.58 | IC52: 0.02 | ID52: 42.4 | IE52: 0.01 | IF52: 30.17 | IG52: 0.03 | JZ52: 30.35 | KA52: 0.05 | MX52: 60.16 | MY52: 0.02 | MZ52: 60.51 | NA52: 0.02 | NB52: 60.62 | NC52: 0.02 | ND52: 60.63 | NE52: 0.03 | NF52: 60.36 | NG52: 0.02 | NH52: 60.49 | NI52: 0.02 | NN52: 69.88 | NO52: 0.04 | NP52: 68.95 | NQ52: 0.04 | OB52: 105.81 | OC52: 0.04 | QR52: 156.75 | QS52: 0.06 | QT52: 97.83 | QU52: 0.07 | QV52: 193.83 | QW52: 0.04 | QX52: 95.51 | QY52: 0.06 | QZ52: 94.57 | RA52: 0.05 | RB52: 75.51 | RC52: 0.05 | RD52: 75.38 | RE52: 0.05 | RF52: 75.42 | RG52: 0.05 | RH52: 75.36 | RI52: 0.04 | RJ52: 75.21 | RK52: 0.04 | RL52: 75.22 | RM52: 0.05 | RN52: 75.16 | RO52: 0.05 | TD52: 74.51 | TE52: 0.04 | UN52: 95.22 | UO52: 0.06 | UP52: 85.24 | UQ52: 0.27 | UR52: 84.09 | US52: 0.4 | UT52: 74.94 | UU52: 0.05 | UV52: 91.02 | UW52: 0.3 | UX52: 75.65 | UY52: 0.05 | UZ52: 76.96 | VA52: 0.1 | VB52: 75.68 | VC52: 0.07 | VD52: 75.04 | VE52: 0.04 | VF52: 79.9 | VG52: 0.31 | VH52: 88.02 | VI52: 0.27 | VJ52: 76.56 | VK52: 0.14 | VL52: 75.29 | VM52: 0.07 | VN52: 82.74 | VO52: 0.35 | VP52: 89.88 | VQ52: 0.24 | VR52: 78.94 | VS52: 0.25 | VT52: 83.49 | VU52: 0.36 | VV52: 95.05 | VW52: 0.07 | WJ52: C-55-CE | WK52: 74.911 | WL52: 0.032 | WM52: 61.976 | WN52: 0.023 | WO52: 61.094 | WP52: 0.011 | WQ52: 57.242 | WR52: 0.012 | WS52: 95.005 | WT52: 0.008 | WU52: 74.997 | WV52: 0.029 | WW52: 1131.2 | WX52: 1.6 | WY52: 1096.9 | WZ52: 1.6 | XA52: 0.573 | XB52: 0.001 | XC52: -0.202 | XD52: 0.001 | XE52: 0.011 | XF52: 0.002 | XG52: 1.0845 | XH52: 0.0031 | XI52: 29.289 | XJ52: 0.001 | XK52: 3397 | XL52: 8 | XM52: 475.6 | XN52: 5.3 | XO52: 0.1756425029 | XP52: 192.6271329 | XQ52: 13.03 | XR52: 0.184 | XS52: 1.110849756 | XT52: 5141.739355 | XU52: 73.83916224 | XV52: 209.952821 | XW52: 893.4157162 | XX52: 4248.323639 | XY52: 0.009677402246 | XZ52: 29.42776909 | YA52: 59.98315024 | YB52: 14.10000857 | YC52: 13.20020236 | YD52: 0.01391695176 | YE52: 38.15413374 | YF52: 0.008785831714 | YG52: 27.59262846 | YH52: 0.009072842795 | YI52: 24.53495374 | YJ52: 78.42938561 | YK52: 64.52193483 | YL52: 24.26387492 | YM52: 26551.3979 | YN52: 22762.97624 | YO52: 2921.4 | YP52: 0.3755259229 | YQ52: 25180.18816 | YR52: 21391.7665 | YS52: 7.412478116 | YT52: 0.2486626092 | YU52: -5.163894174 | YV52: -18.44623537 | YW52: 53.87818452 | YX52: 26551.3979 | YY52: 15721.76644 | YZ52: 1393.81666 | ZA52: 9435.814801 | ZB52: 26551.3979 | ZC52: 1
A53: 5 | B53: C-R80-EB0-CB30-95CE | C53: 30N0065 | D53: C-R80-EB0-CB30-95CE | E53: closed | F53: on | G53: N/A | H53: 3 turns | I53: unsealed | J53: unsealed | L53: 4.75 | M53: horizontal | N53: 0 | O53: 30 | P53: CUST 2 | Q53: 6/22/2015 | R53: 15:04:33 | S53: 10 Ton | T53: 0:15:00 | U53: 75/62 95/75 | V53: ENG 1 | W53: TECH 2 | X53: RTU5 | Y53: RTU5 | Z53: 3 | AA53: R22 | AB53: PSC Air Handler | AC53: Manuf. 5.5 lbs | AD53: 208/230/1 | AE53: TU3 | AF53: AHRI 210/240 2008 | AG53: 75 | AH53: 62 | AI53: 95 | AJ53: 75 | AK53: 5.5 | AM53: 5.5 | AO53: 229.9 | AP53: 1.1 | AQ53: 16.6 | AR53: 0 | AS53: 16831 | AT53: 27 | AU53: 16366 | AV53: 75 | AW53: -1230 | AX53: 98 | AY53: 15600 | AZ53: 92 | BB53: 943 | CN53: 4.231082181 | CO53: Baseline 80% factory charge, 0% evaporator and 30% condenser blockage, economizer closed (2V),--80% factory charge (4.4 lbs), 95F OD, 75F DB, 62F WB ID conditions, unsealed cabinet,--Inlet Meriam set @ 53.5%: Outlet @ 52% Horiz airflow. 4.75" ID pulley 3- | CP53: R22 5.5 LBS. unsealed cab:Inlet Meriam set @ 53.5%: Outlet Meriam set @ 52% manually: Horiz airflow. ID Pulley is 3 turns open from fully closed: installed economizer. Evap coil block 0", Cond coil block 33", with outlet hose, with code tester, removed 17 | CQ53: 75.009 | CR53: 0.02 | CS53: 61.992 | CT53: 0.033 | CU53: 94.999 | CV53: 0.009 | CW53: 75.002 | CX53: 0.033 | CY53: 74.53 | CZ53: 0.07 | DA53: 61.04 | DB53: 0.04 | DC53: 66.17 | DD53: 0.03 | DE53: 0.02 | DF53: 0.003 | DG53: 1.0898 | DH53: 0.0039 | DI53: 16831 | DJ53: 27 | DK53: -1230 | DL53: 98 | DM53: 4.232 | DN53: 0.027 | DU53: 229.9 | DV53: 1.1 | DW53: 229.9 | DX53: 1.1 | DY53: 229.9 | DZ53: 1.1 | EA53: 14.4 | EB53: 0 | EC53: 14.4 | ED53: 0 | EE53: 14.4 | EF53: 0 | EG53: 3210.4 | EH53: 4.1 | EI53: 3210.4 | EJ53: 4.1 | EK53: 3210.4 | EL53: 4.1 | EM53: 229.8 | EN53: 1.1 | EO53: 229.8 | EP53: 1.1 | EQ53: 229.8 | ER53: 1.1 | ES53: 2.2 | ET53: 0 | EU53: 2.2 | EV53: 0 | EW53: 2.2 | EX53: 0 | EZ53: 228.1 | FA53: 1.1 | FB53: 228.1 | FC53: 1.1 | FD53: 228.1 | FE53: 1.1 | FF53: 13.6 | FG53: 0 | FH53: 13.6 | FI53: 0 | FJ53: 13.6 | FK53: 0 | FL53: 2983 | FM53: 3.2 | FW53: 228.6 | FX53: 1.1 | FY53: 0.8 | FZ53: 0 | GA53: 174.5 | GB53: 1 | GC53: 13 | GD53: 0.2 | GE53: 3646.5 | GP53: 230.2 | GQ53: 1.1 | GR53: 0 | GS53: 0 | GT53: 270.61 | GU53: 0.13 | GV53: 113.55 | GW53: 0.03 | GX53: 122.91 | GY53: 0.04 | GZ53: 9.36 | HA53: 0.03 | HB53: 286.88 | HC53: 0.11 | HD53: 196.37 | HE53: 0.03 | HF53: 127.31 | HG53: 0.03 | HH53: 69.06 | HI53: 0.04 | HJ53: 270.05 | HK53: 0.12 | HL53: 113.44 | HM53: 0.05 | HN53: 122.75 | HO53: 0.03 | HP53: 9.31 | HQ53: 0.06 | HR53: 75.41 | HS53: 0.02 | HT53: 74.94 | HU53: 0.05 | HV53: 44.39 | HW53: 0.02 | HZ53: 76.05 | IA53: 0.02 | IB53: 74.32 | IC53: 0.03 | ID53: 44.81 | IE53: 0.02 | IF53: 29.51 | IG53: 0.03 | JZ53: 30.55 | KA53: 0.05 | MX53: 60.2 | MY53: 0.04 | MZ53: 60.54 | NA53: 0.04 | NB53: 60.63 | NC53: 0.04 | ND53: 60.62 | NE53: 0.03 | NF53: 60.39 | NG53: 0.04 | NH53: 60.51 | NI53: 0.03 | NN53: 68.79 | NO53: 0.04 | NP53: 69.13 | NQ53: 0.04 | OB53: 113.44 | OC53: 0.05 | QR53: 158.75 | QS53: 0.05 | QT53: 99.12 | QU53: 0.04 | QV53: 200.52 | QW53: 0.04 | QX53: 95.47 | QY53: 0.08 | QZ53: 94.75 | RA53: 0.05 | RB53: 75.49 | RC53: 0.04 | RD53: 75.34 | RE53: 0.04 | RF53: 75.39 | RG53: 0.04 | RH53: 75.37 | RI53: 0.04 | RJ53: 75.22 | RK53: 0.05 | RL53: 75.23 | RM53: 0.05 | RN53: 75.16 | RO53: 0.04 | TD53: 74.55 | TE53: 0.07 | UN53: 95.34 | UO53: 0.06 | UP53: 84.78 | UQ53: 0.3 | UR53: 83.83 | US53: 0.31 | UT53: 74.91 | UU53: 0.04 | UV53: 90.86 | UW53: 0.27 | UX53: 75.72 | UY53: 0.05 | UZ53: 77.08 | VA53: 0.1 | VB53: 75.9 | VC53: 0.07 | VD53: 75.09 | VE53: 0.04 | VF53: 80.05 | VG53: 0.27 | VH53: 87.84 | VI53: 0.26 | VJ53: 76.76 | VK53: 0.11 | VL53: 75.32 | VM53: 0.06 | VN53: 82.52 | VO53: 0.4 | VP53: 90.03 | VQ53: 0.28 | VR53: 79.49 | VS53: 0.24 | VT53: 83.54 | VU53: 0.31 | VV53: 94.93 | VW53: 0.07 | WJ53: C-55-CE | WK53: 75.009 | WL53: 0.02 | WM53: 61.992 | WN53: 0.033 | WO53: 61.139 | WP53: 0.012 | WQ53: 57.351 | WR53: 0.02 | WS53: 94.999 | WT53: 0.009 | WU53: 75.002 | WV53: 0.033 | WW53: 1133.1 | WX53: 2 | WY53: 1100.3 | WZ53: 2 | XA53: 0.569 | XB53: 0.001 | XC53: -0.203 | XD53: 0.001 | XE53: 0.02 | XF53: 0.003 | XG53: 1.0898 | XH53: 0.0039 | XI53: 29.324 | XJ53: 0.001 | XK53: 3687 | XL53: 8 | XM53: 476 | XN53: 5.2 | XO53: 0.1756425029 | XP53: 192.6271329 | XQ53: 13.03 | XR53: 0.184 | XS53: 1.11101891 | XT53: 5149.762504 | XU53: 73.55098302 | XV53: 210.4710853 | XW53: 895.6277275 | XX53: 4254.134776 | XY53: 0.009668814467 | XZ53: 29.43865448 | YA53: 60.02798109 | YB53: 14.09990415 | YC53: 13.20177386 | YD53: 0.01392277047 | YE53: 38.15907575 | YF53: 0.008773224376 | YG53: 27.60273449 | YH53: 0.009127822186 | YI53: 24.60576061 | YJ53: 78.51246649 | YK53: 64.53787874 | YL53: 24.33461338 | YM53: 26284.59947 | YN53: 22845.77035 | YO53: 3211 | YP53: 0.4169416016 | YQ53: 24911.04097 | YR53: 21472.21186 | YS53: 6.756452664 | YT53: 0.2420214254 | YU53: -5.104041099 | YV53: -18.4844854 | YW53: 54.12591254 | YX53: 26284.59947 | YY53: 15433.70373 | YZ53: 1396.343806 | ZA53: 9454.551931 | ZB53: 26284.59947 | ZC53: 1
A54: 5 | B54: C-R80-EB20-CB0-95CE | C54: 30N0066 | D54: C-R80-EB20-CB0-95CE | E54: closed | F54: on | G54: N/A | H54: 3 turns | I54: unsealed | J54: unsealed | L54: 4.75 | M54: horizontal | N54: 0 | O54: 20 | P54: CUST 2 | Q54: 6/22/2015 | R54: 16:27:21 | S54: 10 Ton | T54: 0:15:00 | U54: 75/62 95/75 | V54: ENG 1 | W54: TECH 2 | X54: RTU5 | Y54: RTU5 | Z54: 3 | AA54: R22 | AB54: PSC Air Handler | AC54: Manuf. 5.5 lbs | AD54: 208/230/1 | AE54: TU3 | AF54: AHRI 210/240 2008 | AG54: 75 | AH54: 62 | AI54: 95 | AJ54: 75 | AK54: 5.5 | AM54: 5.5 | AO54: 229.9 | AP54: 1.2 | AQ54: 15.2 | AR54: 0 | AS54: 16105 | AT54: 32 | AU54: 15655 | AV54: 48 | AW54: -441 | AX54: 74 | AY54: 15664 | AZ54: 83 | BB54: 943 | CN54: 4.632948832 | CO54: Baseline 80% factory charge, 20% evaporator blockage, 0% condenser blockage, economizer closed (2V),--80% factory charge (4.4 lbs), 95F OD, 75F DB, 62F WB ID conditions, unsealed cabinet,--Inlet Meriam set @ 53.5%: Outlet @ 52% Horiz airflow. 4.75" ID pul | CP54: R22 5.5 LBS. unsealed cab:Inlet Meriam set @ 53.5%: Outlet Meriam set @ 52% manually: Horiz airflow. ID Pulley is 3 turns open from fully closed: installed economizer. Evap coil block 9", Cond coil block 0", with outlet hose, with code tester, removed 17. | CQ54: 74.992 | CR54: 0.011 | CS54: 62.002 | CT54: 0.034 | CU54: 95.005 | CV54: 0.005 | CW54: 75.001 | CX54: 0.017 | CY54: 74.5 | CZ54: 0.06 | DA54: 61.32 | DB54: 0.06 | DC54: 66.31 | DD54: 0.02 | DE54: 0.014 | DF54: 0.003 | DG54: 1.0421 | DH54: 0.0033 | DI54: 16105 | DJ54: 32 | DK54: -441 | DL54: 74 | DM54: 4.633 | DN54: 0.028 | DU54: 229.9 | DV54: 1.2 | DW54: 229.9 | DX54: 1.2 | DY54: 229.9 | DZ54: 1.2 | EA54: 13.1 | EB54: 0 | EC54: 13.1 | ED54: 0 | EE54: 13.1 | EF54: 0 | EG54: 2910.4 | EH54: 5.5 | EI54: 2910.4 | EJ54: 5.5 | EK54: 2910.4 | EL54: 5.5 | EM54: 229.8 | EN54: 1.2 | EO54: 229.8 | EP54: 1.2 | EQ54: 229.8 | ER54: 1.2 | ES54: 2.1 | ET54: 0 | EU54: 2.1 | EV54: 0 | EW54: 2.1 | EX54: 0 | EZ54: 228.3 | FA54: 1.2 | FB54: 228.3 | FC54: 1.2 | FD54: 228.3 | FE54: 1.2 | FF54: 12.3 | FG54: 0 | FH54: 12.3 | FI54: 0 | FJ54: 12.3 | FK54: 0 | FL54: 2694.3 | FM54: 4.4 | FW54: 228.8 | FX54: 1.2 | FY54: 0.7 | FZ54: 0 | GA54: 169.5 | GB54: 1.1 | GC54: 0.1 | GD54: 0.2 | GP54: 230.2 | GQ54: 1.2 | GR54: 0 | GS54: 0 | GT54: 241.13 | GU54: 0.16 | GV54: 105.59 | GW54: 0.04 | GX54: 114.43 | GY54: 0.05 | GZ54: 8.84 | HA54: 0.03 | HB54: 256.91 | HC54: 0.16 | HD54: 188.92 | HE54: 0.04 | HF54: 119.05 | HG54: 0.05 | HH54: 69.87 | HI54: 0.05 | HJ54: 240.54 | HK54: 0.17 | HL54: 105.95 | HM54: 0.05 | HN54: 114.25 | HO54: 0.05 | HP54: 8.3 | HQ54: 0.07 | HR54: 70.61 | HS54: 0.02 | HT54: 69.98 | HU54: 0.06 | HV54: 41.2 | HW54: 0.01 | HZ54: 70.85 | IA54: 0.02 | IB54: 70.23 | IC54: 0.05 | ID54: 41.36 | IE54: 0.01 | IF54: 28.87 | IG54: 0.06 | JZ54: 28.79 | KA54: 0.06 | MX54: 60.59 | MY54: 0.04 | MZ54: 60.87 | NA54: 0.04 | NB54: 60.94 | NC54: 0.04 | ND54: 60.93 | NE54: 0.03 | NF54: 60.66 | NG54: 0.03 | NH54: 60.82 | NI54: 0.04 | NN54: 67.17 | NO54: 0.05 | NP54: 66.22 | NQ54: 0.04 | OB54: 105.95 | OC54: 0.05 | QR54: 155.51 | QS54: 0.09 | QT54: 96.3 | QU54: 0.05 | QV54: 192.23 | QW54: 0.05 | QX54: 95.55 | QY54: 0.08 | QZ54: 94.62 | RA54: 0.06 | RB54: 75.64 | RC54: 0.05 | RD54: 75.46 | RE54: 0.04 | RF54: 75.49 | RG54: 0.03 | RH54: 75.44 | RI54: 0.03 | RJ54: 75.24 | RK54: 0.05 | RL54: 75.25 | RM54: 0.04 | RN54: 75.17 | RO54: 0.04 | TD54: 74.54 | TE54: 0.04 | UN54: 95.27 | UO54: 0.08 | UP54: 86.33 | UQ54: 1.25 | UR54: 88.36 | US54: 0.45 | UT54: 74.92 | UU54: 0.03 | UV54: 90.86 | UW54: 0.54 | UX54: 75.91 | UY54: 0.06 | UZ54: 77.83 | VA54: 0.13 | VB54: 75.6 | VC54: 0.07 | VD54: 75.18 | VE54: 0.05 | VF54: 83.2 | VG54: 0.38 | VH54: 89.38 | VI54: 0.43 | VJ54: 76.72 | VK54: 0.08 | VL54: 75.37 | VM54: 0.08 | VN54: 82.58 | VO54: 0.91 | VP54: 86.09 | VQ54: 0.42 | VR54: 79.78 | VS54: 0.16 | VT54: 86.91 | VU54: 0.53 | VV54: 95.07 | VW54: 0.09 | WJ54: C-EB20-55-CE | WK54: 74.992 | WL54: 0.011 | WM54: 62.002 | WN54: 0.034 | WO54: 61.432 | WP54: 0.017 | WQ54: 57.236 | WR54: 0.021 | WS54: 95.005 | WT54: 0.005 | WU54: 75.001 | WV54: 0.017 | WW54: 1108.5 | WX54: 1.8 | WY54: 1075.4 | WZ54: 1.7 | XA54: 0.543 | XB54: 0.001 | XC54: -0.195 | XD54: 0.001 | XE54: 0.014 | XF54: 0.003 | XG54: 1.0421 | XH54: 0.0033 | XI54: 29.301 | XJ54: 0.001 | XK54: 3381 | XL54: 9 | XM54: 470.6 | XN54: 5.5 | XO54: 0.1558370044 | XP54: 166.2625 | XQ54: 13.029 | XR54: 0.19 | XS54: 1.134947709 | XT54: 5035.540929 | XU54: 68.60171357 | XV54: 175.2223112 | XW54: 745.6248701 | XX54: 4289.916059 | XY54: 0.009544426695 | XZ54: 29.17203764 | YA54: 60.29705229 | YB54: 14.10003755 | YC54: 13.20811427 | YD54: 0.0139204574 | YE54: 38.1580011 | YF54: 0.008783834346 | YG54: 27.61019873 | YH54: 0.008989236412 | YI54: 24.52644852 | YJ54: 77.9789481 | YK54: 64.17613973 | YL54: 24.24953124 | YM54: 24787.48243 | YN54: 21369.09841 | YO54: 2910.4 | YP54: 0.4007343314 | YQ54: 23415.46228 | YR54: 19997.07825 | YS54: 6.925602567 | YT54: 0.2748941706 | YU54: -4.922506397 | YV54: -17.68189581 | YW54: 53.59368585 | YX54: 24787.48243 | YY54: 15528.35037 | YZ54: 1394.428283 | ZA54: 7864.703777 | ZB54: 24787.48243 | ZC54: 1
A55: 5 | B55: C-R80-EB20-CB30-95CE | C55: 30N0067 | D55: C-R80-EB20-CB30-95CE | E55: closed | F55: on | G55: N/A | H55: 3 turns | I55: unsealed | J55: unsealed | L55: 4.75 | M55: horizontal | N55: 30 | O55: 20 | P55: CUST 2 | Q55: 6/22/2015 | R55: 13:44:41 | S55: 10 Ton | T55: 0:15:00 | U55: 75/62 95/75 | V55: ENG 1 | W55: TECH 2 | X55: RTU5 | Y55: RTU5 | Z55: 3 | AA55: R22 | AB55: PSC Air Handler | AC55: Manuf. 5.5 lbs | AD55: 208/230/1 | AE55: TU3 | AF55: AHRI 210/240 2008 | AG55: 75 | AH55: 62 | AI55: 95 | AJ55: 75 | AK55: 5.5 | AM55: 5.5 | AO55: 230 | AP55: 0.9 | AQ55: 16.4 | AR55: 0 | AS55: 15937 | AT55: 39 | AU55: 15533 | AV55: 55 | AW55: -702 | AX55: 59 | AY55: 15234 | AZ55: 79 | BB55: 944 | CN55: 4.163432632 | CO55: Baseline 80% factory charge, 20% evaporator blockage, 30% condenser blockage,--economizer closed (2V), 80% factory charge (4.4 lbs), 95F OD, 75F DB, 62F WB ID conditions,--unsealed cabinet, Inlet Meriam set @ 53.5%: Outlet @ 52% Horiz airflow. 4.75" ID pu | CP55: R22 5.5 LBS. unsealed cab:Inlet Meriam set @ 53.5%: Outlet Meriam set @ 52% manually: Horiz airflow. ID Pulley is 3 turns open from fully closed: installed economizer. Evap coil block 9", Cond coil block 33", with outlet hose, with code tester, removed 17 | CQ55: 75.012 | CR55: 0.02 | CS55: 61.989 | CT55: 0.028 | CU55: 94.998 | CV55: 0.01 | CW55: 75.005 | CX55: 0.023 | CY55: 74.64 | CZ55: 0.05 | DA55: 61.53 | DB55: 0.05 | DC55: 66.61 | DD55: 0.04 | DE55: 0.011 | DF55: 0.002 | DG55: 1.0372 | DH55: 0.0032 | DI55: 15937 | DJ55: 39 | DK55: -702 | DL55: 59 | DM55: 4.164 | DN55: 0.023 | DU55: 230 | DV55: 0.9 | DW55: 230 | DX55: 0.9 | DY55: 230 | DZ55: 0.9 | EA55: 14.3 | EB55: 0 | EC55: 14.3 | ED55: 0 | EE55: 14.3 | EF55: 0 | EG55: 3187.5 | EH55: 4.7 | EI55: 3187.5 | EJ55: 4.7 | EK55: 3187.5 | EL55: 4.7 | EM55: 229.9 | EN55: 0.9 | EO55: 229.9 | EP55: 0.9 | EQ55: 229.9 | ER55: 0.9 | ES55: 2.1 | ET55: 0 | EU55: 2.1 | EV55: 0 | EW55: 2.1 | EX55: 0 | EZ55: 228.2 | FA55: 1 | FB55: 228.2 | FC55: 1 | FD55: 228.2 | FE55: 1 | FF55: 13.5 | FG55: 0 | FH55: 13.5 | FI55: 0 | FJ55: 13.5 | FK55: 0 | FL55: 2960.3 | FM55: 4.1 | FW55: 228.7 | FX55: 1 | FY55: 0.8 | FZ55: 0 | GA55: 174.8 | GB55: 0.9 | GC55: 13 | GD55: 0.2 | GE55: 3619.2 | GP55: 230.2 | GQ55: 0.9 | GR55: 0 | GS55: 0 | GT55: 268.19 | GU55: 0.18 | GV55: 113.31 | GW55: 0.05 | GX55: 122.24 | GY55: 0.05 | GZ55: 8.93 | HA55: 0.03 | HB55: 284.23 | HC55: 0.18 | HD55: 194.8 | HE55: 0.06 | HF55: 126.61 | HG55: 0.05 | HH55: 68.2 | HI55: 0.05 | HJ55: 267.62 | HK55: 0.19 | HL55: 113.4 | HM55: 0.05 | HN55: 122.08 | HO55: 0.05 | HP55: 8.68 | HQ55: 0.04 | HR55: 73.73 | HS55: 0.03 | HT55: 73.28 | HU55: 0.05 | HV55: 43.29 | HW55: 0.02 | HZ55: 74.62 | IA55: 0.08 | IB55: 71.61 | IC55: 0.03 | ID55: 43.88 | IE55: 0.05 | IF55: 27.73 | IG55: 0.06 | JZ55: 29.99 | KA55: 0.06 | MX55: 60.63 | MY55: 0.03 | MZ55: 60.9 | NA55: 0.03 | NB55: 61 | NC55: 0.03 | ND55: 61.05 | NE55: 0.03 | NF55: 60.74 | NG55: 0.03 | NH55: 60.85 | NI55: 0.03 | NN55: 65.68 | NO55: 0.07 | NP55: 66.36 | NQ55: 0.05 | OB55: 113.4 | OC55: 0.05 | QR55: 157.33 | QS55: 0.06 | QT55: 97.33 | QU55: 0.04 | QV55: 198.86 | QW55: 0.06 | QX55: 95.52 | QY55: 0.07 | QZ55: 94.74 | RA55: 0.06 | RB55: 75.71 | RC55: 0.04 | RD55: 75.51 | RE55: 0.04 | RF55: 75.49 | RG55: 0.04 | RH55: 75.46 | RI55: 0.04 | RJ55: 75.3 | RK55: 0.03 | RL55: 75.32 | RM55: 0.03 | RN55: 75.22 | RO55: 0.04 | TD55: 74.55 | TE55: 0.04 | UN55: 95.35 | UO55: 0.07 | UP55: 87.38 | UQ55: 0.53 | UR55: 89.51 | US55: 0.28 | UT55: 74.94 | UU55: 0.03 | UV55: 89.69 | UW55: 0.21 | UX55: 76.49 | UY55: 0.05 | UZ55: 77.87 | VA55: 0.12 | VB55: 75.49 | VC55: 0.05 | VD55: 75.3 | VE55: 0.05 | VF55: 82.97 | VG55: 0.35 | VH55: 88.63 | VI55: 0.17 | VJ55: 75.92 | VK55: 0.06 | VL55: 75.6 | VM55: 0.06 | VN55: 81.91 | VO55: 0.39 | VP55: 86.07 | VQ55: 0.32 | VR55: 79.2 | VS55: 0.26 | VT55: 88.1 | VU55: 0.35 | VV55: 94.98 | VW55: 0.07 | WJ55: C-EB20-55-CE | WK55: 75.012 | WL55: 0.02 | WM55: 61.989 | WN55: 0.028 | WO55: 61.56 | WP55: 0.01 | WQ55: 57.343 | WR55: 0.019 | WS55: 94.998 | WT55: 0.01 | WU55: 75.005 | WV55: 0.023 | WW55: 1105.4 | WX55: 1.7 | WY55: 1073.3 | WZ55: 1.7 | XA55: 0.545 | XB55: 0.002 | XC55: -0.195 | XD55: 0.001 | XE55: 0.011 | XF55: 0.002 | XG55: 1.0372 | XH55: 0.0032 | XI55: 29.341 | XJ55: 0.001 | XK55: 3659 | XL55: 8 | XM55: 471.1 | XN55: 5.2 | XO55: 0.1558370044 | XP55: 166.2625 | XQ55: 13.029 | XR55: 0.19 | XS55: 1.139514364 | XT55: 5020.12388 | XU55: 68.71993402 | XV55: 175.2214717 | XW55: 745.6284423 | XX55: 4274.495437 | XY55: 0.009536214253 | XZ55: 29.16919897 | YA55: 60.42048564 | YB55: 14.09990245 | YC55: 13.21162616 | YD55: 0.01392563944 | YE55: 38.16199455 | YF55: 0.008770537857 | YG55: 27.60052631 | YH55: 0.009023343055 | YI55: 24.59479877 | YJ55: 78.004166 | YK55: 64.17289415 | YL55: 24.31675001 | YM55: 24359.89491 | YN55: 21185.34088 | YO55: 3187.9 | YP55: 0.4466481789 | YQ55: 22986.57174 | YR55: 19812.01772 | YS55: 6.282200531 | YT55: 0.275163144 | YU55: -4.852448962 | YV55: -17.58368036 | YW55: 53.74535491 | YX55: 24359.89491 | YY55: 15089.12459 | YZ55: 1395.839205 | ZA55: 7874.931113 | ZB55: 24359.89491 | ZC55: 1
A56: 5 | B56: C-CB0-115-CE | C56: 30N0076 | D56: C-CB0-115-CE | E56: closed | F56: on | G56: N/A | H56: 3 turns | I56: unsealed | J56: unsealed | L56: 4.75 | M56: horizontal | N56: 0 | O56: 0 | P56: CUST 2 | Q56: 6/20/2015 | R56: 1:44:08 | S56: 10 Ton | T56: 0:10:00 | U56: 75/62 115/80 | V56: ENG 1 | W56: TECH 2 | X56: RTU5 | Y56: RTU5 | Z56: 3 | AA56: R22 | AB56: PSC Air Handler | AC56: Manuf. 5.5 lbs | AD56: 208/230/1 | AE56: TU3 | AF56: AHRI 210/240 2008 | AG56: 75 | AH56: 62 | AI56: 115 | AJ56: 80 | AK56: 5.5 | AM56: 5.5 | AO56: 229.9 | AP56: 1.2 | AQ56: 19.2 | AR56: 0 | AS56: 14018 | AT56: 45 | AU56: 13706 | AV56: 76 | AW56: -3334 | AX56: 91 | AY56: 10681 | AZ56: 69 | BB56: 944 | CN56: 2.493812748 | CO56: Baseline no condenser coil blockage, economizer closed (2.8V),--factory charge (5.5 lbs) 115F OD, 75F DB, 62F WB ID conditions, unsealed cabinet,--Inlet Meriam set @ 53.5%: Outlet @ 52% Horiz airflow. 4.75" ID pulley 3 turns open from fully closed,--adjus | CP56: R22 5.5 LBS. unsealed cab:Inlet Meriam set @ 53.5%: Outlet Meriam set @ 52% manually: Horiz airflow. ID Pulley is 3 turns open from fully closed: installed economizer. | CQ56: 74.918 | CR56: 0.03 | CS56: 61.977 | CT56: 0.032 | CU56: 114.99 | CV56: 0.018 | CW56: 79.996 | CX56: 0.024 | CY56: 74.39 | CZ56: 0.06 | DA56: 62.9 | DB56: 0.02 | DC56: 67.27 | DD56: 0.02 | DE56: 0.003 | DF56: 0.002 | DG56: 1.0684 | DH56: 0.0034 | DI56: 14018 | DJ56: 45 | DK56: -3334 | DL56: 91 | DM56: 2.494 | DN56: 0.017 | DU56: 229.9 | DV56: 1.2 | DW56: 229.9 | DX56: 1.2 | DY56: 229.9 | DZ56: 1.2 | EA56: 17 | EB56: 0.1 | EC56: 17 | ED56: 0.1 | EE56: 17 | EF56: 0.1 | EG56: 3809.9 | EH56: 4.6 | EI56: 3809.9 | EJ56: 4.6 | EK56: 3809.9 | EL56: 4.6 | EM56: 229.9 | EN56: 1.2 | EO56: 229.9 | EP56: 1.2 | EQ56: 229.9 | ER56: 1.2 | ES56: 2.2 | ET56: 0 | EU56: 2.2 | EV56: 0 | EW56: 2.2 | EX56: 0 | EZ56: 227.9 | FA56: 1.2 | FB56: 227.9 | FC56: 1.2 | FD56: 227.9 | FE56: 1.2 | FF56: 16.3 | FG56: 0.1 | FH56: 16.3 | FI56: 0.1 | FJ56: 16.3 | FK56: 0.1 | FL56: 3583.1 | FM56: 4.2 | FW56: 228.6 | FX56: 1.2 | FY56: 0.7 | FZ56: 0 | GA56: 167.4 | GB56: 1 | GC56: 0.1 | GD56: 0.2 | GE56: 4223.4 | GP56: 230.3 | GQ56: 1.2 | GR56: 0 | GS56: 0 | GT56: 331.78 | GU56: 0.31 | GV56: 124.53 | GW56: 0.07 | GX56: 138.59 | GY56: 0.07 | GZ56: 14.06 | HA56: 0.04 | HB56: 347.67 | HC56: 0.3 | HD56: 190.72 | HE56: 0.05 | HF56: 142.33 | HG56: 0.07 | HH56: 48.39 | HI56: 0.08 | HJ56: 331.1 | HK56: 0.32 | HL56: 123.95 | HM56: 0.05 | HN56: 138.43 | HO56: 0.08 | HP56: 14.48 | HQ56: 0.06 | HR56: 84.64 | HS56: 0.03 | HT56: 53.34 | HU56: 0.03 | HV56: 50.15 | HW56: 0.02 | HZ56: 84.12 | IA56: 0.03 | IB56: 55.79 | IC56: 0.03 | ID56: 49.83 | IE56: 0.02 | IF56: 5.96 | IG56: 0.03 | JZ56: 3.2 | KA56: 0.03 | MX56: 62.29 | MY56: 0.03 | MZ56: 62.6 | NA56: 0.04 | NB56: 62.64 | NC56: 0.03 | ND56: 62.59 | NE56: 0.03 | NF56: 62.45 | NG56: 0.03 | NH56: 62.51 | NI56: 0.03 | QR56: 159.8 | QS56: 0.07 | QT56: 68.99 | QU56: 0.13 | QV56: 193.35 | QW56: 0.06 | QX56: 114.9 | QY56: 0.11 | QZ56: 113.72 | RA56: 0.17 | RB56: 75.73 | RC56: 0.07 | RD56: 75.6 | RE56: 0.07 | RF56: 75.18 | RG56: 0.06 | RH56: 75.23 | RI56: 0.06 | RJ56: 75.06 | RK56: 0.05 | RL56: 75.11 | RM56: 0.05 | RN56: 75.12 | RO56: 0.04 | TD56: 74.78 | TE56: 0.05 | UN56: 115.11 | UO56: 0.07 | UP56: 94.72 | UQ56: 0.58 | UR56: 94.32 | US56: 0.46 | UT56: 74.94 | UU56: 0.05 | UV56: 105.5 | UW56: 0.51 | UX56: 76.16 | UY56: 0.07 | UZ56: 78.94 | VA56: 0.17 | VB56: 77.1 | VC56: 0.11 | VD56: 75.55 | VE56: 0.05 | VF56: 83.59 | VG56: 0.62 | VH56: 98.9 | VI56: 0.58 | VJ56: 78.79 | VK56: 0.23 | VL56: 75.76 | VM56: 0.07 | VN56: 89.84 | VO56: 0.54 | VP56: 102.77 | VQ56: 0.56 | VR56: 85.08 | VS56: 0.32 | VT56: 91.36 | VU56: 0.62 | VV56: 113.67 | VW56: 0.29 | WJ56: C-55-CE-DM | WK56: 74.918 | WL56: 0.03 | WM56: 61.977 | WN56: 0.032 | WO56: 63.163 | WP56: 0.006 | WQ56: 58.801 | WR56: 0.016 | WS56: 114.99 | WT56: 0.018 | WU56: 79.996 | WV56: 0.024 | WW56: 1125.1 | WX56: 1.8 | WY56: 1085.8 | WZ56: 1.7 | XA56: 0.569 | XB56: 0.001 | XC56: -0.201 | XD56: 0.001 | XE56: 0.003 | XF56: 0.002 | XG56: 1.0684 | XH56: 0.0034 | XI56: 29.228 | XJ56: 0.001 | XK56: 4283 | XL56: 8 | XM56: 472.9 | XN56: 5.4 | XO56: 0.166225331 | XP56: 191.8074094 | XQ56: 13.029 | XR56: 0.182 | XS56: 1.117590314 | XT56: 5092.377408 | XU56: 72.58171169 | XV56: 213.4267098 | XW56: 876.6915609 | XX56: 4215.685847 | XY56: 0.009642304162 | XZ56: 30.22939458 | YA56: 62.04540969 | YB56: 14.60673646 | YC56: 13.25628377 | YD56: 0.01376554747 | YE56: 42.9056536 | YF56: 0.008784836898 | YG56: 27.59324718 | YH56: 0.009535330002 | YI56: 25.54351747 | YJ56: 81.86840107 | YK56: 65.62986182 | YL56: 25.27056427 | YM56: 25252.23545 | YN56: 24227.07683 | YO56: 3810.1 | YP56: 0.5149592133 | YQ56: 23885.94913 | YR56: 22860.79051 | YS56: 5.57692018 | YT56: 0.2418502139 | YU56: -4.958830312 | YV56: -19.82299138 | YW56: 55.72186414 | YX56: 25252.23545 | YY56: 10437.99724 | YZ56: 1389.980721 | ZA56: 13424.25749 | ZB56: 25252.23545 | ZC56: 1
A57: 5 | B57: C-CB10-115-CE | C57: 30N0077 | D57: C-CB10-115-CE | E57: closed | F57: on | G57: N/A | I57: unsealed | J57: unsealed | M57: horizontal | N57: 10 | O57: 0 | P57: CUST 2 | Q57: 6/20/2015 | R57: 0:21:45 | S57: 10 Ton | T57: 0:10:00 | U57: 75/62 115/80 | V57: ENG 1 | W57: TECH 2 | X57: RTU5 | Y57: RTU5 | Z57: 3 | AA57: R22 | AB57: PSC Air Handler | AC57: Manuf. 5.5 lbs | AD57: 208/230/1 | AE57: TU3 | AF57: AHRI 210/240 2008 | AG57: 75 | AH57: 62 | AI57: 115 | AJ57: 80 | AK57: 5.5 | AM57: 5.5 | AO57: 229.9 | AP57: 1 | AQ57: 19.8 | AR57: 0 | AS57: 13681 | AT57: 39 | AU57: 13435 | AV57: 51 | AW57: -3962 | AX57: 52 | AY57: 9716 | AZ57: 55 | BB57: 944 | CN57: 2.205675369 | CO57: . | CP57: R22 5.5 LBS. unsealed cab:Inlet Meriam set @ 53.5%: Outlet Meriam set @ 52% manually: Horiz airflow. ID Pulley is 3 turns open from fully closed: installed economizer. Condenser Coil is blocked 12`.; | CQ57: 74.976 | CR57: 0.027 | CS57: 61.978 | CT57: 0.015 | CU57: 114.984 | CV57: 0.018 | CW57: 80.005 | CX57: 0.025 | CY57: 74.47 | CZ57: 0.03 | DA57: 63.23 | DB57: 0.03 | DC57: 67.23 | DD57: 0.02 | DE57: 0 | DF57: 0.002 | DG57: 1.0771 | DH57: 0.003 | DI57: 13681 | DJ57: 39 | DK57: -3962 | DL57: 52 | DM57: 2.206 | DN57: 0.014 | DU57: 229.9 | DV57: 1 | DW57: 229.9 | DX57: 1 | DY57: 229.9 | DZ57: 1 | EA57: 17.6 | EB57: 0.1 | EC57: 17.6 | ED57: 0.1 | EE57: 17.6 | EF57: 0.1 | EG57: 3930.7 | EH57: 4.5 | EI57: 3930.7 | EJ57: 4.5 | EK57: 3930.7 | EL57: 4.5 | EM57: 229.9 | EN57: 1 | EO57: 229.9 | EP57: 1 | EQ57: 229.9 | ER57: 1 | ES57: 2.2 | ET57: 0 | EU57: 2.2 | EV57: 0 | EW57: 2.2 | EX57: 0 | EZ57: 227.7 | FA57: 1 | FB57: 227.7 | FC57: 1 | FD57: 227.7 | FE57: 1 | FF57: 16.8 | FG57: 0.1 | FH57: 16.8 | FI57: 0.1 | FJ57: 16.8 | FK57: 0.1 | FL57: 3700.6 | FM57: 4.3 | FW57: 228.5 | FX57: 1 | FY57: 0.7 | FZ57: 0 | GA57: 167.6 | GB57: 0.9 | GC57: 0.1 | GD57: 0.2 | GE57: 4342 | GP57: 230.2 | GQ57: 1 | GR57: 0 | GS57: 0 | GT57: 343.32 | GU57: 0.32 | GV57: 126.65 | GW57: 0.06 | GX57: 141.32 | GY57: 0.07 | GZ57: 14.67 | HA57: 0.03 | HB57: 359.25 | HC57: 0.31 | HD57: 190.47 | HE57: 0.06 | HF57: 144.98 | HG57: 0.07 | HH57: 45.5 | HI57: 0.1 | HJ57: 342.57 | HK57: 0.31 | HL57: 126.36 | HM57: 0.06 | HN57: 141.15 | HO57: 0.07 | HP57: 14.78 | HQ57: 0.07 | HR57: 85.56 | HS57: 0.04 | HT57: 54.15 | HU57: 0.05 | HV57: 50.7 | HW57: 0.02 | HZ57: 84.87 | IA57: 0.04 | IB57: 56.52 | IC57: 0.04 | ID57: 50.29 | IE57: 0.02 | IF57: 6.23 | IG57: 0.05 | JZ57: 3.45 | KA57: 0.04 | MX57: 62.71 | MY57: 0.04 | MZ57: 63.01 | NA57: 0.04 | NB57: 63.04 | NC57: 0.03 | ND57: 63 | NE57: 0.03 | NF57: 62.86 | NG57: 0.04 | NH57: 62.92 | NI57: 0.04 | QR57: 157.08 | QS57: 0.05 | QT57: 69.04 | QU57: 0.07 | QV57: 193.57 | QW57: 0.08 | QX57: 115.2 | QY57: 0.13 | QZ57: 113.78 | RA57: 0.1 | RB57: 75.85 | RC57: 0.05 | RD57: 75.71 | RE57: 0.05 | RF57: 75.25 | RG57: 0.04 | RH57: 75.29 | RI57: 0.04 | RJ57: 75.13 | RK57: 0.04 | RL57: 75.2 | RM57: 0.03 | RN57: 75.25 | RO57: 0.03 | TD57: 74.89 | TE57: 0.05 | UN57: 115.33 | UO57: 0.08 | UP57: 96.26 | UQ57: 1.65 | UR57: 95.34 | US57: 0.92 | UT57: 75.07 | UU57: 0.04 | UV57: 106.12 | UW57: 0.68 | UX57: 76.27 | UY57: 0.05 | UZ57: 79.15 | VA57: 0.16 | VB57: 77.26 | VC57: 0.12 | VD57: 75.67 | VE57: 0.05 | VF57: 83.97 | VG57: 0.57 | VH57: 99.59 | VI57: 0.75 | VJ57: 79.07 | VK57: 0.25 | VL57: 75.91 | VM57: 0.09 | VN57: 90.4 | VO57: 0.6 | VP57: 102.82 | VQ57: 0.94 | VR57: 85.54 | VS57: 0.38 | VT57: 92.69 | VU57: 1.42 | VV57: 114.92 | VW57: 0.14 | WJ57: C-55-CE-DM | WK57: 74.976 | WL57: 0.027 | WM57: 61.978 | WN57: 0.015 | WO57: 63.534 | WP57: 0.007 | WQ57: 59.105 | WR57: 0.011 | WS57: 114.984 | WT57: 0.018 | WU57: 80.005 | WV57: 0.025 | WW57: 1129.5 | WX57: 1.6 | WY57: 1090.3 | WZ57: 1.6 | XA57: 0.57 | XB57: 0.001 | XC57: -0.206 | XD57: 0.001 | XE57: 0 | XF57: 0.002 | XG57: 1.0771 | XH57: 0.003 | XI57: 29.237 | XJ57: 0 | XK57: 4405 | XL57: 7 | XM57: 473.8 | XN57: 5.1 | XO57: 0.166225331 | XP57: 191.8074094 | XQ57: 13.029 | XR57: 0.182 | XS57: 1.115404679 | XT57: 5108.360475 | XU57: 73.01060882 | XV57: 216.0644838 | XW57: 887.5306784 | XX57: 4220.829796 | XY57: 0.009641186176 | XZ57: 30.25524814 | YA57: 62.41859532 | YB57: 14.60667146 | YC57: 13.26648742 | YD57: 0.01377576166 | YE57: 42.91553565 | YF57: 0.008771792535 | YG57: 27.5931191 | YH57: 0.009636672098 | YI57: 25.7445109 | YJ57: 81.97925869 | YK57: 65.66511107 | YL57: 25.47204132 | YM57: 24434.34465 | YN57: 23981.5007 | YO57: 3931.2 | YP57: 0.5491117438 | YQ57: 23066.45046 | YR57: 22613.60651 | YS57: 5.236424622 | YT57: 0.2440930548 | YU57: -4.783206818 | YV57: -19.56066337 | YW57: 56.10218018 | YX57: 24434.34465 | YY57: 9443.357038 | YZ57: 1391.872861 | ZA57: 13599.11475 | ZB57: 24434.34465 | ZC57: 1
